Workbook

Sheet General
B1: Módulo de Ingreso de Información
B5: Código
B6: Nombre | E6: Permisos Ambiental obtenida
B7: Fecha Radicación
B8: Hora Radicación
B9: Capacidad (MW)
B10: Tecnología | C10: Termica - Ciclo abierto | E10: Costo Activos de Uso ($COP)
B11: Barra 1 | E11: Delta pérdidas (GWh)
B12: Código Asociado | E12: Reducción Marginal VPN ($COP)
B13: FPO
B14: FPO 2
B15: Obligaciones
B16: Requiere Expansión
B17: Área Eléctrica

Sheet Tablas
B1: Tecnologia | C1: Factor de planta | D1: Iflex | E1: IE-RP | F1: Factor ENFICC | G1: Factor emisiones | H1: Oferta promedio | I1: Comentarios | J1: Area Eléctrica | N1: FPO | P1: Fecha Radicacion | Q1: Hora Radicacion | S1: Gestion Ambiental | U1: Consulta Previa | W1: Permiso Arquelogico
B2: Solar FV | C2: 0.26 | D2: 0 | E2: 0.3190502279 | F2: 0.15 | G2: 0 | H2: 83577.2 | I2: Los parámetros fueron calculados conforme a la metodología presentada en la Circular UPME 057 de 2022. | J2: Altántico | L2: SI | N2: 2023-01-01 | P2: 2022-01-01 | Q2: 00:00:00 | S2: No hay avances | U2: No hay avances | W2: No hay avances
B3: Eólico Onshore | C3: 0.57 | D3: 0 | E3: 0.3190502279 | F3: 0.06 | G3: 0 | H3: 83577.2 | I3: Los parámetros fueron calculados conforme a la metodología presentada en la Circular UPME 057 de 2022. | J3: Bolívar | L3: NO | N3: 2037-12-31 | P3: 2022-03-31 | Q3: 23:59:59 | S3: EIA | U3: Resolución. No Procede | W3: Aprobado
B4: Eólico Offshore | C4: 0.57 | D4: 0 | E4: 0.3190502279 | F4: 0.06 | G4: 0 | H4: 83577.2 | I4: Los parámetros fueron calculados conforme a la metodología presentada en la Circular UPME 057 de 2022. | J4: Córdoba - Sucre, Chinú | S4: LA | U4: Resolución. Si Procede | W4: No Aplica
B5: Biomasa y Residuos | C5: 0.7 | D5: 0.25 | E5: 0.3190502279 | F5: 0.83 | G5: 0.37 | H5: 83577.2 | I5: Los parámetros fueron calculados conforme a la metodología presentada en la Circular UPME 057 de 2022. | J5: Córdoba - Sucre, Cerromatoso | S5: PA | U5: Finalizada
B6: Geotérmica | C6: 0.8 | D6: 0.25 | E6: 0.3190502279 | F6: 0.7 | G6: 0 | H6: 83577.2 | I6: Los parámetros fueron calculados conforme a la metodología presentada en la Circular UPME 057 de 2022. | J6: Guajira - Cesar - Madgalena | S6: No Aplica
B7: PCH | C7: 0.54 | D7: 0.61 | E7: 0.1550930337 | F7: 0.15 | G7: 0 | H7: 158280.5 | I7: Los parámetros fueron calculados conforme a la metodología presentada en la Circular UPME 057 de 2022. | J7: Santander
B8: Termica - Ciclo abierto | C8: 0.85 | D8: 0.4 | E8: -0.5761741581 | F8: 0.83 | G8: 0.95 | H8: 267152.5 | I8: Los parámetros fueron calculados conforme a la metodología presentada en la Circular UPME 057 de 2022. | J8: Norte de Santander
B9: Termica - Ciclo combinado | C9: 0.85 | D9: 0.27 | E9: -0.5761741581 | F9: 0.83 | G9: 0.95 | H9: 267152.5 | I9: Los parámetros fueron calculados conforme a la metodología presentada en la Circular UPME 057 de 2022. | J9: Boyacá - Casanare
B10: Termica a vapor | C10: 0.85 | D10: 0.25 | E10: -0.5761741581 | F10: 0.83 | G10: 0.37 | H10: 267152.5 | I10: Los parámetros fueron calculados conforme a la metodología presentada en la Circular UPME 057 de 2022. | J10: Arauca
B11: Termica - diesel | C11: 0.85 | D11: 0.6 | E11: -4.282826571 | F11: 0.83 | G11: 0.77 | H11: 709472.9 | I11: Los parámetros fueron calculados conforme a la metodología presentada en la Circular UPME 057 de 2022. | J11: Antioquia
B12: Hidraulica | C12: 0.6 | D12: 0.61 | E12: 0.1550930337 | F12: 0.31 | G12: 0 | H12: 158280.5 | I12: Los parámetros fueron calculados conforme a la metodología presentada en la Circular UPME 057 de 2022. | J12: Chocó
B13: Cogeneracion | C13: 0.85 | D13: 0.1 | E13: 0.3190502279 | F13: 0.83 | G13: 0.37 | H13: 83577.2 | I13: Los parámetros fueron calculados conforme a la metodología presentada en la Circular UPME 057 de 2022. | J13: Bogotá
J14: Meta - Guaviare
J15: Caldas - Quidio - Risaralda
J16: Valle
J17: Cauca - Nariño
J18: Tolima - Huila Caquetá
J19: Putumayo

Sheet InfoPro
A1: Código | B1: Nombre | C1: Fecha Radicación | D1: Hora Radicación | E1: Capacidad | F1: Tipo | G1: Barra 1 | H1: Código Asociado | I1: FPO | J1: FPO 2 | K1: Obligaciones | L1: Requiere Expansión | M1: Area Eléctrica | N1: Permisos Ambiental obtenida | O1: Costo Activos de Uso | P1: Pérdidas STN
A2: SC_544_A1 | B2: SORACÁ 19.9 MW | C2: 2022-06-03 | D2: 16:05:00 | E2: 19.9 | F2: Solar FV | G2: Muiscas 34.5 | H2: SC_544 | I2: 2025-12-31 | J2: 2025-12-31 | K2: NO | L2: NO | M2: Boyacá - Casanare | N2: NO | O2: 0 | P2: -1.13 | Q2: =_xlfn.CONCAT(TEXT(C2,"DD/MM/YYYY")," ",TEXT(D2,"hh:mm")) -> 03/06/2022 16:05 | R2: 1
A3: SC_544_A2 | B3: SORACÁ 19.9 MW | C3: 2022-06-03 | D3: 16:05:00 | E3: 19.9 | F3: Solar FV | G3: Tunja 34.5 | H3: SC_544 | I3: 2025-12-31 | J3: 2025-12-31 | K3: NO | L3: NO | M3: Boyacá - Casanare | N3: NO | O3: 0 | P3: -1.08 | Q3: 03/06/2022 16:05 | R3: 2
A4: SC_486_A1 | B4: Tintal 9,9 MW | C4: 2022-07-12 | D4: 15:55:00 | E4: 9.9 | F4: Solar FV | G4: Alto Ricaurte 34.5 | H4: SC_486 | I4: 2025-12-31 | J4: 2025-12-31 | K4: NO | L4: NO | M4: Boyacá - Casanare | N4: NO | O4: 0 | P4: -1.21248 | Q4: 12/07/2022 15:55 | R4: 3
A5: SC_486_A2 | B5: Tintal 9,9 MW | C5: 2022-07-12 | D5: 15:55:00 | E5: 9.9 | F5: Solar FV | G5: Sachica 34.5 | H5: SC_486 | I5: 2025-12-31 | J5: 2025-12-31 | K5: NO | L5: NO | M5: Boyacá - Casanare | N5: NO | O5: 0 | P5: -1.12588 | Q5: 12/07/2022 15:55 | R5: 4
A6: SC_1055_A1 | B6: Parque Solar Fotovoltaico Higueras | C6: 2022-07-15 | D6: 09:28:00 | E6: 40 | F6: Solar FV | G6: Duitama 115 | H6: SC_1055 | I6: 2027-12-31 | J6: 2027-12-31 | K6: NO | L6: NO | M6: Boyacá - Casanare | N6: NO | O6: 0 | P6: -0.204 | Q6: 15/07/2022 09:28 | R6: 5
A7: SC_1055_A2 | B7: Parque Solar Fotovoltaico Higueras | C7: 2022-07-15 | D7: 09:28:00 | E7: 40 | F7: Solar FV | G7: Sochagota 115 | H7: SC_1055 | I7: 2027-12-31 | J7: 2027-12-31 | K7: NO | L7: NO | M7: Boyacá - Casanare | N7: NO | O7: 0 | P7: -0.217 | Q7: 15/07/2022 09:28 | R7: 6
A8: SC_1320_A1 | B8: La Ramada Solar I | C8: 2022-07-15 | D8: 16:19:00 | E8: 9.9 | F8: Solar FV | G8: Ramada 34.5 | H8: SC_1320 | I8: 2025-12-31 | J8: 2025-12-31 | K8: NO | L8: NO | M8: Boyacá - Casanare | N8: NO | O8: 0 | P8: -0.59091 | Q8: 15/07/2022 16:19 | R8: 7
A9: SC_1320_A2 | B9: La Ramada Solar I | C9: 2022-07-15 | D9: 16:19:00 | E9: 9.9 | F9: Solar FV | G9: Ramada 13.8 | H9: SC_1320 | I9: 2025-12-31 | J9: 2025-12-31 | K9: NO | L9: NO | M9: Boyacá - Casanare | N9: NO | O9: 0 | P9: -0.43837 | Q9: 15/07/2022 16:19 | R9: 8
A10: SC_1328_A1 | B10: La Ramada Solar II | C10: 2022-07-15 | D10: 16:20:00 | E10: 9.9 | F10: Solar FV | G10: Ramada 34.5 | H10: SC_1328 | I10: 2025-12-31 | J10: 2025-12-31 | K10: NO | L10: NO | M10: Boyacá - Casanare | N10: NO | O10: 0 | P10: -1.027 | Q10: 15/07/2022 16:20 | R10: 9
A11: SC_1328_A2 | B11: La Ramada Solar II | C11: 2022-07-15 | D11: 16:20:00 | E11: 9.9 | F11: Solar FV | G11: Ramada 13.8 | H11: SC_1328 | I11: 2025-12-31 | J11: 2025-12-31 | K11: NO | L11: NO | M11: Boyacá - Casanare | N11: NO | O11: 0 | P11: -1.038 | Q11: 15/07/2022 16:20 | R11: 10
A12: SC_659_A1 | B12: TR Solar 9 | C12: 2022-07-15 | D12: 17:47:00 | E12: 50 | F12: Solar FV | G12: Alcaravan 115 | H12: SC_659 | I12: 2026-12-31 | J12: 2026-12-31 | K12: NO | L12: NO | M12: Boyacá - Casanare | N12: NO | O12: 0 | P12: -9.82 | Q12: 15/07/2022 17:47 | R12: 11
A13: SC_659_A2 | B13: TR Solar 9 | C13: 2022-07-15 | D13: 17:47:00 | E13: 50 | F13: Solar FV | G13: Aguazul 115 | H13: SC_659 | I13: 2026-12-31 | J13: 2026-12-31 | K13: NO | L13: NO | M13: Boyacá - Casanare | N13: NO | O13: 0 | P13: -11.04 | Q13: 15/07/2022 17:47 | R13: 12
A14: SC_1222_A1 | B14: Parque Eolico Villanueva | C14: 2022-07-15 | D14: 18:04:00 | E14: 70 | F14: Eólico Onshore | G14: Chiquinquira 115 | H14: SC_1222 | I14: 2025-12-31 | J14: 2025-12-31 | K14: NO | L14: NO | M14: Boyacá - Casanare | N14: NO | O14: 0 | P14: -22.07064 | Q14: 15/07/2022 18:04 | R14: 13
A15: SC_800_A1 | B15: Parque Solar Tuta | C15: 2022-07-15 | D15: 18:06:00 | E15: 2.72 | F15: Solar FV | G15: Rio Piedras 13.8 | H15: SC_800 | I15: 2023-12-31 | J15: 2023-12-31 | K15: NO | L15: NO | M15: Boyacá - Casanare | N15: NO | O15: 0 | P15: -3.066e-07 | Q15: 15/07/2022 18:06 | R15: 14
A16: SC_626_A1 | B16: TR Solar 12 | C16: 2022-07-16 | D16: 08:02:00 | E16: 19.9 | F16: Solar FV | G16: Duitama 115 | H16: SC_626 | I16: 2025-12-31 | J16: 2025-12-31 | K16: NO | L16: NO | M16: Boyacá - Casanare | N16: NO | O16: 0 | P16: -5.28 | Q16: 16/07/2022 08:02 | R16: 15
A17: SC_626_A2 | B17: TR Solar 12 | C17: 2022-07-16 | D17: 08:02:00 | E17: 19.9 | F17: Solar FV | G17: Duitama 34.5 | H17: SC_626 | I17: 2025-12-31 | J17: 2025-12-31 | K17: NO | L17: NO | M17: Boyacá - Casanare | N17: NO | O17: 0 | P17: -5.25 | Q17: 16/07/2022 08:02 | R17: 16
A18: SC_1064_A1 | B18: Sua 60 MW | C18: 2022-07-16 | D18: 10:54:00 | E18: 60 | F18: Solar FV | G18: Duitama 115 | H18: SC_1064 | I18: 2027-12-31 | J18: 2027-12-31 | K18: NO | L18: NO | M18: Boyacá - Casanare | N18: NO | O18: 0 | P18: -5.48 | Q18: 16/07/2022 10:54 | R18: 17
A19: SC_1064_A2 | B19: Sua 60 MW | C19: 2022-07-16 | D19: 10:54:00 | E19: 60 | F19: Solar FV | G19: Bavaria 115 | H19: SC_1064 | I19: 2027-12-31 | J19: 2027-12-31 | K19: NO | L19: NO | M19: Boyacá - Casanare | N19: NO | O19: 0 | P19: -5.33 | Q19: 16/07/2022 10:54 | R19: 18
A20: SC_775_A2 | B20: PCH Santa Rosa | C20: 2022-07-16 | D20: 11:20:00 | E20: 19.9 | F20: PCH | G20: Alto Ricaurte 115 | H20: SC_775 | I20: 2027-12-31 | J20: 2027-12-31 | K20: NO | L20: NO | M20: Boyacá - Casanare | N20: NO | O20: 0 | P20: -8.86711655 | Q20: 16/07/2022 11:20 | R20: 19
A21: SC_776_A2 | B21: PCH Güepsa | C21: 2022-07-16 | D21: 11:22:00 | E21: 19.9 | F21: PCH | G21: Alto Ricaurte 115 | H21: SC_776 | I21: 2027-12-31 | J21: 2027-12-31 | K21: NO | L21: NO | M21: Boyacá - Casanare | N21: NO | O21: 0 | P21: -8.86711655 | Q21: 16/07/2022 11:22 | R21: 20
A22: SC_777_A2 | B22: PCH El Rincón | C22: 2022-07-16 | D22: 11:24:00 | E22: 19.9 | F22: PCH | G22: Alto Ricaurte 115 | H22: SC_777 | I22: 2027-12-31 | J22: 2027-12-31 | K22: NO | L22: NO | M22: Boyacá - Casanare | N22: NO | O22: 0 | P22: -8.86711655 | Q22: 16/07/2022 11:24 | R22: 21
A23: SC_780_A1 | B23: PCH Canutillo | C23: 2022-07-16 | D23: 11:26:00 | E23: 8.72 | F23: PCH | G23: Chiquinquira 115 | H23: SC_780 | I23: 2027-12-31 | J23: 2027-12-31 | K23: NO | L23: NO | M23: Boyacá - Casanare | N23: NO | O23: 0 | P23: -0.689293649 | Q23: 16/07/2022 11:26 | R23: 22
A24: SC_780_A2 | B24: PCH Canutillo | C24: 2022-07-16 | D24: 11:26:00 | E24: 8.72 | F24: PCH | G24: Alto Ricaurte 115 | H24: SC_780 | I24: 2027-12-31 | J24: 2027-12-31 | K24: NO | L24: NO | M24: Boyacá - Casanare | N24: NO | O24: 0 | P24: -0.61505055 | Q24: 16/07/2022 11:26 | R24: 23
A25: SC_779_A1 | B25: PCH El Puerto | C25: 2022-07-16 | D25: 11:36:00 | E25: 19.9 | F25: PCH | G25: Chiquinquira 115 | H25: SC_779 | I25: 2027-12-31 | J25: 2027-12-31 | K25: NO | L25: NO | M25: Boyacá - Casanare | N25: NO | O25: 0 | P25: -10.20347061 | Q25: 16/07/2022 11:36 | R25: 24
A26: SC_779_A2 | B26: PCH El Puerto | C26: 2022-07-16 | D26: 11:36:00 | E26: 19.9 | F26: PCH | G26: Alto Ricaurte 115 | H26: SC_779 | I26: 2027-12-31 | J26: 2027-12-31 | K26: NO | L26: NO | M26: Boyacá - Casanare | N26: NO | O26: 0 | P26: -8.86711655 | Q26: 16/07/2022 11:36 | R26: 25
A27: SC_1477_A1 | B27: Prque Solar Belencito APDR_0MW (AUTOGENERADOR) | C27: 2022-07-16 | D27: 20:08:00 | E27: 0 | F27: Solar FV | G27: Paz del Rio 115 | H27: SC_1477 | I27: 2024-05-31 | J27: 2024-05-31 | K27: NO | L27: NO | M27: Boyacá - Casanare | N27: NO | O27: 0 | P27: -2.86 | Q27: 16/07/2022 20:08 | R27: 26
A28: SC_1477_A2 | B28: Prque Solar Belencito APDR_0MW (AUTOGENERADOR) | C28: 2022-07-16 | D28: 20:08:00 | E28: 0 | F28: Solar FV | G28: Suamox 115 | H28: SC_1477 | I28: 2024-05-31 | J28: 2024-05-31 | K28: NO | L28: NO | M28: Boyacá - Casanare | N28: NO | O28: 0 | P28: -3.65 | Q28: 16/07/2022 20:08 | R28: 27
A29: SC_1481_A1 | B29: Oslo II_150MW | C29: 2022-07-16 | D29: 21:27:00 | E29: 150 | F29: Solar FV | G29: Alcaravan 220 | H29: SC_1481 | I29: 2027-12-31 | J29: 2027-12-31 | K29: NO | L29: NO | M29: Boyacá - Casanare | N29: NO | O29: 0 | P29: -210.64 | Q29: 16/07/2022 21:27 | R29: 28
A30: SC_1481_A2 | B30: Oslo II_150MW | C30: 2022-07-16 | D30: 21:27:00 | E30: 150 | F30: Solar FV | G30: San Antonio 220 | H30: SC_1481 | I30: 2027-12-31 | J30: 2027-12-31 | K30: NO | L30: NO | M30: Boyacá - Casanare | N30: NO | O30: 0 | P30: -93.71 | Q30: 16/07/2022 21:27 | R30: 29
A31: SC_1633_A1 | B31: Nobsa 9.9 MW | C31: 2022-07-18 | D31: 15:07:00 | E31: 9.9 | F31: Solar FV | G31: Holcim 13.8 | H31: SC_1633 | I31: 2024-12-31 | J31: 2024-12-31 | K31: NO | L31: NO | M31: Boyacá - Casanare | N31: NO | O31: 0 | P31: 1.566 | Q31: 18/07/2022 15:07 | R31: 30
A32: SC_1633_A2 | B32: Nobsa 9.9 MW | C32: 2022-07-18 | D32: 15:07:00 | E32: 9.9 | F32: Solar FV | G32: Holci m 115 | H32: SC_1633 | I32: 2024-12-31 | J32: 2024-12-31 | K32: NO | L32: NO | M32: Boyacá - Casanare | N32: NO | O32: 0 | P32: 1.132 | Q32: 18/07/2022 15:07 | R32: 31
A33: SC_1890_A1 | B33: Duitama I 40 MW | C33: 2022-07-18 | D33: 16:05:00 | E33: 40 | F33: Solar FV | G33: Duitama 115 | H33: SC_1890 | I33: 2024-12-31 | J33: 2024-12-31 | K33: NO | L33: NO | M33: Boyacá - Casanare | N33: NO | O33: 0 | P33: 1.35 | Q33: 18/07/2022 16:05 | R33: 32
A34: SC_1890_A2 | B34: Duitama I 40 MW | C34: 2022-07-18 | D34: 16:05:00 | E34: 40 | F34: Solar FV | G34: Sochagota 115 | H34: SC_1890 | I34: 2024-12-31 | J34: 2024-12-31 | K34: NO | L34: NO | M34: Boyacá - Casanare | N34: NO | O34: 0 | P34: 0.787 | Q34: =_xlfn.CONCAT(TEXT(C34,"DD/MM/YYYY")," ",TEXT(D34,"hh:mm")) -> 18/07/2022 16:05 | R34: 33
A35: SC_1689_A1 | B35: Parque Solar Fotovoltaico La Milagrosa 45 MW | C35: 2022-07-19 | D35: 15:31:00 | E35: 45 | F35: Solar FV | G35: Chiquinquira 115 | H35: SC_1689 | I35: 2026-12-31 | J35: 2026-12-31 | K35: NO | L35: NO | M35: Boyacá - Casanare | N35: NO | O35: 0 | P35: -9.476 | Q35: 19/07/2022 15:31 | R35: 34
A36: SC_1689_A2 | B36: Parque Solar Fotovoltaico La Milagrosa 45 MW | C36: 2022-07-19 | D36: 15:31:00 | E36: 45 | F36: Solar FV | G36: Alto Ricaurte 115 | H36: SC_1689 | I36: 2026-12-31 | J36: 2026-12-31 | K36: NO | L36: NO | M36: Boyacá - Casanare | N36: NO | O36: 0 | P36: -10.42172 | Q36: 19/07/2022 15:31 | R36: 35
A37: SC_1489_A1 | B37: Acacias II de 40 MW | C37: 2022-07-19 | D37: 22:01:00 | E37: 40 | F37: Solar FV | G37: Yopalosa 115 | H37: SC_1489 | I37: 2026-12-31 | J37: 2026-12-31 | K37: NO | L37: NO | M37: Boyacá - Casanare | N37: NO | O37: 0 | P37: -9.13 | Q37: 19/07/2022 22:01 | R37: 36
A38: SC_1489_A2 | B38: Acacias II de 40 MW | C38: 2022-07-19 | D38: 22:01:00 | E38: 40 | F38: Solar FV | G38: Yopal 115 | H38: SC_1489 | I38: 2026-12-31 | J38: 2026-12-31 | K38: NO | L38: NO | M38: Boyacá - Casanare | N38: NO | O38: 0 | P38: -4.5 | Q38: 19/07/2022 22:01 | R38: 37
A39: SC_1759_A1 | B39: Aumento Excedentes Autog. Argos Sogamoso | C39: 2022-07-20 | D39: 10:09:00 | E39: 15 | F39: Termica - Ciclo combinado | G39: San Antonio 115 | H39: SC_1759 | I39: 2023-12-30 | J39: 2023-12-30 | K39: NO | L39: NO | M39: Boyacá - Casanare | N39: NO | O39: 0 | P39: -1.40373 | Q39: 20/07/2022 10:09 | R39: 38
A40: SC_1774_A2 | B40: Firavisol 8 MW | C40: 2022-07-25 | D40: 16:35:00 | E40: 8 | F40: Solar FV | G40: Sirata 34.5 | H40: SC_1774 | I40: 2025-12-31 | J40: 2025-12-31 | K40: NO | L40: NO | M40: Boyacá - Casanare | N40: NO | O40: 0 | P40: -1.67 | Q40: 25/07/2022 16:35 | R40: 39
A41: SC_1851_A1 | B41: Zaino Solar 9,9MW | C41: 2022-07-27 | D41: 15:53:00 | E41: 9.9 | F41: Solar FV | G41: Tauramena 34.5 | H41: SC_1851 | I41: 2024-12-31 | J41: 2024-12-31 | K41: NO | L41: NO | M41: Boyacá - Casanare | N41: NO | O41: 0 | P41: -1.66 | Q41: 27/07/2022 15:53 | R41: 40
A42: SC_1851_A2 | B42: Zaino Solar 9,9MW | C42: 2022-07-27 | D42: 15:53:00 | E42: 9.9 | F42: Solar FV | G42: Tauramena 13.2 | H42: SC_1851 | I42: 2024-12-31 | J42: 2024-12-31 | K42: NO | L42: NO | M42: Boyacá - Casanare | N42: NO | O42: 0 | P42: -2.56 | Q42: 27/07/2022 15:53 | R42: 41
A43: SC_1755_A1 | B43: Parque Solar Picon | C43: 2022-07-27 | D43: 21:50:00 | E43: 75 | F43: Solar FV | G43: Alcaravan 115 | H43: SC_1755 | I43: 2026-12-31 | J43: 2026-12-31 | K43: NO | L43: NO | M43: Boyacá - Casanare | N43: NO | O43: 0 | P43: -14.28 | Q43: 27/07/2022 21:50 | R43: 42
A44: SC_1755_A2 | B44: Parque Solar Picon | C44: 2022-07-27 | D44: 21:50:00 | E44: 75 | F44: Solar FV | G44: Alcaravan 220 | H44: SC_1755 | I44: 2026-12-31 | J44: 2026-12-31 | K44: NO | L44: NO | M44: Boyacá - Casanare | N44: NO | O44: 0 | P44: -13.86 | Q44: 27/07/2022 21:50 | R44: 43
A45: SC_1803_A1 | B45: Boavita I | C45: 2022-08-01 | D45: 17:10:00 | E45: 14.25 | F45: Solar FV | G45: Boavita 34.5 | H45: SC_1803 | I45: 2026-12-31 | J45: 2026-12-31 | K45: NO | L45: NO | M45: Boyacá - Casanare | N45: NO | O45: 0 | P45: 7.13020278 | Q45: 01/08/2022 17:10 | R45: 44
A46: SC_1803_A2 | B46: Boavita I | C46: 2022-08-01 | D46: 17:10:00 | E46: 14.25 | F46: Solar FV | G46: Boavita 115 | H46: SC_1803 | I46: 2026-12-31 | J46: 2026-12-31 | K46: NO | L46: NO | M46: Boyacá - Casanare | N46: NO | O46: 0 | P46: 7.77625378 | Q46: 01/08/2022 17:10 | R46: 45
A47: SC_1986_A1 | B47: Puerta del Sol 19,9MW | C47: 2022-08-01 | D47: 18:08:00 | E47: 19.9 | F47: Solar FV | G47: Aguazul 34.5 | H47: SC_1986 | I47: 2025-12-31 | J47: 2025-12-31 | K47: NO | L47: NO | M47: Boyacá - Casanare | N47: NO | O47: 0 | P47: -1.365 | Q47: 01/08/2022 18:08 | R47: 46
A48: SC_1986_A2 | B48: Puerta del Sol 19,9MW | C48: 2022-08-01 | D48: 18:08:00 | E48: 19.9 | F48: Solar FV | G48: Aguazul 115 | H48: SC_1986 | I48: 2025-12-31 | J48: 2025-12-31 | K48: NO | L48: NO | M48: Boyacá - Casanare | N48: NO | O48: 0 | P48: -0.822 | Q48: 01/08/2022 18:08 | R48: 47
A49: SC_1888_A1 | B49: Chiquinquira Solar I 9,9 MW | C49: 2022-08-02 | D49: 17:11:00 | E49: 9.9 | F49: Solar FV | G49: Chiquiquira 34.5 | H49: SC_1888 | I49: 2025-12-31 | J49: 2025-12-31 | K49: NO | L49: NO | M49: Boyacá - Casanare | N49: NO | O49: 0 | P49: -1.28 | Q49: 02/08/2022 17:11 | R49: 48
A50: SC_1888_A2 | B50: Chiquinquira Solar I 9,9 MW | C50: 2022-08-02 | D50: 17:11:00 | E50: 9.9 | F50: Solar FV | G50: Chiquinquira 13.8 | H50: SC_1888 | I50: 2025-12-31 | J50: 2025-12-31 | K50: NO | L50: NO | M50: Boyacá - Casanare | N50: NO | O50: 0 | P50: -1.45 | Q50: 02/08/2022 17:11 | R50: 49
A51: SC_1941_A1 | B51: Esperanza Solar 9,9MW | C51: 2022-08-04 | D51: 09:45:00 | E51: 9.9 | F51: Solar FV | G51: Niata 34.5 | H51: SC_1941 | I51: 2025-07-31 | J51: 2025-07-31 | K51: NO | L51: NO | M51: Boyacá - Casanare | N51: NO | O51: 0 | P51: 0.38 | Q51: 04/08/2022 09:45 | R51: 50
A52: SC_1941_A2 | B52: Esperanza Solar 9,9MW | C52: 2022-08-04 | D52: 09:45:00 | E52: 9.9 | F52: Solar FV | G52: Niata 13,8 | H52: SC_1941 | I52: 2025-07-31 | J52: 2025-07-31 | K52: NO | L52: NO | M52: Boyacá - Casanare | N52: NO | O52: 0 | P52: 0.261 | Q52: 04/08/2022 09:45 | R52: 51
A53: SC_1901_A1 | B53: Alcalá-50 MW | C53: 2022-08-08 | D53: 09:27:00 | E53: 50 | F53: Solar FV | G53: Suamox 115 | H53: SC_1901 | I53: 2026-12-31 | J53: 2026-12-31 | K53: NO | L53: NO | M53: Boyacá - Casanare | N53: NO | O53: 0 | P53: -3.21 | Q53: 08/08/2022 09:27 | R53: 52
A54: SC_1901_A2 | B54: Alcalá-50 MW | C54: 2022-08-08 | D54: 09:27:00 | E54: 50 | F54: Solar FV | G54: Ramada 115 | H54: SC_1901 | I54: 2026-12-31 | J54: 2026-12-31 | K54: NO | L54: NO | M54: Boyacá - Casanare | N54: NO | O54: 0 | P54: -3.12 | Q54: 08/08/2022 09:27 | R54: 53
A55: SC_1953_A1 | B55: SOCHAGOTA DE VERANO_69.9MW | C55: 2022-08-08 | D55: 11:37:00 | E55: 69.9 | F55: Solar FV | G55: Sochagota 115 | H55: SC_1953 | I55: 2025-12-19 | J55: 2025-12-19 | K55: NO | L55: NO | M55: Boyacá - Casanare | N55: NO | O55: 0 | P55: -8.617 | Q55: 08/08/2022 11:37 | R55: 54
A56: SC_2190_A1 | B56: SIKUANI | C56: 2022-08-09 | D56: 15:53:00 | E56: 17 | F56: Solar FV | G56: Piñalito 34.5 | H56: SC_2190 | I56: 2026-12-31 | J56: 2026-12-31 | K56: NO | L56: NO | M56: Boyacá - Casanare | N56: NO | O56: 0 | P56: -2.73 | Q56: 09/08/2022 15:53 | R56: 55
A57: SC_2190_A2 | B57: SIKUANI | C57: 2022-08-09 | D57: 15:53:00 | E57: 17 | F57: Solar FV | G57: Aguazul 115 | H57: SC_2190 | I57: 2026-12-31 | J57: 2026-12-31 | K57: NO | L57: NO | M57: Boyacá - Casanare | N57: NO | O57: 0 | P57: -0.79 | Q57: 09/08/2022 15:53 | R57: 56
A58: SC_1834_A1 | B58: Barbados | C58: 2022-08-11 | D58: 09:54:00 | E58: 15 | F58: Solar FV | G58: Alto Ricaurte 34.5 | H58: SC_1834 | I58: 2025-12-31 | J58: 2025-12-31 | K58: NO | L58: NO | M58: Boyacá - Casanare | N58: NO | O58: 0 | P58: -0.34404 | Q58: 11/08/2022 09:54 | R58: 57
A59: SC_1834_A2 | B59: Barbados | C59: 2022-08-11 | D59: 09:54:00 | E59: 15 | F59: Solar FV | G59: Sachica 34.5 | H59: SC_1834 | I59: 2025-12-31 | J59: 2025-12-31 | K59: NO | L59: NO | M59: Boyacá - Casanare | N59: NO | O59: 0 | P59: -0.1442 | Q59: 11/08/2022 09:54 | R59: 58
A60: SC_1878_A1 | B60: Autogenerador Solar Holcim | C60: 2022-08-16 | D60: 13:49:00 | E60: 6.7 | F60: Solar FV | G60: Holcim 115 | H60: SC_1878 | I60: 2024-06-30 | J60: 2024-06-30 | K60: NO | L60: NO | M60: Boyacá - Casanare | N60: NO | O60: 0 | P60: -0.0001 | Q60: 16/08/2022 13:49 | R60: 59
A61: SC_1874_A1 | B61: Colibri I | C61: 2022-08-17 | D61: 11:04:00 | E61: 96.9 | F61: Eólico Onshore | G61: Alto Ricaurte 115 | H61: SC_1874 | I61: 2026-12-31 | J61: 2026-12-31 | K61: NO | L61: NO | M61: Boyacá - Casanare | N61: NO | O61: 0 | P61: -75.7 | Q61: 17/08/2022 11:04 | R61: 60
A62: SC_1874_A2 | B62: Colibri I | C62: 2022-08-17 | D62: 11:04:00 | E62: 96.9 | F62: Eólico Onshore | G62: Chiquinquira 115 | H62: SC_1874 | I62: 2026-12-31 | J62: 2026-12-31 | K62: NO | L62: NO | M62: Boyacá - Casanare | N62: NO | O62: 0 | P62: -80.8 | Q62: 17/08/2022 11:04 | R62: 61
A63: SC_1988_A1 | B63: LAS ACACIAS I - 40 MW | C63: 2022-08-17 | D63: 18:15:00 | E63: 40 | F63: Solar FV | G63: Yopalosa 115 | H63: SC_1988 | I63: 2026-12-31 | J63: 2026-12-31 | K63: NO | L63: NO | M63: Boyacá - Casanare | N63: NO | O63: 0 | P63: -3.21 | Q63: 17/08/2022 18:15 | R63: 62
A64: SC_1988_A2 | B64: LAS ACACIAS I - 40 MW | C64: 2022-08-17 | D64: 18:15:00 | E64: 40 | F64: Solar FV | G64: Yopal 115 | H64: SC_1988 | I64: 2026-12-31 | J64: 2026-12-31 | K64: NO | L64: NO | M64: Boyacá - Casanare | N64: NO | O64: 0 | P64: -3.12 | Q64: 17/08/2022 18:15 | R64: 63
A65: SC_2123_A1 | B65: Parque Solar Pollux | C65: 2022-08-18 | D65: 18:50:00 | E65: 209.6 | F65: Solar FV | G65: Alcaravan 115 | H65: SC_2123 | I65: 2025-11-25 | J65: 2025-11-25 | K65: NO | L65: NO | M65: Boyacá - Casanare | N65: NO | O65: 0 | P65: -35.67 | Q65: 18/08/2022 18:50 | R65: 64
A66: SC_2123_A2 | B66: Parque Solar Pollux | C66: 2022-08-18 | D66: 18:50:00 | E66: 209.6 | F66: Solar FV | G66: Alcaravan 220 | H66: SC_2123 | I66: 2025-11-25 | J66: 2025-11-25 | K66: NO | L66: NO | M66: Boyacá - Casanare | N66: NO | O66: 0 | P66: -34.39 | Q66: =_xlfn.CONCAT(TEXT(C66,"DD/MM/YYYY")," ",TEXT(D66,"hh:mm")) -> 18/08/2022 18:50 | R66: 65
A67: SC_1869_A1 | B67: PE NAIRA_96.9MW | C67: 2022-08-19 | D67: 08:47:00 | E67: 96.9 | F67: Eólico Onshore | G67: Alto Ricaurte 115 | H67: SC_1869 | I67: 2026-12-08 | J67: 2026-12-08 | K67: NO | L67: NO | M67: Boyacá - Casanare | N67: NO | O67: 0 | P67: -36.756 | Q67: 19/08/2022 08:47 | R67: 66
A68: SC_2064_A2 | B68: Firavitoba 9,9 del Verano Solar | C68: 2022-08-21 | D68: 08:14:00 | E68: 9.9 | F68: Solar FV | G68: Sirata 34.5 | H68: SC_2064 | I68: 2025-12-31 | J68: 2025-12-31 | K68: NO | L68: NO | M68: Boyacá - Casanare | N68: NO | O68: 0 | P68: -1.35094 | Q68: 21/08/2022 08:14 | R68: 67
A69: SC_2007_A1 | B69: Parque Solar Yopal | C69: 2022-08-22 | D69: 09:11:00 | E69: 19.9 | F69: Solar FV | G69: Morichal 34.5 | H69: SC_2007 | I69: 2026-12-31 | J69: 2026-12-31 | K69: NO | L69: NO | M69: Boyacá - Casanare | N69: NO | O69: 0 | P69: -5.45 | Q69: 22/08/2022 09:11 | R69: 68
A70: SC_2007_A2 | B70: Parque Solar Yopal | C70: 2022-08-22 | D70: 09:11:00 | E70: 19.9 | F70: Solar FV | G70: Yopal 34.5 | H70: SC_2007 | I70: 2026-12-31 | J70: 2026-12-31 | K70: NO | L70: NO | M70: Boyacá - Casanare | N70: NO | O70: 0 | P70: -3.78 | Q70: 22/08/2022 09:11 | R70: 69
A71: SC_1914_A1 | B71: Suniva 70 MW | C71: 2022-08-22 | D71: 15:54:00 | E71: 70 | F71: Solar FV | G71: Muiscas 115 | H71: SC_1914 | I71: 2027-12-31 | J71: 2027-12-31 | K71: NO | L71: NO | M71: Boyacá - Casanare | N71: NO | O71: 0 | P71: 2.35 | Q71: 22/08/2022 15:54 | R71: 70
A72: SC_1914_A2 | B72: Suniva 70 MW | C72: 2022-08-22 | D72: 15:54:00 | E72: 70 | F72: Solar FV | G72: Tunja 115 | H72: SC_1914 | I72: 2027-12-31 | J72: 2027-12-31 | K72: NO | L72: NO | M72: Boyacá - Casanare | N72: NO | O72: 0 | P72: 2.32 | Q72: 22/08/2022 15:54 | R72: 71
A73: SC_1921_A1 | B73: El Gabán I | C73: 2022-08-22 | D73: 16:21:00 | E73: 100 | F73: Solar FV | G73: Alcaravan 220 | H73: SC_1921 | I73: 2026-12-31 | J73: 2026-12-31 | K73: NO | L73: NO | M73: Boyacá - Casanare | N73: NO | O73: 0 | P73: -19.39 | Q73: 22/08/2022 16:21 | R73: 72
A74: SC_1921_A2 | B74: El Gabán I | C74: 2022-08-22 | D74: 16:21:00 | E74: 100 | F74: Solar FV | G74: Alcaravan 115 | H74: SC_1921 | I74: 2026-12-31 | J74: 2026-12-31 | K74: NO | L74: NO | M74: Boyacá - Casanare | N74: NO | O74: 0 | P74: -20.38 | Q74: 22/08/2022 16:21 | R74: 73
A75: SC_2172_A1 | B75: Termocasanare 1 9,9 MW | C75: 2022-08-23 | D75: 11:24:00 | E75: 9.9 | F75: Termica - Ciclo abierto | G75: Aguazul 34.5 | H75: SC_2172 | I75: 2024-08-31 | J75: 2024-08-31 | K75: NO | L75: NO | M75: Boyacá - Casanare | N75: NO | O75: 0 | P75: -5.461 | Q75: 23/08/2022 11:24 | R75: 74
A76: SC_2172_A2 | B76: Termocasanare 1 9,9 MW | C76: 2022-08-23 | D76: 11:24:00 | E76: 9.9 | F76: Termica - Ciclo abierto | G76: Aguazul 115 | H76: SC_2172 | I76: 2024-08-31 | J76: 2024-08-31 | K76: NO | L76: NO | M76: Boyacá - Casanare | N76: NO | O76: 0 | P76: -3.347 | Q76: 23/08/2022 11:24 | R76: 75
A77: SC_2194_A1 | B77: Planta de generación GN Belencito APDR | C77: 2022-08-23 | D77: 16:24:00 | E77: 0 | F77: Termica - Ciclo abierto | G77: Paz del Rio 115 | H77: SC_2194 | I77: 2024-05-31 | J77: 2024-05-31 | K77: NO | L77: NO | M77: Boyacá - Casanare | N77: NO | O77: 0 | P77: -2.91 | Q77: 23/08/2022 16:24 | R77: 76
A78: SC_2194_A2 | B78: Planta de generación GN Belencito APDR | C78: 2022-08-23 | D78: 16:24:00 | E78: 0 | F78: Termica - Ciclo abierto | G78: Suamox 115 | H78: SC_2194 | I78: 2024-05-31 | J78: 2024-05-31 | K78: NO | L78: NO | M78: Boyacá - Casanare | N78: NO | O78: 0 | P78: -3.19 | Q78: 23/08/2022 16:24 | R78: 77
A79: SC_2224_A1 | B79: Generación Solar Fotovoltaica Yopalosa 65 MW | C79: 2022-08-24 | D79: 11:37:00 | E79: 65 | F79: Solar FV | G79: Paz de Ariporo 115 | H79: SC_2224 | I79: 2026-12-31 | J79: 2026-12-31 | K79: NO | L79: NO | M79: Boyacá - Casanare | N79: NO | O79: 0 | P79: -13.98 | Q79: 24/08/2022 11:37 | R79: 78
A80: SC_2224_A2 | B80: Generación Solar Fotovoltaica Yopalosa 65 MW | C80: 2022-08-24 | D80: 11:37:00 | E80: 65 | F80: Solar FV | G80: Yopalosa 115 | H80: SC_2224 | I80: 2026-12-31 | J80: 2026-12-31 | K80: NO | L80: NO | M80: Boyacá - Casanare | N80: NO | O80: 0 | P80: -10.27 | Q80: 24/08/2022 11:37 | R80: 79
A81: SC_2024_A1 | B81: SUMMA IV | C81: 2022-08-29 | D81: 13:30:00 | E81: 9.9 | F81: Solar FV | G81: Boavita 34.5 | H81: SC_2024 | I81: 2026-12-31 | J81: 2026-12-31 | K81: NO | L81: NO | M81: Boyacá - Casanare | N81: NO | O81: 0 | P81: -0.32 | Q81: 29/08/2022 13:30 | R81: 80
A82: SC_2024_A2 | B82: SUMMA IV | C82: 2022-08-29 | D82: 13:30:00 | E82: 9.9 | F82: Solar FV | G82: Boavita 115 | H82: SC_2024 | I82: 2026-12-31 | J82: 2026-12-31 | K82: NO | L82: NO | M82: Boyacá - Casanare | N82: NO | O82: 0 | P82: -0.38 | Q82: 29/08/2022 13:30 | R82: 81

Sheet IT-TA
B1: Codigo | C1: Nombre | D1: Capacidad | E1: Licencia Ambiental obtenida | F1: Año de entrada | G1: P | H1: Total | J1: Año de Referencia
B2: =IF(ISBLANK(InfoPro!A2),"",InfoPro!A2) -> SC_544_A1 | C2: =IF(ISBLANK(InfoPro!B2),"",InfoPro!B2) -> SORACÁ 19.9 MW | D2: =IF(ISBLANK(InfoPro!E2),"",InfoPro!E2) -> 19.9 | E2: =IF(ISBLANK(InfoPro!N2),"",InfoPro!N2) -> NO | F2: =IF(ISBLANK(InfoPro!I2),"",YEAR(InfoPro!I2)-$J$2) -> 2 | G2: =IF(E2="SI",100,IF(E2="NO",0,"")) -> 0 | H2: =IF(G2="","",(G2)) -> 0 | J2: 2023
B3: =IF(ISBLANK(InfoPro!A3),"",InfoPro!A3) -> SC_544_A2 | C3: =IF(ISBLANK(InfoPro!B3),"",InfoPro!B3) -> SORACÁ 19.9 MW | D3: =IF(ISBLANK(InfoPro!E3),"",InfoPro!E3) -> 19.9 | E3: =IF(ISBLANK(InfoPro!N3),"",InfoPro!N3) -> NO | F3: =IF(ISBLANK(InfoPro!I3),"",YEAR(InfoPro!I3)-$J$2) -> 2 | G3: =IF(E3="SI",100,IF(E3="NO",0,"")) -> 0 | H3: =IF(G3="","",(G3)) -> 0
B4: =IF(ISBLANK(InfoPro!A4),"",InfoPro!A4) -> SC_486_A1 | C4: =IF(ISBLANK(InfoPro!B4),"",InfoPro!B4) -> Tintal 9,9 MW | D4: =IF(ISBLANK(InfoPro!E4),"",InfoPro!E4) -> 9.9 | E4: =IF(ISBLANK(InfoPro!N4),"",InfoPro!N4) -> NO | F4: =IF(ISBLANK(InfoPro!I4),"",YEAR(InfoPro!I4)-$J$2) -> 2 | G4: 0 | H4: 0
B5: =IF(ISBLANK(InfoPro!A5),"",InfoPro!A5) -> SC_486_A2 | C5: =IF(ISBLANK(InfoPro!B5),"",InfoPro!B5) -> Tintal 9,9 MW | D5: =IF(ISBLANK(InfoPro!E5),"",InfoPro!E5) -> 9.9 | E5: =IF(ISBLANK(InfoPro!N5),"",InfoPro!N5) -> NO | F5: =IF(ISBLANK(InfoPro!I5),"",YEAR(InfoPro!I5)-$J$2) -> 2 | G5: 0 | H5: 0
B6: =IF(ISBLANK(InfoPro!A6),"",InfoPro!A6) -> SC_1055_A1 | C6: =IF(ISBLANK(InfoPro!B6),"",InfoPro!B6) -> Parque Solar Fotovoltaico Higueras | D6: =IF(ISBLANK(InfoPro!E6),"",InfoPro!E6) -> 40 | E6: =IF(ISBLANK(InfoPro!N6),"",InfoPro!N6) -> NO | F6: =IF(ISBLANK(InfoPro!I6),"",YEAR(InfoPro!I6)-$J$2) -> 4 | G6: 0 | H6: 0
B7: =IF(ISBLANK(InfoPro!A7),"",InfoPro!A7) -> SC_1055_A2 | C7: =IF(ISBLANK(InfoPro!B7),"",InfoPro!B7) -> Parque Solar Fotovoltaico Higueras | D7: =IF(ISBLANK(InfoPro!E7),"",InfoPro!E7) -> 40 | E7: =IF(ISBLANK(InfoPro!N7),"",InfoPro!N7) -> NO | F7: =IF(ISBLANK(InfoPro!I7),"",YEAR(InfoPro!I7)-$J$2) -> 4 | G7: 0 | H7: 0
B8: =IF(ISBLANK(InfoPro!A8),"",InfoPro!A8) -> SC_1320_A1 | C8: =IF(ISBLANK(InfoPro!B8),"",InfoPro!B8) -> La Ramada Solar I | D8: =IF(ISBLANK(InfoPro!E8),"",InfoPro!E8) -> 9.9 | E8: =IF(ISBLANK(InfoPro!N8),"",InfoPro!N8) -> NO | F8: =IF(ISBLANK(InfoPro!I8),"",YEAR(InfoPro!I8)-$J$2) -> 2 | G8: 0 | H8: 0
B9: =IF(ISBLANK(InfoPro!A9),"",InfoPro!A9) -> SC_1320_A2 | C9: =IF(ISBLANK(InfoPro!B9),"",InfoPro!B9) -> La Ramada Solar I | D9: =IF(ISBLANK(InfoPro!E9),"",InfoPro!E9) -> 9.9 | E9: =IF(ISBLANK(InfoPro!N9),"",InfoPro!N9) -> NO | F9: =IF(ISBLANK(InfoPro!I9),"",YEAR(InfoPro!I9)-$J$2) -> 2 | G9: 0 | H9: 0
B10: =IF(ISBLANK(InfoPro!A10),"",InfoPro!A10) -> SC_1328_A1 | C10: =IF(ISBLANK(InfoPro!B10),"",InfoPro!B10) -> La Ramada Solar II | D10: =IF(ISBLANK(InfoPro!E10),"",InfoPro!E10) -> 9.9 | E10: =IF(ISBLANK(InfoPro!N10),"",InfoPro!N10) -> NO | F10: =IF(ISBLANK(InfoPro!I10),"",YEAR(InfoPro!I10)-$J$2) -> 2 | G10: 0 | H10: 0
B11: =IF(ISBLANK(InfoPro!A11),"",InfoPro!A11) -> SC_1328_A2 | C11: =IF(ISBLANK(InfoPro!B11),"",InfoPro!B11) -> La Ramada Solar II | D11: =IF(ISBLANK(InfoPro!E11),"",InfoPro!E11) -> 9.9 | E11: =IF(ISBLANK(InfoPro!N11),"",InfoPro!N11) -> NO | F11: =IF(ISBLANK(InfoPro!I11),"",YEAR(InfoPro!I11)-$J$2) -> 2 | G11: 0 | H11: 0
B12: =IF(ISBLANK(InfoPro!A12),"",InfoPro!A12) -> SC_659_A1 | C12: =IF(ISBLANK(InfoPro!B12),"",InfoPro!B12) -> TR Solar 9 | D12: =IF(ISBLANK(InfoPro!E12),"",InfoPro!E12) -> 50 | E12: =IF(ISBLANK(InfoPro!N12),"",InfoPro!N12) -> NO | F12: =IF(ISBLANK(InfoPro!I12),"",YEAR(InfoPro!I12)-$J$2) -> 3 | G12: 0 | H12: 0
B13: =IF(ISBLANK(InfoPro!A13),"",InfoPro!A13) -> SC_659_A2 | C13: =IF(ISBLANK(InfoPro!B13),"",InfoPro!B13) -> TR Solar 9 | D13: =IF(ISBLANK(InfoPro!E13),"",InfoPro!E13) -> 50 | E13: =IF(ISBLANK(InfoPro!N13),"",InfoPro!N13) -> NO | F13: =IF(ISBLANK(InfoPro!I13),"",YEAR(InfoPro!I13)-$J$2) -> 3 | G13: 0 | H13: 0
B14: =IF(ISBLANK(InfoPro!A14),"",InfoPro!A14) -> SC_1222_A1 | C14: =IF(ISBLANK(InfoPro!B14),"",InfoPro!B14) -> Parque Eolico Villanueva | D14: =IF(ISBLANK(InfoPro!E14),"",InfoPro!E14) -> 70 | E14: =IF(ISBLANK(InfoPro!N14),"",InfoPro!N14) -> NO | F14: =IF(ISBLANK(InfoPro!I14),"",YEAR(InfoPro!I14)-$J$2) -> 2 | G14: 0 | H14: 0
B15: =IF(ISBLANK(InfoPro!A15),"",InfoPro!A15) -> SC_800_A1 | C15: =IF(ISBLANK(InfoPro!B15),"",InfoPro!B15) -> Parque Solar Tuta | D15: =IF(ISBLANK(InfoPro!E15),"",InfoPro!E15) -> 2.72 | E15: =IF(ISBLANK(InfoPro!N15),"",InfoPro!N15) -> NO | F15: =IF(ISBLANK(InfoPro!I15),"",YEAR(InfoPro!I15)-$J$2) -> 0 | G15: 0 | H15: 0
B16: =IF(ISBLANK(InfoPro!A16),"",InfoPro!A16) -> SC_626_A1 | C16: =IF(ISBLANK(InfoPro!B16),"",InfoPro!B16) -> TR Solar 12 | D16: =IF(ISBLANK(InfoPro!E16),"",InfoPro!E16) -> 19.9 | E16: =IF(ISBLANK(InfoPro!N16),"",InfoPro!N16) -> NO | F16: =IF(ISBLANK(InfoPro!I16),"",YEAR(InfoPro!I16)-$J$2) -> 2 | G16: 0 | H16: 0
B17: =IF(ISBLANK(InfoPro!A17),"",InfoPro!A17) -> SC_626_A2 | C17: =IF(ISBLANK(InfoPro!B17),"",InfoPro!B17) -> TR Solar 12 | D17: =IF(ISBLANK(InfoPro!E17),"",InfoPro!E17) -> 19.9 | E17: =IF(ISBLANK(InfoPro!N17),"",InfoPro!N17) -> NO | F17: =IF(ISBLANK(InfoPro!I17),"",YEAR(InfoPro!I17)-$J$2) -> 2 | G17: 0 | H17: 0
B18: =IF(ISBLANK(InfoPro!A18),"",InfoPro!A18) -> SC_1064_A1 | C18: =IF(ISBLANK(InfoPro!B18),"",InfoPro!B18) -> Sua 60 MW | D18: =IF(ISBLANK(InfoPro!E18),"",InfoPro!E18) -> 60 | E18: =IF(ISBLANK(InfoPro!N18),"",InfoPro!N18) -> NO | F18: =IF(ISBLANK(InfoPro!I18),"",YEAR(InfoPro!I18)-$J$2) -> 4 | G18: 0 | H18: 0
B19: =IF(ISBLANK(InfoPro!A19),"",InfoPro!A19) -> SC_1064_A2 | C19: =IF(ISBLANK(InfoPro!#REF!),"",InfoPro!#REF!) ->  | D19: =IF(ISBLANK(InfoPro!E19),"",InfoPro!E19) -> 60 | E19: =IF(ISBLANK(InfoPro!N19),"",InfoPro!N19) -> NO | F19: =IF(ISBLANK(InfoPro!I19),"",YEAR(InfoPro!I19)-$J$2) -> 4 | G19: 0 | H19: 0
B20: =IF(ISBLANK(InfoPro!A20),"",InfoPro!A20) -> SC_775_A2 | C20: =IF(ISBLANK(InfoPro!#REF!),"",InfoPro!#REF!) ->  | D20: =IF(ISBLANK(InfoPro!E20),"",InfoPro!E20) -> 19.9 | E20: =IF(ISBLANK(InfoPro!N20),"",InfoPro!N20) -> NO | F20: =IF(ISBLANK(InfoPro!I20),"",YEAR(InfoPro!I20)-$J$2) -> 4 | G20: 0 | H20: 0
B21: =IF(ISBLANK(InfoPro!A19),"",InfoPro!A19) -> SC_1064_A2 | C21: =IF(ISBLANK(InfoPro!B19),"",InfoPro!B19) -> Sua 60 MW | D21: =IF(ISBLANK(InfoPro!E19),"",InfoPro!E19) -> 60 | E21: =IF(ISBLANK(InfoPro!N19),"",InfoPro!N19) -> NO | F21: =IF(ISBLANK(InfoPro!I19),"",YEAR(InfoPro!I19)-$J$2) -> 4 | G21: 0 | H21: 0
B22: =IF(ISBLANK(InfoPro!A20),"",InfoPro!A20) -> SC_775_A2 | C22: =IF(ISBLANK(InfoPro!B20),"",InfoPro!B20) -> PCH Santa Rosa | D22: =IF(ISBLANK(InfoPro!E20),"",InfoPro!E20) -> 19.9 | E22: =IF(ISBLANK(InfoPro!N20),"",InfoPro!N20) -> NO | F22: =IF(ISBLANK(InfoPro!I20),"",YEAR(InfoPro!I20)-$J$2) -> 4 | G22: 0 | H22: 0
B23: =IF(ISBLANK(InfoPro!A21),"",InfoPro!A21) -> SC_776_A2 | C23: =IF(ISBLANK(InfoPro!B21),"",InfoPro!B21) -> PCH Güepsa | D23: =IF(ISBLANK(InfoPro!E21),"",InfoPro!E21) -> 19.9 | E23: =IF(ISBLANK(InfoPro!N21),"",InfoPro!N21) -> NO | F23: =IF(ISBLANK(InfoPro!I21),"",YEAR(InfoPro!I21)-$J$2) -> 4 | G23: 0 | H23: 0
B24: =IF(ISBLANK(InfoPro!A22),"",InfoPro!A22) -> SC_777_A2 | C24: =IF(ISBLANK(InfoPro!B22),"",InfoPro!B22) -> PCH El Rincón | D24: =IF(ISBLANK(InfoPro!E22),"",InfoPro!E22) -> 19.9 | E24: =IF(ISBLANK(InfoPro!N22),"",InfoPro!N22) -> NO | F24: =IF(ISBLANK(InfoPro!I22),"",YEAR(InfoPro!I22)-$J$2) -> 4 | G24: 0 | H24: 0
B25: =IF(ISBLANK(InfoPro!A23),"",InfoPro!A23) -> SC_780_A1 | C25: =IF(ISBLANK(InfoPro!B23),"",InfoPro!B23) -> PCH Canutillo | D25: =IF(ISBLANK(InfoPro!E23),"",InfoPro!E23) -> 8.72 | E25: =IF(ISBLANK(InfoPro!N23),"",InfoPro!N23) -> NO | F25: =IF(ISBLANK(InfoPro!I23),"",YEAR(InfoPro!I23)-$J$2) -> 4 | G25: 0 | H25: 0
B26: =IF(ISBLANK(InfoPro!A24),"",InfoPro!A24) -> SC_780_A2 | C26: =IF(ISBLANK(InfoPro!B24),"",InfoPro!B24) -> PCH Canutillo | D26: =IF(ISBLANK(InfoPro!E24),"",InfoPro!E24) -> 8.72 | E26: =IF(ISBLANK(InfoPro!N24),"",InfoPro!N24) -> NO | F26: =IF(ISBLANK(InfoPro!I24),"",YEAR(InfoPro!I24)-$J$2) -> 4 | G26: 0 | H26: 0
B27: =IF(ISBLANK(InfoPro!A25),"",InfoPro!A25) -> SC_779_A1 | C27: =IF(ISBLANK(InfoPro!B25),"",InfoPro!B25) -> PCH El Puerto | D27: =IF(ISBLANK(InfoPro!E25),"",InfoPro!E25) -> 19.9 | E27: =IF(ISBLANK(InfoPro!N25),"",InfoPro!N25) -> NO | F27: =IF(ISBLANK(InfoPro!I25),"",YEAR(InfoPro!I25)-$J$2) -> 4 | G27: 0 | H27: 0
B28: =IF(ISBLANK(InfoPro!A26),"",InfoPro!A26) -> SC_779_A2 | C28: =IF(ISBLANK(InfoPro!B26),"",InfoPro!B26) -> PCH El Puerto | D28: =IF(ISBLANK(InfoPro!E26),"",InfoPro!E26) -> 19.9 | E28: =IF(ISBLANK(InfoPro!N26),"",InfoPro!N26) -> NO | F28: =IF(ISBLANK(InfoPro!I26),"",YEAR(InfoPro!I26)-$J$2) -> 4 | G28: 0 | H28: 0
B29: =IF(ISBLANK(InfoPro!A27),"",InfoPro!A27) -> SC_1477_A1 | C29: =IF(ISBLANK(InfoPro!B27),"",InfoPro!B27) -> Prque Solar Belencito APDR_0MW (AUTOGENERADOR) | D29: =IF(ISBLANK(InfoPro!E27),"",InfoPro!E27) -> 0 | E29: =IF(ISBLANK(InfoPro!N27),"",InfoPro!N27) -> NO | F29: =IF(ISBLANK(InfoPro!I27),"",YEAR(InfoPro!I27)-$J$2) -> 1 | G29: 0 | H29: 0
B30: =IF(ISBLANK(InfoPro!A28),"",InfoPro!A28) -> SC_1477_A2 | C30: =IF(ISBLANK(InfoPro!B28),"",InfoPro!B28) -> Prque Solar Belencito APDR_0MW (AUTOGENERADOR) | D30: =IF(ISBLANK(InfoPro!E28),"",InfoPro!E28) -> 0 | E30: =IF(ISBLANK(InfoPro!N28),"",InfoPro!N28) -> NO | F30: =IF(ISBLANK(InfoPro!I28),"",YEAR(InfoPro!I28)-$J$2) -> 1 | G30: 0 | H30: 0
B31: =IF(ISBLANK(InfoPro!A29),"",InfoPro!A29) -> SC_1481_A1 | C31: =IF(ISBLANK(InfoPro!B29),"",InfoPro!B29) -> Oslo II_150MW | D31: =IF(ISBLANK(InfoPro!E29),"",InfoPro!E29) -> 150 | E31: =IF(ISBLANK(InfoPro!N29),"",InfoPro!N29) -> NO | F31: =IF(ISBLANK(InfoPro!I29),"",YEAR(InfoPro!I29)-$J$2) -> 4 | G31: 0 | H31: 0
B32: =IF(ISBLANK(InfoPro!A30),"",InfoPro!A30) -> SC_1481_A2 | C32: =IF(ISBLANK(InfoPro!B30),"",InfoPro!B30) -> Oslo II_150MW | D32: =IF(ISBLANK(InfoPro!E30),"",InfoPro!E30) -> 150 | E32: =IF(ISBLANK(InfoPro!N30),"",InfoPro!N30) -> NO | F32: =IF(ISBLANK(InfoPro!I30),"",YEAR(InfoPro!I30)-$J$2) -> 4 | G32: 0 | H32: 0
B33: =IF(ISBLANK(InfoPro!A31),"",InfoPro!A31) -> SC_1633_A1 | C33: =IF(ISBLANK(InfoPro!B31),"",InfoPro!B31) -> Nobsa 9.9 MW | D33: =IF(ISBLANK(InfoPro!E31),"",InfoPro!E31) -> 9.9 | E33: =IF(ISBLANK(InfoPro!N31),"",InfoPro!N31) -> NO | F33: =IF(ISBLANK(InfoPro!I31),"",YEAR(InfoPro!I31)-$J$2) -> 1 | G33: 0 | H33: 0
B34: =IF(ISBLANK(InfoPro!A32),"",InfoPro!A32) -> SC_1633_A2 | C34: =IF(ISBLANK(InfoPro!B32),"",InfoPro!B32) -> Nobsa 9.9 MW | D34: =IF(ISBLANK(InfoPro!E32),"",InfoPro!E32) -> 9.9 | E34: =IF(ISBLANK(InfoPro!N32),"",InfoPro!N32) -> NO | F34: =IF(ISBLANK(InfoPro!I32),"",YEAR(InfoPro!I32)-$J$2) -> 1 | G34: 0 | H34: 0
B35: =IF(ISBLANK(InfoPro!A33),"",InfoPro!A33) -> SC_1890_A1 | C35: =IF(ISBLANK(InfoPro!B33),"",InfoPro!B33) -> Duitama I 40 MW | D35: =IF(ISBLANK(InfoPro!E33),"",InfoPro!E33) -> 40 | E35: =IF(ISBLANK(InfoPro!N33),"",InfoPro!N33) -> NO | F35: =IF(ISBLANK(InfoPro!I33),"",YEAR(InfoPro!I33)-$J$2) -> 1 | G35: 0 | H35: 0
B36: =IF(ISBLANK(InfoPro!A34),"",InfoPro!A34) -> SC_1890_A2 | C36: =IF(ISBLANK(InfoPro!B34),"",InfoPro!B34) -> Duitama I 40 MW | D36: =IF(ISBLANK(InfoPro!E34),"",InfoPro!E34) -> 40 | E36: =IF(ISBLANK(InfoPro!N34),"",InfoPro!N34) -> NO | F36: =IF(ISBLANK(InfoPro!I34),"",YEAR(InfoPro!I34)-$J$2) -> 1 | G36: 0 | H36: 0
B37: =IF(ISBLANK(InfoPro!A35),"",InfoPro!A35) -> SC_1689_A1 | C37: =IF(ISBLANK(InfoPro!B35),"",InfoPro!B35) -> Parque Solar Fotovoltaico La Milagrosa 45 MW | D37: =IF(ISBLANK(InfoPro!E35),"",InfoPro!E35) -> 45 | E37: =IF(ISBLANK(InfoPro!N35),"",InfoPro!N35) -> NO | F37: =IF(ISBLANK(InfoPro!I35),"",YEAR(InfoPro!I35)-$J$2) -> 3 | G37: 0 | H37: 0
B38: =IF(ISBLANK(InfoPro!A36),"",InfoPro!A36) -> SC_1689_A2 | C38: =IF(ISBLANK(InfoPro!B36),"",InfoPro!B36) -> Parque Solar Fotovoltaico La Milagrosa 45 MW | D38: =IF(ISBLANK(InfoPro!E36),"",InfoPro!E36) -> 45 | E38: =IF(ISBLANK(InfoPro!N36),"",InfoPro!N36) -> NO | F38: =IF(ISBLANK(InfoPro!I36),"",YEAR(InfoPro!I36)-$J$2) -> 3 | G38: 0 | H38: 0
B39: =IF(ISBLANK(InfoPro!A37),"",InfoPro!A37) -> SC_1489_A1 | C39: =IF(ISBLANK(InfoPro!B37),"",InfoPro!B37) -> Acacias II de 40 MW | D39: =IF(ISBLANK(InfoPro!E37),"",InfoPro!E37) -> 40 | E39: =IF(ISBLANK(InfoPro!N37),"",InfoPro!N37) -> NO | F39: =IF(ISBLANK(InfoPro!I37),"",YEAR(InfoPro!I37)-$J$2) -> 3 | G39: 0 | H39: 0
B40: =IF(ISBLANK(InfoPro!A38),"",InfoPro!A38) -> SC_1489_A2 | C40: =IF(ISBLANK(InfoPro!B38),"",InfoPro!B38) -> Acacias II de 40 MW | D40: =IF(ISBLANK(InfoPro!E38),"",InfoPro!E38) -> 40 | E40: =IF(ISBLANK(InfoPro!N38),"",InfoPro!N38) -> NO | F40: =IF(ISBLANK(InfoPro!I38),"",YEAR(InfoPro!I38)-$J$2) -> 3 | G40: 0 | H40: 0
B41: =IF(ISBLANK(InfoPro!A39),"",InfoPro!A39) -> SC_1759_A1 | C41: =IF(ISBLANK(InfoPro!B39),"",InfoPro!B39) -> Aumento Excedentes Autog. Argos Sogamoso | D41: =IF(ISBLANK(InfoPro!E39),"",InfoPro!E39) -> 15 | E41: =IF(ISBLANK(InfoPro!N39),"",InfoPro!N39) -> NO | F41: =IF(ISBLANK(InfoPro!I39),"",YEAR(InfoPro!I39)-$J$2) -> 0 | G41: 0 | H41: 0
B42: =IF(ISBLANK(InfoPro!A40),"",InfoPro!A40) -> SC_1774_A2 | C42: =IF(ISBLANK(InfoPro!B40),"",InfoPro!B40) -> Firavisol 8 MW | D42: =IF(ISBLANK(InfoPro!E40),"",InfoPro!E40) -> 8 | E42: =IF(ISBLANK(InfoPro!N40),"",InfoPro!N40) -> NO | F42: =IF(ISBLANK(InfoPro!I40),"",YEAR(InfoPro!I40)-$J$2) -> 2 | G42: 0 | H42: 0
B43: =IF(ISBLANK(InfoPro!A41),"",InfoPro!A41) -> SC_1851_A1 | C43: =IF(ISBLANK(InfoPro!B41),"",InfoPro!B41) -> Zaino Solar 9,9MW | D43: =IF(ISBLANK(InfoPro!E41),"",InfoPro!E41) -> 9.9 | E43: =IF(ISBLANK(InfoPro!N41),"",InfoPro!N41) -> NO | F43: =IF(ISBLANK(InfoPro!I41),"",YEAR(InfoPro!I41)-$J$2) -> 1 | G43: 0 | H43: 0
B44: =IF(ISBLANK(InfoPro!A42),"",InfoPro!A42) -> SC_1851_A2 | C44: =IF(ISBLANK(InfoPro!B42),"",InfoPro!B42) -> Zaino Solar 9,9MW | D44: =IF(ISBLANK(InfoPro!E42),"",InfoPro!E42) -> 9.9 | E44: =IF(ISBLANK(InfoPro!N42),"",InfoPro!N42) -> NO | F44: =IF(ISBLANK(InfoPro!I42),"",YEAR(InfoPro!I42)-$J$2) -> 1 | G44: 0 | H44: 0
B45: =IF(ISBLANK(InfoPro!A43),"",InfoPro!A43) -> SC_1755_A1 | C45: =IF(ISBLANK(InfoPro!B43),"",InfoPro!B43) -> Parque Solar Picon | D45: =IF(ISBLANK(InfoPro!E43),"",InfoPro!E43) -> 75 | E45: =IF(ISBLANK(InfoPro!N43),"",InfoPro!N43) -> NO | F45: =IF(ISBLANK(InfoPro!I43),"",YEAR(InfoPro!I43)-$J$2) -> 3 | G45: 0 | H45: 0
B46: =IF(ISBLANK(InfoPro!A44),"",InfoPro!A44) -> SC_1755_A2 | C46: =IF(ISBLANK(InfoPro!B44),"",InfoPro!B44) -> Parque Solar Picon | D46: =IF(ISBLANK(InfoPro!E44),"",InfoPro!E44) -> 75 | E46: =IF(ISBLANK(InfoPro!N44),"",InfoPro!N44) -> NO | F46: =IF(ISBLANK(InfoPro!I44),"",YEAR(InfoPro!I44)-$J$2) -> 3 | G46: 0 | H46: 0
B47: =IF(ISBLANK(InfoPro!A45),"",InfoPro!A45) -> SC_1803_A1 | C47: =IF(ISBLANK(InfoPro!B45),"",InfoPro!B45) -> Boavita I | D47: =IF(ISBLANK(InfoPro!E45),"",InfoPro!E45) -> 14.25 | E47: =IF(ISBLANK(InfoPro!N45),"",InfoPro!N45) -> NO | F47: =IF(ISBLANK(InfoPro!I45),"",YEAR(InfoPro!I45)-$J$2) -> 3 | G47: 0 | H47: 0
B48: =IF(ISBLANK(InfoPro!A46),"",InfoPro!A46) -> SC_1803_A2 | C48: =IF(ISBLANK(InfoPro!B46),"",InfoPro!B46) -> Boavita I | D48: =IF(ISBLANK(InfoPro!E46),"",InfoPro!E46) -> 14.25 | E48: =IF(ISBLANK(InfoPro!N46),"",InfoPro!N46) -> NO | F48: =IF(ISBLANK(InfoPro!I46),"",YEAR(InfoPro!I46)-$J$2) -> 3 | G48: 0 | H48: 0
B49: =IF(ISBLANK(InfoPro!A47),"",InfoPro!A47) -> SC_1986_A1 | C49: =IF(ISBLANK(InfoPro!B47),"",InfoPro!B47) -> Puerta del Sol 19,9MW | D49: =IF(ISBLANK(InfoPro!E47),"",InfoPro!E47) -> 19.9 | E49: =IF(ISBLANK(InfoPro!N47),"",InfoPro!N47) -> NO | F49: =IF(ISBLANK(InfoPro!I47),"",YEAR(InfoPro!I47)-$J$2) -> 2 | G49: 0 | H49: 0
B50: =IF(ISBLANK(InfoPro!A48),"",InfoPro!A48) -> SC_1986_A2 | C50: =IF(ISBLANK(InfoPro!B48),"",InfoPro!B48) -> Puerta del Sol 19,9MW | D50: =IF(ISBLANK(InfoPro!E48),"",InfoPro!E48) -> 19.9 | E50: =IF(ISBLANK(InfoPro!N48),"",InfoPro!N48) -> NO | F50: =IF(ISBLANK(InfoPro!I48),"",YEAR(InfoPro!I48)-$J$2) -> 2 | G50: 0 | H50: 0
B51: =IF(ISBLANK(InfoPro!A49),"",InfoPro!A49) -> SC_1888_A1 | C51: =IF(ISBLANK(InfoPro!B49),"",InfoPro!B49) -> Chiquinquira Solar I 9,9 MW | D51: =IF(ISBLANK(InfoPro!E49),"",InfoPro!E49) -> 9.9 | E51: =IF(ISBLANK(InfoPro!N49),"",InfoPro!N49) -> NO | F51: =IF(ISBLANK(InfoPro!I49),"",YEAR(InfoPro!I49)-$J$2) -> 2 | G51: 0 | H51: 0
B52: =IF(ISBLANK(InfoPro!A50),"",InfoPro!A50) -> SC_1888_A2 | C52: =IF(ISBLANK(InfoPro!B50),"",InfoPro!B50) -> Chiquinquira Solar I 9,9 MW | D52: =IF(ISBLANK(InfoPro!E50),"",InfoPro!E50) -> 9.9 | E52: =IF(ISBLANK(InfoPro!N50),"",InfoPro!N50) -> NO | F52: =IF(ISBLANK(InfoPro!I50),"",YEAR(InfoPro!I50)-$J$2) -> 2 | G52: 0 | H52: 0
B53: =IF(ISBLANK(InfoPro!A51),"",InfoPro!A51) -> SC_1941_A1 | C53: =IF(ISBLANK(InfoPro!B51),"",InfoPro!B51) -> Esperanza Solar 9,9MW | D53: =IF(ISBLANK(InfoPro!E51),"",InfoPro!E51) -> 9.9 | E53: =IF(ISBLANK(InfoPro!N51),"",InfoPro!N51) -> NO | F53: =IF(ISBLANK(InfoPro!I51),"",YEAR(InfoPro!I51)-$J$2) -> 2 | G53: 0 | H53: 0
B54: =IF(ISBLANK(InfoPro!A52),"",InfoPro!A52) -> SC_1941_A2 | C54: =IF(ISBLANK(InfoPro!B52),"",InfoPro!B52) -> Esperanza Solar 9,9MW | D54: =IF(ISBLANK(InfoPro!E52),"",InfoPro!E52) -> 9.9 | E54: =IF(ISBLANK(InfoPro!N52),"",InfoPro!N52) -> NO | F54: =IF(ISBLANK(InfoPro!I52),"",YEAR(InfoPro!I52)-$J$2) -> 2 | G54: 0 | H54: 0
B55: =IF(ISBLANK(InfoPro!A53),"",InfoPro!A53) -> SC_1901_A1 | C55: =IF(ISBLANK(InfoPro!B53),"",InfoPro!B53) -> Alcalá-50 MW | D55: =IF(ISBLANK(InfoPro!E53),"",InfoPro!E53) -> 50 | E55: =IF(ISBLANK(InfoPro!N53),"",InfoPro!N53) -> NO | F55: =IF(ISBLANK(InfoPro!I53),"",YEAR(InfoPro!I53)-$J$2) -> 3 | G55: 0 | H55: 0
B56: =IF(ISBLANK(InfoPro!A54),"",InfoPro!A54) -> SC_1901_A2 | C56: =IF(ISBLANK(InfoPro!B54),"",InfoPro!B54) -> Alcalá-50 MW | D56: =IF(ISBLANK(InfoPro!E54),"",InfoPro!E54) -> 50 | E56: =IF(ISBLANK(InfoPro!N54),"",InfoPro!N54) -> NO | F56: =IF(ISBLANK(InfoPro!I54),"",YEAR(InfoPro!I54)-$J$2) -> 3 | G56: 0 | H56: 0
B57: =IF(ISBLANK(InfoPro!A55),"",InfoPro!A55) -> SC_1953_A1 | C57: =IF(ISBLANK(InfoPro!B55),"",InfoPro!B55) -> SOCHAGOTA DE VERANO_69.9MW | D57: =IF(ISBLANK(InfoPro!E55),"",InfoPro!E55) -> 69.9 | E57: =IF(ISBLANK(InfoPro!N55),"",InfoPro!N55) -> NO | F57: =IF(ISBLANK(InfoPro!I55),"",YEAR(InfoPro!I55)-$J$2) -> 2 | G57: 0 | H57: 0
B58: =IF(ISBLANK(InfoPro!A56),"",InfoPro!A56) -> SC_2190_A1 | C58: =IF(ISBLANK(InfoPro!B56),"",InfoPro!B56) -> SIKUANI | D58: =IF(ISBLANK(InfoPro!E56),"",InfoPro!E56) -> 17 | E58: =IF(ISBLANK(InfoPro!N56),"",InfoPro!N56) -> NO | F58: =IF(ISBLANK(InfoPro!I56),"",YEAR(InfoPro!I56)-$J$2) -> 3 | G58: 0 | H58: 0
B59: =IF(ISBLANK(InfoPro!A57),"",InfoPro!A57) -> SC_2190_A2 | C59: =IF(ISBLANK(InfoPro!B57),"",InfoPro!B57) -> SIKUANI | D59: =IF(ISBLANK(InfoPro!E57),"",InfoPro!E57) -> 17 | E59: =IF(ISBLANK(InfoPro!N57),"",InfoPro!N57) -> NO | F59: =IF(ISBLANK(InfoPro!I57),"",YEAR(InfoPro!I57)-$J$2) -> 3 | G59: 0 | H59: 0
B60: =IF(ISBLANK(InfoPro!A58),"",InfoPro!A58) -> SC_1834_A1 | C60: =IF(ISBLANK(InfoPro!B58),"",InfoPro!B58) -> Barbados | D60: =IF(ISBLANK(InfoPro!E58),"",InfoPro!E58) -> 15 | E60: =IF(ISBLANK(InfoPro!N58),"",InfoPro!N58) -> NO | F60: =IF(ISBLANK(InfoPro!I58),"",YEAR(InfoPro!I58)-$J$2) -> 2 | G60: 0 | H60: 0
B61: =IF(ISBLANK(InfoPro!A59),"",InfoPro!A59) -> SC_1834_A2 | C61: =IF(ISBLANK(InfoPro!B59),"",InfoPro!B59) -> Barbados | D61: =IF(ISBLANK(InfoPro!E59),"",InfoPro!E59) -> 15 | E61: =IF(ISBLANK(InfoPro!N59),"",InfoPro!N59) -> NO | F61: =IF(ISBLANK(InfoPro!I59),"",YEAR(InfoPro!I59)-$J$2) -> 2 | G61: 0 | H61: 0
B62: =IF(ISBLANK(InfoPro!A60),"",InfoPro!A60) -> SC_1878_A1 | C62: =IF(ISBLANK(InfoPro!B60),"",InfoPro!B60) -> Autogenerador Solar Holcim | D62: =IF(ISBLANK(InfoPro!E60),"",InfoPro!E60) -> 6.7 | E62: =IF(ISBLANK(InfoPro!N60),"",InfoPro!N60) -> NO | F62: =IF(ISBLANK(InfoPro!I60),"",YEAR(InfoPro!I60)-$J$2) -> 1 | G62: 0 | H62: 0
B63: =IF(ISBLANK(InfoPro!A61),"",InfoPro!A61) -> SC_1874_A1 | C63: =IF(ISBLANK(InfoPro!B61),"",InfoPro!B61) -> Colibri I | D63: =IF(ISBLANK(InfoPro!E61),"",InfoPro!E61) -> 96.9 | E63: =IF(ISBLANK(InfoPro!N61),"",InfoPro!N61) -> NO | F63: =IF(ISBLANK(InfoPro!I61),"",YEAR(InfoPro!I61)-$J$2) -> 3 | G63: 0 | H63: 0
B64: =IF(ISBLANK(InfoPro!A62),"",InfoPro!A62) -> SC_1874_A2 | C64: =IF(ISBLANK(InfoPro!B62),"",InfoPro!B62) -> Colibri I | D64: =IF(ISBLANK(InfoPro!E62),"",InfoPro!E62) -> 96.9 | E64: =IF(ISBLANK(InfoPro!N62),"",InfoPro!N62) -> NO | F64: =IF(ISBLANK(InfoPro!I62),"",YEAR(InfoPro!I62)-$J$2) -> 3 | G64: 0 | H64: 0
B65: =IF(ISBLANK(InfoPro!A63),"",InfoPro!A63) -> SC_1988_A1 | C65: =IF(ISBLANK(InfoPro!B63),"",InfoPro!B63) -> LAS ACACIAS I - 40 MW | D65: =IF(ISBLANK(InfoPro!E63),"",InfoPro!E63) -> 40 | E65: =IF(ISBLANK(InfoPro!N63),"",InfoPro!N63) -> NO | F65: =IF(ISBLANK(InfoPro!I63),"",YEAR(InfoPro!I63)-$J$2) -> 3 | G65: 0 | H65: 0
B66: =IF(ISBLANK(InfoPro!A64),"",InfoPro!A64) -> SC_1988_A2 | C66: =IF(ISBLANK(InfoPro!B64),"",InfoPro!B64) -> LAS ACACIAS I - 40 MW | D66: =IF(ISBLANK(InfoPro!E64),"",InfoPro!E64) -> 40 | E66: =IF(ISBLANK(InfoPro!N64),"",InfoPro!N64) -> NO | F66: =IF(ISBLANK(InfoPro!I64),"",YEAR(InfoPro!I64)-$J$2) -> 3 | G66: 0 | H66: 0
B67: =IF(ISBLANK(InfoPro!A65),"",InfoPro!A65) -> SC_2123_A1 | C67: =IF(ISBLANK(InfoPro!B65),"",InfoPro!B65) -> Parque Solar Pollux | D67: =IF(ISBLANK(InfoPro!E65),"",InfoPro!E65) -> 209.6 | E67: =IF(ISBLANK(InfoPro!N65),"",InfoPro!N65) -> NO | F67: =IF(ISBLANK(InfoPro!I65),"",YEAR(InfoPro!I65)-$J$2) -> 2 | G67: =IF(E67="SI",100,IF(E67="NO",0,"")) -> 0 | H67: =IF(G67="","",(G67)) -> 0
B68: =IF(ISBLANK(InfoPro!A66),"",InfoPro!A66) -> SC_2123_A2 | C68: =IF(ISBLANK(InfoPro!B66),"",InfoPro!B66) -> Parque Solar Pollux | D68: =IF(ISBLANK(InfoPro!E66),"",InfoPro!E66) -> 209.6 | E68: =IF(ISBLANK(InfoPro!N66),"",InfoPro!N66) -> NO | F68: =IF(ISBLANK(InfoPro!I66),"",YEAR(InfoPro!I66)-$J$2) -> 2 | G68: 0 | H68: 0
B69: =IF(ISBLANK(InfoPro!A67),"",InfoPro!A67) -> SC_1869_A1 | C69: =IF(ISBLANK(InfoPro!B67),"",InfoPro!B67) -> PE NAIRA_96.9MW | D69: =IF(ISBLANK(InfoPro!E67),"",InfoPro!E67) -> 96.9 | E69: =IF(ISBLANK(InfoPro!N67),"",InfoPro!N67) -> NO | F69: =IF(ISBLANK(InfoPro!I67),"",YEAR(InfoPro!I67)-$J$2) -> 3 | G69: 0 | H69: 0
B70: =IF(ISBLANK(InfoPro!A68),"",InfoPro!A68) -> SC_2064_A2 | C70: =IF(ISBLANK(InfoPro!B68),"",InfoPro!B68) -> Firavitoba 9,9 del Verano Solar | D70: =IF(ISBLANK(InfoPro!E68),"",InfoPro!E68) -> 9.9 | E70: =IF(ISBLANK(InfoPro!N68),"",InfoPro!N68) -> NO | F70: =IF(ISBLANK(InfoPro!I68),"",YEAR(InfoPro!I68)-$J$2) -> 2 | G70: 0 | H70: 0
B71: =IF(ISBLANK(InfoPro!A69),"",InfoPro!A69) -> SC_2007_A1 | C71: =IF(ISBLANK(InfoPro!B69),"",InfoPro!B69) -> Parque Solar Yopal | D71: =IF(ISBLANK(InfoPro!E69),"",InfoPro!E69) -> 19.9 | E71: =IF(ISBLANK(InfoPro!N69),"",InfoPro!N69) -> NO | F71: =IF(ISBLANK(InfoPro!I69),"",YEAR(InfoPro!I69)-$J$2) -> 3 | G71: 0 | H71: 0
B72: =IF(ISBLANK(InfoPro!A70),"",InfoPro!A70) -> SC_2007_A2 | C72: =IF(ISBLANK(InfoPro!B70),"",InfoPro!B70) -> Parque Solar Yopal | D72: =IF(ISBLANK(InfoPro!E70),"",InfoPro!E70) -> 19.9 | E72: =IF(ISBLANK(InfoPro!N70),"",InfoPro!N70) -> NO | F72: =IF(ISBLANK(InfoPro!I70),"",YEAR(InfoPro!I70)-$J$2) -> 3 | G72: 0 | H72: 0
B73: =IF(ISBLANK(InfoPro!A71),"",InfoPro!A71) -> SC_1914_A1 | C73: =IF(ISBLANK(InfoPro!B71),"",InfoPro!B71) -> Suniva 70 MW | D73: =IF(ISBLANK(InfoPro!E71),"",InfoPro!E71) -> 70 | E73: =IF(ISBLANK(InfoPro!N71),"",InfoPro!N71) -> NO | F73: =IF(ISBLANK(InfoPro!I71),"",YEAR(InfoPro!I71)-$J$2) -> 4 | G73: 0 | H73: 0
B74: =IF(ISBLANK(InfoPro!A72),"",InfoPro!A72) -> SC_1914_A2 | C74: =IF(ISBLANK(InfoPro!B72),"",InfoPro!B72) -> Suniva 70 MW | D74: =IF(ISBLANK(InfoPro!E72),"",InfoPro!E72) -> 70 | E74: =IF(ISBLANK(InfoPro!N72),"",InfoPro!N72) -> NO | F74: =IF(ISBLANK(InfoPro!I72),"",YEAR(InfoPro!I72)-$J$2) -> 4 | G74: 0 | H74: 0
B75: =IF(ISBLANK(InfoPro!A73),"",InfoPro!A73) -> SC_1921_A1 | C75: =IF(ISBLANK(InfoPro!B73),"",InfoPro!B73) -> El Gabán I | D75: =IF(ISBLANK(InfoPro!E73),"",InfoPro!E73) -> 100 | E75: =IF(ISBLANK(InfoPro!N73),"",InfoPro!N73) -> NO | F75: =IF(ISBLANK(InfoPro!I73),"",YEAR(InfoPro!I73)-$J$2) -> 3 | G75: 0 | H75: 0
B76: =IF(ISBLANK(InfoPro!A74),"",InfoPro!A74) -> SC_1921_A2 | C76: =IF(ISBLANK(InfoPro!B74),"",InfoPro!B74) -> El Gabán I | D76: =IF(ISBLANK(InfoPro!E74),"",InfoPro!E74) -> 100 | E76: =IF(ISBLANK(InfoPro!N74),"",InfoPro!N74) -> NO | F76: =IF(ISBLANK(InfoPro!I74),"",YEAR(InfoPro!I74)-$J$2) -> 3 | G76: 0 | H76: 0
B77: =IF(ISBLANK(InfoPro!A75),"",InfoPro!A75) -> SC_2172_A1 | C77: =IF(ISBLANK(InfoPro!B75),"",InfoPro!B75) -> Termocasanare 1 9,9 MW | D77: =IF(ISBLANK(InfoPro!E75),"",InfoPro!E75) -> 9.9 | E77: =IF(ISBLANK(InfoPro!N75),"",InfoPro!N75) -> NO | F77: =IF(ISBLANK(InfoPro!I75),"",YEAR(InfoPro!I75)-$J$2) -> 1 | G77: 0 | H77: 0
B78: =IF(ISBLANK(InfoPro!A76),"",InfoPro!A76) -> SC_2172_A2 | C78: =IF(ISBLANK(InfoPro!B76),"",InfoPro!B76) -> Termocasanare 1 9,9 MW | D78: =IF(ISBLANK(InfoPro!E76),"",InfoPro!E76) -> 9.9 | E78: =IF(ISBLANK(InfoPro!N76),"",InfoPro!N76) -> NO | F78: =IF(ISBLANK(InfoPro!I76),"",YEAR(InfoPro!I76)-$J$2) -> 1 | G78: 0 | H78: 0
B79: =IF(ISBLANK(InfoPro!A77),"",InfoPro!A77) -> SC_2194_A1 | C79: =IF(ISBLANK(InfoPro!B77),"",InfoPro!B77) -> Planta de generación GN Belencito APDR | D79: =IF(ISBLANK(InfoPro!E77),"",InfoPro!E77) -> 0 | E79: =IF(ISBLANK(InfoPro!N77),"",InfoPro!N77) -> NO | F79: =IF(ISBLANK(InfoPro!I77),"",YEAR(InfoPro!I77)-$J$2) -> 1 | G79: 0 | H79: 0
B80: =IF(ISBLANK(InfoPro!A78),"",InfoPro!A78) -> SC_2194_A2 | C80: =IF(ISBLANK(InfoPro!B78),"",InfoPro!B78) -> Planta de generación GN Belencito APDR | D80: =IF(ISBLANK(InfoPro!E78),"",InfoPro!E78) -> 0 | E80: =IF(ISBLANK(InfoPro!N78),"",InfoPro!N78) -> NO | F80: =IF(ISBLANK(InfoPro!I78),"",YEAR(InfoPro!I78)-$J$2) -> 1 | G80: 0 | H80: 0
B81: =IF(ISBLANK(InfoPro!A79),"",InfoPro!A79) -> SC_2224_A1 | C81: =IF(ISBLANK(InfoPro!B79),"",InfoPro!B79) -> Generación Solar Fotovoltaica Yopalosa 65 MW | D81: =IF(ISBLANK(InfoPro!E79),"",InfoPro!E79) -> 65 | E81: =IF(ISBLANK(InfoPro!N79),"",InfoPro!N79) -> NO | F81: =IF(ISBLANK(InfoPro!I79),"",YEAR(InfoPro!I79)-$J$2) -> 3 | G81: 0 | H81: 0
B82: =IF(ISBLANK(InfoPro!A80),"",InfoPro!A80) -> SC_2224_A2 | C82: =IF(ISBLANK(InfoPro!B80),"",InfoPro!B80) -> Generación Solar Fotovoltaica Yopalosa 65 MW | D82: =IF(ISBLANK(InfoPro!E80),"",InfoPro!E80) -> 65 | E82: =IF(ISBLANK(InfoPro!N80),"",InfoPro!N80) -> NO | F82: =IF(ISBLANK(InfoPro!I80),"",YEAR(InfoPro!I80)-$J$2) -> 3 | G82: 0 | H82: 0
B83: =IF(ISBLANK(InfoPro!A81),"",InfoPro!A81) -> SC_2024_A1 | C83: =IF(ISBLANK(InfoPro!B81),"",InfoPro!B81) -> SUMMA IV | D83: =IF(ISBLANK(InfoPro!E81),"",InfoPro!E81) -> 9.9 | E83: =IF(ISBLANK(InfoPro!N81),"",InfoPro!N81) -> NO | F83: =IF(ISBLANK(InfoPro!I81),"",YEAR(InfoPro!I81)-$J$2) -> 3 | G83: 0 | H83: 0
B84: =IF(ISBLANK(InfoPro!A81),"",InfoPro!A81) -> SC_2024_A1 | C84: =IF(ISBLANK(InfoPro!B81),"",InfoPro!B81) -> SUMMA IV | D84: =IF(ISBLANK(InfoPro!E81),"",InfoPro!E81) -> 9.9 | E84: =IF(ISBLANK(InfoPro!N81),"",InfoPro!N81) -> NO | F84: =IF(ISBLANK(InfoPro!I81),"",YEAR(InfoPro!I81)-$J$2) -> 3 | G84: 0 | H84: 0
B85: =IF(ISBLANK(InfoPro!A82),"",InfoPro!A82) -> SC_2024_A2 | C85: =IF(ISBLANK(InfoPro!B82),"",InfoPro!B82) -> SUMMA IV | D85: =IF(ISBLANK(InfoPro!E82),"",InfoPro!E82) -> 9.9 | E85: =IF(ISBLANK(InfoPro!N82),"",InfoPro!N82) -> NO | F85: =IF(ISBLANK(InfoPro!I82),"",YEAR(InfoPro!I82)-$J$2) -> 3 | G85: 0 | H85: 0
B86: =IF(ISBLANK(InfoPro!A83),"",InfoPro!A83) ->  | C86: =IF(ISBLANK(InfoPro!B83),"",InfoPro!B83) ->  | D86: =IF(ISBLANK(InfoPro!E83),"",InfoPro!E83) ->  | E86: =IF(ISBLANK(InfoPro!N83),"",InfoPro!N83) ->  | F86: =IF(ISBLANK(InfoPro!I83),"",YEAR(InfoPro!I83)-$J$2) -> 
B87: =IF(ISBLANK(InfoPro!A84),"",InfoPro!A84) ->  | C87: =IF(ISBLANK(InfoPro!B84),"",InfoPro!B84) ->  | D87: =IF(ISBLANK(InfoPro!E84),"",InfoPro!E84) ->  | E87: =IF(ISBLANK(InfoPro!N84),"",InfoPro!N84) ->  | F87: =IF(ISBLANK(InfoPro!I84),"",YEAR(InfoPro!I84)-$J$2) -> 
B88: =IF(ISBLANK(InfoPro!A85),"",InfoPro!A85) ->  | C88: =IF(ISBLANK(InfoPro!B85),"",InfoPro!B85) ->  | D88: =IF(ISBLANK(InfoPro!E85),"",InfoPro!E85) ->  | E88: =IF(ISBLANK(InfoPro!N85),"",InfoPro!N85) ->  | F88: =IF(ISBLANK(InfoPro!I85),"",YEAR(InfoPro!I85)-$J$2) -> 
B89: =IF(ISBLANK(InfoPro!A86),"",InfoPro!A86) ->  | C89: =IF(ISBLANK(InfoPro!B86),"",InfoPro!B86) ->  | D89: =IF(ISBLANK(InfoPro!E86),"",InfoPro!E86) ->  | E89: =IF(ISBLANK(InfoPro!N86),"",InfoPro!N86) ->  | F89: =IF(ISBLANK(InfoPro!I86),"",YEAR(InfoPro!I86)-$J$2) -> 
B90: =IF(ISBLANK(InfoPro!A87),"",InfoPro!A87) ->  | C90: =IF(ISBLANK(InfoPro!B87),"",InfoPro!B87) ->  | D90: =IF(ISBLANK(InfoPro!E87),"",InfoPro!E87) ->  | E90: =IF(ISBLANK(InfoPro!N87),"",InfoPro!N87) ->  | F90: =IF(ISBLANK(InfoPro!I87),"",YEAR(InfoPro!I87)-$J$2) -> 
B91: =IF(ISBLANK(InfoPro!A88),"",InfoPro!A88) ->  | C91: =IF(ISBLANK(InfoPro!B88),"",InfoPro!B88) ->  | D91: =IF(ISBLANK(InfoPro!E88),"",InfoPro!E88) ->  | E91: =IF(ISBLANK(InfoPro!N88),"",InfoPro!N88) ->  | F91: =IF(ISBLANK(InfoPro!I88),"",YEAR(InfoPro!I88)-$J$2) -> 
B92: =IF(ISBLANK(InfoPro!A89),"",InfoPro!A89) ->  | C92: =IF(ISBLANK(InfoPro!B89),"",InfoPro!B89) ->  | D92: =IF(ISBLANK(InfoPro!E89),"",InfoPro!E89) ->  | E92: =IF(ISBLANK(InfoPro!N89),"",InfoPro!N89) ->  | F92: =IF(ISBLANK(InfoPro!I89),"",YEAR(InfoPro!I89)-$J$2) -> 
B93: =IF(ISBLANK(InfoPro!A90),"",InfoPro!A90) ->  | C93: =IF(ISBLANK(InfoPro!B90),"",InfoPro!B90) ->  | D93: =IF(ISBLANK(InfoPro!E90),"",InfoPro!E90) ->  | E93: =IF(ISBLANK(InfoPro!N90),"",InfoPro!N90) ->  | F93: =IF(ISBLANK(InfoPro!I90),"",YEAR(InfoPro!I90)-$J$2) -> 
B94: =IF(ISBLANK(InfoPro!A91),"",InfoPro!A91) ->  | C94: =IF(ISBLANK(InfoPro!B91),"",InfoPro!B91) ->  | D94: =IF(ISBLANK(InfoPro!E91),"",InfoPro!E91) ->  | E94: =IF(ISBLANK(InfoPro!N91),"",InfoPro!N91) ->  | F94: =IF(ISBLANK(InfoPro!I91),"",YEAR(InfoPro!I91)-$J$2) -> 
B95: =IF(ISBLANK(InfoPro!A92),"",InfoPro!A92) ->  | C95: =IF(ISBLANK(InfoPro!B92),"",InfoPro!B92) ->  | D95: =IF(ISBLANK(InfoPro!E92),"",InfoPro!E92) ->  | E95: =IF(ISBLANK(InfoPro!N92),"",InfoPro!N92) ->  | F95: =IF(ISBLANK(InfoPro!I92),"",YEAR(InfoPro!I92)-$J$2) -> 
B96: =IF(ISBLANK(InfoPro!A93),"",InfoPro!A93) ->  | C96: =IF(ISBLANK(InfoPro!B93),"",InfoPro!B93) ->  | D96: =IF(ISBLANK(InfoPro!E93),"",InfoPro!E93) ->  | E96: =IF(ISBLANK(InfoPro!N93),"",InfoPro!N93) ->  | F96: =IF(ISBLANK(InfoPro!I93),"",YEAR(InfoPro!I93)-$J$2) -> 
B97: =IF(ISBLANK(InfoPro!A94),"",InfoPro!A94) ->  | C97: =IF(ISBLANK(InfoPro!B94),"",InfoPro!B94) ->  | D97: =IF(ISBLANK(InfoPro!E94),"",InfoPro!E94) ->  | E97: =IF(ISBLANK(InfoPro!N94),"",InfoPro!N94) ->  | F97: =IF(ISBLANK(InfoPro!I94),"",YEAR(InfoPro!I94)-$J$2) -> 
B98: =IF(ISBLANK(InfoPro!A95),"",InfoPro!A95) ->  | C98: =IF(ISBLANK(InfoPro!B95),"",InfoPro!B95) ->  | D98: =IF(ISBLANK(InfoPro!E95),"",InfoPro!E95) ->  | E98: =IF(ISBLANK(InfoPro!N95),"",InfoPro!N95) ->  | F98: =IF(ISBLANK(InfoPro!I95),"",YEAR(InfoPro!I95)-$J$2) -> 
B99: =IF(ISBLANK(InfoPro!A96),"",InfoPro!A96) ->  | C99: =IF(ISBLANK(InfoPro!B96),"",InfoPro!B96) ->  | D99: =IF(ISBLANK(InfoPro!E96),"",InfoPro!E96) ->  | E99: =IF(ISBLANK(InfoPro!N96),"",InfoPro!N96) ->  | F99: =IF(ISBLANK(InfoPro!I96),"",YEAR(InfoPro!I96)-$J$2) -> 
B100: =IF(ISBLANK(InfoPro!A97),"",InfoPro!A97) ->  | C100: =IF(ISBLANK(InfoPro!B97),"",InfoPro!B97) ->  | D100: =IF(ISBLANK(InfoPro!E97),"",InfoPro!E97) ->  | E100: =IF(ISBLANK(InfoPro!N97),"",InfoPro!N97) ->  | F100: =IF(ISBLANK(InfoPro!I97),"",YEAR(InfoPro!I97)-$J$2) -> 
B101: =IF(ISBLANK(InfoPro!A98),"",InfoPro!A98) ->  | C101: =IF(ISBLANK(InfoPro!B98),"",InfoPro!B98) ->  | D101: =IF(ISBLANK(InfoPro!E98),"",InfoPro!E98) ->  | E101: =IF(ISBLANK(InfoPro!N98),"",InfoPro!N98) ->  | F101: =IF(ISBLANK(InfoPro!I98),"",YEAR(InfoPro!I98)-$J$2) -> 
B102: =IF(ISBLANK(InfoPro!A99),"",InfoPro!A99) ->  | C102: =IF(ISBLANK(InfoPro!B99),"",InfoPro!B99) ->  | D102: =IF(ISBLANK(InfoPro!E99),"",InfoPro!E99) ->  | E102: =IF(ISBLANK(InfoPro!N99),"",InfoPro!N99) ->  | F102: =IF(ISBLANK(InfoPro!I99),"",YEAR(InfoPro!I99)-$J$2) -> 
B103: =IF(ISBLANK(InfoPro!A100),"",InfoPro!A100) ->  | C103: =IF(ISBLANK(InfoPro!B100),"",InfoPro!B100) ->  | D103: =IF(ISBLANK(InfoPro!E100),"",InfoPro!E100) ->  | E103: =IF(ISBLANK(InfoPro!N100),"",InfoPro!N100) ->  | F103: =IF(ISBLANK(InfoPro!I100),"",YEAR(InfoPro!I100)-$J$2) -> 
B104: =IF(ISBLANK(InfoPro!A101),"",InfoPro!A101) ->  | C104: =IF(ISBLANK(InfoPro!B101),"",InfoPro!B101) ->  | D104: =IF(ISBLANK(InfoPro!E101),"",InfoPro!E101) ->  | E104: =IF(ISBLANK(InfoPro!N101),"",InfoPro!N101) ->  | F104: =IF(ISBLANK(InfoPro!I101),"",YEAR(InfoPro!I101)-$J$2) -> 
B105: =IF(ISBLANK(InfoPro!A102),"",InfoPro!A102) ->  | C105: =IF(ISBLANK(InfoPro!B102),"",InfoPro!B102) ->  | D105: =IF(ISBLANK(InfoPro!E102),"",InfoPro!E102) ->  | E105: =IF(ISBLANK(InfoPro!N102),"",InfoPro!N102) ->  | F105: =IF(ISBLANK(InfoPro!I102),"",YEAR(InfoPro!I102)-$J$2) -> 
B106: =IF(ISBLANK(InfoPro!A103),"",InfoPro!A103) ->  | C106: =IF(ISBLANK(InfoPro!B103),"",InfoPro!B103) ->  | D106: =IF(ISBLANK(InfoPro!E103),"",InfoPro!E103) ->  | E106: =IF(ISBLANK(InfoPro!N103),"",InfoPro!N103) ->  | F106: =IF(ISBLANK(InfoPro!I103),"",YEAR(InfoPro!I103)-$J$2) -> 
B107: =IF(ISBLANK(InfoPro!A104),"",InfoPro!A104) ->  | C107: =IF(ISBLANK(InfoPro!B104),"",InfoPro!B104) ->  | D107: =IF(ISBLANK(InfoPro!E104),"",InfoPro!E104) ->  | E107: =IF(ISBLANK(InfoPro!N104),"",InfoPro!N104) ->  | F107: =IF(ISBLANK(InfoPro!I104),"",YEAR(InfoPro!I104)-$J$2) -> 
B108: =IF(ISBLANK(InfoPro!A105),"",InfoPro!A105) ->  | C108: =IF(ISBLANK(InfoPro!B105),"",InfoPro!B105) ->  | D108: =IF(ISBLANK(InfoPro!E105),"",InfoPro!E105) ->  | E108: =IF(ISBLANK(InfoPro!N105),"",InfoPro!N105) ->  | F108: =IF(ISBLANK(InfoPro!I105),"",YEAR(InfoPro!I105)-$J$2) -> 
B109: =IF(ISBLANK(InfoPro!A106),"",InfoPro!A106) ->  | C109: =IF(ISBLANK(InfoPro!B106),"",InfoPro!B106) ->  | D109: =IF(ISBLANK(InfoPro!E106),"",InfoPro!E106) ->  | E109: =IF(ISBLANK(InfoPro!N106),"",InfoPro!N106) ->  | F109: =IF(ISBLANK(InfoPro!I106),"",YEAR(InfoPro!I106)-$J$2) -> 
B110: =IF(ISBLANK(InfoPro!A107),"",InfoPro!A107) ->  | C110: =IF(ISBLANK(InfoPro!B107),"",InfoPro!B107) ->  | D110: =IF(ISBLANK(InfoPro!E107),"",InfoPro!E107) ->  | E110: =IF(ISBLANK(InfoPro!N107),"",InfoPro!N107) ->  | F110: =IF(ISBLANK(InfoPro!I107),"",YEAR(InfoPro!I107)-$J$2) -> 
B111: =IF(ISBLANK(InfoPro!A108),"",InfoPro!A108) ->  | C111: =IF(ISBLANK(InfoPro!B108),"",InfoPro!B108) ->  | D111: =IF(ISBLANK(InfoPro!E108),"",InfoPro!E108) ->  | E111: =IF(ISBLANK(InfoPro!N108),"",InfoPro!N108) ->  | F111: =IF(ISBLANK(InfoPro!I108),"",YEAR(InfoPro!I108)-$J$2) -> 
B112: =IF(ISBLANK(InfoPro!A109),"",InfoPro!A109) ->  | C112: =IF(ISBLANK(InfoPro!B109),"",InfoPro!B109) ->  | D112: =IF(ISBLANK(InfoPro!E109),"",InfoPro!E109) ->  | E112: =IF(ISBLANK(InfoPro!N109),"",InfoPro!N109) ->  | F112: =IF(ISBLANK(InfoPro!I109),"",YEAR(InfoPro!I109)-$J$2) -> 
B113: =IF(ISBLANK(InfoPro!A110),"",InfoPro!A110) ->  | C113: =IF(ISBLANK(InfoPro!B110),"",InfoPro!B110) ->  | D113: =IF(ISBLANK(InfoPro!E110),"",InfoPro!E110) ->  | E113: =IF(ISBLANK(InfoPro!N110),"",InfoPro!N110) ->  | F113: =IF(ISBLANK(InfoPro!I110),"",YEAR(InfoPro!I110)-$J$2) -> 
B114: =IF(ISBLANK(InfoPro!A111),"",InfoPro!A111) ->  | C114: =IF(ISBLANK(InfoPro!B111),"",InfoPro!B111) ->  | D114: =IF(ISBLANK(InfoPro!E111),"",InfoPro!E111) ->  | E114: =IF(ISBLANK(InfoPro!N111),"",InfoPro!N111) ->  | F114: =IF(ISBLANK(InfoPro!I111),"",YEAR(InfoPro!I111)-$J$2) -> 
B115: =IF(ISBLANK(InfoPro!A112),"",InfoPro!A112) ->  | C115: =IF(ISBLANK(InfoPro!B112),"",InfoPro!B112) ->  | D115: =IF(ISBLANK(InfoPro!E112),"",InfoPro!E112) ->  | E115: =IF(ISBLANK(InfoPro!N112),"",InfoPro!N112) ->  | F115: =IF(ISBLANK(InfoPro!I112),"",YEAR(InfoPro!I112)-$J$2) -> 
B116: =IF(ISBLANK(InfoPro!A113),"",InfoPro!A113) ->  | C116: =IF(ISBLANK(InfoPro!B113),"",InfoPro!B113) ->  | D116: =IF(ISBLANK(InfoPro!E113),"",InfoPro!E113) ->  | E116: =IF(ISBLANK(InfoPro!N113),"",InfoPro!N113) ->  | F116: =IF(ISBLANK(InfoPro!I113),"",YEAR(InfoPro!I113)-$J$2) -> 
B117: =IF(ISBLANK(InfoPro!A114),"",InfoPro!A114) ->  | C117: =IF(ISBLANK(InfoPro!B114),"",InfoPro!B114) ->  | D117: =IF(ISBLANK(InfoPro!E114),"",InfoPro!E114) ->  | E117: =IF(ISBLANK(InfoPro!N114),"",InfoPro!N114) ->  | F117: =IF(ISBLANK(InfoPro!I114),"",YEAR(InfoPro!I114)-$J$2) -> 
B118: =IF(ISBLANK(InfoPro!A115),"",InfoPro!A115) ->  | C118: =IF(ISBLANK(InfoPro!B115),"",InfoPro!B115) ->  | D118: =IF(ISBLANK(InfoPro!E115),"",InfoPro!E115) ->  | E118: =IF(ISBLANK(InfoPro!N115),"",InfoPro!N115) ->  | F118: =IF(ISBLANK(InfoPro!I115),"",YEAR(InfoPro!I115)-$J$2) -> 
B119: =IF(ISBLANK(InfoPro!A116),"",InfoPro!A116) ->  | C119: =IF(ISBLANK(InfoPro!B116),"",InfoPro!B116) ->  | D119: =IF(ISBLANK(InfoPro!E116),"",InfoPro!E116) ->  | E119: =IF(ISBLANK(InfoPro!N116),"",InfoPro!N116) ->  | F119: =IF(ISBLANK(InfoPro!I116),"",YEAR(InfoPro!I116)-$J$2) -> 
B120: =IF(ISBLANK(InfoPro!A117),"",InfoPro!A117) ->  | C120: =IF(ISBLANK(InfoPro!B117),"",InfoPro!B117) ->  | D120: =IF(ISBLANK(InfoPro!E117),"",InfoPro!E117) ->  | E120: =IF(ISBLANK(InfoPro!N117),"",InfoPro!N117) ->  | F120: =IF(ISBLANK(InfoPro!I117),"",YEAR(InfoPro!I117)-$J$2) -> 
B121: =IF(ISBLANK(InfoPro!A118),"",InfoPro!A118) ->  | C121: =IF(ISBLANK(InfoPro!B118),"",InfoPro!B118) ->  | D121: =IF(ISBLANK(InfoPro!E118),"",InfoPro!E118) ->  | E121: =IF(ISBLANK(InfoPro!N118),"",InfoPro!N118) ->  | F121: =IF(ISBLANK(InfoPro!I118),"",YEAR(InfoPro!I118)-$J$2) -> 
B122: =IF(ISBLANK(InfoPro!A119),"",InfoPro!A119) ->  | C122: =IF(ISBLANK(InfoPro!B119),"",InfoPro!B119) ->  | D122: =IF(ISBLANK(InfoPro!E119),"",InfoPro!E119) ->  | E122: =IF(ISBLANK(InfoPro!N119),"",InfoPro!N119) ->  | F122: =IF(ISBLANK(InfoPro!I119),"",YEAR(InfoPro!I119)-$J$2) -> 
B123: =IF(ISBLANK(InfoPro!A120),"",InfoPro!A120) ->  | C123: =IF(ISBLANK(InfoPro!B120),"",InfoPro!B120) ->  | D123: =IF(ISBLANK(InfoPro!E120),"",InfoPro!E120) ->  | E123: =IF(ISBLANK(InfoPro!N120),"",InfoPro!N120) ->  | F123: =IF(ISBLANK(InfoPro!I120),"",YEAR(InfoPro!I120)-$J$2) -> 
B124: =IF(ISBLANK(InfoPro!A121),"",InfoPro!A121) ->  | C124: =IF(ISBLANK(InfoPro!B121),"",InfoPro!B121) ->  | D124: =IF(ISBLANK(InfoPro!E121),"",InfoPro!E121) ->  | E124: =IF(ISBLANK(InfoPro!N121),"",InfoPro!N121) ->  | F124: =IF(ISBLANK(InfoPro!I121),"",YEAR(InfoPro!I121)-$J$2) -> 
B125: =IF(ISBLANK(InfoPro!A122),"",InfoPro!A122) ->  | C125: =IF(ISBLANK(InfoPro!B122),"",InfoPro!B122) ->  | D125: =IF(ISBLANK(InfoPro!E122),"",InfoPro!E122) ->  | E125: =IF(ISBLANK(InfoPro!N122),"",InfoPro!N122) ->  | F125: =IF(ISBLANK(InfoPro!I122),"",YEAR(InfoPro!I122)-$J$2) -> 
B126: =IF(ISBLANK(InfoPro!A123),"",InfoPro!A123) ->  | C126: =IF(ISBLANK(InfoPro!B123),"",InfoPro!B123) ->  | D126: =IF(ISBLANK(InfoPro!E123),"",InfoPro!E123) ->  | E126: =IF(ISBLANK(InfoPro!N123),"",InfoPro!N123) ->  | F126: =IF(ISBLANK(InfoPro!I123),"",YEAR(InfoPro!I123)-$J$2) -> 
B127: =IF(ISBLANK(InfoPro!A124),"",InfoPro!A124) ->  | C127: =IF(ISBLANK(InfoPro!B124),"",InfoPro!B124) ->  | D127: =IF(ISBLANK(InfoPro!E124),"",InfoPro!E124) ->  | E127: =IF(ISBLANK(InfoPro!N124),"",InfoPro!N124) ->  | F127: =IF(ISBLANK(InfoPro!I124),"",YEAR(InfoPro!I124)-$J$2) -> 
B128: =IF(ISBLANK(InfoPro!A125),"",InfoPro!A125) ->  | C128: =IF(ISBLANK(InfoPro!B125),"",InfoPro!B125) ->  | D128: =IF(ISBLANK(InfoPro!E125),"",InfoPro!E125) ->  | E128: =IF(ISBLANK(InfoPro!N125),"",InfoPro!N125) ->  | F128: =IF(ISBLANK(InfoPro!I125),"",YEAR(InfoPro!I125)-$J$2) -> 
B129: =IF(ISBLANK(InfoPro!A126),"",InfoPro!A126) ->  | C129: =IF(ISBLANK(InfoPro!B126),"",InfoPro!B126) ->  | D129: =IF(ISBLANK(InfoPro!E126),"",InfoPro!E126) ->  | E129: =IF(ISBLANK(InfoPro!N126),"",InfoPro!N126) ->  | F129: =IF(ISBLANK(InfoPro!I126),"",YEAR(InfoPro!I126)-$J$2) -> 
B130: =IF(ISBLANK(InfoPro!A127),"",InfoPro!A127) ->  | C130: =IF(ISBLANK(InfoPro!B127),"",InfoPro!B127) ->  | D130: =IF(ISBLANK(InfoPro!E127),"",InfoPro!E127) ->  | E130: =IF(ISBLANK(InfoPro!N127),"",InfoPro!N127) ->  | F130: =IF(ISBLANK(InfoPro!I127),"",YEAR(InfoPro!I127)-$J$2) -> 
B131: =IF(ISBLANK(InfoPro!A128),"",InfoPro!A128) ->  | C131: =IF(ISBLANK(InfoPro!B128),"",InfoPro!B128) ->  | D131: =IF(ISBLANK(InfoPro!E128),"",InfoPro!E128) ->  | E131: =IF(ISBLANK(InfoPro!N128),"",InfoPro!N128) ->  | F131: =IF(ISBLANK(InfoPro!I128),"",YEAR(InfoPro!I128)-$J$2) ->  | G131: =IF(E131="SI",100,IF(E131="NO",0,"")) ->  | H131: =IF(G131="","",(G131)) -> 
B132: =IF(ISBLANK(InfoPro!A129),"",InfoPro!A129) ->  | C132: =IF(ISBLANK(InfoPro!B129),"",InfoPro!B129) ->  | D132: =IF(ISBLANK(InfoPro!E129),"",InfoPro!E129) ->  | E132: =IF(ISBLANK(InfoPro!N129),"",InfoPro!N129) ->  | F132: =IF(ISBLANK(InfoPro!I129),"",YEAR(InfoPro!I129)-$J$2) -> 
B133: =IF(ISBLANK(InfoPro!A130),"",InfoPro!A130) ->  | C133: =IF(ISBLANK(InfoPro!B130),"",InfoPro!B130) ->  | D133: =IF(ISBLANK(InfoPro!E130),"",InfoPro!E130) ->  | E133: =IF(ISBLANK(InfoPro!N130),"",InfoPro!N130) ->  | F133: =IF(ISBLANK(InfoPro!I130),"",YEAR(InfoPro!I130)-$J$2) -> 
B134: =IF(ISBLANK(InfoPro!A131),"",InfoPro!A131) ->  | C134: =IF(ISBLANK(InfoPro!B131),"",InfoPro!B131) ->  | D134: =IF(ISBLANK(InfoPro!E131),"",InfoPro!E131) ->  | E134: =IF(ISBLANK(InfoPro!N131),"",InfoPro!N131) ->  | F134: =IF(ISBLANK(InfoPro!I131),"",YEAR(InfoPro!I131)-$J$2) -> 
B135: =IF(ISBLANK(InfoPro!A132),"",InfoPro!A132) ->  | C135: =IF(ISBLANK(InfoPro!B132),"",InfoPro!B132) ->  | D135: =IF(ISBLANK(InfoPro!E132),"",InfoPro!E132) ->  | E135: =IF(ISBLANK(InfoPro!N132),"",InfoPro!N132) ->  | F135: =IF(ISBLANK(InfoPro!I132),"",YEAR(InfoPro!I132)-$J$2) -> 
B136: =IF(ISBLANK(InfoPro!A133),"",InfoPro!A133) ->  | C136: =IF(ISBLANK(InfoPro!B133),"",InfoPro!B133) ->  | D136: =IF(ISBLANK(InfoPro!E133),"",InfoPro!E133) ->  | E136: =IF(ISBLANK(InfoPro!N133),"",InfoPro!N133) ->  | F136: =IF(ISBLANK(InfoPro!I133),"",YEAR(InfoPro!I133)-$J$2) -> 
B137: =IF(ISBLANK(InfoPro!A134),"",InfoPro!A134) ->  | C137: =IF(ISBLANK(InfoPro!B134),"",InfoPro!B134) ->  | D137: =IF(ISBLANK(InfoPro!E134),"",InfoPro!E134) ->  | E137: =IF(ISBLANK(InfoPro!N134),"",InfoPro!N134) ->  | F137: =IF(ISBLANK(InfoPro!I134),"",YEAR(InfoPro!I134)-$J$2) -> 
B138: =IF(ISBLANK(InfoPro!A135),"",InfoPro!A135) ->  | C138: =IF(ISBLANK(InfoPro!B135),"",InfoPro!B135) ->  | D138: =IF(ISBLANK(InfoPro!E135),"",InfoPro!E135) ->  | E138: =IF(ISBLANK(InfoPro!N135),"",InfoPro!N135) ->  | F138: =IF(ISBLANK(InfoPro!I135),"",YEAR(InfoPro!I135)-$J$2) -> 
B139: =IF(ISBLANK(InfoPro!A136),"",InfoPro!A136) ->  | C139: =IF(ISBLANK(InfoPro!B136),"",InfoPro!B136) ->  | D139: =IF(ISBLANK(InfoPro!E136),"",InfoPro!E136) ->  | E139: =IF(ISBLANK(InfoPro!N136),"",InfoPro!N136) ->  | F139: =IF(ISBLANK(InfoPro!I136),"",YEAR(InfoPro!I136)-$J$2) -> 
B140: =IF(ISBLANK(InfoPro!A137),"",InfoPro!A137) ->  | C140: =IF(ISBLANK(InfoPro!B137),"",InfoPro!B137) ->  | D140: =IF(ISBLANK(InfoPro!E137),"",InfoPro!E137) ->  | E140: =IF(ISBLANK(InfoPro!N137),"",InfoPro!N137) ->  | F140: =IF(ISBLANK(InfoPro!I137),"",YEAR(InfoPro!I137)-$J$2) -> 
B141: =IF(ISBLANK(InfoPro!A138),"",InfoPro!A138) ->  | C141: =IF(ISBLANK(InfoPro!B138),"",InfoPro!B138) ->  | D141: =IF(ISBLANK(InfoPro!E138),"",InfoPro!E138) ->  | E141: =IF(ISBLANK(InfoPro!N138),"",InfoPro!N138) ->  | F141: =IF(ISBLANK(InfoPro!I138),"",YEAR(InfoPro!I138)-$J$2) -> 
B142: =IF(ISBLANK(InfoPro!A139),"",InfoPro!A139) ->  | C142: =IF(ISBLANK(InfoPro!B139),"",InfoPro!B139) ->  | D142: =IF(ISBLANK(InfoPro!E139),"",InfoPro!E139) ->  | E142: =IF(ISBLANK(InfoPro!N139),"",InfoPro!N139) ->  | F142: =IF(ISBLANK(InfoPro!I139),"",YEAR(InfoPro!I139)-$J$2) -> 
B143: =IF(ISBLANK(InfoPro!A140),"",InfoPro!A140) ->  | C143: =IF(ISBLANK(InfoPro!B140),"",InfoPro!B140) ->  | D143: =IF(ISBLANK(InfoPro!E140),"",InfoPro!E140) ->  | E143: =IF(ISBLANK(InfoPro!N140),"",InfoPro!N140) ->  | F143: =IF(ISBLANK(InfoPro!I140),"",YEAR(InfoPro!I140)-$J$2) -> 
B144: =IF(ISBLANK(InfoPro!A141),"",InfoPro!A141) ->  | C144: =IF(ISBLANK(InfoPro!B141),"",InfoPro!B141) ->  | D144: =IF(ISBLANK(InfoPro!E141),"",InfoPro!E141) ->  | E144: =IF(ISBLANK(InfoPro!N141),"",InfoPro!N141) ->  | F144: =IF(ISBLANK(InfoPro!I141),"",YEAR(InfoPro!I141)-$J$2) -> 
B145: =IF(ISBLANK(InfoPro!A142),"",InfoPro!A142) ->  | C145: =IF(ISBLANK(InfoPro!B142),"",InfoPro!B142) ->  | D145: =IF(ISBLANK(InfoPro!E142),"",InfoPro!E142) ->  | E145: =IF(ISBLANK(InfoPro!N142),"",InfoPro!N142) ->  | F145: =IF(ISBLANK(InfoPro!I142),"",YEAR(InfoPro!I142)-$J$2) -> 
B146: =IF(ISBLANK(InfoPro!A143),"",InfoPro!A143) ->  | C146: =IF(ISBLANK(InfoPro!B143),"",InfoPro!B143) ->  | D146: =IF(ISBLANK(InfoPro!E143),"",InfoPro!E143) ->  | E146: =IF(ISBLANK(InfoPro!N143),"",InfoPro!N143) ->  | F146: =IF(ISBLANK(InfoPro!I143),"",YEAR(InfoPro!I143)-$J$2) -> 
B147: =IF(ISBLANK(InfoPro!A144),"",InfoPro!A144) ->  | C147: =IF(ISBLANK(InfoPro!B144),"",InfoPro!B144) ->  | D147: =IF(ISBLANK(InfoPro!E144),"",InfoPro!E144) ->  | E147: =IF(ISBLANK(InfoPro!N144),"",InfoPro!N144) ->  | F147: =IF(ISBLANK(InfoPro!I144),"",YEAR(InfoPro!I144)-$J$2) -> 
B148: =IF(ISBLANK(InfoPro!A145),"",InfoPro!A145) ->  | C148: =IF(ISBLANK(InfoPro!B145),"",InfoPro!B145) ->  | D148: =IF(ISBLANK(InfoPro!E145),"",InfoPro!E145) ->  | E148: =IF(ISBLANK(InfoPro!N145),"",InfoPro!N145) ->  | F148: =IF(ISBLANK(InfoPro!I145),"",YEAR(InfoPro!I145)-$J$2) -> 
B149: =IF(ISBLANK(InfoPro!A146),"",InfoPro!A146) ->  | C149: =IF(ISBLANK(InfoPro!B146),"",InfoPro!B146) ->  | D149: =IF(ISBLANK(InfoPro!E146),"",InfoPro!E146) ->  | E149: =IF(ISBLANK(InfoPro!N146),"",InfoPro!N146) ->  | F149: =IF(ISBLANK(InfoPro!I146),"",YEAR(InfoPro!I146)-$J$2) -> 
B150: =IF(ISBLANK(InfoPro!A147),"",InfoPro!A147) ->  | C150: =IF(ISBLANK(InfoPro!B147),"",InfoPro!B147) ->  | D150: =IF(ISBLANK(InfoPro!E147),"",InfoPro!E147) ->  | E150: =IF(ISBLANK(InfoPro!N147),"",InfoPro!N147) ->  | F150: =IF(ISBLANK(InfoPro!I147),"",YEAR(InfoPro!I147)-$J$2) -> 
B151: =IF(ISBLANK(InfoPro!A148),"",InfoPro!A148) ->  | C151: =IF(ISBLANK(InfoPro!B148),"",InfoPro!B148) ->  | D151: =IF(ISBLANK(InfoPro!E148),"",InfoPro!E148) ->  | E151: =IF(ISBLANK(InfoPro!N148),"",InfoPro!N148) ->  | F151: =IF(ISBLANK(InfoPro!I148),"",YEAR(InfoPro!I148)-$J$2) -> 
B152: =IF(ISBLANK(InfoPro!A149),"",InfoPro!A149) ->  | C152: =IF(ISBLANK(InfoPro!B149),"",InfoPro!B149) ->  | D152: =IF(ISBLANK(InfoPro!E149),"",InfoPro!E149) ->  | E152: =IF(ISBLANK(InfoPro!N149),"",InfoPro!N149) ->  | F152: =IF(ISBLANK(InfoPro!I149),"",YEAR(InfoPro!I149)-$J$2) -> 
B153: =IF(ISBLANK(InfoPro!A150),"",InfoPro!A150) ->  | C153: =IF(ISBLANK(InfoPro!B150),"",InfoPro!B150) ->  | D153: =IF(ISBLANK(InfoPro!E150),"",InfoPro!E150) ->  | E153: =IF(ISBLANK(InfoPro!N150),"",InfoPro!N150) ->  | F153: =IF(ISBLANK(InfoPro!I150),"",YEAR(InfoPro!I150)-$J$2) -> 
B154: =IF(ISBLANK(InfoPro!A151),"",InfoPro!A151) ->  | C154: =IF(ISBLANK(InfoPro!B151),"",InfoPro!B151) ->  | D154: =IF(ISBLANK(InfoPro!E151),"",InfoPro!E151) ->  | E154: =IF(ISBLANK(InfoPro!N151),"",InfoPro!N151) ->  | F154: =IF(ISBLANK(InfoPro!I151),"",YEAR(InfoPro!I151)-$J$2) -> 
B155: =IF(ISBLANK(InfoPro!A152),"",InfoPro!A152) ->  | C155: =IF(ISBLANK(InfoPro!B152),"",InfoPro!B152) ->  | D155: =IF(ISBLANK(InfoPro!E152),"",InfoPro!E152) ->  | E155: =IF(ISBLANK(InfoPro!N152),"",InfoPro!N152) ->  | F155: =IF(ISBLANK(InfoPro!I152),"",YEAR(InfoPro!I152)-$J$2) -> 
B156: =IF(ISBLANK(InfoPro!A153),"",InfoPro!A153) ->  | C156: =IF(ISBLANK(InfoPro!B153),"",InfoPro!B153) ->  | D156: =IF(ISBLANK(InfoPro!E153),"",InfoPro!E153) ->  | E156: =IF(ISBLANK(InfoPro!N153),"",InfoPro!N153) ->  | F156: =IF(ISBLANK(InfoPro!I153),"",YEAR(InfoPro!I153)-$J$2) -> 
B157: =IF(ISBLANK(InfoPro!A154),"",InfoPro!A154) ->  | C157: =IF(ISBLANK(InfoPro!B154),"",InfoPro!B154) ->  | D157: =IF(ISBLANK(InfoPro!E154),"",InfoPro!E154) ->  | E157: =IF(ISBLANK(InfoPro!N154),"",InfoPro!N154) ->  | F157: =IF(ISBLANK(InfoPro!I154),"",YEAR(InfoPro!I154)-$J$2) -> 
B158: =IF(ISBLANK(InfoPro!A155),"",InfoPro!A155) ->  | C158: =IF(ISBLANK(InfoPro!B155),"",InfoPro!B155) ->  | D158: =IF(ISBLANK(InfoPro!E155),"",InfoPro!E155) ->  | E158: =IF(ISBLANK(InfoPro!N155),"",InfoPro!N155) ->  | F158: =IF(ISBLANK(InfoPro!I155),"",YEAR(InfoPro!I155)-$J$2) -> 
B159: =IF(ISBLANK(InfoPro!A156),"",InfoPro!A156) ->  | C159: =IF(ISBLANK(InfoPro!B156),"",InfoPro!B156) ->  | D159: =IF(ISBLANK(InfoPro!E156),"",InfoPro!E156) ->  | E159: =IF(ISBLANK(InfoPro!N156),"",InfoPro!N156) ->  | F159: =IF(ISBLANK(InfoPro!I156),"",YEAR(InfoPro!I156)-$J$2) -> 
B160: =IF(ISBLANK(InfoPro!A157),"",InfoPro!A157) ->  | C160: =IF(ISBLANK(InfoPro!B157),"",InfoPro!B157) ->  | D160: =IF(ISBLANK(InfoPro!E157),"",InfoPro!E157) ->  | E160: =IF(ISBLANK(InfoPro!N157),"",InfoPro!N157) ->  | F160: =IF(ISBLANK(InfoPro!I157),"",YEAR(InfoPro!I157)-$J$2) -> 
B161: =IF(ISBLANK(InfoPro!A158),"",InfoPro!A158) ->  | C161: =IF(ISBLANK(InfoPro!B158),"",InfoPro!B158) ->  | D161: =IF(ISBLANK(InfoPro!E158),"",InfoPro!E158) ->  | E161: =IF(ISBLANK(InfoPro!N158),"",InfoPro!N158) ->  | F161: =IF(ISBLANK(InfoPro!I158),"",YEAR(InfoPro!I158)-$J$2) -> 
B162: =IF(ISBLANK(InfoPro!A159),"",InfoPro!A159) ->  | C162: =IF(ISBLANK(InfoPro!B159),"",InfoPro!B159) ->  | D162: =IF(ISBLANK(InfoPro!E159),"",InfoPro!E159) ->  | E162: =IF(ISBLANK(InfoPro!N159),"",InfoPro!N159) ->  | F162: =IF(ISBLANK(InfoPro!I159),"",YEAR(InfoPro!I159)-$J$2) -> 
B163: =IF(ISBLANK(InfoPro!A160),"",InfoPro!A160) ->  | C163: =IF(ISBLANK(InfoPro!B160),"",InfoPro!B160) ->  | D163: =IF(ISBLANK(InfoPro!E160),"",InfoPro!E160) ->  | E163: =IF(ISBLANK(InfoPro!N160),"",InfoPro!N160) ->  | F163: =IF(ISBLANK(InfoPro!I160),"",YEAR(InfoPro!I160)-$J$2) -> 
B164: =IF(ISBLANK(InfoPro!A161),"",InfoPro!A161) ->  | C164: =IF(ISBLANK(InfoPro!B161),"",InfoPro!B161) ->  | D164: =IF(ISBLANK(InfoPro!E161),"",InfoPro!E161) ->  | E164: =IF(ISBLANK(InfoPro!N161),"",InfoPro!N161) ->  | F164: =IF(ISBLANK(InfoPro!I161),"",YEAR(InfoPro!I161)-$J$2) -> 
B165: =IF(ISBLANK(InfoPro!A162),"",InfoPro!A162) ->  | C165: =IF(ISBLANK(InfoPro!B162),"",InfoPro!B162) ->  | D165: =IF(ISBLANK(InfoPro!E162),"",InfoPro!E162) ->  | E165: =IF(ISBLANK(InfoPro!N162),"",InfoPro!N162) ->  | F165: =IF(ISBLANK(InfoPro!I162),"",YEAR(InfoPro!I162)-$J$2) -> 
B166: =IF(ISBLANK(InfoPro!A163),"",InfoPro!A163) ->  | C166: =IF(ISBLANK(InfoPro!B163),"",InfoPro!B163) ->  | D166: =IF(ISBLANK(InfoPro!E163),"",InfoPro!E163) ->  | E166: =IF(ISBLANK(InfoPro!N163),"",InfoPro!N163) ->  | F166: =IF(ISBLANK(InfoPro!I163),"",YEAR(InfoPro!I163)-$J$2) -> 
B167: =IF(ISBLANK(InfoPro!A164),"",InfoPro!A164) ->  | C167: =IF(ISBLANK(InfoPro!B164),"",InfoPro!B164) ->  | D167: =IF(ISBLANK(InfoPro!E164),"",InfoPro!E164) ->  | E167: =IF(ISBLANK(InfoPro!N164),"",InfoPro!N164) ->  | F167: =IF(ISBLANK(InfoPro!I164),"",YEAR(InfoPro!I164)-$J$2) -> 
B168: =IF(ISBLANK(InfoPro!A165),"",InfoPro!A165) ->  | C168: =IF(ISBLANK(InfoPro!B165),"",InfoPro!B165) ->  | D168: =IF(ISBLANK(InfoPro!E165),"",InfoPro!E165) ->  | E168: =IF(ISBLANK(InfoPro!N165),"",InfoPro!N165) ->  | F168: =IF(ISBLANK(InfoPro!I165),"",YEAR(InfoPro!I165)-$J$2) -> 
B169: =IF(ISBLANK(InfoPro!A166),"",InfoPro!A166) ->  | C169: =IF(ISBLANK(InfoPro!B166),"",InfoPro!B166) ->  | D169: =IF(ISBLANK(InfoPro!E166),"",InfoPro!E166) ->  | E169: =IF(ISBLANK(InfoPro!N166),"",InfoPro!N166) ->  | F169: =IF(ISBLANK(InfoPro!I166),"",YEAR(InfoPro!I166)-$J$2) -> 
B170: =IF(ISBLANK(InfoPro!A167),"",InfoPro!A167) ->  | C170: =IF(ISBLANK(InfoPro!B167),"",InfoPro!B167) ->  | D170: =IF(ISBLANK(InfoPro!E167),"",InfoPro!E167) ->  | E170: =IF(ISBLANK(InfoPro!N167),"",InfoPro!N167) ->  | F170: =IF(ISBLANK(InfoPro!I167),"",YEAR(InfoPro!I167)-$J$2) -> 
B171: =IF(ISBLANK(InfoPro!A168),"",InfoPro!A168) ->  | C171: =IF(ISBLANK(InfoPro!B168),"",InfoPro!B168) ->  | D171: =IF(ISBLANK(InfoPro!E168),"",InfoPro!E168) ->  | E171: =IF(ISBLANK(InfoPro!N168),"",InfoPro!N168) ->  | F171: =IF(ISBLANK(InfoPro!I168),"",YEAR(InfoPro!I168)-$J$2) -> 
B172: =IF(ISBLANK(InfoPro!A169),"",InfoPro!A169) ->  | C172: =IF(ISBLANK(InfoPro!B169),"",InfoPro!B169) ->  | D172: =IF(ISBLANK(InfoPro!E169),"",InfoPro!E169) ->  | E172: =IF(ISBLANK(InfoPro!N169),"",InfoPro!N169) ->  | F172: =IF(ISBLANK(InfoPro!I169),"",YEAR(InfoPro!I169)-$J$2) -> 
B173: =IF(ISBLANK(InfoPro!A170),"",InfoPro!A170) ->  | C173: =IF(ISBLANK(InfoPro!B170),"",InfoPro!B170) ->  | D173: =IF(ISBLANK(InfoPro!E170),"",InfoPro!E170) ->  | E173: =IF(ISBLANK(InfoPro!N170),"",InfoPro!N170) ->  | F173: =IF(ISBLANK(InfoPro!I170),"",YEAR(InfoPro!I170)-$J$2) -> 
B174: =IF(ISBLANK(InfoPro!A171),"",InfoPro!A171) ->  | C174: =IF(ISBLANK(InfoPro!B171),"",InfoPro!B171) ->  | D174: =IF(ISBLANK(InfoPro!E171),"",InfoPro!E171) ->  | E174: =IF(ISBLANK(InfoPro!N171),"",InfoPro!N171) ->  | F174: =IF(ISBLANK(InfoPro!I171),"",YEAR(InfoPro!I171)-$J$2) -> 
B175: =IF(ISBLANK(InfoPro!A172),"",InfoPro!A172) ->  | C175: =IF(ISBLANK(InfoPro!B172),"",InfoPro!B172) ->  | D175: =IF(ISBLANK(InfoPro!E172),"",InfoPro!E172) ->  | E175: =IF(ISBLANK(InfoPro!N172),"",InfoPro!N172) ->  | F175: =IF(ISBLANK(InfoPro!I172),"",YEAR(InfoPro!I172)-$J$2) -> 
B176: =IF(ISBLANK(InfoPro!A173),"",InfoPro!A173) ->  | C176: =IF(ISBLANK(InfoPro!B173),"",InfoPro!B173) ->  | D176: =IF(ISBLANK(InfoPro!E173),"",InfoPro!E173) ->  | E176: =IF(ISBLANK(InfoPro!N173),"",InfoPro!N173) ->  | F176: =IF(ISBLANK(InfoPro!I173),"",YEAR(InfoPro!I173)-$J$2) -> 
B177: =IF(ISBLANK(InfoPro!A174),"",InfoPro!A174) ->  | C177: =IF(ISBLANK(InfoPro!B174),"",InfoPro!B174) ->  | D177: =IF(ISBLANK(InfoPro!E174),"",InfoPro!E174) ->  | E177: =IF(ISBLANK(InfoPro!N174),"",InfoPro!N174) ->  | F177: =IF(ISBLANK(InfoPro!I174),"",YEAR(InfoPro!I174)-$J$2) -> 
B178: =IF(ISBLANK(InfoPro!A175),"",InfoPro!A175) ->  | C178: =IF(ISBLANK(InfoPro!B175),"",InfoPro!B175) ->  | D178: =IF(ISBLANK(InfoPro!E175),"",InfoPro!E175) ->  | E178: =IF(ISBLANK(InfoPro!N175),"",InfoPro!N175) ->  | F178: =IF(ISBLANK(InfoPro!I175),"",YEAR(InfoPro!I175)-$J$2) -> 
B179: =IF(ISBLANK(InfoPro!A176),"",InfoPro!A176) ->  | C179: =IF(ISBLANK(InfoPro!B176),"",InfoPro!B176) ->  | D179: =IF(ISBLANK(InfoPro!E176),"",InfoPro!E176) ->  | E179: =IF(ISBLANK(InfoPro!N176),"",InfoPro!N176) ->  | F179: =IF(ISBLANK(InfoPro!I176),"",YEAR(InfoPro!I176)-$J$2) -> 
B180: =IF(ISBLANK(InfoPro!A177),"",InfoPro!A177) ->  | C180: =IF(ISBLANK(InfoPro!B177),"",InfoPro!B177) ->  | D180: =IF(ISBLANK(InfoPro!E177),"",InfoPro!E177) ->  | E180: =IF(ISBLANK(InfoPro!N177),"",InfoPro!N177) ->  | F180: =IF(ISBLANK(InfoPro!I177),"",YEAR(InfoPro!I177)-$J$2) -> 
B181: =IF(ISBLANK(InfoPro!A178),"",InfoPro!A178) ->  | C181: =IF(ISBLANK(InfoPro!B178),"",InfoPro!B178) ->  | D181: =IF(ISBLANK(InfoPro!E178),"",InfoPro!E178) ->  | E181: =IF(ISBLANK(InfoPro!N178),"",InfoPro!N178) ->  | F181: =IF(ISBLANK(InfoPro!I178),"",YEAR(InfoPro!I178)-$J$2) -> 
B182: =IF(ISBLANK(InfoPro!A179),"",InfoPro!A179) ->  | C182: =IF(ISBLANK(InfoPro!B179),"",InfoPro!B179) ->  | D182: =IF(ISBLANK(InfoPro!E179),"",InfoPro!E179) ->  | E182: =IF(ISBLANK(InfoPro!N179),"",InfoPro!N179) ->  | F182: =IF(ISBLANK(InfoPro!I179),"",YEAR(InfoPro!I179)-$J$2) -> 
B183: =IF(ISBLANK(InfoPro!A180),"",InfoPro!A180) ->  | C183: =IF(ISBLANK(InfoPro!B180),"",InfoPro!B180) ->  | D183: =IF(ISBLANK(InfoPro!E180),"",InfoPro!E180) ->  | E183: =IF(ISBLANK(InfoPro!N180),"",InfoPro!N180) ->  | F183: =IF(ISBLANK(InfoPro!I180),"",YEAR(InfoPro!I180)-$J$2) -> 
B184: =IF(ISBLANK(InfoPro!A181),"",InfoPro!A181) ->  | C184: =IF(ISBLANK(InfoPro!B181),"",InfoPro!B181) ->  | D184: =IF(ISBLANK(InfoPro!E181),"",InfoPro!E181) ->  | E184: =IF(ISBLANK(InfoPro!N181),"",InfoPro!N181) ->  | F184: =IF(ISBLANK(InfoPro!I181),"",YEAR(InfoPro!I181)-$J$2) -> 
B185: =IF(ISBLANK(InfoPro!A182),"",InfoPro!A182) ->  | C185: =IF(ISBLANK(InfoPro!B182),"",InfoPro!B182) ->  | D185: =IF(ISBLANK(InfoPro!E182),"",InfoPro!E182) ->  | E185: =IF(ISBLANK(InfoPro!N182),"",InfoPro!N182) ->  | F185: =IF(ISBLANK(InfoPro!I182),"",YEAR(InfoPro!I182)-$J$2) -> 
B186: =IF(ISBLANK(InfoPro!A183),"",InfoPro!A183) ->  | C186: =IF(ISBLANK(InfoPro!B183),"",InfoPro!B183) ->  | D186: =IF(ISBLANK(InfoPro!E183),"",InfoPro!E183) ->  | E186: =IF(ISBLANK(InfoPro!N183),"",InfoPro!N183) ->  | F186: =IF(ISBLANK(InfoPro!I183),"",YEAR(InfoPro!I183)-$J$2) -> 
B187: =IF(ISBLANK(InfoPro!A184),"",InfoPro!A184) ->  | C187: =IF(ISBLANK(InfoPro!B184),"",InfoPro!B184) ->  | D187: =IF(ISBLANK(InfoPro!E184),"",InfoPro!E184) ->  | E187: =IF(ISBLANK(InfoPro!N184),"",InfoPro!N184) ->  | F187: =IF(ISBLANK(InfoPro!I184),"",YEAR(InfoPro!I184)-$J$2) -> 

Sheet EC-RE
B3: Factor emisiones sistema | C3: 0.127283 | D3: Ton/MWh | F3: Año de Referencia | G3: 2023
B4: Tasa de descuento | C4: 0.118 | F4: Mínimo | G4: =MIN(Z9:Z400) -> -17642891.43
B5: Costo emisiones Ton | C5: 91.94 | D5: USD/Ton
B6: TRM | C6: 4070 | D6: COP/USD
J7: 0 | K7: 1 | L7: 2 | M7: 3 | N7: 4 | O7: 5 | P7: 6 | Q7: 7 | R7: 8 | S7: 9 | T7: 10 | U7: 11 | V7: 12 | W7: 13 | X7: 14
A8: Codigo | B8: Nombre | C8: capacidad | D8: tipo | E8: Año de entrada | F8: FP | G8: Factor emisiones | H8: Produccion media/a MWh/a | I8: Emisiones evitadas Ton/a | J8: Flujo Descontado 0 | K8: Flujo Descontado 1 | L8: Flujo Descontado 2 | M8: Flujo Descontado 3 | N8: Flujo Descontado 4 | O8: Flujo Descontado 5 | P8: Flujo Descontado 6 | Q8: Flujo Descontado 7 | R8: Flujo Descontado 8 | S8: Flujo Descontado 9 | T8: Flujo Descontado 10 | U8: Flujo Descontado 11 | V8: Flujo Descontado 12 | W8: Flujo Descontado 13 | X8: Flujo Descontado 14 | Y8: VPN | Z8: (Beneficio)/kW
A9: =IF(ISBLANK(InfoPro!A2),"",InfoPro!A2) -> SC_544_A1 | B9: =IF(ISBLANK(InfoPro!B2),"",InfoPro!B2) -> SORACÁ 19.9 MW | C9: =IF(ISBLANK(InfoPro!E2),"",InfoPro!E2) -> 19.9 | D9: =IF(ISBLANK(InfoPro!F2),"",InfoPro!F2) -> Solar FV | E9: =IF(ISBLANK(InfoPro!I2),"",YEAR(InfoPro!I2)-$G$3) -> 2 | F9: =IF(B9="","",VLOOKUP(D9,Tablas!$B$2:$E$13,2,FALSE)) -> 0.26 | G9: =IF(B9="","",VLOOKUP(D9,Tablas!$B$2:$G$13,6,FALSE)) -> 0 | H9: =IF(C9="","",+C9*F9*24*365) -> 45324.24 | I9: =IF(H9="","",+H9*($C$3-G9)) -> 5769.00524 | J9: =IF($I9="","",(1/(1+$C$4)^(J$7+$E9))*$I9*$C$5) -> 424347.6737 | K9: =IF($I9="","",(1/(1+$C$4)^(K$7+$E9))*$I9*$C$5) -> 379559.6366 | L9: 339498.7805 | M9: 303666.1722 | N9: 271615.5386 | O9: 242947.709 | P9: 217305.6431 | Q9: 194369.9849 | R9: 173855.0849 | S9: 155505.4426 | T9: 139092.5247 | U9: 124411.9184 | V9: 111280.7856 | W9: 99535.58645 | X9: 89030.04154 | Y9: =IF(X9="","",SUM(J9:X9)*$C$6) -> 1.329271167e+10 | Z9: =IF(C9=0,0,IF(Y9="","",Y9/(C9*1000))) -> 667975.4607
A10: =IF(ISBLANK(InfoPro!A3),"",InfoPro!A3) -> SC_544_A2 | B10: =IF(ISBLANK(InfoPro!B3),"",InfoPro!B3) -> SORACÁ 19.9 MW | C10: =IF(ISBLANK(InfoPro!E3),"",InfoPro!E3) -> 19.9 | D10: =IF(ISBLANK(InfoPro!F3),"",InfoPro!F3) -> Solar FV | E10: =IF(ISBLANK(InfoPro!I3),"",YEAR(InfoPro!I3)-$G$3) -> 2 | F10: =IF(B10="","",VLOOKUP(D10,Tablas!$B$2:$E$13,2,FALSE)) -> 0.26 | G10: =IF(B10="","",VLOOKUP(D10,Tablas!$B$2:$G$13,6,FALSE)) -> 0 | H10: =IF(C10="","",+C10*F10*24*365) -> 45324.24 | I10: =IF(H10="","",+H10*($C$3-G10)) -> 5769.00524 | J10: 424347.6737 | K10: 379559.6366 | L10: 339498.7805 | M10: 303666.1722 | N10: 271615.5386 | O10: 242947.709 | P10: 217305.6431 | Q10: 194369.9849 | R10: 173855.0849 | S10: 155505.4426 | T10: 139092.5247 | U10: 124411.9184 | V10: 111280.7856 | W10: 99535.58645 | X10: 89030.04154 | Y10: =IF(X10="","",SUM(J10:X10)*$C$6) -> 1.329271167e+10 | Z10: =IF(C10=0,0,IF(Y10="","",Y10/(C10*1000))) -> 667975.4607
A11: =IF(ISBLANK(InfoPro!A4),"",InfoPro!A4) -> SC_486_A1 | B11: =IF(ISBLANK(InfoPro!B4),"",InfoPro!B4) -> Tintal 9,9 MW | C11: =IF(ISBLANK(InfoPro!E4),"",InfoPro!E4) -> 9.9 | D11: =IF(ISBLANK(InfoPro!F4),"",InfoPro!F4) -> Solar FV | E11: =IF(ISBLANK(InfoPro!I4),"",YEAR(InfoPro!I4)-$G$3) -> 2 | F11: =IF(B11="","",VLOOKUP(D11,Tablas!$B$2:$E$13,2,FALSE)) -> 0.26 | G11: =IF(B11="","",VLOOKUP(D11,Tablas!$B$2:$G$13,6,FALSE)) -> 0 | H11: =IF(C11="","",+C11*F11*24*365) -> 22548.24 | I11: 2870.007632 | J11: 211107.6367 | K11: 188826.1509 | L11: 168896.3782 | M11: 151070.1058 | N11: 135125.3182 | O11: 120863.4331 | P11: 108106.8275 | Q11: 96696.62564 | R11: 86490.72061 | S11: 77362.00413 | T11: 69196.78365 | U11: 61893.36642 | V11: 55360.79286 | W11: 49517.70381 | X11: 44291.3272 | Y11: 6612957061 | Z11: 667975.4607
A12: =IF(ISBLANK(InfoPro!A5),"",InfoPro!A5) -> SC_486_A2 | B12: =IF(ISBLANK(InfoPro!B5),"",InfoPro!B5) -> Tintal 9,9 MW | C12: =IF(ISBLANK(InfoPro!E5),"",InfoPro!E5) -> 9.9 | D12: =IF(ISBLANK(InfoPro!F5),"",InfoPro!F5) -> Solar FV | E12: =IF(ISBLANK(InfoPro!I5),"",YEAR(InfoPro!I5)-$G$3) -> 2 | F12: =IF(B12="","",VLOOKUP(D12,Tablas!$B$2:$E$13,2,FALSE)) -> 0.26 | G12: =IF(B12="","",VLOOKUP(D12,Tablas!$B$2:$G$13,6,FALSE)) -> 0 | H12: 22548.24 | I12: 2870.007632 | J12: 211107.6367 | K12: 188826.1509 | L12: 168896.3782 | M12: 151070.1058 | N12: 135125.3182 | O12: 120863.4331 | P12: 108106.8275 | Q12: 96696.62564 | R12: 86490.72061 | S12: 77362.00413 | T12: 69196.78365 | U12: 61893.36642 | V12: 55360.79286 | W12: 49517.70381 | X12: 44291.3272 | Y12: 6612957061 | Z12: 667975.4607
A13: =IF(ISBLANK(InfoPro!A6),"",InfoPro!A6) -> SC_1055_A1 | B13: =IF(ISBLANK(InfoPro!B6),"",InfoPro!B6) -> Parque Solar Fotovoltaico Higueras | C13: =IF(ISBLANK(InfoPro!E6),"",InfoPro!E6) -> 40 | D13: =IF(ISBLANK(InfoPro!F6),"",InfoPro!F6) -> Solar FV | E13: =IF(ISBLANK(InfoPro!I6),"",YEAR(InfoPro!I6)-$G$3) -> 4 | F13: =IF(B13="","",VLOOKUP(D13,Tablas!$B$2:$E$13,2,FALSE)) -> 0.26 | G13: =IF(B13="","",VLOOKUP(D13,Tablas!$B$2:$G$13,6,FALSE)) -> 0 | H13: 91104 | I13: 11595.99043 | J13: 682409.6091 | K13: 610384.2657 | L13: 545960.8817 | M13: 488337.1035 | N13: 436795.2625 | O13: 390693.4369 | P13: 349457.457 | Q13: 312573.754 | R13: 279582.9643 | S13: 250074.2077 | T13: 223679.9711 | U13: 200071.5305 | V13: 178954.8574 | W13: 160066.9565 | X13: 143172.5908 | Y13: 2.137651443e+10 | Z13: 534412.8609
A14: =IF(ISBLANK(InfoPro!A7),"",InfoPro!A7) -> SC_1055_A2 | B14: =IF(ISBLANK(InfoPro!B7),"",InfoPro!B7) -> Parque Solar Fotovoltaico Higueras | C14: =IF(ISBLANK(InfoPro!E7),"",InfoPro!E7) -> 40 | D14: =IF(ISBLANK(InfoPro!F7),"",InfoPro!F7) -> Solar FV | E14: =IF(ISBLANK(InfoPro!I7),"",YEAR(InfoPro!I7)-$G$3) -> 4 | F14: =IF(B14="","",VLOOKUP(D14,Tablas!$B$2:$E$13,2,FALSE)) -> 0.26 | G14: =IF(B14="","",VLOOKUP(D14,Tablas!$B$2:$G$13,6,FALSE)) -> 0 | H14: 91104 | I14: 11595.99043 | J14: 682409.6091 | K14: 610384.2657 | L14: 545960.8817 | M14: 488337.1035 | N14: 436795.2625 | O14: 390693.4369 | P14: 349457.457 | Q14: 312573.754 | R14: 279582.9643 | S14: 250074.2077 | T14: 223679.9711 | U14: 200071.5305 | V14: 178954.8574 | W14: 160066.9565 | X14: 143172.5908 | Y14: 2.137651443e+10 | Z14: 534412.8609
A15: =IF(ISBLANK(InfoPro!A8),"",InfoPro!A8) -> SC_1320_A1 | B15: =IF(ISBLANK(InfoPro!B8),"",InfoPro!B8) -> La Ramada Solar I | C15: =IF(ISBLANK(InfoPro!E8),"",InfoPro!E8) -> 9.9 | D15: =IF(ISBLANK(InfoPro!F8),"",InfoPro!F8) -> Solar FV | E15: =IF(ISBLANK(InfoPro!I8),"",YEAR(InfoPro!I8)-$G$3) -> 2 | F15: =IF(B15="","",VLOOKUP(D15,Tablas!$B$2:$E$13,2,FALSE)) -> 0.26 | G15: =IF(B15="","",VLOOKUP(D15,Tablas!$B$2:$G$13,6,FALSE)) -> 0 | H15: 22548.24 | I15: 2870.007632 | J15: 211107.6367 | K15: 188826.1509 | L15: 168896.3782 | M15: 151070.1058 | N15: 135125.3182 | O15: 120863.4331 | P15: 108106.8275 | Q15: 96696.62564 | R15: 86490.72061 | S15: 77362.00413 | T15: 69196.78365 | U15: 61893.36642 | V15: 55360.79286 | W15: 49517.70381 | X15: 44291.3272 | Y15: 6612957061 | Z15: 667975.4607
A16: =IF(ISBLANK(InfoPro!A9),"",InfoPro!A9) -> SC_1320_A2 | B16: =IF(ISBLANK(InfoPro!B9),"",InfoPro!B9) -> La Ramada Solar I | C16: =IF(ISBLANK(InfoPro!E9),"",InfoPro!E9) -> 9.9 | D16: =IF(ISBLANK(InfoPro!F9),"",InfoPro!F9) -> Solar FV | E16: =IF(ISBLANK(InfoPro!I9),"",YEAR(InfoPro!I9)-$G$3) -> 2 | F16: =IF(B16="","",VLOOKUP(D16,Tablas!$B$2:$E$13,2,FALSE)) -> 0.26 | G16: =IF(B16="","",VLOOKUP(D16,Tablas!$B$2:$G$13,6,FALSE)) -> 0 | H16: 22548.24 | I16: 2870.007632 | J16: 211107.6367 | K16: 188826.1509 | L16: 168896.3782 | M16: 151070.1058 | N16: 135125.3182 | O16: 120863.4331 | P16: 108106.8275 | Q16: 96696.62564 | R16: 86490.72061 | S16: 77362.00413 | T16: 69196.78365 | U16: 61893.36642 | V16: 55360.79286 | W16: 49517.70381 | X16: 44291.3272 | Y16: 6612957061 | Z16: 667975.4607
A17: =IF(ISBLANK(InfoPro!A10),"",InfoPro!A10) -> SC_1328_A1 | B17: =IF(ISBLANK(InfoPro!B10),"",InfoPro!B10) -> La Ramada Solar II | C17: =IF(ISBLANK(InfoPro!E10),"",InfoPro!E10) -> 9.9 | D17: =IF(ISBLANK(InfoPro!F10),"",InfoPro!F10) -> Solar FV | E17: =IF(ISBLANK(InfoPro!I10),"",YEAR(InfoPro!I10)-$G$3) -> 2 | F17: =IF(B17="","",VLOOKUP(D17,Tablas!$B$2:$E$13,2,FALSE)) -> 0.26 | G17: =IF(B17="","",VLOOKUP(D17,Tablas!$B$2:$G$13,6,FALSE)) -> 0 | H17: 22548.24 | I17: 2870.007632 | J17: 211107.6367 | K17: 188826.1509 | L17: 168896.3782 | M17: 151070.1058 | N17: 135125.3182 | O17: 120863.4331 | P17: 108106.8275 | Q17: 96696.62564 | R17: 86490.72061 | S17: 77362.00413 | T17: 69196.78365 | U17: 61893.36642 | V17: 55360.79286 | W17: 49517.70381 | X17: 44291.3272 | Y17: 6612957061 | Z17: 667975.4607
A18: =IF(ISBLANK(InfoPro!A11),"",InfoPro!A11) -> SC_1328_A2 | B18: =IF(ISBLANK(InfoPro!B11),"",InfoPro!B11) -> La Ramada Solar II | C18: =IF(ISBLANK(InfoPro!E11),"",InfoPro!E11) -> 9.9 | D18: =IF(ISBLANK(InfoPro!F11),"",InfoPro!F11) -> Solar FV | E18: =IF(ISBLANK(InfoPro!I11),"",YEAR(InfoPro!I11)-$G$3) -> 2 | F18: =IF(B18="","",VLOOKUP(D18,Tablas!$B$2:$E$13,2,FALSE)) -> 0.26 | G18: =IF(B18="","",VLOOKUP(D18,Tablas!$B$2:$G$13,6,FALSE)) -> 0 | H18: 22548.24 | I18: 2870.007632 | J18: 211107.6367 | K18: 188826.1509 | L18: 168896.3782 | M18: 151070.1058 | N18: 135125.3182 | O18: 120863.4331 | P18: 108106.8275 | Q18: 96696.62564 | R18: 86490.72061 | S18: 77362.00413 | T18: 69196.78365 | U18: 61893.36642 | V18: 55360.79286 | W18: 49517.70381 | X18: 44291.3272 | Y18: 6612957061 | Z18: 667975.4607
A19: =IF(ISBLANK(InfoPro!A12),"",InfoPro!A12) -> SC_659_A1 | B19: =IF(ISBLANK(InfoPro!B12),"",InfoPro!B12) -> TR Solar 9 | C19: =IF(ISBLANK(InfoPro!E12),"",InfoPro!E12) -> 50 | D19: =IF(ISBLANK(InfoPro!F12),"",InfoPro!F12) -> Solar FV | E19: =IF(ISBLANK(InfoPro!I12),"",YEAR(InfoPro!I12)-$G$3) -> 3 | F19: =IF(B19="","",VLOOKUP(D19,Tablas!$B$2:$E$13,2,FALSE)) -> 0.26 | G19: =IF(B19="","",VLOOKUP(D19,Tablas!$B$2:$G$13,6,FALSE)) -> 0 | H19: 113880 | I19: 14494.98804 | J19: =IF($I19="","",(1/(1+$C$4)^(J$7+$E19))*$I19*$C$5) -> 953667.4287 | K19: 853012.0114 | L19: 762980.3322 | M19: 682451.1021 | N19: 610421.3794 | O19: 545994.0781 | P19: 488366.7962 | Q19: 436821.8213 | R19: 390717.1926 | S19: 349478.7053 | T19: 312592.7597 | U19: 279599.9639 | V19: 250089.4132 | W19: 223693.5717 | X19: 200083.6956 | Y19: 2.987367892e+10 | Z19: 597473.5785
A20: =IF(ISBLANK(InfoPro!A13),"",InfoPro!A13) -> SC_659_A2 | B20: =IF(ISBLANK(InfoPro!B13),"",InfoPro!B13) -> TR Solar 9 | C20: =IF(ISBLANK(InfoPro!E13),"",InfoPro!E13) -> 50 | D20: =IF(ISBLANK(InfoPro!F13),"",InfoPro!F13) -> Solar FV | E20: =IF(ISBLANK(InfoPro!I13),"",YEAR(InfoPro!I13)-$G$3) -> 3 | F20: =IF(B20="","",VLOOKUP(D20,Tablas!$B$2:$E$13,2,FALSE)) -> 0.26 | G20: =IF(B20="","",VLOOKUP(D20,Tablas!$B$2:$G$13,6,FALSE)) -> 0 | H20: 113880 | I20: 14494.98804 | J20: 953667.4287 | K20: 853012.0114 | L20: 762980.3322 | M20: 682451.1021 | N20: 610421.3794 | O20: 545994.0781 | P20: 488366.7962 | Q20: 436821.8213 | R20: 390717.1926 | S20: 349478.7053 | T20: 312592.7597 | U20: 279599.9639 | V20: 250089.4132 | W20: 223693.5717 | X20: 200083.6956 | Y20: 2.987367892e+10 | Z20: 597473.5785
A21: =IF(ISBLANK(InfoPro!A14),"",InfoPro!A14) -> SC_1222_A1 | B21: =IF(ISBLANK(InfoPro!B14),"",InfoPro!B14) -> Parque Eolico Villanueva | C21: =IF(ISBLANK(InfoPro!E14),"",InfoPro!E14) -> 70 | D21: =IF(ISBLANK(InfoPro!F14),"",InfoPro!F14) -> Eólico Onshore | E21: =IF(ISBLANK(InfoPro!I14),"",YEAR(InfoPro!I14)-$G$3) -> 2 | F21: =IF(B21="","",VLOOKUP(D21,Tablas!$B$2:$E$13,2,FALSE)) -> 0.57 | G21: =IF(B21="","",VLOOKUP(D21,Tablas!$B$2:$G$13,6,FALSE)) -> 0 | H21: 349524 | I21: 44488.46329 | J21: 3272414.415 | K21: 2927025.416 | L21: 2618090.712 | M21: 2341762.712 | N21: 2094599.921 | O21: 1873524.08 | P21: 1675781.824 | Q21: 1498910.398 | R21: 1340706.975 | S21: 1199201.229 | T21: 1072630.796 | U21: 959419.3163 | V21: 858156.8124 | W21: 767582.122 | X21: 686567.1932 | Y21: 1.025085419e+11 | Z21: 1464407.741
A22: =IF(ISBLANK(InfoPro!A15),"",InfoPro!A15) -> SC_800_A1 | B22: =IF(ISBLANK(InfoPro!B15),"",InfoPro!B15) -> Parque Solar Tuta | C22: =IF(ISBLANK(InfoPro!E15),"",InfoPro!E15) -> 2.72 | D22: =IF(ISBLANK(InfoPro!F15),"",InfoPro!F15) -> Solar FV | E22: =IF(ISBLANK(InfoPro!I15),"",YEAR(InfoPro!I15)-$G$3) -> 0 | F22: =IF(B22="","",VLOOKUP(D22,Tablas!$B$2:$E$13,2,FALSE)) -> 0.26 | G22: =IF(B22="","",VLOOKUP(D22,Tablas!$B$2:$G$13,6,FALSE)) -> 0 | H22: 6195.072 | I22: 788.5273494 | J22: 72497.2045 | K22: 64845.44231 | L22: 58001.29008 | M22: 51879.50812 | N22: 46403.85342 | O22: 41506.13007 | P22: 37125.33996 | Q22: 33206.92304 | R22: 29702.07785 | S22: 26567.15371 | T22: 23763.10708 | U22: 21255.01527 | V22: 19011.64157 | W22: 17005.04613 | X22: 15210.23804 | Y22: 2270978483 | Z22: 834918.5598
A23: =IF(ISBLANK(InfoPro!A16),"",InfoPro!A16) -> SC_626_A1 | B23: =IF(ISBLANK(InfoPro!B16),"",InfoPro!B16) -> TR Solar 12 | C23: =IF(ISBLANK(InfoPro!E16),"",InfoPro!E16) -> 19.9 | D23: =IF(ISBLANK(InfoPro!F16),"",InfoPro!F16) -> Solar FV | E23: =IF(ISBLANK(InfoPro!I16),"",YEAR(InfoPro!I16)-$G$3) -> 2 | F23: =IF(B23="","",VLOOKUP(D23,Tablas!$B$2:$E$13,2,FALSE)) -> 0.26 | G23: =IF(B23="","",VLOOKUP(D23,Tablas!$B$2:$G$13,6,FALSE)) -> 0 | H23: 45324.24 | I23: 5769.00524 | J23: 424347.6737 | K23: 379559.6366 | L23: 339498.7805 | M23: 303666.1722 | N23: 271615.5386 | O23: 242947.709 | P23: 217305.6431 | Q23: 194369.9849 | R23: 173855.0849 | S23: 155505.4426 | T23: 139092.5247 | U23: 124411.9184 | V23: 111280.7856 | W23: 99535.58645 | X23: 89030.04154 | Y23: 1.329271167e+10 | Z23: 667975.4607
A24: =IF(ISBLANK(InfoPro!A17),"",InfoPro!A17) -> SC_626_A2 | B24: =IF(ISBLANK(InfoPro!B17),"",InfoPro!B17) -> TR Solar 12 | C24: =IF(ISBLANK(InfoPro!E17),"",InfoPro!E17) -> 19.9 | D24: =IF(ISBLANK(InfoPro!F17),"",InfoPro!F17) -> Solar FV | E24: =IF(ISBLANK(InfoPro!I17),"",YEAR(InfoPro!I17)-$G$3) -> 2 | F24: =IF(B24="","",VLOOKUP(D24,Tablas!$B$2:$E$13,2,FALSE)) -> 0.26 | G24: =IF(B24="","",VLOOKUP(D24,Tablas!$B$2:$G$13,6,FALSE)) -> 0 | H24: 45324.24 | I24: 5769.00524 | J24: 424347.6737 | K24: 379559.6366 | L24: 339498.7805 | M24: 303666.1722 | N24: 271615.5386 | O24: 242947.709 | P24: 217305.6431 | Q24: 194369.9849 | R24: 173855.0849 | S24: 155505.4426 | T24: 139092.5247 | U24: 124411.9184 | V24: 111280.7856 | W24: 99535.58645 | X24: 89030.04154 | Y24: 1.329271167e+10 | Z24: 667975.4607
A25: =IF(ISBLANK(InfoPro!A18),"",InfoPro!A18) -> SC_1064_A1 | B25: =IF(ISBLANK(InfoPro!B18),"",InfoPro!B18) -> Sua 60 MW | C25: =IF(ISBLANK(InfoPro!E18),"",InfoPro!E18) -> 60 | D25: =IF(ISBLANK(InfoPro!F18),"",InfoPro!F18) -> Solar FV | E25: =IF(ISBLANK(InfoPro!I18),"",YEAR(InfoPro!I18)-$G$3) -> 4 | F25: =IF(B25="","",VLOOKUP(D25,Tablas!$B$2:$E$13,2,FALSE)) -> 0.26 | G25: =IF(B25="","",VLOOKUP(D25,Tablas!$B$2:$G$13,6,FALSE)) -> 0 | H25: 136656 | I25: 17393.98565 | J25: 1023614.414 | K25: 915576.3986 | L25: 818941.3225 | M25: 732505.6552 | N25: 655192.8938 | O25: 586040.1554 | P25: 524186.1855 | Q25: 468860.6311 | R25: 419374.4464 | S25: 375111.3116 | T25: 335519.9567 | U25: 300107.2958 | V25: 268432.2861 | W25: 240100.4348 | X25: 214758.8862 | Y25: 3.206477165e+10 | Z25: 534412.8609
A26: =IF(ISBLANK(InfoPro!A19),"",InfoPro!A19) -> SC_1064_A2 | B26: =IF(ISBLANK(InfoPro!B19),"",InfoPro!B19) -> Sua 60 MW | C26: =IF(ISBLANK(InfoPro!E19),"",InfoPro!E19) -> 60 | D26: =IF(ISBLANK(InfoPro!F19),"",InfoPro!F19) -> Solar FV | E26: =IF(ISBLANK(InfoPro!I19),"",YEAR(InfoPro!I19)-$G$3) -> 4 | F26: =IF(B26="","",VLOOKUP(D26,Tablas!$B$2:$E$13,2,FALSE)) -> 0.26 | G26: =IF(B26="","",VLOOKUP(D26,Tablas!$B$2:$G$13,6,FALSE)) -> 0 | H26: =IF(C26="","",+C26*F26*24*365) -> 136656 | I26: =IF(H26="","",+H26*($C$3-G26)) -> 17393.98565 | J26: 1023614.414 | K26: 915576.3986 | L26: 818941.3225 | M26: 732505.6552 | N26: 655192.8938 | O26: 586040.1554 | P26: 524186.1855 | Q26: 468860.6311 | R26: 419374.4464 | S26: 375111.3116 | T26: 335519.9567 | U26: 300107.2958 | V26: 268432.2861 | W26: 240100.4348 | X26: 214758.8862 | Y26: =IF(X26="","",SUM(J26:X26)*$C$6) -> 3.206477165e+10 | Z26: =IF(C26=0,0,IF(Y26="","",Y26/(C26*1000))) -> 534412.8609
A27: =IF(ISBLANK(InfoPro!A20),"",InfoPro!A20) -> SC_775_A2 | B27: =IF(ISBLANK(InfoPro!B20),"",InfoPro!B20) -> PCH Santa Rosa | C27: =IF(ISBLANK(InfoPro!E20),"",InfoPro!E20) -> 19.9 | D27: =IF(ISBLANK(InfoPro!F20),"",InfoPro!F20) -> PCH | E27: =IF(ISBLANK(InfoPro!I20),"",YEAR(InfoPro!I20)-$G$3) -> 4 | F27: =IF(B27="","",VLOOKUP(D27,Tablas!$B$2:$E$13,2,FALSE)) -> 0.54 | G27: =IF(B27="","",VLOOKUP(D27,Tablas!$B$2:$G$13,6,FALSE)) -> 0 | H27: 94134.96 | I27: 11981.78011 | J27: 705112.8519 | K27: 630691.2807 | L27: 564124.5803 | M27: 504583.7033 | N27: 451327.1049 | O27: 403691.5071 | P27: 361083.6378 | Q27: 322972.8424 | R27: 288884.4744 | S27: 258393.9843 | T27: 231121.6317 | U27: 206727.7565 | V27: 184908.5478 | W27: 165392.261 | X27: 147935.8328 | Y27: 2.208769463e+10 | Z27: 1109934.403
A28: =IF(ISBLANK(InfoPro!A19),"",InfoPro!A19) -> SC_1064_A2 | B28: =IF(ISBLANK(InfoPro!B19),"",InfoPro!B19) -> Sua 60 MW | C28: =IF(ISBLANK(InfoPro!E19),"",InfoPro!E19) -> 60 | D28: =IF(ISBLANK(InfoPro!F19),"",InfoPro!F19) -> Solar FV | E28: =IF(ISBLANK(InfoPro!I19),"",YEAR(InfoPro!I19)-$G$3) -> 4 | F28: =IF(B28="","",VLOOKUP(D28,Tablas!$B$2:$E$13,2,FALSE)) -> 0.26 | G28: =IF(B28="","",VLOOKUP(D28,Tablas!$B$2:$G$13,6,FALSE)) -> 0 | H28: 136656 | I28: 17393.98565 | J28: 1023614.414 | K28: 915576.3986 | L28: 818941.3225 | M28: 732505.6552 | N28: 655192.8938 | O28: 586040.1554 | P28: 524186.1855 | Q28: 468860.6311 | R28: 419374.4464 | S28: 375111.3116 | T28: 335519.9567 | U28: 300107.2958 | V28: 268432.2861 | W28: 240100.4348 | X28: 214758.8862 | Y28: 3.206477165e+10 | Z28: 534412.8609
A29: =IF(ISBLANK(InfoPro!A20),"",InfoPro!A20) -> SC_775_A2 | B29: =IF(ISBLANK(InfoPro!B20),"",InfoPro!B20) -> PCH Santa Rosa | C29: =IF(ISBLANK(InfoPro!E20),"",InfoPro!E20) -> 19.9 | D29: =IF(ISBLANK(InfoPro!F20),"",InfoPro!F20) -> PCH | E29: =IF(ISBLANK(InfoPro!I20),"",YEAR(InfoPro!I20)-$G$3) -> 4 | F29: =IF(B29="","",VLOOKUP(D29,Tablas!$B$2:$E$13,2,FALSE)) -> 0.54 | G29: =IF(B29="","",VLOOKUP(D29,Tablas!$B$2:$G$13,6,FALSE)) -> 0 | H29: 94134.96 | I29: 11981.78011 | J29: =IF($I29="","",(1/(1+$C$4)^(J$7+$E29))*$I29*$C$5) -> 705112.8519 | K29: 630691.2807 | L29: 564124.5803 | M29: 504583.7033 | N29: 451327.1049 | O29: 403691.5071 | P29: 361083.6378 | Q29: 322972.8424 | R29: 288884.4744 | S29: 258393.9843 | T29: 231121.6317 | U29: 206727.7565 | V29: 184908.5478 | W29: 165392.261 | X29: 147935.8328 | Y29: 2.208769463e+10 | Z29: 1109934.403
A30: =IF(ISBLANK(InfoPro!A21),"",InfoPro!A21) -> SC_776_A2 | B30: =IF(ISBLANK(InfoPro!B21),"",InfoPro!B21) -> PCH Güepsa | C30: =IF(ISBLANK(InfoPro!E21),"",InfoPro!E21) -> 19.9 | D30: =IF(ISBLANK(InfoPro!F21),"",InfoPro!F21) -> PCH | E30: =IF(ISBLANK(InfoPro!I21),"",YEAR(InfoPro!I21)-$G$3) -> 4 | F30: =IF(B30="","",VLOOKUP(D30,Tablas!$B$2:$E$13,2,FALSE)) -> 0.54 | G30: =IF(B30="","",VLOOKUP(D30,Tablas!$B$2:$G$13,6,FALSE)) -> 0 | H30: 94134.96 | I30: 11981.78011 | J30: 705112.8519 | K30: 630691.2807 | L30: 564124.5803 | M30: 504583.7033 | N30: 451327.1049 | O30: 403691.5071 | P30: 361083.6378 | Q30: 322972.8424 | R30: 288884.4744 | S30: 258393.9843 | T30: 231121.6317 | U30: 206727.7565 | V30: 184908.5478 | W30: 165392.261 | X30: 147935.8328 | Y30: 2.208769463e+10 | Z30: 1109934.403
A31: =IF(ISBLANK(InfoPro!A22),"",InfoPro!A22) -> SC_777_A2 | B31: =IF(ISBLANK(InfoPro!B22),"",InfoPro!B22) -> PCH El Rincón | C31: =IF(ISBLANK(InfoPro!E22),"",InfoPro!E22) -> 19.9 | D31: =IF(ISBLANK(InfoPro!F22),"",InfoPro!F22) -> PCH | E31: =IF(ISBLANK(InfoPro!I22),"",YEAR(InfoPro!I22)-$G$3) -> 4 | F31: =IF(B31="","",VLOOKUP(D31,Tablas!$B$2:$E$13,2,FALSE)) -> 0.54 | G31: =IF(B31="","",VLOOKUP(D31,Tablas!$B$2:$G$13,6,FALSE)) -> 0 | H31: 94134.96 | I31: 11981.78011 | J31: 705112.8519 | K31: 630691.2807 | L31: 564124.5803 | M31: 504583.7033 | N31: 451327.1049 | O31: 403691.5071 | P31: 361083.6378 | Q31: 322972.8424 | R31: 288884.4744 | S31: 258393.9843 | T31: 231121.6317 | U31: 206727.7565 | V31: 184908.5478 | W31: 165392.261 | X31: 147935.8328 | Y31: 2.208769463e+10 | Z31: 1109934.403
A32: =IF(ISBLANK(InfoPro!A23),"",InfoPro!A23) -> SC_780_A1 | B32: =IF(ISBLANK(InfoPro!B23),"",InfoPro!B23) -> PCH Canutillo | C32: =IF(ISBLANK(InfoPro!E23),"",InfoPro!E23) -> 8.72 | D32: =IF(ISBLANK(InfoPro!F23),"",InfoPro!F23) -> PCH | E32: =IF(ISBLANK(InfoPro!I23),"",YEAR(InfoPro!I23)-$G$3) -> 4 | F32: =IF(B32="","",VLOOKUP(D32,Tablas!$B$2:$E$13,2,FALSE)) -> 0.54 | G32: =IF(B32="","",VLOOKUP(D32,Tablas!$B$2:$G$13,6,FALSE)) -> 0 | H32: 41249.088 | I32: 5250.307668 | J32: 308974.0738 | K32: 276363.2145 | L32: 247194.2884 | M32: 221104.0147 | N32: 197767.455 | O32: 176893.9669 | P32: 158223.584 | Q32: 141523.7782 | R32: 126586.5637 | S32: 113225.9067 | T32: 101275.4085 | U32: 90586.23298 | V32: 81025.25312 | W32: 72473.39277 | X32: 64824.1438 | Y32: 9678627997 | Z32: 1109934.403
A33: =IF(ISBLANK(InfoPro!A24),"",InfoPro!A24) -> SC_780_A2 | B33: =IF(ISBLANK(InfoPro!B24),"",InfoPro!B24) -> PCH Canutillo | C33: =IF(ISBLANK(InfoPro!E24),"",InfoPro!E24) -> 8.72 | D33: =IF(ISBLANK(InfoPro!F24),"",InfoPro!F24) -> PCH | E33: =IF(ISBLANK(InfoPro!I24),"",YEAR(InfoPro!I24)-$G$3) -> 4 | F33: =IF(B33="","",VLOOKUP(D33,Tablas!$B$2:$E$13,2,FALSE)) -> 0.54 | G33: =IF(B33="","",VLOOKUP(D33,Tablas!$B$2:$G$13,6,FALSE)) -> 0 | H33: 41249.088 | I33: 5250.307668 | J33: 308974.0738 | K33: 276363.2145 | L33: 247194.2884 | M33: 221104.0147 | N33: 197767.455 | O33: 176893.9669 | P33: 158223.584 | Q33: 141523.7782 | R33: 126586.5637 | S33: 113225.9067 | T33: 101275.4085 | U33: 90586.23298 | V33: 81025.25312 | W33: 72473.39277 | X33: 64824.1438 | Y33: 9678627997 | Z33: 1109934.403
A34: =IF(ISBLANK(InfoPro!A25),"",InfoPro!A25) -> SC_779_A1 | B34: =IF(ISBLANK(InfoPro!B25),"",InfoPro!B25) -> PCH El Puerto | C34: =IF(ISBLANK(InfoPro!E25),"",InfoPro!E25) -> 19.9 | D34: =IF(ISBLANK(InfoPro!F25),"",InfoPro!F25) -> PCH | E34: =IF(ISBLANK(InfoPro!I25),"",YEAR(InfoPro!I25)-$G$3) -> 4 | F34: =IF(B34="","",VLOOKUP(D34,Tablas!$B$2:$E$13,2,FALSE)) -> 0.54 | G34: =IF(B34="","",VLOOKUP(D34,Tablas!$B$2:$G$13,6,FALSE)) -> 0 | H34: 94134.96 | I34: 11981.78011 | J34: 705112.8519 | K34: 630691.2807 | L34: 564124.5803 | M34: 504583.7033 | N34: 451327.1049 | O34: 403691.5071 | P34: 361083.6378 | Q34: 322972.8424 | R34: 288884.4744 | S34: 258393.9843 | T34: 231121.6317 | U34: 206727.7565 | V34: 184908.5478 | W34: 165392.261 | X34: 147935.8328 | Y34: 2.208769463e+10 | Z34: 1109934.403
A35: =IF(ISBLANK(InfoPro!A26),"",InfoPro!A26) -> SC_779_A2 | B35: =IF(ISBLANK(InfoPro!B26),"",InfoPro!B26) -> PCH El Puerto | C35: =IF(ISBLANK(InfoPro!E26),"",InfoPro!E26) -> 19.9 | D35: =IF(ISBLANK(InfoPro!F26),"",InfoPro!F26) -> PCH | E35: =IF(ISBLANK(InfoPro!I26),"",YEAR(InfoPro!I26)-$G$3) -> 4 | F35: =IF(B35="","",VLOOKUP(D35,Tablas!$B$2:$E$13,2,FALSE)) -> 0.54 | G35: =IF(B35="","",VLOOKUP(D35,Tablas!$B$2:$G$13,6,FALSE)) -> 0 | H35: 94134.96 | I35: 11981.78011 | J35: 705112.8519 | K35: 630691.2807 | L35: 564124.5803 | M35: 504583.7033 | N35: 451327.1049 | O35: 403691.5071 | P35: 361083.6378 | Q35: 322972.8424 | R35: 288884.4744 | S35: 258393.9843 | T35: 231121.6317 | U35: 206727.7565 | V35: 184908.5478 | W35: 165392.261 | X35: 147935.8328 | Y35: 2.208769463e+10 | Z35: 1109934.403
A36: =IF(ISBLANK(InfoPro!A27),"",InfoPro!A27) -> SC_1477_A1 | B36: =IF(ISBLANK(InfoPro!B27),"",InfoPro!B27) -> Prque Solar Belencito APDR_0MW (AUTOGENERADOR) | C36: =IF(ISBLANK(InfoPro!E27),"",InfoPro!E27) -> 0 | D36: =IF(ISBLANK(InfoPro!F27),"",InfoPro!F27) -> Solar FV | E36: =IF(ISBLANK(InfoPro!I27),"",YEAR(InfoPro!I27)-$G$3) -> 1 | F36: =IF(B36="","",VLOOKUP(D36,Tablas!$B$2:$E$13,2,FALSE)) -> 0.26 | G36: =IF(B36="","",VLOOKUP(D36,Tablas!$B$2:$G$13,6,FALSE)) -> 0 | H36: 0 | I36: 0 | J36: 0 | K36: 0 | L36: 0 | M36: 0 | N36: 0 | O36: 0 | P36: 0 | Q36: 0 | R36: 0 | S36: 0 | T36: 0 | U36: 0 | V36: 0 | W36: 0 | X36: 0 | Y36: 0 | Z36: 0
A37: =IF(ISBLANK(InfoPro!A28),"",InfoPro!A28) -> SC_1477_A2 | B37: =IF(ISBLANK(InfoPro!B28),"",InfoPro!B28) -> Prque Solar Belencito APDR_0MW (AUTOGENERADOR) | C37: =IF(ISBLANK(InfoPro!E28),"",InfoPro!E28) -> 0 | D37: =IF(ISBLANK(InfoPro!F28),"",InfoPro!F28) -> Solar FV | E37: =IF(ISBLANK(InfoPro!I28),"",YEAR(InfoPro!I28)-$G$3) -> 1 | F37: =IF(B37="","",VLOOKUP(D37,Tablas!$B$2:$E$13,2,FALSE)) -> 0.26 | G37: =IF(B37="","",VLOOKUP(D37,Tablas!$B$2:$G$13,6,FALSE)) -> 0 | H37: 0 | I37: 0 | J37: 0 | K37: 0 | L37: 0 | M37: 0 | N37: 0 | O37: 0 | P37: 0 | Q37: 0 | R37: 0 | S37: 0 | T37: 0 | U37: 0 | V37: 0 | W37: 0 | X37: 0 | Y37: 0 | Z37: 0
A38: =IF(ISBLANK(InfoPro!A29),"",InfoPro!A29) -> SC_1481_A1 | B38: =IF(ISBLANK(InfoPro!B29),"",InfoPro!B29) -> Oslo II_150MW | C38: =IF(ISBLANK(InfoPro!E29),"",InfoPro!E29) -> 150 | D38: =IF(ISBLANK(InfoPro!F29),"",InfoPro!F29) -> Solar FV | E38: =IF(ISBLANK(InfoPro!I29),"",YEAR(InfoPro!I29)-$G$3) -> 4 | F38: =IF(B38="","",VLOOKUP(D38,Tablas!$B$2:$E$13,2,FALSE)) -> 0.26 | G38: =IF(B38="","",VLOOKUP(D38,Tablas!$B$2:$G$13,6,FALSE)) -> 0 | H38: 341640 | I38: 43484.96412 | J38: 2559036.034 | K38: 2288940.996 | L38: 2047353.306 | M38: 1831264.138 | N38: 1637982.234 | O38: 1465100.389 | P38: 1310465.464 | Q38: 1172151.578 | R38: 1048436.116 | S38: 937778.279 | T38: 838799.8918 | U38: 750268.2395 | V38: 671080.7152 | W38: 600251.0869 | X38: 536897.2155 | Y38: 8.016192913e+10 | Z38: 534412.8609
A39: =IF(ISBLANK(InfoPro!A30),"",InfoPro!A30) -> SC_1481_A2 | B39: =IF(ISBLANK(InfoPro!B30),"",InfoPro!B30) -> Oslo II_150MW | C39: =IF(ISBLANK(InfoPro!E30),"",InfoPro!E30) -> 150 | D39: =IF(ISBLANK(InfoPro!F30),"",InfoPro!F30) -> Solar FV | E39: =IF(ISBLANK(InfoPro!I30),"",YEAR(InfoPro!I30)-$G$3) -> 4 | F39: =IF(B39="","",VLOOKUP(D39,Tablas!$B$2:$E$13,2,FALSE)) -> 0.26 | G39: =IF(B39="","",VLOOKUP(D39,Tablas!$B$2:$G$13,6,FALSE)) -> 0 | H39: 341640 | I39: 43484.96412 | J39: =IF($I39="","",(1/(1+$C$4)^(J$7+$E39))*$I39*$C$5) -> 2559036.034 | K39: 2288940.996 | L39: 2047353.306 | M39: 1831264.138 | N39: 1637982.234 | O39: 1465100.389 | P39: 1310465.464 | Q39: 1172151.578 | R39: 1048436.116 | S39: 937778.279 | T39: 838799.8918 | U39: 750268.2395 | V39: 671080.7152 | W39: 600251.0869 | X39: 536897.2155 | Y39: 8.016192913e+10 | Z39: 534412.8609
A40: =IF(ISBLANK(InfoPro!A31),"",InfoPro!A31) -> SC_1633_A1 | B40: =IF(ISBLANK(InfoPro!B31),"",InfoPro!B31) -> Nobsa 9.9 MW | C40: =IF(ISBLANK(InfoPro!E31),"",InfoPro!E31) -> 9.9 | D40: =IF(ISBLANK(InfoPro!F31),"",InfoPro!F31) -> Solar FV | E40: =IF(ISBLANK(InfoPro!I31),"",YEAR(InfoPro!I31)-$G$3) -> 1 | F40: =IF(B40="","",VLOOKUP(D40,Tablas!$B$2:$E$13,2,FALSE)) -> 0.26 | G40: =IF(B40="","",VLOOKUP(D40,Tablas!$B$2:$G$13,6,FALSE)) -> 0 | H40: 22548.24 | I40: 2870.007632 | J40: 236018.3378 | K40: 211107.6367 | L40: 188826.1509 | M40: 168896.3782 | N40: 151070.1058 | O40: 135125.3182 | P40: 120863.4331 | Q40: 108106.8275 | R40: 96696.62564 | S40: 86490.72061 | T40: 77362.00413 | U40: 69196.78365 | V40: 61893.36642 | W40: 55360.79286 | X40: 49517.70381 | Y40: 7393285994 | Z40: 746796.5651
A41: =IF(ISBLANK(InfoPro!A32),"",InfoPro!A32) -> SC_1633_A2 | B41: =IF(ISBLANK(InfoPro!B32),"",InfoPro!B32) -> Nobsa 9.9 MW | C41: =IF(ISBLANK(InfoPro!E32),"",InfoPro!E32) -> 9.9 | D41: =IF(ISBLANK(InfoPro!F32),"",InfoPro!F32) -> Solar FV | E41: =IF(ISBLANK(InfoPro!I32),"",YEAR(InfoPro!I32)-$G$3) -> 1 | F41: =IF(B41="","",VLOOKUP(D41,Tablas!$B$2:$E$13,2,FALSE)) -> 0.26 | G41: =IF(B41="","",VLOOKUP(D41,Tablas!$B$2:$G$13,6,FALSE)) -> 0 | H41: =IF(C41="","",+C41*F41*24*365) -> 22548.24 | I41: =IF(H41="","",+H41*($C$3-G41)) -> 2870.007632 | J41: 236018.3378 | K41: 211107.6367 | L41: 188826.1509 | M41: 168896.3782 | N41: 151070.1058 | O41: 135125.3182 | P41: 120863.4331 | Q41: 108106.8275 | R41: 96696.62564 | S41: 86490.72061 | T41: 77362.00413 | U41: 69196.78365 | V41: 61893.36642 | W41: 55360.79286 | X41: 49517.70381 | Y41: 7393285994 | Z41: 746796.5651
A42: =IF(ISBLANK(InfoPro!A33),"",InfoPro!A33) -> SC_1890_A1 | B42: =IF(ISBLANK(InfoPro!B33),"",InfoPro!B33) -> Duitama I 40 MW | C42: =IF(ISBLANK(InfoPro!E33),"",InfoPro!E33) -> 40 | D42: =IF(ISBLANK(InfoPro!F33),"",InfoPro!F33) -> Solar FV | E42: =IF(ISBLANK(InfoPro!I33),"",YEAR(InfoPro!I33)-$G$3) -> 1 | F42: =IF(B42="","",VLOOKUP(D42,Tablas!$B$2:$E$13,2,FALSE)) -> 0.26 | G42: =IF(B42="","",VLOOKUP(D42,Tablas!$B$2:$G$13,6,FALSE)) -> 0 | H42: 91104 | I42: 11595.99043 | J42: 953609.4457 | K42: 852960.1482 | L42: 762933.943 | M42: 682409.6091 | N42: 610384.2657 | O42: 545960.8817 | P42: 488337.1035 | Q42: 436795.2625 | R42: 390693.4369 | S42: 349457.457 | T42: 312573.754 | U42: 279582.9643 | V42: 250074.2077 | W42: 223679.9711 | X42: 200071.5305 | Y42: 2.98718626e+10 | Z42: 746796.5651
A43: =IF(ISBLANK(InfoPro!A34),"",InfoPro!A34) -> SC_1890_A2 | B43: =IF(ISBLANK(InfoPro!B34),"",InfoPro!B34) -> Duitama I 40 MW | C43: =IF(ISBLANK(InfoPro!E34),"",InfoPro!E34) -> 40 | D43: =IF(ISBLANK(InfoPro!F34),"",InfoPro!F34) -> Solar FV | E43: =IF(ISBLANK(InfoPro!I34),"",YEAR(InfoPro!I34)-$G$3) -> 1 | F43: =IF(B43="","",VLOOKUP(D43,Tablas!$B$2:$E$13,2,FALSE)) -> 0.26 | G43: =IF(B43="","",VLOOKUP(D43,Tablas!$B$2:$G$13,6,FALSE)) -> 0 | H43: 91104 | I43: 11595.99043 | J43: 953609.4457 | K43: 852960.1482 | L43: 762933.943 | M43: 682409.6091 | N43: 610384.2657 | O43: 545960.8817 | P43: 488337.1035 | Q43: 436795.2625 | R43: 390693.4369 | S43: 349457.457 | T43: 312573.754 | U43: 279582.9643 | V43: 250074.2077 | W43: 223679.9711 | X43: 200071.5305 | Y43: 2.98718626e+10 | Z43: 746796.5651
A44: =IF(ISBLANK(InfoPro!A35),"",InfoPro!A35) -> SC_1689_A1 | B44: =IF(ISBLANK(InfoPro!B35),"",InfoPro!B35) -> Parque Solar Fotovoltaico La Milagrosa 45 MW | C44: =IF(ISBLANK(InfoPro!E35),"",InfoPro!E35) -> 45 | D44: =IF(ISBLANK(InfoPro!F35),"",InfoPro!F35) -> Solar FV | E44: =IF(ISBLANK(InfoPro!I35),"",YEAR(InfoPro!I35)-$G$3) -> 3 | F44: =IF(B44="","",VLOOKUP(D44,Tablas!$B$2:$E$13,2,FALSE)) -> 0.26 | G44: =IF(B44="","",VLOOKUP(D44,Tablas!$B$2:$G$13,6,FALSE)) -> 0 | H44: 102492 | I44: 13045.48924 | J44: 858300.6858 | K44: 767710.8102 | L44: 686682.2989 | M44: 614205.9919 | N44: 549379.2414 | O44: 491394.6703 | P44: 439530.1166 | Q44: 393139.6391 | R44: 351645.4733 | S44: 314530.8348 | T44: 281333.4837 | U44: 251639.9675 | V44: 225080.4719 | W44: 201324.2145 | X44: 180075.3261 | Y44: 2.688631103e+10 | Z44: 597473.5785
A45: =IF(ISBLANK(InfoPro!A36),"",InfoPro!A36) -> SC_1689_A2 | B45: =IF(ISBLANK(InfoPro!B36),"",InfoPro!B36) -> Parque Solar Fotovoltaico La Milagrosa 45 MW | C45: =IF(ISBLANK(InfoPro!E36),"",InfoPro!E36) -> 45 | D45: =IF(ISBLANK(InfoPro!F36),"",InfoPro!F36) -> Solar FV | E45: =IF(ISBLANK(InfoPro!I36),"",YEAR(InfoPro!I36)-$G$3) -> 3 | F45: =IF(B45="","",VLOOKUP(D45,Tablas!$B$2:$E$13,2,FALSE)) -> 0.26 | G45: =IF(B45="","",VLOOKUP(D45,Tablas!$B$2:$G$13,6,FALSE)) -> 0 | H45: 102492 | I45: 13045.48924 | J45: 858300.6858 | K45: 767710.8102 | L45: 686682.2989 | M45: 614205.9919 | N45: 549379.2414 | O45: 491394.6703 | P45: 439530.1166 | Q45: 393139.6391 | R45: 351645.4733 | S45: 314530.8348 | T45: 281333.4837 | U45: 251639.9675 | V45: 225080.4719 | W45: 201324.2145 | X45: 180075.3261 | Y45: 2.688631103e+10 | Z45: 597473.5785
A46: =IF(ISBLANK(InfoPro!A37),"",InfoPro!A37) -> SC_1489_A1 | B46: =IF(ISBLANK(InfoPro!B37),"",InfoPro!B37) -> Acacias II de 40 MW | C46: =IF(ISBLANK(InfoPro!E37),"",InfoPro!E37) -> 40 | D46: =IF(ISBLANK(InfoPro!F37),"",InfoPro!F37) -> Solar FV | E46: =IF(ISBLANK(InfoPro!I37),"",YEAR(InfoPro!I37)-$G$3) -> 3 | F46: =IF(B46="","",VLOOKUP(D46,Tablas!$B$2:$E$13,2,FALSE)) -> 0.26 | G46: =IF(B46="","",VLOOKUP(D46,Tablas!$B$2:$G$13,6,FALSE)) -> 0 | H46: 91104 | I46: 11595.99043 | J46: 762933.943 | K46: 682409.6091 | L46: 610384.2657 | M46: 545960.8817 | N46: 488337.1035 | O46: 436795.2625 | P46: 390693.4369 | Q46: 349457.457 | R46: 312573.754 | S46: 279582.9643 | T46: 250074.2077 | U46: 223679.9711 | V46: 200071.5305 | W46: 178954.8574 | X46: 160066.9565 | Y46: 2.389894314e+10 | Z46: 597473.5785
A47: =IF(ISBLANK(InfoPro!A38),"",InfoPro!A38) -> SC_1489_A2 | B47: =IF(ISBLANK(InfoPro!B38),"",InfoPro!B38) -> Acacias II de 40 MW | C47: =IF(ISBLANK(InfoPro!E38),"",InfoPro!E38) -> 40 | D47: =IF(ISBLANK(InfoPro!F38),"",InfoPro!F38) -> Solar FV | E47: =IF(ISBLANK(InfoPro!I38),"",YEAR(InfoPro!I38)-$G$3) -> 3 | F47: =IF(B47="","",VLOOKUP(D47,Tablas!$B$2:$E$13,2,FALSE)) -> 0.26 | G47: =IF(B47="","",VLOOKUP(D47,Tablas!$B$2:$G$13,6,FALSE)) -> 0 | H47: 91104 | I47: 11595.99043 | J47: 762933.943 | K47: 682409.6091 | L47: 610384.2657 | M47: 545960.8817 | N47: 488337.1035 | O47: 436795.2625 | P47: 390693.4369 | Q47: 349457.457 | R47: 312573.754 | S47: 279582.9643 | T47: 250074.2077 | U47: 223679.9711 | V47: 200071.5305 | W47: 178954.8574 | X47: 160066.9565 | Y47: 2.389894314e+10 | Z47: 597473.5785
A48: =IF(ISBLANK(InfoPro!A39),"",InfoPro!A39) -> SC_1759_A1 | B48: =IF(ISBLANK(InfoPro!B39),"",InfoPro!B39) -> Aumento Excedentes Autog. Argos Sogamoso | C48: =IF(ISBLANK(InfoPro!E39),"",InfoPro!E39) -> 15 | D48: =IF(ISBLANK(InfoPro!F39),"",InfoPro!F39) -> Termica - Ciclo combinado | E48: =IF(ISBLANK(InfoPro!I39),"",YEAR(InfoPro!I39)-$G$3) -> 0 | F48: =IF(B48="","",VLOOKUP(D48,Tablas!$B$2:$E$13,2,FALSE)) -> 0.85 | G48: =IF(B48="","",VLOOKUP(D48,Tablas!$B$2:$G$13,6,FALSE)) -> 0.95 | H48: 111690 | I48: -91889.26173 | J48: -8448298.723 | K48: -7556617.821 | L48: -6759049.929 | M48: -6045661.833 | N48: -5407568.723 | O48: -4836823.545 | P48: -4326318.019 | Q48: -3869694.113 | R48: -3461264.86 | S48: -3095943.524 | T48: -2769180.254 | U48: -2476905.415 | V48: -2215478.904 | W48: -1981644.816 | X48: -1772490.891 | Y48: -2.646433714e+11 | Z48: -17642891.43
A49: =IF(ISBLANK(InfoPro!A40),"",InfoPro!A40) -> SC_1774_A2 | B49: =IF(ISBLANK(InfoPro!B40),"",InfoPro!B40) -> Firavisol 8 MW | C49: =IF(ISBLANK(InfoPro!E40),"",InfoPro!E40) -> 8 | D49: =IF(ISBLANK(InfoPro!F40),"",InfoPro!F40) -> Solar FV | E49: =IF(ISBLANK(InfoPro!I40),"",YEAR(InfoPro!I40)-$G$3) -> 2 | F49: =IF(B49="","",VLOOKUP(D49,Tablas!$B$2:$E$13,2,FALSE)) -> 0.26 | G49: =IF(B49="","",VLOOKUP(D49,Tablas!$B$2:$G$13,6,FALSE)) -> 0 | H49: 18220.8 | I49: 2319.198086 | J49: =IF($I49="","",(1/(1+$C$4)^(J$7+$E49))*$I49*$C$5) -> 170592.0296 | K49: 152586.7886 | L49: 136481.9218 | M49: 122076.8531 | N49: 109192.1763 | O49: 97667.4207 | P49: 87359.0525 | Q49: 78138.68739 | R49: 69891.4914 | S49: 62514.75081 | T49: 55916.59285 | U49: 50014.84155 | V49: 44735.99423 | W49: 40014.30611 | X49: 35790.97147 | Y49: 5343803686 | Z49: 667975.4607
A50: =IF(ISBLANK(InfoPro!A41),"",InfoPro!A41) -> SC_1851_A1 | B50: =IF(ISBLANK(InfoPro!B41),"",InfoPro!B41) -> Zaino Solar 9,9MW | C50: =IF(ISBLANK(InfoPro!E41),"",InfoPro!E41) -> 9.9 | D50: =IF(ISBLANK(InfoPro!F41),"",InfoPro!F41) -> Solar FV | E50: =IF(ISBLANK(InfoPro!I41),"",YEAR(InfoPro!I41)-$G$3) -> 1 | F50: =IF(B50="","",VLOOKUP(D50,Tablas!$B$2:$E$13,2,FALSE)) -> 0.26 | G50: =IF(B50="","",VLOOKUP(D50,Tablas!$B$2:$G$13,6,FALSE)) -> 0 | H50: 22548.24 | I50: 2870.007632 | J50: 236018.3378 | K50: 211107.6367 | L50: 188826.1509 | M50: 168896.3782 | N50: 151070.1058 | O50: 135125.3182 | P50: 120863.4331 | Q50: 108106.8275 | R50: 96696.62564 | S50: 86490.72061 | T50: 77362.00413 | U50: 69196.78365 | V50: 61893.36642 | W50: 55360.79286 | X50: 49517.70381 | Y50: 7393285994 | Z50: 746796.5651
A51: =IF(ISBLANK(InfoPro!A42),"",InfoPro!A42) -> SC_1851_A2 | B51: =IF(ISBLANK(InfoPro!B42),"",InfoPro!B42) -> Zaino Solar 9,9MW | C51: =IF(ISBLANK(InfoPro!E42),"",InfoPro!E42) -> 9.9 | D51: =IF(ISBLANK(InfoPro!F42),"",InfoPro!F42) -> Solar FV | E51: =IF(ISBLANK(InfoPro!I42),"",YEAR(InfoPro!I42)-$G$3) -> 1 | F51: =IF(B51="","",VLOOKUP(D51,Tablas!$B$2:$E$13,2,FALSE)) -> 0.26 | G51: =IF(B51="","",VLOOKUP(D51,Tablas!$B$2:$G$13,6,FALSE)) -> 0 | H51: 22548.24 | I51: 2870.007632 | J51: 236018.3378 | K51: 211107.6367 | L51: 188826.1509 | M51: 168896.3782 | N51: 151070.1058 | O51: 135125.3182 | P51: 120863.4331 | Q51: 108106.8275 | R51: 96696.62564 | S51: 86490.72061 | T51: 77362.00413 | U51: 69196.78365 | V51: 61893.36642 | W51: 55360.79286 | X51: 49517.70381 | Y51: 7393285994 | Z51: 746796.5651
A52: =IF(ISBLANK(InfoPro!A43),"",InfoPro!A43) -> SC_1755_A1 | B52: =IF(ISBLANK(InfoPro!B43),"",InfoPro!B43) -> Parque Solar Picon | C52: =IF(ISBLANK(InfoPro!E43),"",InfoPro!E43) -> 75 | D52: =IF(ISBLANK(InfoPro!F43),"",InfoPro!F43) -> Solar FV | E52: =IF(ISBLANK(InfoPro!I43),"",YEAR(InfoPro!I43)-$G$3) -> 3 | F52: =IF(B52="","",VLOOKUP(D52,Tablas!$B$2:$E$13,2,FALSE)) -> 0.26 | G52: =IF(B52="","",VLOOKUP(D52,Tablas!$B$2:$G$13,6,FALSE)) -> 0 | H52: 170820 | I52: 21742.48206 | J52: 1430501.143 | K52: 1279518.017 | L52: 1144470.498 | M52: 1023676.653 | N52: 915632.069 | O52: 818991.1172 | P52: 732550.1943 | Q52: 655232.7319 | R52: 586075.7888 | S52: 524218.058 | T52: 468889.1395 | U52: 419399.9459 | V52: 375134.1198 | W52: 335540.3576 | X52: 300125.5435 | Y52: 4.481051838e+10 | Z52: 597473.5785
A53: =IF(ISBLANK(InfoPro!A44),"",InfoPro!A44) -> SC_1755_A2 | B53: =IF(ISBLANK(InfoPro!B44),"",InfoPro!B44) -> Parque Solar Picon | C53: =IF(ISBLANK(InfoPro!E44),"",InfoPro!E44) -> 75 | D53: =IF(ISBLANK(InfoPro!F44),"",InfoPro!F44) -> Solar FV | E53: =IF(ISBLANK(InfoPro!I44),"",YEAR(InfoPro!I44)-$G$3) -> 3 | F53: =IF(B53="","",VLOOKUP(D53,Tablas!$B$2:$E$13,2,FALSE)) -> 0.26 | G53: =IF(B53="","",VLOOKUP(D53,Tablas!$B$2:$G$13,6,FALSE)) -> 0 | H53: 170820 | I53: 21742.48206 | J53: 1430501.143 | K53: 1279518.017 | L53: 1144470.498 | M53: 1023676.653 | N53: 915632.069 | O53: 818991.1172 | P53: 732550.1943 | Q53: 655232.7319 | R53: 586075.7888 | S53: 524218.058 | T53: 468889.1395 | U53: 419399.9459 | V53: 375134.1198 | W53: 335540.3576 | X53: 300125.5435 | Y53: 4.481051838e+10 | Z53: 597473.5785
A54: =IF(ISBLANK(InfoPro!A45),"",InfoPro!A45) -> SC_1803_A1 | B54: =IF(ISBLANK(InfoPro!B45),"",InfoPro!B45) -> Boavita I | C54: =IF(ISBLANK(InfoPro!E45),"",InfoPro!E45) -> 14.25 | D54: =IF(ISBLANK(InfoPro!F45),"",InfoPro!F45) -> Solar FV | E54: =IF(ISBLANK(InfoPro!I45),"",YEAR(InfoPro!I45)-$G$3) -> 3 | F54: =IF(B54="","",VLOOKUP(D54,Tablas!$B$2:$E$13,2,FALSE)) -> 0.26 | G54: =IF(B54="","",VLOOKUP(D54,Tablas!$B$2:$G$13,6,FALSE)) -> 0 | H54: 32455.8 | I54: 4131.071591 | J54: 271795.2172 | K54: 243108.4232 | L54: 217449.3947 | M54: 194498.5641 | N54: 173970.0931 | O54: 155608.3123 | P54: 139184.5369 | Q54: 124494.2191 | R54: 111354.3999 | S54: 99601.43102 | T54: 89088.93651 | U54: 79685.98972 | V54: 71275.48276 | W54: 63752.66794 | X54: 57023.85326 | Y54: 8513998493 | Z54: 597473.5785
A55: =IF(ISBLANK(InfoPro!A46),"",InfoPro!A46) -> SC_1803_A2 | B55: =IF(ISBLANK(InfoPro!B46),"",InfoPro!B46) -> Boavita I | C55: =IF(ISBLANK(InfoPro!E46),"",InfoPro!E46) -> 14.25 | D55: =IF(ISBLANK(InfoPro!F46),"",InfoPro!F46) -> Solar FV | E55: =IF(ISBLANK(InfoPro!I46),"",YEAR(InfoPro!I46)-$G$3) -> 3 | F55: =IF(B55="","",VLOOKUP(D55,Tablas!$B$2:$E$13,2,FALSE)) -> 0.26 | G55: =IF(B55="","",VLOOKUP(D55,Tablas!$B$2:$G$13,6,FALSE)) -> 0 | H55: 32455.8 | I55: 4131.071591 | J55: 271795.2172 | K55: 243108.4232 | L55: 217449.3947 | M55: 194498.5641 | N55: 173970.0931 | O55: 155608.3123 | P55: 139184.5369 | Q55: 124494.2191 | R55: 111354.3999 | S55: 99601.43102 | T55: 89088.93651 | U55: 79685.98972 | V55: 71275.48276 | W55: 63752.66794 | X55: 57023.85326 | Y55: 8513998493 | Z55: 597473.5785
A56: =IF(ISBLANK(InfoPro!A47),"",InfoPro!A47) -> SC_1986_A1 | B56: =IF(ISBLANK(InfoPro!B47),"",InfoPro!B47) -> Puerta del Sol 19,9MW | C56: =IF(ISBLANK(InfoPro!E47),"",InfoPro!E47) -> 19.9 | D56: =IF(ISBLANK(InfoPro!F47),"",InfoPro!F47) -> Solar FV | E56: =IF(ISBLANK(InfoPro!I47),"",YEAR(InfoPro!I47)-$G$3) -> 2 | F56: =IF(B56="","",VLOOKUP(D56,Tablas!$B$2:$E$13,2,FALSE)) -> 0.26 | G56: =IF(B56="","",VLOOKUP(D56,Tablas!$B$2:$G$13,6,FALSE)) -> 0 | H56: 45324.24 | I56: 5769.00524 | J56: 424347.6737 | K56: 379559.6366 | L56: 339498.7805 | M56: 303666.1722 | N56: 271615.5386 | O56: 242947.709 | P56: 217305.6431 | Q56: 194369.9849 | R56: 173855.0849 | S56: 155505.4426 | T56: 139092.5247 | U56: 124411.9184 | V56: 111280.7856 | W56: 99535.58645 | X56: 89030.04154 | Y56: 1.329271167e+10 | Z56: 667975.4607
A57: =IF(ISBLANK(InfoPro!A48),"",InfoPro!A48) -> SC_1986_A2 | B57: =IF(ISBLANK(InfoPro!B48),"",InfoPro!B48) -> Puerta del Sol 19,9MW | C57: =IF(ISBLANK(InfoPro!E48),"",InfoPro!E48) -> 19.9 | D57: =IF(ISBLANK(InfoPro!F48),"",InfoPro!F48) -> Solar FV | E57: =IF(ISBLANK(InfoPro!I48),"",YEAR(InfoPro!I48)-$G$3) -> 2 | F57: =IF(B57="","",VLOOKUP(D57,Tablas!$B$2:$E$13,2,FALSE)) -> 0.26 | G57: =IF(B57="","",VLOOKUP(D57,Tablas!$B$2:$G$13,6,FALSE)) -> 0 | H57: 45324.24 | I57: 5769.00524 | J57: 424347.6737 | K57: 379559.6366 | L57: 339498.7805 | M57: 303666.1722 | N57: 271615.5386 | O57: 242947.709 | P57: 217305.6431 | Q57: 194369.9849 | R57: 173855.0849 | S57: 155505.4426 | T57: 139092.5247 | U57: 124411.9184 | V57: 111280.7856 | W57: 99535.58645 | X57: 89030.04154 | Y57: 1.329271167e+10 | Z57: 667975.4607
A58: =IF(ISBLANK(InfoPro!A49),"",InfoPro!A49) -> SC_1888_A1 | B58: =IF(ISBLANK(InfoPro!B49),"",InfoPro!B49) -> Chiquinquira Solar I 9,9 MW | C58: =IF(ISBLANK(InfoPro!E49),"",InfoPro!E49) -> 9.9 | D58: =IF(ISBLANK(InfoPro!F49),"",InfoPro!F49) -> Solar FV | E58: =IF(ISBLANK(InfoPro!I49),"",YEAR(InfoPro!I49)-$G$3) -> 2 | F58: =IF(B58="","",VLOOKUP(D58,Tablas!$B$2:$E$13,2,FALSE)) -> 0.26 | G58: =IF(B58="","",VLOOKUP(D58,Tablas!$B$2:$G$13,6,FALSE)) -> 0 | H58: 22548.24 | I58: 2870.007632 | J58: 211107.6367 | K58: 188826.1509 | L58: 168896.3782 | M58: 151070.1058 | N58: 135125.3182 | O58: 120863.4331 | P58: 108106.8275 | Q58: 96696.62564 | R58: 86490.72061 | S58: 77362.00413 | T58: 69196.78365 | U58: 61893.36642 | V58: 55360.79286 | W58: 49517.70381 | X58: 44291.3272 | Y58: 6612957061 | Z58: 667975.4607
A59: =IF(ISBLANK(InfoPro!A50),"",InfoPro!A50) -> SC_1888_A2 | B59: =IF(ISBLANK(InfoPro!B50),"",InfoPro!B50) -> Chiquinquira Solar I 9,9 MW | C59: =IF(ISBLANK(InfoPro!E50),"",InfoPro!E50) -> 9.9 | D59: =IF(ISBLANK(InfoPro!F50),"",InfoPro!F50) -> Solar FV | E59: =IF(ISBLANK(InfoPro!I50),"",YEAR(InfoPro!I50)-$G$3) -> 2 | F59: =IF(B59="","",VLOOKUP(D59,Tablas!$B$2:$E$13,2,FALSE)) -> 0.26 | G59: =IF(B59="","",VLOOKUP(D59,Tablas!$B$2:$G$13,6,FALSE)) -> 0 | H59: 22548.24 | I59: 2870.007632 | J59: =IF($I59="","",(1/(1+$C$4)^(J$7+$E59))*$I59*$C$5) -> 211107.6367 | K59: 188826.1509 | L59: 168896.3782 | M59: 151070.1058 | N59: 135125.3182 | O59: 120863.4331 | P59: 108106.8275 | Q59: 96696.62564 | R59: 86490.72061 | S59: 77362.00413 | T59: 69196.78365 | U59: 61893.36642 | V59: 55360.79286 | W59: 49517.70381 | X59: 44291.3272 | Y59: 6612957061 | Z59: 667975.4607
A60: =IF(ISBLANK(InfoPro!A51),"",InfoPro!A51) -> SC_1941_A1 | B60: =IF(ISBLANK(InfoPro!B51),"",InfoPro!B51) -> Esperanza Solar 9,9MW | C60: =IF(ISBLANK(InfoPro!E51),"",InfoPro!E51) -> 9.9 | D60: =IF(ISBLANK(InfoPro!F51),"",InfoPro!F51) -> Solar FV | E60: =IF(ISBLANK(InfoPro!I51),"",YEAR(InfoPro!I51)-$G$3) -> 2 | F60: =IF(B60="","",VLOOKUP(D60,Tablas!$B$2:$E$13,2,FALSE)) -> 0.26 | G60: =IF(B60="","",VLOOKUP(D60,Tablas!$B$2:$G$13,6,FALSE)) -> 0 | H60: 22548.24 | I60: 2870.007632 | J60: 211107.6367 | K60: 188826.1509 | L60: 168896.3782 | M60: 151070.1058 | N60: 135125.3182 | O60: 120863.4331 | P60: 108106.8275 | Q60: 96696.62564 | R60: 86490.72061 | S60: 77362.00413 | T60: 69196.78365 | U60: 61893.36642 | V60: 55360.79286 | W60: 49517.70381 | X60: 44291.3272 | Y60: 6612957061 | Z60: 667975.4607
A61: =IF(ISBLANK(InfoPro!A52),"",InfoPro!A52) -> SC_1941_A2 | B61: =IF(ISBLANK(InfoPro!B52),"",InfoPro!B52) -> Esperanza Solar 9,9MW | C61: =IF(ISBLANK(InfoPro!E52),"",InfoPro!E52) -> 9.9 | D61: =IF(ISBLANK(InfoPro!F52),"",InfoPro!F52) -> Solar FV | E61: =IF(ISBLANK(InfoPro!I52),"",YEAR(InfoPro!I52)-$G$3) -> 2 | F61: =IF(B61="","",VLOOKUP(D61,Tablas!$B$2:$E$13,2,FALSE)) -> 0.26 | G61: =IF(B61="","",VLOOKUP(D61,Tablas!$B$2:$G$13,6,FALSE)) -> 0 | H61: 22548.24 | I61: 2870.007632 | J61: 211107.6367 | K61: 188826.1509 | L61: 168896.3782 | M61: 151070.1058 | N61: 135125.3182 | O61: 120863.4331 | P61: 108106.8275 | Q61: 96696.62564 | R61: 86490.72061 | S61: 77362.00413 | T61: 69196.78365 | U61: 61893.36642 | V61: 55360.79286 | W61: 49517.70381 | X61: 44291.3272 | Y61: 6612957061 | Z61: 667975.4607
A62: =IF(ISBLANK(InfoPro!A53),"",InfoPro!A53) -> SC_1901_A1 | B62: =IF(ISBLANK(InfoPro!B53),"",InfoPro!B53) -> Alcalá-50 MW | C62: =IF(ISBLANK(InfoPro!E53),"",InfoPro!E53) -> 50 | D62: =IF(ISBLANK(InfoPro!F53),"",InfoPro!F53) -> Solar FV | E62: =IF(ISBLANK(InfoPro!I53),"",YEAR(InfoPro!I53)-$G$3) -> 3 | F62: =IF(B62="","",VLOOKUP(D62,Tablas!$B$2:$E$13,2,FALSE)) -> 0.26 | G62: =IF(B62="","",VLOOKUP(D62,Tablas!$B$2:$G$13,6,FALSE)) -> 0 | H62: 113880 | I62: 14494.98804 | J62: 953667.4287 | K62: 853012.0114 | L62: 762980.3322 | M62: 682451.1021 | N62: 610421.3794 | O62: 545994.0781 | P62: 488366.7962 | Q62: 436821.8213 | R62: 390717.1926 | S62: 349478.7053 | T62: 312592.7597 | U62: 279599.9639 | V62: 250089.4132 | W62: 223693.5717 | X62: 200083.6956 | Y62: 2.987367892e+10 | Z62: 597473.5785
A63: =IF(ISBLANK(InfoPro!A54),"",InfoPro!A54) -> SC_1901_A2 | B63: =IF(ISBLANK(InfoPro!B54),"",InfoPro!B54) -> Alcalá-50 MW | C63: =IF(ISBLANK(InfoPro!E54),"",InfoPro!E54) -> 50 | D63: =IF(ISBLANK(InfoPro!F54),"",InfoPro!F54) -> Solar FV | E63: =IF(ISBLANK(InfoPro!I54),"",YEAR(InfoPro!I54)-$G$3) -> 3 | F63: =IF(B63="","",VLOOKUP(D63,Tablas!$B$2:$E$13,2,FALSE)) -> 0.26 | G63: =IF(B63="","",VLOOKUP(D63,Tablas!$B$2:$G$13,6,FALSE)) -> 0 | H63: 113880 | I63: 14494.98804 | J63: 953667.4287 | K63: 853012.0114 | L63: 762980.3322 | M63: 682451.1021 | N63: 610421.3794 | O63: 545994.0781 | P63: 488366.7962 | Q63: 436821.8213 | R63: 390717.1926 | S63: 349478.7053 | T63: 312592.7597 | U63: 279599.9639 | V63: 250089.4132 | W63: 223693.5717 | X63: 200083.6956 | Y63: 2.987367892e+10 | Z63: 597473.5785
A64: =IF(ISBLANK(InfoPro!A55),"",InfoPro!A55) -> SC_1953_A1 | B64: =IF(ISBLANK(InfoPro!B55),"",InfoPro!B55) -> SOCHAGOTA DE VERANO_69.9MW | C64: =IF(ISBLANK(InfoPro!E55),"",InfoPro!E55) -> 69.9 | D64: =IF(ISBLANK(InfoPro!F55),"",InfoPro!F55) -> Solar FV | E64: =IF(ISBLANK(InfoPro!I55),"",YEAR(InfoPro!I55)-$G$3) -> 2 | F64: =IF(B64="","",VLOOKUP(D64,Tablas!$B$2:$E$13,2,FALSE)) -> 0.26 | G64: =IF(B64="","",VLOOKUP(D64,Tablas!$B$2:$G$13,6,FALSE)) -> 0 | H64: 159204.24 | I64: 20263.99328 | J64: 1490547.859 | K64: 1333227.065 | L64: 1192510.792 | M64: 1066646.504 | N64: 954066.6408 | O64: 853369.0883 | P64: 763299.7212 | Q64: 682736.7811 | R64: 610676.9061 | S64: 546222.6352 | T64: 488571.23 | U64: 437004.678 | V64: 390880.7496 | W64: 349624.9996 | X64: 312723.6133 | Y64: 4.66914847e+10 | Z64: 667975.4607
A65: =IF(ISBLANK(InfoPro!A56),"",InfoPro!A56) -> SC_2190_A1 | B65: =IF(ISBLANK(InfoPro!B56),"",InfoPro!B56) -> SIKUANI | C65: =IF(ISBLANK(InfoPro!E56),"",InfoPro!E56) -> 17 | D65: =IF(ISBLANK(InfoPro!F56),"",InfoPro!F56) -> Solar FV | E65: =IF(ISBLANK(InfoPro!I56),"",YEAR(InfoPro!I56)-$G$3) -> 3 | F65: =IF(B65="","",VLOOKUP(D65,Tablas!$B$2:$E$13,2,FALSE)) -> 0.26 | G65: =IF(B65="","",VLOOKUP(D65,Tablas!$B$2:$G$13,6,FALSE)) -> 0 | H65: 38719.2 | I65: 4928.295934 | J65: 324246.9258 | K65: 290024.0839 | L65: 259413.3129 | M65: 232033.3747 | N65: 207543.269 | O65: 185637.9866 | P65: 166044.7107 | Q65: 148519.4192 | R65: 132843.8455 | S65: 118822.7598 | T65: 106281.5383 | U65: 95063.98774 | V65: 85030.40048 | W65: 76055.81438 | X65: 68028.45652 | Y65: 1.015705083e+10 | Z65: 597473.5785
A66: =IF(ISBLANK(InfoPro!A57),"",InfoPro!A57) -> SC_2190_A2 | B66: =IF(ISBLANK(InfoPro!B57),"",InfoPro!B57) -> SIKUANI | C66: =IF(ISBLANK(InfoPro!E57),"",InfoPro!E57) -> 17 | D66: =IF(ISBLANK(InfoPro!F57),"",InfoPro!F57) -> Solar FV | E66: =IF(ISBLANK(InfoPro!I57),"",YEAR(InfoPro!I57)-$G$3) -> 3 | F66: =IF(B66="","",VLOOKUP(D66,Tablas!$B$2:$E$13,2,FALSE)) -> 0.26 | G66: =IF(B66="","",VLOOKUP(D66,Tablas!$B$2:$G$13,6,FALSE)) -> 0 | H66: 38719.2 | I66: 4928.295934 | J66: 324246.9258 | K66: 290024.0839 | L66: 259413.3129 | M66: 232033.3747 | N66: 207543.269 | O66: 185637.9866 | P66: 166044.7107 | Q66: 148519.4192 | R66: 132843.8455 | S66: 118822.7598 | T66: 106281.5383 | U66: 95063.98774 | V66: 85030.40048 | W66: 76055.81438 | X66: 68028.45652 | Y66: 1.015705083e+10 | Z66: 597473.5785
A67: =IF(ISBLANK(InfoPro!A58),"",InfoPro!A58) -> SC_1834_A1 | B67: =IF(ISBLANK(InfoPro!B58),"",InfoPro!B58) -> Barbados | C67: =IF(ISBLANK(InfoPro!E58),"",InfoPro!E58) -> 15 | D67: =IF(ISBLANK(InfoPro!F58),"",InfoPro!F58) -> Solar FV | E67: =IF(ISBLANK(InfoPro!I58),"",YEAR(InfoPro!I58)-$G$3) -> 2 | F67: =IF(B67="","",VLOOKUP(D67,Tablas!$B$2:$E$13,2,FALSE)) -> 0.26 | G67: =IF(B67="","",VLOOKUP(D67,Tablas!$B$2:$G$13,6,FALSE)) -> 0 | H67: 34164 | I67: 4348.496412 | J67: 319860.0556 | K67: 286100.2286 | L67: 255903.6034 | M67: 228894.0996 | N67: 204735.3306 | O67: 183126.4138 | P67: 163798.2234 | Q67: 146510.0389 | R67: 131046.5464 | S67: 117215.1578 | T67: 104843.6116 | U67: 93777.8279 | V67: 83879.98918 | W67: 75026.82395 | X67: 67108.07152 | Y67: 1.001963191e+10 | Z67: 667975.4607
A68: =IF(ISBLANK(InfoPro!A59),"",InfoPro!A59) -> SC_1834_A2 | B68: =IF(ISBLANK(InfoPro!B59),"",InfoPro!B59) -> Barbados | C68: =IF(ISBLANK(InfoPro!E59),"",InfoPro!E59) -> 15 | D68: =IF(ISBLANK(InfoPro!F59),"",InfoPro!F59) -> Solar FV | E68: =IF(ISBLANK(InfoPro!I59),"",YEAR(InfoPro!I59)-$G$3) -> 2 | F68: =IF(B68="","",VLOOKUP(D68,Tablas!$B$2:$E$13,2,FALSE)) -> 0.26 | G68: =IF(B68="","",VLOOKUP(D68,Tablas!$B$2:$G$13,6,FALSE)) -> 0 | H68: 34164 | I68: 4348.496412 | J68: 319860.0556 | K68: 286100.2286 | L68: 255903.6034 | M68: 228894.0996 | N68: 204735.3306 | O68: 183126.4138 | P68: 163798.2234 | Q68: 146510.0389 | R68: 131046.5464 | S68: 117215.1578 | T68: 104843.6116 | U68: 93777.8279 | V68: 83879.98918 | W68: 75026.82395 | X68: 67108.07152 | Y68: 1.001963191e+10 | Z68: 667975.4607
A69: =IF(ISBLANK(InfoPro!A60),"",InfoPro!A60) -> SC_1878_A1 | B69: =IF(ISBLANK(InfoPro!B60),"",InfoPro!B60) -> Autogenerador Solar Holcim | C69: =IF(ISBLANK(InfoPro!E60),"",InfoPro!E60) -> 6.7 | D69: =IF(ISBLANK(InfoPro!F60),"",InfoPro!F60) -> Solar FV | E69: =IF(ISBLANK(InfoPro!I60),"",YEAR(InfoPro!I60)-$G$3) -> 1 | F69: =IF(B69="","",VLOOKUP(D69,Tablas!$B$2:$E$13,2,FALSE)) -> 0.26 | G69: =IF(B69="","",VLOOKUP(D69,Tablas!$B$2:$G$13,6,FALSE)) -> 0 | H69: 15259.92 | I69: 1942.328397 | J69: =IF($I69="","",(1/(1+$C$4)^(J$7+$E69))*$I69*$C$5) -> 159729.5822 | K69: 142870.8248 | L69: 127791.4354 | M69: 114303.6095 | N69: 102239.3645 | O69: 91448.44768 | P69: 81796.46483 | Q69: 73163.20647 | R69: 65441.15069 | S69: 58534.12405 | T69: 52356.1038 | U69: 46830.14651 | V69: 41887.4298 | W69: 37466.39517 | X69: 33511.98137 | Y69: 5003536986 | Z69: 746796.5651
A70: =IF(ISBLANK(InfoPro!A61),"",InfoPro!A61) -> SC_1874_A1 | B70: =IF(ISBLANK(InfoPro!B61),"",InfoPro!B61) -> Colibri I | C70: =IF(ISBLANK(InfoPro!E61),"",InfoPro!E61) -> 96.9 | D70: =IF(ISBLANK(InfoPro!F61),"",InfoPro!F61) -> Eólico Onshore | E70: =IF(ISBLANK(InfoPro!I61),"",YEAR(InfoPro!I61)-$G$3) -> 3 | F70: =IF(B70="","",VLOOKUP(D70,Tablas!$B$2:$E$13,2,FALSE)) -> 0.57 | G70: =IF(B70="","",VLOOKUP(D70,Tablas!$B$2:$G$13,6,FALSE)) -> 0 | H70: 483841.08 | I70: 61584.74419 | J70: 4051839.468 | K70: 3624185.571 | L70: 3241668.668 | M70: 2899524.748 | N70: 2593492.619 | O70: 2319760.84 | P70: 2074920.25 | Q70: 1855921.512 | R70: 1660037.13 | S70: 1484827.487 | T70: 1328110.453 | U70: 1187934.216 | V70: 1062552.966 | W70: 950405.1574 | X70: 850094.0585 | Y70: 1.269240698e+11 | Z70: 1309845.922
A71: =IF(ISBLANK(InfoPro!A62),"",InfoPro!A62) -> SC_1874_A2 | B71: =IF(ISBLANK(InfoPro!B62),"",InfoPro!B62) -> Colibri I | C71: =IF(ISBLANK(InfoPro!E62),"",InfoPro!E62) -> 96.9 | D71: =IF(ISBLANK(InfoPro!F62),"",InfoPro!F62) -> Eólico Onshore | E71: =IF(ISBLANK(InfoPro!I62),"",YEAR(InfoPro!I62)-$G$3) -> 3 | F71: =IF(B71="","",VLOOKUP(D71,Tablas!$B$2:$E$13,2,FALSE)) -> 0.57 | G71: =IF(B71="","",VLOOKUP(D71,Tablas!$B$2:$G$13,6,FALSE)) -> 0 | H71: 483841.08 | I71: 61584.74419 | J71: 4051839.468 | K71: 3624185.571 | L71: 3241668.668 | M71: 2899524.748 | N71: 2593492.619 | O71: 2319760.84 | P71: 2074920.25 | Q71: 1855921.512 | R71: 1660037.13 | S71: 1484827.487 | T71: 1328110.453 | U71: 1187934.216 | V71: 1062552.966 | W71: 950405.1574 | X71: 850094.0585 | Y71: 1.269240698e+11 | Z71: 1309845.922
A72: =IF(ISBLANK(InfoPro!A63),"",InfoPro!A63) -> SC_1988_A1 | B72: =IF(ISBLANK(InfoPro!B63),"",InfoPro!B63) -> LAS ACACIAS I - 40 MW | C72: =IF(ISBLANK(InfoPro!E63),"",InfoPro!E63) -> 40 | D72: =IF(ISBLANK(InfoPro!F63),"",InfoPro!F63) -> Solar FV | E72: =IF(ISBLANK(InfoPro!I63),"",YEAR(InfoPro!I63)-$G$3) -> 3 | F72: =IF(B72="","",VLOOKUP(D72,Tablas!$B$2:$E$13,2,FALSE)) -> 0.26 | G72: =IF(B72="","",VLOOKUP(D72,Tablas!$B$2:$G$13,6,FALSE)) -> 0 | H72: 91104 | I72: 11595.99043 | J72: 762933.943 | K72: 682409.6091 | L72: 610384.2657 | M72: 545960.8817 | N72: 488337.1035 | O72: 436795.2625 | P72: 390693.4369 | Q72: 349457.457 | R72: 312573.754 | S72: 279582.9643 | T72: 250074.2077 | U72: 223679.9711 | V72: 200071.5305 | W72: 178954.8574 | X72: 160066.9565 | Y72: 2.389894314e+10 | Z72: 597473.5785
A73: =IF(ISBLANK(InfoPro!A64),"",InfoPro!A64) -> SC_1988_A2 | B73: =IF(ISBLANK(InfoPro!B64),"",InfoPro!B64) -> LAS ACACIAS I - 40 MW | C73: =IF(ISBLANK(InfoPro!E64),"",InfoPro!E64) -> 40 | D73: =IF(ISBLANK(InfoPro!F64),"",InfoPro!F64) -> Solar FV | E73: =IF(ISBLANK(InfoPro!I64),"",YEAR(InfoPro!I64)-$G$3) -> 3 | F73: =IF(B73="","",VLOOKUP(D73,Tablas!$B$2:$E$13,2,FALSE)) -> 0.26 | G73: =IF(B73="","",VLOOKUP(D73,Tablas!$B$2:$G$13,6,FALSE)) -> 0 | H73: =IF(C73="","",+C73*F73*24*365) -> 91104 | I73: =IF(H73="","",+H73*($C$3-G73)) -> 11595.99043 | J73: 762933.943 | K73: 682409.6091 | L73: 610384.2657 | M73: 545960.8817 | N73: 488337.1035 | O73: 436795.2625 | P73: 390693.4369 | Q73: 349457.457 | R73: 312573.754 | S73: 279582.9643 | T73: 250074.2077 | U73: 223679.9711 | V73: 200071.5305 | W73: 178954.8574 | X73: 160066.9565 | Y73: 2.389894314e+10 | Z73: 597473.5785
A74: =IF(ISBLANK(InfoPro!A65),"",InfoPro!A65) -> SC_2123_A1 | B74: =IF(ISBLANK(InfoPro!B65),"",InfoPro!B65) -> Parque Solar Pollux | C74: =IF(ISBLANK(InfoPro!E65),"",InfoPro!E65) -> 209.6 | D74: =IF(ISBLANK(InfoPro!F65),"",InfoPro!F65) -> Solar FV | E74: =IF(ISBLANK(InfoPro!I65),"",YEAR(InfoPro!I65)-$G$3) -> 2 | F74: =IF(B74="","",VLOOKUP(D74,Tablas!$B$2:$E$13,2,FALSE)) -> 0.26 | G74: =IF(B74="","",VLOOKUP(D74,Tablas!$B$2:$G$13,6,FALSE)) -> 0 | H74: 477384.96 | I74: 60762.98986 | J74: 4469511.177 | K74: 3997773.861 | L74: 3575826.352 | M74: 3198413.552 | N74: 2860835.02 | O74: 2558886.422 | P74: 2288807.176 | Q74: 2047233.61 | R74: 1831157.075 | S74: 1637886.471 | T74: 1465014.733 | U74: 1310388.849 | V74: 1172083.049 | W74: 1048374.82 | X74: 937723.4526 | Y74: =IF(X74="","",SUM(J74:X74)*$C$6) -> 1.400076566e+11 | Z74: =IF(C74=0,0,IF(Y74="","",Y74/(C74*1000))) -> 667975.4607
A75: =IF(ISBLANK(InfoPro!A66),"",InfoPro!A66) -> SC_2123_A2 | B75: =IF(ISBLANK(InfoPro!B66),"",InfoPro!B66) -> Parque Solar Pollux | C75: =IF(ISBLANK(InfoPro!E66),"",InfoPro!E66) -> 209.6 | D75: =IF(ISBLANK(InfoPro!F66),"",InfoPro!F66) -> Solar FV | E75: =IF(ISBLANK(InfoPro!I66),"",YEAR(InfoPro!I66)-$G$3) -> 2 | F75: =IF(B75="","",VLOOKUP(D75,Tablas!$B$2:$E$13,2,FALSE)) -> 0.26 | G75: =IF(B75="","",VLOOKUP(D75,Tablas!$B$2:$G$13,6,FALSE)) -> 0 | H75: 477384.96 | I75: 60762.98986 | J75: 4469511.177 | K75: 3997773.861 | L75: 3575826.352 | M75: 3198413.552 | N75: 2860835.02 | O75: 2558886.422 | P75: 2288807.176 | Q75: 2047233.61 | R75: 1831157.075 | S75: 1637886.471 | T75: 1465014.733 | U75: 1310388.849 | V75: 1172083.049 | W75: 1048374.82 | X75: 937723.4526 | Y75: 1.400076566e+11 | Z75: 667975.4607
A76: =IF(ISBLANK(InfoPro!A67),"",InfoPro!A67) -> SC_1869_A1 | B76: =IF(ISBLANK(InfoPro!B67),"",InfoPro!B67) -> PE NAIRA_96.9MW | C76: =IF(ISBLANK(InfoPro!E67),"",InfoPro!E67) -> 96.9 | D76: =IF(ISBLANK(InfoPro!F67),"",InfoPro!F67) -> Eólico Onshore | E76: =IF(ISBLANK(InfoPro!I67),"",YEAR(InfoPro!I67)-$G$3) -> 3 | F76: =IF(B76="","",VLOOKUP(D76,Tablas!$B$2:$E$13,2,FALSE)) -> 0.57 | G76: =IF(B76="","",VLOOKUP(D76,Tablas!$B$2:$G$13,6,FALSE)) -> 0 | H76: 483841.08 | I76: 61584.74419 | J76: 4051839.468 | K76: 3624185.571 | L76: 3241668.668 | M76: 2899524.748 | N76: 2593492.619 | O76: 2319760.84 | P76: 2074920.25 | Q76: 1855921.512 | R76: 1660037.13 | S76: 1484827.487 | T76: 1328110.453 | U76: 1187934.216 | V76: 1062552.966 | W76: 950405.1574 | X76: 850094.0585 | Y76: 1.269240698e+11 | Z76: 1309845.922
A77: =IF(ISBLANK(InfoPro!A68),"",InfoPro!A68) -> SC_2064_A2 | B77: =IF(ISBLANK(InfoPro!B68),"",InfoPro!B68) -> Firavitoba 9,9 del Verano Solar | C77: =IF(ISBLANK(InfoPro!E68),"",InfoPro!E68) -> 9.9 | D77: =IF(ISBLANK(InfoPro!F68),"",InfoPro!F68) -> Solar FV | E77: =IF(ISBLANK(InfoPro!I68),"",YEAR(InfoPro!I68)-$G$3) -> 2 | F77: =IF(B77="","",VLOOKUP(D77,Tablas!$B$2:$E$13,2,FALSE)) -> 0.26 | G77: =IF(B77="","",VLOOKUP(D77,Tablas!$B$2:$G$13,6,FALSE)) -> 0 | H77: 22548.24 | I77: 2870.007632 | J77: 211107.6367 | K77: 188826.1509 | L77: 168896.3782 | M77: 151070.1058 | N77: 135125.3182 | O77: 120863.4331 | P77: 108106.8275 | Q77: 96696.62564 | R77: 86490.72061 | S77: 77362.00413 | T77: 69196.78365 | U77: 61893.36642 | V77: 55360.79286 | W77: 49517.70381 | X77: 44291.3272 | Y77: 6612957061 | Z77: 667975.4607
A78: =IF(ISBLANK(InfoPro!A69),"",InfoPro!A69) -> SC_2007_A1 | B78: =IF(ISBLANK(InfoPro!B69),"",InfoPro!B69) -> Parque Solar Yopal | C78: =IF(ISBLANK(InfoPro!E69),"",InfoPro!E69) -> 19.9 | D78: =IF(ISBLANK(InfoPro!F69),"",InfoPro!F69) -> Solar FV | E78: =IF(ISBLANK(InfoPro!I69),"",YEAR(InfoPro!I69)-$G$3) -> 3 | F78: =IF(B78="","",VLOOKUP(D78,Tablas!$B$2:$E$13,2,FALSE)) -> 0.26 | G78: =IF(B78="","",VLOOKUP(D78,Tablas!$B$2:$G$13,6,FALSE)) -> 0 | H78: 45324.24 | I78: 5769.00524 | J78: 379559.6366 | K78: 339498.7805 | L78: 303666.1722 | M78: 271615.5386 | N78: 242947.709 | O78: 217305.6431 | P78: 194369.9849 | Q78: 173855.0849 | R78: 155505.4426 | S78: 139092.5247 | T78: 124411.9184 | U78: 111280.7856 | V78: 99535.58645 | W78: 89030.04154 | X78: 79633.31086 | Y78: 1.188972421e+10 | Z78: 597473.5785
A79: =IF(ISBLANK(InfoPro!A70),"",InfoPro!A70) -> SC_2007_A2 | B79: =IF(ISBLANK(InfoPro!B70),"",InfoPro!B70) -> Parque Solar Yopal | C79: =IF(ISBLANK(InfoPro!E70),"",InfoPro!E70) -> 19.9 | D79: =IF(ISBLANK(InfoPro!F70),"",InfoPro!F70) -> Solar FV | E79: =IF(ISBLANK(InfoPro!I70),"",YEAR(InfoPro!I70)-$G$3) -> 3 | F79: =IF(B79="","",VLOOKUP(D79,Tablas!$B$2:$E$13,2,FALSE)) -> 0.26 | G79: =IF(B79="","",VLOOKUP(D79,Tablas!$B$2:$G$13,6,FALSE)) -> 0 | H79: 45324.24 | I79: 5769.00524 | J79: =IF($I79="","",(1/(1+$C$4)^(J$7+$E79))*$I79*$C$5) -> 379559.6366 | K79: 339498.7805 | L79: 303666.1722 | M79: 271615.5386 | N79: 242947.709 | O79: 217305.6431 | P79: 194369.9849 | Q79: 173855.0849 | R79: 155505.4426 | S79: 139092.5247 | T79: 124411.9184 | U79: 111280.7856 | V79: 99535.58645 | W79: 89030.04154 | X79: 79633.31086 | Y79: 1.188972421e+10 | Z79: 597473.5785
A80: =IF(ISBLANK(InfoPro!A71),"",InfoPro!A71) -> SC_1914_A1 | B80: =IF(ISBLANK(InfoPro!B71),"",InfoPro!B71) -> Suniva 70 MW | C80: =IF(ISBLANK(InfoPro!E71),"",InfoPro!E71) -> 70 | D80: =IF(ISBLANK(InfoPro!F71),"",InfoPro!F71) -> Solar FV | E80: =IF(ISBLANK(InfoPro!I71),"",YEAR(InfoPro!I71)-$G$3) -> 4 | F80: =IF(B80="","",VLOOKUP(D80,Tablas!$B$2:$E$13,2,FALSE)) -> 0.26 | G80: =IF(B80="","",VLOOKUP(D80,Tablas!$B$2:$G$13,6,FALSE)) -> 0 | H80: 159432 | I80: 20292.98326 | J80: 1194216.816 | K80: 1068172.465 | L80: 955431.543 | M80: 854589.9311 | N80: 764391.7094 | O80: 683713.5147 | P80: 611550.5498 | Q80: 547004.0696 | R80: 489270.1875 | S80: 437629.8636 | T80: 391439.9495 | U80: 350125.1785 | V80: 313171.0004 | W80: 280117.1739 | X80: 250552.0339 | Y80: 3.740890026e+10 | Z80: 534412.8609
A81: =IF(ISBLANK(InfoPro!A72),"",InfoPro!A72) -> SC_1914_A2 | B81: =IF(ISBLANK(InfoPro!B72),"",InfoPro!B72) -> Suniva 70 MW | C81: =IF(ISBLANK(InfoPro!E72),"",InfoPro!E72) -> 70 | D81: =IF(ISBLANK(InfoPro!F72),"",InfoPro!F72) -> Solar FV | E81: =IF(ISBLANK(InfoPro!I72),"",YEAR(InfoPro!I72)-$G$3) -> 4 | F81: =IF(B81="","",VLOOKUP(D81,Tablas!$B$2:$E$13,2,FALSE)) -> 0.26 | G81: =IF(B81="","",VLOOKUP(D81,Tablas!$B$2:$G$13,6,FALSE)) -> 0 | H81: 159432 | I81: 20292.98326 | J81: 1194216.816 | K81: 1068172.465 | L81: 955431.543 | M81: 854589.9311 | N81: 764391.7094 | O81: 683713.5147 | P81: 611550.5498 | Q81: 547004.0696 | R81: 489270.1875 | S81: 437629.8636 | T81: 391439.9495 | U81: 350125.1785 | V81: 313171.0004 | W81: 280117.1739 | X81: 250552.0339 | Y81: 3.740890026e+10 | Z81: 534412.8609
A82: =IF(ISBLANK(InfoPro!A73),"",InfoPro!A73) -> SC_1921_A1 | B82: =IF(ISBLANK(InfoPro!B73),"",InfoPro!B73) -> El Gabán I | C82: =IF(ISBLANK(InfoPro!E73),"",InfoPro!E73) -> 100 | D82: =IF(ISBLANK(InfoPro!F73),"",InfoPro!F73) -> Solar FV | E82: =IF(ISBLANK(InfoPro!I73),"",YEAR(InfoPro!I73)-$G$3) -> 3 | F82: =IF(B82="","",VLOOKUP(D82,Tablas!$B$2:$E$13,2,FALSE)) -> 0.26 | G82: =IF(B82="","",VLOOKUP(D82,Tablas!$B$2:$G$13,6,FALSE)) -> 0 | H82: 227760 | I82: 28989.97608 | J82: 1907334.857 | K82: 1706024.023 | L82: 1525960.664 | M82: 1364902.204 | N82: 1220842.759 | O82: 1091988.156 | P82: 976733.5924 | Q82: 873643.6425 | R82: 781434.3851 | S82: 698957.4106 | T82: 625185.5194 | U82: 559199.9279 | V82: 500178.8264 | W82: 447387.1434 | X82: 400167.3913 | Y82: 5.974735785e+10 | Z82: 597473.5785
A83: =IF(ISBLANK(InfoPro!A74),"",InfoPro!A74) -> SC_1921_A2 | B83: =IF(ISBLANK(InfoPro!B74),"",InfoPro!B74) -> El Gabán I | C83: =IF(ISBLANK(InfoPro!E74),"",InfoPro!E74) -> 100 | D83: =IF(ISBLANK(InfoPro!F74),"",InfoPro!F74) -> Solar FV | E83: =IF(ISBLANK(InfoPro!I74),"",YEAR(InfoPro!I74)-$G$3) -> 3 | F83: =IF(B83="","",VLOOKUP(D83,Tablas!$B$2:$E$13,2,FALSE)) -> 0.26 | G83: =IF(B83="","",VLOOKUP(D83,Tablas!$B$2:$G$13,6,FALSE)) -> 0 | H83: 227760 | I83: 28989.97608 | J83: 1907334.857 | K83: 1706024.023 | L83: 1525960.664 | M83: 1364902.204 | N83: 1220842.759 | O83: 1091988.156 | P83: 976733.5924 | Q83: 873643.6425 | R83: 781434.3851 | S83: 698957.4106 | T83: 625185.5194 | U83: 559199.9279 | V83: 500178.8264 | W83: 447387.1434 | X83: 400167.3913 | Y83: 5.974735785e+10 | Z83: 597473.5785
A84: =IF(ISBLANK(InfoPro!A75),"",InfoPro!A75) -> SC_2172_A1 | B84: =IF(ISBLANK(InfoPro!B75),"",InfoPro!B75) -> Termocasanare 1 9,9 MW | C84: =IF(ISBLANK(InfoPro!E75),"",InfoPro!E75) -> 9.9 | D84: =IF(ISBLANK(InfoPro!F75),"",InfoPro!F75) -> Termica - Ciclo abierto | E84: =IF(ISBLANK(InfoPro!I75),"",YEAR(InfoPro!I75)-$G$3) -> 1 | F84: =IF(B84="","",VLOOKUP(D84,Tablas!$B$2:$E$13,2,FALSE)) -> 0.85 | G84: =IF(B84="","",VLOOKUP(D84,Tablas!$B$2:$G$13,6,FALSE)) -> 0.95 | H84: 73715.4 | I84: -60646.91274 | J84: -4987367.762 | K84: -4460972.953 | L84: -3990136.81 | M84: -3568995.357 | N84: -3192303.54 | O84: -2855369.892 | P84: -2553998.115 | Q84: -2284434.808 | R84: -2043322.726 | S84: -1827658.968 | T84: -1634757.574 | U84: -1462216.077 | V84: -1307885.579 | W84: -1169843.988 | X84: -1046372.082 | Y84: -1.562295395e+11 | Z84: -15780761.56
A85: =IF(ISBLANK(InfoPro!A76),"",InfoPro!A76) -> SC_2172_A2 | B85: =IF(ISBLANK(InfoPro!B76),"",InfoPro!B76) -> Termocasanare 1 9,9 MW | C85: =IF(ISBLANK(InfoPro!E76),"",InfoPro!E76) -> 9.9 | D85: =IF(ISBLANK(InfoPro!F76),"",InfoPro!F76) -> Termica - Ciclo abierto | E85: =IF(ISBLANK(InfoPro!I76),"",YEAR(InfoPro!I76)-$G$3) -> 1 | F85: =IF(B85="","",VLOOKUP(D85,Tablas!$B$2:$E$13,2,FALSE)) -> 0.85 | G85: =IF(B85="","",VLOOKUP(D85,Tablas!$B$2:$G$13,6,FALSE)) -> 0.95 | H85: 73715.4 | I85: -60646.91274 | J85: -4987367.762 | K85: -4460972.953 | L85: -3990136.81 | M85: -3568995.357 | N85: -3192303.54 | O85: -2855369.892 | P85: -2553998.115 | Q85: -2284434.808 | R85: -2043322.726 | S85: -1827658.968 | T85: -1634757.574 | U85: -1462216.077 | V85: -1307885.579 | W85: -1169843.988 | X85: -1046372.082 | Y85: -1.562295395e+11 | Z85: -15780761.56
A86: =IF(ISBLANK(InfoPro!A77),"",InfoPro!A77) -> SC_2194_A1 | B86: =IF(ISBLANK(InfoPro!B77),"",InfoPro!B77) -> Planta de generación GN Belencito APDR | C86: =IF(ISBLANK(InfoPro!E77),"",InfoPro!E77) -> 0 | D86: =IF(ISBLANK(InfoPro!F77),"",InfoPro!F77) -> Termica - Ciclo abierto | E86: =IF(ISBLANK(InfoPro!I77),"",YEAR(InfoPro!I77)-$G$3) -> 1 | F86: =IF(B86="","",VLOOKUP(D86,Tablas!$B$2:$E$13,2,FALSE)) -> 0.85 | G86: =IF(B86="","",VLOOKUP(D86,Tablas!$B$2:$G$13,6,FALSE)) -> 0.95 | H86: 0 | I86: 0 | J86: 0 | K86: 0 | L86: 0 | M86: 0 | N86: 0 | O86: 0 | P86: 0 | Q86: 0 | R86: 0 | S86: 0 | T86: 0 | U86: 0 | V86: 0 | W86: 0 | X86: 0 | Y86: 0 | Z86: 0
A87: =IF(ISBLANK(InfoPro!A78),"",InfoPro!A78) -> SC_2194_A2 | B87: =IF(ISBLANK(InfoPro!B78),"",InfoPro!B78) -> Planta de generación GN Belencito APDR | C87: =IF(ISBLANK(InfoPro!E78),"",InfoPro!E78) -> 0 | D87: =IF(ISBLANK(InfoPro!F78),"",InfoPro!F78) -> Termica - Ciclo abierto | E87: =IF(ISBLANK(InfoPro!I78),"",YEAR(InfoPro!I78)-$G$3) -> 1 | F87: =IF(B87="","",VLOOKUP(D87,Tablas!$B$2:$E$13,2,FALSE)) -> 0.85 | G87: =IF(B87="","",VLOOKUP(D87,Tablas!$B$2:$G$13,6,FALSE)) -> 0.95 | H87: 0 | I87: 0 | J87: 0 | K87: 0 | L87: 0 | M87: 0 | N87: 0 | O87: 0 | P87: 0 | Q87: 0 | R87: 0 | S87: 0 | T87: 0 | U87: 0 | V87: 0 | W87: 0 | X87: 0 | Y87: 0 | Z87: 0
A88: =IF(ISBLANK(InfoPro!A79),"",InfoPro!A79) -> SC_2224_A1 | B88: =IF(ISBLANK(InfoPro!B79),"",InfoPro!B79) -> Generación Solar Fotovoltaica Yopalosa 65 MW | C88: =IF(ISBLANK(InfoPro!E79),"",InfoPro!E79) -> 65 | D88: =IF(ISBLANK(InfoPro!F79),"",InfoPro!F79) -> Solar FV | E88: =IF(ISBLANK(InfoPro!I79),"",YEAR(InfoPro!I79)-$G$3) -> 3 | F88: =IF(B88="","",VLOOKUP(D88,Tablas!$B$2:$E$13,2,FALSE)) -> 0.26 | G88: =IF(B88="","",VLOOKUP(D88,Tablas!$B$2:$G$13,6,FALSE)) -> 0 | H88: 148044 | I88: 18843.48445 | J88: 1239767.657 | K88: 1108915.615 | L88: 991874.4318 | M88: 887186.4328 | N88: 793547.7932 | O88: 709792.3016 | P88: 634876.835 | Q88: 567868.3677 | R88: 507932.3503 | S88: 454322.3169 | T88: 406370.5876 | U88: 363479.9531 | V88: 325116.2371 | W88: 290801.6432 | X88: 260108.8043 | Y88: 3.88357826e+10 | Z88: 597473.5785
A89: =IF(ISBLANK(InfoPro!A80),"",InfoPro!A80) -> SC_2224_A2 | B89: =IF(ISBLANK(InfoPro!B80),"",InfoPro!B80) -> Generación Solar Fotovoltaica Yopalosa 65 MW | C89: =IF(ISBLANK(InfoPro!E80),"",InfoPro!E80) -> 65 | D89: =IF(ISBLANK(InfoPro!F80),"",InfoPro!F80) -> Solar FV | E89: =IF(ISBLANK(InfoPro!I80),"",YEAR(InfoPro!I80)-$G$3) -> 3 | F89: =IF(B89="","",VLOOKUP(D89,Tablas!$B$2:$E$13,2,FALSE)) -> 0.26 | G89: =IF(B89="","",VLOOKUP(D89,Tablas!$B$2:$G$13,6,FALSE)) -> 0 | H89: 148044 | I89: 18843.48445 | J89: =IF($I89="","",(1/(1+$C$4)^(J$7+$E89))*$I89*$C$5) -> 1239767.657 | K89: 1108915.615 | L89: 991874.4318 | M89: 887186.4328 | N89: 793547.7932 | O89: 709792.3016 | P89: 634876.835 | Q89: 567868.3677 | R89: 507932.3503 | S89: 454322.3169 | T89: 406370.5876 | U89: 363479.9531 | V89: 325116.2371 | W89: 290801.6432 | X89: 260108.8043 | Y89: 3.88357826e+10 | Z89: 597473.5785
A90: =IF(ISBLANK(InfoPro!A81),"",InfoPro!A81) -> SC_2024_A1 | B90: =IF(ISBLANK(InfoPro!B81),"",InfoPro!B81) -> SUMMA IV | C90: =IF(ISBLANK(InfoPro!E81),"",InfoPro!E81) -> 9.9 | D90: =IF(ISBLANK(InfoPro!F81),"",InfoPro!F81) -> Solar FV | E90: =IF(ISBLANK(InfoPro!I81),"",YEAR(InfoPro!I81)-$G$3) -> 3 | F90: =IF(B90="","",VLOOKUP(D90,Tablas!$B$2:$E$13,2,FALSE)) -> 0.26 | G90: =IF(B90="","",VLOOKUP(D90,Tablas!$B$2:$G$13,6,FALSE)) -> 0 | H90: 22548.24 | I90: 2870.007632 | J90: 188826.1509 | K90: 168896.3782 | L90: 151070.1058 | M90: 135125.3182 | N90: 120863.4331 | O90: 108106.8275 | P90: 96696.62564 | Q90: 86490.72061 | R90: 77362.00413 | S90: 69196.78365 | T90: 61893.36642 | U90: 55360.79286 | V90: 49517.70381 | W90: 44291.3272 | X90: 39616.57174 | Y90: 5914988427 | Z90: 597473.5785
A91: =IF(ISBLANK(InfoPro!A81),"",InfoPro!A81) -> SC_2024_A1 | B91: =IF(ISBLANK(InfoPro!B81),"",InfoPro!B81) -> SUMMA IV | C91: =IF(ISBLANK(InfoPro!E81),"",InfoPro!E81) -> 9.9 | D91: =IF(ISBLANK(InfoPro!F81),"",InfoPro!F81) -> Solar FV | E91: =IF(ISBLANK(InfoPro!I81),"",YEAR(InfoPro!I81)-$G$3) -> 3 | F91: =IF(B91="","",VLOOKUP(D91,Tablas!$B$2:$E$13,2,FALSE)) -> 0.26 | G91: =IF(B91="","",VLOOKUP(D91,Tablas!$B$2:$G$13,6,FALSE)) -> 0 | H91: 22548.24 | I91: 2870.007632 | J91: 188826.1509 | K91: 168896.3782 | L91: 151070.1058 | M91: 135125.3182 | N91: 120863.4331 | O91: 108106.8275 | P91: 96696.62564 | Q91: 86490.72061 | R91: 77362.00413 | S91: 69196.78365 | T91: 61893.36642 | U91: 55360.79286 | V91: 49517.70381 | W91: 44291.3272 | X91: 39616.57174 | Y91: 5914988427 | Z91: 597473.5785
A92: =IF(ISBLANK(InfoPro!A82),"",InfoPro!A82) -> SC_2024_A2 | B92: =IF(ISBLANK(InfoPro!B82),"",InfoPro!B82) -> SUMMA IV | C92: =IF(ISBLANK(InfoPro!E82),"",InfoPro!E82) -> 9.9 | D92: =IF(ISBLANK(InfoPro!F82),"",InfoPro!F82) -> Solar FV | E92: =IF(ISBLANK(InfoPro!I82),"",YEAR(InfoPro!I82)-$G$3) -> 3 | F92: =IF(B92="","",VLOOKUP(D92,Tablas!$B$2:$E$13,2,FALSE)) -> 0.26 | G92: =IF(B92="","",VLOOKUP(D92,Tablas!$B$2:$G$13,6,FALSE)) -> 0 | H92: 22548.24 | I92: 2870.007632 | J92: 188826.1509 | K92: 168896.3782 | L92: 151070.1058 | M92: 135125.3182 | N92: 120863.4331 | O92: 108106.8275 | P92: 96696.62564 | Q92: 86490.72061 | R92: 77362.00413 | S92: 69196.78365 | T92: 61893.36642 | U92: 55360.79286 | V92: 49517.70381 | W92: 44291.3272 | X92: 39616.57174 | Y92: 5914988427 | Z92: 597473.5785
A93: =IF(ISBLANK(InfoPro!A83),"",InfoPro!A83) ->  | B93: =IF(ISBLANK(InfoPro!B83),"",InfoPro!B83) ->  | C93: =IF(ISBLANK(InfoPro!E83),"",InfoPro!E83) ->  | D93: =IF(ISBLANK(InfoPro!F83),"",InfoPro!F83) ->  | E93: =IF(ISBLANK(InfoPro!I83),"",YEAR(InfoPro!I83)-$G$3) ->  | F93: =IF(B93="","",VLOOKUP(D93,Tablas!$B$2:$E$13,2,FALSE)) ->  | G93: =IF(B93="","",VLOOKUP(D93,Tablas!$B$2:$G$13,6,FALSE)) -> 
A94: =IF(ISBLANK(InfoPro!A84),"",InfoPro!A84) ->  | B94: =IF(ISBLANK(InfoPro!B84),"",InfoPro!B84) ->  | C94: =IF(ISBLANK(InfoPro!E84),"",InfoPro!E84) ->  | D94: =IF(ISBLANK(InfoPro!F84),"",InfoPro!F84) ->  | E94: =IF(ISBLANK(InfoPro!I84),"",YEAR(InfoPro!I84)-$G$3) ->  | F94: =IF(B94="","",VLOOKUP(D94,Tablas!$B$2:$E$13,2,FALSE)) ->  | G94: =IF(B94="","",VLOOKUP(D94,Tablas!$B$2:$G$13,6,FALSE)) -> 
A95: =IF(ISBLANK(InfoPro!A85),"",InfoPro!A85) ->  | B95: =IF(ISBLANK(InfoPro!B85),"",InfoPro!B85) ->  | C95: =IF(ISBLANK(InfoPro!E85),"",InfoPro!E85) ->  | D95: =IF(ISBLANK(InfoPro!F85),"",InfoPro!F85) ->  | E95: =IF(ISBLANK(InfoPro!I85),"",YEAR(InfoPro!I85)-$G$3) ->  | F95: =IF(B95="","",VLOOKUP(D95,Tablas!$B$2:$E$13,2,FALSE)) ->  | G95: =IF(B95="","",VLOOKUP(D95,Tablas!$B$2:$G$13,6,FALSE)) ->  | H95: =IF(C95="","",+C95*F95*24*365) -> 
A96: =IF(ISBLANK(InfoPro!A86),"",InfoPro!A86) ->  | B96: =IF(ISBLANK(InfoPro!B86),"",InfoPro!B86) ->  | C96: =IF(ISBLANK(InfoPro!E86),"",InfoPro!E86) ->  | D96: =IF(ISBLANK(InfoPro!F86),"",InfoPro!F86) ->  | E96: =IF(ISBLANK(InfoPro!I86),"",YEAR(InfoPro!I86)-$G$3) ->  | F96: =IF(B96="","",VLOOKUP(D96,Tablas!$B$2:$E$13,2,FALSE)) ->  | G96: =IF(B96="","",VLOOKUP(D96,Tablas!$B$2:$G$13,6,FALSE)) -> 
A97: =IF(ISBLANK(InfoPro!A87),"",InfoPro!A87) ->  | B97: =IF(ISBLANK(InfoPro!B87),"",InfoPro!B87) ->  | C97: =IF(ISBLANK(InfoPro!E87),"",InfoPro!E87) ->  | D97: =IF(ISBLANK(InfoPro!F87),"",InfoPro!F87) ->  | E97: =IF(ISBLANK(InfoPro!I87),"",YEAR(InfoPro!I87)-$G$3) ->  | F97: =IF(B97="","",VLOOKUP(D97,Tablas!$B$2:$E$13,2,FALSE)) ->  | G97: =IF(B97="","",VLOOKUP(D97,Tablas!$B$2:$G$13,6,FALSE)) -> 
A98: =IF(ISBLANK(InfoPro!A88),"",InfoPro!A88) ->  | B98: =IF(ISBLANK(InfoPro!B88),"",InfoPro!B88) ->  | C98: =IF(ISBLANK(InfoPro!E88),"",InfoPro!E88) ->  | D98: =IF(ISBLANK(InfoPro!F88),"",InfoPro!F88) ->  | E98: =IF(ISBLANK(InfoPro!I88),"",YEAR(InfoPro!I88)-$G$3) ->  | F98: =IF(B98="","",VLOOKUP(D98,Tablas!$B$2:$E$13,2,FALSE)) ->  | G98: =IF(B98="","",VLOOKUP(D98,Tablas!$B$2:$G$13,6,FALSE)) -> 
A99: =IF(ISBLANK(InfoPro!A89),"",InfoPro!A89) ->  | B99: =IF(ISBLANK(InfoPro!B89),"",InfoPro!B89) ->  | C99: =IF(ISBLANK(InfoPro!E89),"",InfoPro!E89) ->  | D99: =IF(ISBLANK(InfoPro!F89),"",InfoPro!F89) ->  | E99: =IF(ISBLANK(InfoPro!I89),"",YEAR(InfoPro!I89)-$G$3) ->  | F99: =IF(B99="","",VLOOKUP(D99,Tablas!$B$2:$E$13,2,FALSE)) ->  | G99: =IF(B99="","",VLOOKUP(D99,Tablas!$B$2:$G$13,6,FALSE)) ->  | J99: =IF($I99="","",(1/(1+$C$4)^(J$7+$E99))*$I99*$C$5) -> 
A100: =IF(ISBLANK(InfoPro!A90),"",InfoPro!A90) ->  | B100: =IF(ISBLANK(InfoPro!B90),"",InfoPro!B90) ->  | C100: =IF(ISBLANK(InfoPro!E90),"",InfoPro!E90) ->  | D100: =IF(ISBLANK(InfoPro!F90),"",InfoPro!F90) ->  | E100: =IF(ISBLANK(InfoPro!I90),"",YEAR(InfoPro!I90)-$G$3) ->  | F100: =IF(B100="","",VLOOKUP(D100,Tablas!$B$2:$E$13,2,FALSE)) ->  | G100: =IF(B100="","",VLOOKUP(D100,Tablas!$B$2:$G$13,6,FALSE)) -> 
A101: =IF(ISBLANK(InfoPro!A91),"",InfoPro!A91) ->  | B101: =IF(ISBLANK(InfoPro!B91),"",InfoPro!B91) ->  | C101: =IF(ISBLANK(InfoPro!E91),"",InfoPro!E91) ->  | D101: =IF(ISBLANK(InfoPro!F91),"",InfoPro!F91) ->  | E101: =IF(ISBLANK(InfoPro!I91),"",YEAR(InfoPro!I91)-$G$3) ->  | F101: =IF(B101="","",VLOOKUP(D101,Tablas!$B$2:$E$13,2,FALSE)) ->  | G101: =IF(B101="","",VLOOKUP(D101,Tablas!$B$2:$G$13,6,FALSE)) -> 
A102: =IF(ISBLANK(InfoPro!A92),"",InfoPro!A92) ->  | B102: =IF(ISBLANK(InfoPro!B92),"",InfoPro!B92) ->  | C102: =IF(ISBLANK(InfoPro!E92),"",InfoPro!E92) ->  | D102: =IF(ISBLANK(InfoPro!F92),"",InfoPro!F92) ->  | E102: =IF(ISBLANK(InfoPro!I92),"",YEAR(InfoPro!I92)-$G$3) ->  | F102: =IF(B102="","",VLOOKUP(D102,Tablas!$B$2:$E$13,2,FALSE)) ->  | G102: =IF(B102="","",VLOOKUP(D102,Tablas!$B$2:$G$13,6,FALSE)) -> 
A103: =IF(ISBLANK(InfoPro!A93),"",InfoPro!A93) ->  | B103: =IF(ISBLANK(InfoPro!B93),"",InfoPro!B93) ->  | C103: =IF(ISBLANK(InfoPro!E93),"",InfoPro!E93) ->  | D103: =IF(ISBLANK(InfoPro!F93),"",InfoPro!F93) ->  | E103: =IF(ISBLANK(InfoPro!I93),"",YEAR(InfoPro!I93)-$G$3) ->  | F103: =IF(B103="","",VLOOKUP(D103,Tablas!$B$2:$E$13,2,FALSE)) ->  | G103: =IF(B103="","",VLOOKUP(D103,Tablas!$B$2:$G$13,6,FALSE)) -> 
A104: =IF(ISBLANK(InfoPro!A94),"",InfoPro!A94) ->  | B104: =IF(ISBLANK(InfoPro!B94),"",InfoPro!B94) ->  | C104: =IF(ISBLANK(InfoPro!E94),"",InfoPro!E94) ->  | D104: =IF(ISBLANK(InfoPro!F94),"",InfoPro!F94) ->  | E104: =IF(ISBLANK(InfoPro!I94),"",YEAR(InfoPro!I94)-$G$3) ->  | F104: =IF(B104="","",VLOOKUP(D104,Tablas!$B$2:$E$13,2,FALSE)) ->  | G104: =IF(B104="","",VLOOKUP(D104,Tablas!$B$2:$G$13,6,FALSE)) -> 
A105: =IF(ISBLANK(InfoPro!A95),"",InfoPro!A95) ->  | B105: =IF(ISBLANK(InfoPro!B95),"",InfoPro!B95) ->  | C105: =IF(ISBLANK(InfoPro!E95),"",InfoPro!E95) ->  | D105: =IF(ISBLANK(InfoPro!F95),"",InfoPro!F95) ->  | E105: =IF(ISBLANK(InfoPro!I95),"",YEAR(InfoPro!I95)-$G$3) ->  | F105: =IF(B105="","",VLOOKUP(D105,Tablas!$B$2:$E$13,2,FALSE)) ->  | G105: =IF(B105="","",VLOOKUP(D105,Tablas!$B$2:$G$13,6,FALSE)) ->  | I105: =IF(H105="","",+H105*($C$3-G105)) -> 
A106: =IF(ISBLANK(InfoPro!A96),"",InfoPro!A96) ->  | B106: =IF(ISBLANK(InfoPro!B96),"",InfoPro!B96) ->  | C106: =IF(ISBLANK(InfoPro!E96),"",InfoPro!E96) ->  | D106: =IF(ISBLANK(InfoPro!F96),"",InfoPro!F96) ->  | E106: =IF(ISBLANK(InfoPro!I96),"",YEAR(InfoPro!I96)-$G$3) ->  | F106: =IF(B106="","",VLOOKUP(D106,Tablas!$B$2:$E$13,2,FALSE)) ->  | G106: =IF(B106="","",VLOOKUP(D106,Tablas!$B$2:$G$13,6,FALSE)) -> 
A107: =IF(ISBLANK(InfoPro!A97),"",InfoPro!A97) ->  | B107: =IF(ISBLANK(InfoPro!B97),"",InfoPro!B97) ->  | C107: =IF(ISBLANK(InfoPro!E97),"",InfoPro!E97) ->  | D107: =IF(ISBLANK(InfoPro!F97),"",InfoPro!F97) ->  | E107: =IF(ISBLANK(InfoPro!I97),"",YEAR(InfoPro!I97)-$G$3) ->  | F107: =IF(B107="","",VLOOKUP(D107,Tablas!$B$2:$E$13,2,FALSE)) ->  | G107: =IF(B107="","",VLOOKUP(D107,Tablas!$B$2:$G$13,6,FALSE)) -> 
A108: =IF(ISBLANK(InfoPro!A98),"",InfoPro!A98) ->  | B108: =IF(ISBLANK(InfoPro!B98),"",InfoPro!B98) ->  | C108: =IF(ISBLANK(InfoPro!E98),"",InfoPro!E98) ->  | D108: =IF(ISBLANK(InfoPro!F98),"",InfoPro!F98) ->  | E108: =IF(ISBLANK(InfoPro!I98),"",YEAR(InfoPro!I98)-$G$3) ->  | F108: =IF(B108="","",VLOOKUP(D108,Tablas!$B$2:$E$13,2,FALSE)) ->  | G108: =IF(B108="","",VLOOKUP(D108,Tablas!$B$2:$G$13,6,FALSE)) -> 
A109: =IF(ISBLANK(InfoPro!A99),"",InfoPro!A99) ->  | B109: =IF(ISBLANK(InfoPro!B99),"",InfoPro!B99) ->  | C109: =IF(ISBLANK(InfoPro!E99),"",InfoPro!E99) ->  | D109: =IF(ISBLANK(InfoPro!F99),"",InfoPro!F99) ->  | E109: =IF(ISBLANK(InfoPro!I99),"",YEAR(InfoPro!I99)-$G$3) ->  | F109: =IF(B109="","",VLOOKUP(D109,Tablas!$B$2:$E$13,2,FALSE)) ->  | G109: =IF(B109="","",VLOOKUP(D109,Tablas!$B$2:$G$13,6,FALSE)) ->  | H109: =IF(C109="","",+C109*F109*24*365) ->  | I109: =IF(H109="","",+H109*($C$3-G109)) ->  | Y109: =IF(X109="","",SUM(J109:X109)*$C$6) ->  | Z109: =IF(C109=0,0,IF(Y109="","",Y109/(C109*1000))) -> 
A110: =IF(ISBLANK(InfoPro!A100),"",InfoPro!A100) ->  | B110: =IF(ISBLANK(InfoPro!B100),"",InfoPro!B100) ->  | C110: =IF(ISBLANK(InfoPro!E100),"",InfoPro!E100) ->  | D110: =IF(ISBLANK(InfoPro!F100),"",InfoPro!F100) ->  | E110: =IF(ISBLANK(InfoPro!I100),"",YEAR(InfoPro!I100)-$G$3) ->  | F110: =IF(B110="","",VLOOKUP(D110,Tablas!$B$2:$E$13,2,FALSE)) ->  | G110: =IF(B110="","",VLOOKUP(D110,Tablas!$B$2:$G$13,6,FALSE)) -> 
A111: =IF(ISBLANK(InfoPro!A101),"",InfoPro!A101) ->  | B111: =IF(ISBLANK(InfoPro!B101),"",InfoPro!B101) ->  | C111: =IF(ISBLANK(InfoPro!E101),"",InfoPro!E101) ->  | D111: =IF(ISBLANK(InfoPro!F101),"",InfoPro!F101) ->  | E111: =IF(ISBLANK(InfoPro!I101),"",YEAR(InfoPro!I101)-$G$3) ->  | F111: =IF(B111="","",VLOOKUP(D111,Tablas!$B$2:$E$13,2,FALSE)) ->  | G111: =IF(B111="","",VLOOKUP(D111,Tablas!$B$2:$G$13,6,FALSE)) ->  | H111: =IF(C111="","",+C111*F111*24*365) ->  | I111: =IF(H111="","",+H111*($C$3-G111)) ->  | Y111: =IF(X111="","",SUM(J111:X111)*$C$6) ->  | Z111: =IF(C111=0,0,IF(Y111="","",Y111/(C111*1000))) -> 
A112: =IF(ISBLANK(InfoPro!A102),"",InfoPro!A102) ->  | B112: =IF(ISBLANK(InfoPro!B102),"",InfoPro!B102) ->  | C112: =IF(ISBLANK(InfoPro!E102),"",InfoPro!E102) ->  | D112: =IF(ISBLANK(InfoPro!F102),"",InfoPro!F102) ->  | E112: =IF(ISBLANK(InfoPro!I102),"",YEAR(InfoPro!I102)-$G$3) ->  | F112: =IF(B112="","",VLOOKUP(D112,Tablas!$B$2:$E$13,2,FALSE)) ->  | G112: =IF(B112="","",VLOOKUP(D112,Tablas!$B$2:$G$13,6,FALSE)) -> 
A113: =IF(ISBLANK(InfoPro!A103),"",InfoPro!A103) ->  | B113: =IF(ISBLANK(InfoPro!B103),"",InfoPro!B103) ->  | C113: =IF(ISBLANK(InfoPro!E103),"",InfoPro!E103) ->  | D113: =IF(ISBLANK(InfoPro!F103),"",InfoPro!F103) ->  | E113: =IF(ISBLANK(InfoPro!I103),"",YEAR(InfoPro!I103)-$G$3) ->  | F113: =IF(B113="","",VLOOKUP(D113,Tablas!$B$2:$E$13,2,FALSE)) ->  | G113: =IF(B113="","",VLOOKUP(D113,Tablas!$B$2:$G$13,6,FALSE)) -> 
A114: =IF(ISBLANK(InfoPro!A104),"",InfoPro!A104) ->  | B114: =IF(ISBLANK(InfoPro!B104),"",InfoPro!B104) ->  | C114: =IF(ISBLANK(InfoPro!E104),"",InfoPro!E104) ->  | D114: =IF(ISBLANK(InfoPro!F104),"",InfoPro!F104) ->  | E114: =IF(ISBLANK(InfoPro!I104),"",YEAR(InfoPro!I104)-$G$3) ->  | F114: =IF(B114="","",VLOOKUP(D114,Tablas!$B$2:$E$13,2,FALSE)) ->  | G114: =IF(B114="","",VLOOKUP(D114,Tablas!$B$2:$G$13,6,FALSE)) -> 
A115: =IF(ISBLANK(InfoPro!A105),"",InfoPro!A105) ->  | B115: =IF(ISBLANK(InfoPro!B105),"",InfoPro!B105) ->  | C115: =IF(ISBLANK(InfoPro!E105),"",InfoPro!E105) ->  | D115: =IF(ISBLANK(InfoPro!F105),"",InfoPro!F105) ->  | E115: =IF(ISBLANK(InfoPro!I105),"",YEAR(InfoPro!I105)-$G$3) ->  | F115: =IF(B115="","",VLOOKUP(D115,Tablas!$B$2:$E$13,2,FALSE)) ->  | G115: =IF(B115="","",VLOOKUP(D115,Tablas!$B$2:$G$13,6,FALSE)) ->  | J115: =IF($I115="","",(1/(1+$C$4)^(J$7+$E115))*$I115*$C$5) -> 
A116: =IF(ISBLANK(InfoPro!A106),"",InfoPro!A106) ->  | B116: =IF(ISBLANK(InfoPro!B106),"",InfoPro!B106) ->  | C116: =IF(ISBLANK(InfoPro!E106),"",InfoPro!E106) ->  | D116: =IF(ISBLANK(InfoPro!F106),"",InfoPro!F106) ->  | E116: =IF(ISBLANK(InfoPro!I106),"",YEAR(InfoPro!I106)-$G$3) ->  | F116: =IF(B116="","",VLOOKUP(D116,Tablas!$B$2:$E$13,2,FALSE)) ->  | G116: =IF(B116="","",VLOOKUP(D116,Tablas!$B$2:$G$13,6,FALSE)) -> 
A117: =IF(ISBLANK(InfoPro!A107),"",InfoPro!A107) ->  | B117: =IF(ISBLANK(InfoPro!B107),"",InfoPro!B107) ->  | C117: =IF(ISBLANK(InfoPro!E107),"",InfoPro!E107) ->  | D117: =IF(ISBLANK(InfoPro!F107),"",InfoPro!F107) ->  | E117: =IF(ISBLANK(InfoPro!I107),"",YEAR(InfoPro!I107)-$G$3) ->  | F117: =IF(B117="","",VLOOKUP(D117,Tablas!$B$2:$E$13,2,FALSE)) ->  | G117: =IF(B117="","",VLOOKUP(D117,Tablas!$B$2:$G$13,6,FALSE)) -> 
A118: =IF(ISBLANK(InfoPro!A108),"",InfoPro!A108) ->  | B118: =IF(ISBLANK(InfoPro!B108),"",InfoPro!B108) ->  | C118: =IF(ISBLANK(InfoPro!E108),"",InfoPro!E108) ->  | D118: =IF(ISBLANK(InfoPro!F108),"",InfoPro!F108) ->  | E118: =IF(ISBLANK(InfoPro!I108),"",YEAR(InfoPro!I108)-$G$3) ->  | F118: =IF(B118="","",VLOOKUP(D118,Tablas!$B$2:$E$13,2,FALSE)) ->  | G118: =IF(B118="","",VLOOKUP(D118,Tablas!$B$2:$G$13,6,FALSE)) -> 
A119: =IF(ISBLANK(InfoPro!A109),"",InfoPro!A109) ->  | B119: =IF(ISBLANK(InfoPro!B109),"",InfoPro!B109) ->  | C119: =IF(ISBLANK(InfoPro!E109),"",InfoPro!E109) ->  | D119: =IF(ISBLANK(InfoPro!F109),"",InfoPro!F109) ->  | E119: =IF(ISBLANK(InfoPro!I109),"",YEAR(InfoPro!I109)-$G$3) ->  | F119: =IF(B119="","",VLOOKUP(D119,Tablas!$B$2:$E$13,2,FALSE)) ->  | G119: =IF(B119="","",VLOOKUP(D119,Tablas!$B$2:$G$13,6,FALSE)) -> 
A120: =IF(ISBLANK(InfoPro!A110),"",InfoPro!A110) ->  | B120: =IF(ISBLANK(InfoPro!B110),"",InfoPro!B110) ->  | C120: =IF(ISBLANK(InfoPro!E110),"",InfoPro!E110) ->  | D120: =IF(ISBLANK(InfoPro!F110),"",InfoPro!F110) ->  | E120: =IF(ISBLANK(InfoPro!I110),"",YEAR(InfoPro!I110)-$G$3) ->  | F120: =IF(B120="","",VLOOKUP(D120,Tablas!$B$2:$E$13,2,FALSE)) ->  | G120: =IF(B120="","",VLOOKUP(D120,Tablas!$B$2:$G$13,6,FALSE)) -> 
A121: =IF(ISBLANK(InfoPro!A111),"",InfoPro!A111) ->  | B121: =IF(ISBLANK(InfoPro!B111),"",InfoPro!B111) ->  | C121: =IF(ISBLANK(InfoPro!E111),"",InfoPro!E111) ->  | D121: =IF(ISBLANK(InfoPro!F111),"",InfoPro!F111) ->  | E121: =IF(ISBLANK(InfoPro!I111),"",YEAR(InfoPro!I111)-$G$3) ->  | F121: =IF(B121="","",VLOOKUP(D121,Tablas!$B$2:$E$13,2,FALSE)) ->  | G121: =IF(B121="","",VLOOKUP(D121,Tablas!$B$2:$G$13,6,FALSE)) -> 
A122: =IF(ISBLANK(InfoPro!A112),"",InfoPro!A112) ->  | B122: =IF(ISBLANK(InfoPro!B112),"",InfoPro!B112) ->  | C122: =IF(ISBLANK(InfoPro!E112),"",InfoPro!E112) ->  | D122: =IF(ISBLANK(InfoPro!F112),"",InfoPro!F112) ->  | E122: =IF(ISBLANK(InfoPro!I112),"",YEAR(InfoPro!I112)-$G$3) ->  | F122: =IF(B122="","",VLOOKUP(D122,Tablas!$B$2:$E$13,2,FALSE)) ->  | G122: =IF(B122="","",VLOOKUP(D122,Tablas!$B$2:$G$13,6,FALSE)) -> 
A123: =IF(ISBLANK(InfoPro!A113),"",InfoPro!A113) ->  | B123: =IF(ISBLANK(InfoPro!B113),"",InfoPro!B113) ->  | C123: =IF(ISBLANK(InfoPro!E113),"",InfoPro!E113) ->  | D123: =IF(ISBLANK(InfoPro!F113),"",InfoPro!F113) ->  | E123: =IF(ISBLANK(InfoPro!I113),"",YEAR(InfoPro!I113)-$G$3) ->  | F123: =IF(B123="","",VLOOKUP(D123,Tablas!$B$2:$E$13,2,FALSE)) ->  | G123: =IF(B123="","",VLOOKUP(D123,Tablas!$B$2:$G$13,6,FALSE)) -> 
A124: =IF(ISBLANK(InfoPro!A114),"",InfoPro!A114) ->  | B124: =IF(ISBLANK(InfoPro!B114),"",InfoPro!B114) ->  | C124: =IF(ISBLANK(InfoPro!E114),"",InfoPro!E114) ->  | D124: =IF(ISBLANK(InfoPro!F114),"",InfoPro!F114) ->  | E124: =IF(ISBLANK(InfoPro!I114),"",YEAR(InfoPro!I114)-$G$3) ->  | F124: =IF(B124="","",VLOOKUP(D124,Tablas!$B$2:$E$13,2,FALSE)) ->  | G124: =IF(B124="","",VLOOKUP(D124,Tablas!$B$2:$G$13,6,FALSE)) -> 
A125: =IF(ISBLANK(InfoPro!A115),"",InfoPro!A115) ->  | B125: =IF(ISBLANK(InfoPro!B115),"",InfoPro!B115) ->  | C125: =IF(ISBLANK(InfoPro!E115),"",InfoPro!E115) ->  | D125: =IF(ISBLANK(InfoPro!F115),"",InfoPro!F115) ->  | E125: =IF(ISBLANK(InfoPro!I115),"",YEAR(InfoPro!I115)-$G$3) ->  | F125: =IF(B125="","",VLOOKUP(D125,Tablas!$B$2:$E$13,2,FALSE)) ->  | G125: =IF(B125="","",VLOOKUP(D125,Tablas!$B$2:$G$13,6,FALSE)) -> 
A126: =IF(ISBLANK(InfoPro!A116),"",InfoPro!A116) ->  | B126: =IF(ISBLANK(InfoPro!B116),"",InfoPro!B116) ->  | C126: =IF(ISBLANK(InfoPro!E116),"",InfoPro!E116) ->  | D126: =IF(ISBLANK(InfoPro!F116),"",InfoPro!F116) ->  | E126: =IF(ISBLANK(InfoPro!I116),"",YEAR(InfoPro!I116)-$G$3) ->  | F126: =IF(B126="","",VLOOKUP(D126,Tablas!$B$2:$E$13,2,FALSE)) ->  | G126: =IF(B126="","",VLOOKUP(D126,Tablas!$B$2:$G$13,6,FALSE)) -> 
A127: =IF(ISBLANK(InfoPro!A117),"",InfoPro!A117) ->  | B127: =IF(ISBLANK(InfoPro!B117),"",InfoPro!B117) ->  | C127: =IF(ISBLANK(InfoPro!E117),"",InfoPro!E117) ->  | D127: =IF(ISBLANK(InfoPro!F117),"",InfoPro!F117) ->  | E127: =IF(ISBLANK(InfoPro!I117),"",YEAR(InfoPro!I117)-$G$3) ->  | F127: =IF(B127="","",VLOOKUP(D127,Tablas!$B$2:$E$13,2,FALSE)) ->  | G127: =IF(B127="","",VLOOKUP(D127,Tablas!$B$2:$G$13,6,FALSE)) -> 
A128: =IF(ISBLANK(InfoPro!A118),"",InfoPro!A118) ->  | B128: =IF(ISBLANK(InfoPro!B118),"",InfoPro!B118) ->  | C128: =IF(ISBLANK(InfoPro!E118),"",InfoPro!E118) ->  | D128: =IF(ISBLANK(InfoPro!F118),"",InfoPro!F118) ->  | E128: =IF(ISBLANK(InfoPro!I118),"",YEAR(InfoPro!I118)-$G$3) ->  | F128: =IF(B128="","",VLOOKUP(D128,Tablas!$B$2:$E$13,2,FALSE)) ->  | G128: =IF(B128="","",VLOOKUP(D128,Tablas!$B$2:$G$13,6,FALSE)) -> 
A129: =IF(ISBLANK(InfoPro!A119),"",InfoPro!A119) ->  | B129: =IF(ISBLANK(InfoPro!B119),"",InfoPro!B119) ->  | C129: =IF(ISBLANK(InfoPro!E119),"",InfoPro!E119) ->  | D129: =IF(ISBLANK(InfoPro!F119),"",InfoPro!F119) ->  | E129: =IF(ISBLANK(InfoPro!I119),"",YEAR(InfoPro!I119)-$G$3) ->  | F129: =IF(B129="","",VLOOKUP(D129,Tablas!$B$2:$E$13,2,FALSE)) ->  | G129: =IF(B129="","",VLOOKUP(D129,Tablas!$B$2:$G$13,6,FALSE)) -> 
A130: =IF(ISBLANK(InfoPro!A120),"",InfoPro!A120) ->  | B130: =IF(ISBLANK(InfoPro!B120),"",InfoPro!B120) ->  | C130: =IF(ISBLANK(InfoPro!E120),"",InfoPro!E120) ->  | D130: =IF(ISBLANK(InfoPro!F120),"",InfoPro!F120) ->  | E130: =IF(ISBLANK(InfoPro!I120),"",YEAR(InfoPro!I120)-$G$3) ->  | F130: =IF(B130="","",VLOOKUP(D130,Tablas!$B$2:$E$13,2,FALSE)) ->  | G130: =IF(B130="","",VLOOKUP(D130,Tablas!$B$2:$G$13,6,FALSE)) -> 
A131: =IF(ISBLANK(InfoPro!A121),"",InfoPro!A121) ->  | B131: =IF(ISBLANK(InfoPro!B121),"",InfoPro!B121) ->  | C131: =IF(ISBLANK(InfoPro!E121),"",InfoPro!E121) ->  | D131: =IF(ISBLANK(InfoPro!F121),"",InfoPro!F121) ->  | E131: =IF(ISBLANK(InfoPro!I121),"",YEAR(InfoPro!I121)-$G$3) ->  | F131: =IF(B131="","",VLOOKUP(D131,Tablas!$B$2:$E$13,2,FALSE)) ->  | G131: =IF(B131="","",VLOOKUP(D131,Tablas!$B$2:$G$13,6,FALSE)) -> 
A132: =IF(ISBLANK(InfoPro!A122),"",InfoPro!A122) ->  | B132: =IF(ISBLANK(InfoPro!B122),"",InfoPro!B122) ->  | C132: =IF(ISBLANK(InfoPro!E122),"",InfoPro!E122) ->  | D132: =IF(ISBLANK(InfoPro!F122),"",InfoPro!F122) ->  | E132: =IF(ISBLANK(InfoPro!I122),"",YEAR(InfoPro!I122)-$G$3) ->  | F132: =IF(B132="","",VLOOKUP(D132,Tablas!$B$2:$E$13,2,FALSE)) ->  | G132: =IF(B132="","",VLOOKUP(D132,Tablas!$B$2:$G$13,6,FALSE)) ->  | J132: =IF($I132="","",(1/(1+$C$4)^(J$7+$E132))*$I132*$C$5) -> 
A133: =IF(ISBLANK(InfoPro!A123),"",InfoPro!A123) ->  | B133: =IF(ISBLANK(InfoPro!B123),"",InfoPro!B123) ->  | C133: =IF(ISBLANK(InfoPro!E123),"",InfoPro!E123) ->  | D133: =IF(ISBLANK(InfoPro!F123),"",InfoPro!F123) ->  | E133: =IF(ISBLANK(InfoPro!I123),"",YEAR(InfoPro!I123)-$G$3) ->  | F133: =IF(B133="","",VLOOKUP(D133,Tablas!$B$2:$E$13,2,FALSE)) ->  | G133: =IF(B133="","",VLOOKUP(D133,Tablas!$B$2:$G$13,6,FALSE)) -> 
A134: =IF(ISBLANK(InfoPro!A124),"",InfoPro!A124) ->  | B134: =IF(ISBLANK(InfoPro!B124),"",InfoPro!B124) ->  | C134: =IF(ISBLANK(InfoPro!E124),"",InfoPro!E124) ->  | D134: =IF(ISBLANK(InfoPro!F124),"",InfoPro!F124) ->  | E134: =IF(ISBLANK(InfoPro!I124),"",YEAR(InfoPro!I124)-$G$3) ->  | F134: =IF(B134="","",VLOOKUP(D134,Tablas!$B$2:$E$13,2,FALSE)) ->  | G134: =IF(B134="","",VLOOKUP(D134,Tablas!$B$2:$G$13,6,FALSE)) -> 
A135: =IF(ISBLANK(InfoPro!A125),"",InfoPro!A125) ->  | B135: =IF(ISBLANK(InfoPro!B125),"",InfoPro!B125) ->  | C135: =IF(ISBLANK(InfoPro!E125),"",InfoPro!E125) ->  | D135: =IF(ISBLANK(InfoPro!F125),"",InfoPro!F125) ->  | E135: =IF(ISBLANK(InfoPro!I125),"",YEAR(InfoPro!I125)-$G$3) ->  | F135: =IF(B135="","",VLOOKUP(D135,Tablas!$B$2:$E$13,2,FALSE)) ->  | G135: =IF(B135="","",VLOOKUP(D135,Tablas!$B$2:$G$13,6,FALSE)) -> 
A136: =IF(ISBLANK(InfoPro!A126),"",InfoPro!A126) ->  | B136: =IF(ISBLANK(InfoPro!B126),"",InfoPro!B126) ->  | C136: =IF(ISBLANK(InfoPro!E126),"",InfoPro!E126) ->  | D136: =IF(ISBLANK(InfoPro!F126),"",InfoPro!F126) ->  | E136: =IF(ISBLANK(InfoPro!I126),"",YEAR(InfoPro!I126)-$G$3) ->  | F136: =IF(B136="","",VLOOKUP(D136,Tablas!$B$2:$E$13,2,FALSE)) ->  | G136: =IF(B136="","",VLOOKUP(D136,Tablas!$B$2:$G$13,6,FALSE)) -> 
A137: =IF(ISBLANK(InfoPro!A127),"",InfoPro!A127) ->  | B137: =IF(ISBLANK(InfoPro!B127),"",InfoPro!B127) ->  | C137: =IF(ISBLANK(InfoPro!E127),"",InfoPro!E127) ->  | D137: =IF(ISBLANK(InfoPro!F127),"",InfoPro!F127) ->  | E137: =IF(ISBLANK(InfoPro!I127),"",YEAR(InfoPro!I127)-$G$3) ->  | F137: =IF(B137="","",VLOOKUP(D137,Tablas!$B$2:$E$13,2,FALSE)) ->  | G137: =IF(B137="","",VLOOKUP(D137,Tablas!$B$2:$G$13,6,FALSE)) -> 
A138: =IF(ISBLANK(InfoPro!A128),"",InfoPro!A128) ->  | B138: =IF(ISBLANK(InfoPro!B128),"",InfoPro!B128) ->  | C138: =IF(ISBLANK(InfoPro!E128),"",InfoPro!E128) ->  | D138: =IF(ISBLANK(InfoPro!F128),"",InfoPro!F128) ->  | E138: =IF(ISBLANK(InfoPro!I128),"",YEAR(InfoPro!I128)-$G$3) ->  | F138: =IF(B138="","",VLOOKUP(D138,Tablas!$B$2:$E$13,2,FALSE)) ->  | G138: =IF(B138="","",VLOOKUP(D138,Tablas!$B$2:$G$13,6,FALSE)) -> 
A139: =IF(ISBLANK(InfoPro!A129),"",InfoPro!A129) ->  | B139: =IF(ISBLANK(InfoPro!B129),"",InfoPro!B129) ->  | C139: =IF(ISBLANK(InfoPro!E129),"",InfoPro!E129) ->  | D139: =IF(ISBLANK(InfoPro!F129),"",InfoPro!F129) ->  | E139: =IF(ISBLANK(InfoPro!I129),"",YEAR(InfoPro!I129)-$G$3) ->  | F139: =IF(B139="","",VLOOKUP(D139,Tablas!$B$2:$E$13,2,FALSE)) ->  | G139: =IF(B139="","",VLOOKUP(D139,Tablas!$B$2:$G$13,6,FALSE)) -> 
A140: =IF(ISBLANK(InfoPro!A130),"",InfoPro!A130) ->  | B140: =IF(ISBLANK(InfoPro!B130),"",InfoPro!B130) ->  | C140: =IF(ISBLANK(InfoPro!E130),"",InfoPro!E130) ->  | D140: =IF(ISBLANK(InfoPro!F130),"",InfoPro!F130) ->  | E140: =IF(ISBLANK(InfoPro!I130),"",YEAR(InfoPro!I130)-$G$3) ->  | F140: =IF(B140="","",VLOOKUP(D140,Tablas!$B$2:$E$13,2,FALSE)) ->  | G140: =IF(B140="","",VLOOKUP(D140,Tablas!$B$2:$G$13,6,FALSE)) -> 
A141: =IF(ISBLANK(InfoPro!A131),"",InfoPro!A131) ->  | B141: =IF(ISBLANK(InfoPro!B131),"",InfoPro!B131) ->  | C141: =IF(ISBLANK(InfoPro!E131),"",InfoPro!E131) ->  | D141: =IF(ISBLANK(InfoPro!F131),"",InfoPro!F131) ->  | E141: =IF(ISBLANK(InfoPro!I131),"",YEAR(InfoPro!I131)-$G$3) ->  | F141: =IF(B141="","",VLOOKUP(D141,Tablas!$B$2:$E$13,2,FALSE)) ->  | G141: =IF(B141="","",VLOOKUP(D141,Tablas!$B$2:$G$13,6,FALSE)) -> 
A142: =IF(ISBLANK(InfoPro!A132),"",InfoPro!A132) ->  | B142: =IF(ISBLANK(InfoPro!B132),"",InfoPro!B132) ->  | C142: =IF(ISBLANK(InfoPro!E132),"",InfoPro!E132) ->  | D142: =IF(ISBLANK(InfoPro!F132),"",InfoPro!F132) ->  | E142: =IF(ISBLANK(InfoPro!I132),"",YEAR(InfoPro!I132)-$G$3) ->  | F142: =IF(B142="","",VLOOKUP(D142,Tablas!$B$2:$E$13,2,FALSE)) ->  | G142: =IF(B142="","",VLOOKUP(D142,Tablas!$B$2:$G$13,6,FALSE)) -> 
A143: =IF(ISBLANK(InfoPro!A133),"",InfoPro!A133) ->  | B143: =IF(ISBLANK(InfoPro!B133),"",InfoPro!B133) ->  | C143: =IF(ISBLANK(InfoPro!E133),"",InfoPro!E133) ->  | D143: =IF(ISBLANK(InfoPro!F133),"",InfoPro!F133) ->  | E143: =IF(ISBLANK(InfoPro!I133),"",YEAR(InfoPro!I133)-$G$3) ->  | F143: =IF(B143="","",VLOOKUP(D143,Tablas!$B$2:$E$13,2,FALSE)) ->  | G143: =IF(B143="","",VLOOKUP(D143,Tablas!$B$2:$G$13,6,FALSE)) -> 
A144: =IF(ISBLANK(InfoPro!A134),"",InfoPro!A134) ->  | B144: =IF(ISBLANK(InfoPro!B134),"",InfoPro!B134) ->  | C144: =IF(ISBLANK(InfoPro!E134),"",InfoPro!E134) ->  | D144: =IF(ISBLANK(InfoPro!F134),"",InfoPro!F134) ->  | E144: =IF(ISBLANK(InfoPro!I134),"",YEAR(InfoPro!I134)-$G$3) ->  | F144: =IF(B144="","",VLOOKUP(D144,Tablas!$B$2:$E$13,2,FALSE)) ->  | G144: =IF(B144="","",VLOOKUP(D144,Tablas!$B$2:$G$13,6,FALSE)) -> 
A145: =IF(ISBLANK(InfoPro!A135),"",InfoPro!A135) ->  | B145: =IF(ISBLANK(InfoPro!B135),"",InfoPro!B135) ->  | C145: =IF(ISBLANK(InfoPro!E135),"",InfoPro!E135) ->  | D145: =IF(ISBLANK(InfoPro!F135),"",InfoPro!F135) ->  | E145: =IF(ISBLANK(InfoPro!I135),"",YEAR(InfoPro!I135)-$G$3) ->  | F145: =IF(B145="","",VLOOKUP(D145,Tablas!$B$2:$E$13,2,FALSE)) ->  | G145: =IF(B145="","",VLOOKUP(D145,Tablas!$B$2:$G$13,6,FALSE)) -> 
A146: =IF(ISBLANK(InfoPro!A136),"",InfoPro!A136) ->  | B146: =IF(ISBLANK(InfoPro!B136),"",InfoPro!B136) ->  | C146: =IF(ISBLANK(InfoPro!E136),"",InfoPro!E136) ->  | D146: =IF(ISBLANK(InfoPro!F136),"",InfoPro!F136) ->  | E146: =IF(ISBLANK(InfoPro!I136),"",YEAR(InfoPro!I136)-$G$3) ->  | F146: =IF(B146="","",VLOOKUP(D146,Tablas!$B$2:$E$13,2,FALSE)) ->  | G146: =IF(B146="","",VLOOKUP(D146,Tablas!$B$2:$G$13,6,FALSE)) -> 
A147: =IF(ISBLANK(InfoPro!A137),"",InfoPro!A137) ->  | B147: =IF(ISBLANK(InfoPro!B137),"",InfoPro!B137) ->  | C147: =IF(ISBLANK(InfoPro!E137),"",InfoPro!E137) ->  | D147: =IF(ISBLANK(InfoPro!F137),"",InfoPro!F137) ->  | E147: =IF(ISBLANK(InfoPro!I137),"",YEAR(InfoPro!I137)-$G$3) ->  | F147: =IF(B147="","",VLOOKUP(D147,Tablas!$B$2:$E$13,2,FALSE)) ->  | G147: =IF(B147="","",VLOOKUP(D147,Tablas!$B$2:$G$13,6,FALSE)) -> 
A148: =IF(ISBLANK(InfoPro!A138),"",InfoPro!A138) ->  | B148: =IF(ISBLANK(InfoPro!B138),"",InfoPro!B138) ->  | C148: =IF(ISBLANK(InfoPro!E138),"",InfoPro!E138) ->  | D148: =IF(ISBLANK(InfoPro!F138),"",InfoPro!F138) ->  | E148: =IF(ISBLANK(InfoPro!I138),"",YEAR(InfoPro!I138)-$G$3) ->  | F148: =IF(B148="","",VLOOKUP(D148,Tablas!$B$2:$E$13,2,FALSE)) ->  | G148: =IF(B148="","",VLOOKUP(D148,Tablas!$B$2:$G$13,6,FALSE)) -> 
A149: =IF(ISBLANK(InfoPro!A139),"",InfoPro!A139) ->  | B149: =IF(ISBLANK(InfoPro!B139),"",InfoPro!B139) ->  | C149: =IF(ISBLANK(InfoPro!E139),"",InfoPro!E139) ->  | D149: =IF(ISBLANK(InfoPro!F139),"",InfoPro!F139) ->  | E149: =IF(ISBLANK(InfoPro!I139),"",YEAR(InfoPro!I139)-$G$3) ->  | F149: =IF(B149="","",VLOOKUP(D149,Tablas!$B$2:$E$13,2,FALSE)) ->  | G149: =IF(B149="","",VLOOKUP(D149,Tablas!$B$2:$G$13,6,FALSE)) ->  | J149: =IF($I149="","",(1/(1+$C$4)^(J$7+$E149))*$I149*$C$5) -> 
A150: =IF(ISBLANK(InfoPro!A140),"",InfoPro!A140) ->  | B150: =IF(ISBLANK(InfoPro!B140),"",InfoPro!B140) ->  | C150: =IF(ISBLANK(InfoPro!E140),"",InfoPro!E140) ->  | D150: =IF(ISBLANK(InfoPro!F140),"",InfoPro!F140) ->  | E150: =IF(ISBLANK(InfoPro!I140),"",YEAR(InfoPro!I140)-$G$3) ->  | F150: =IF(B150="","",VLOOKUP(D150,Tablas!$B$2:$E$13,2,FALSE)) ->  | G150: =IF(B150="","",VLOOKUP(D150,Tablas!$B$2:$G$13,6,FALSE)) -> 
A151: =IF(ISBLANK(InfoPro!A141),"",InfoPro!A141) ->  | B151: =IF(ISBLANK(InfoPro!B141),"",InfoPro!B141) ->  | C151: =IF(ISBLANK(InfoPro!E141),"",InfoPro!E141) ->  | D151: =IF(ISBLANK(InfoPro!F141),"",InfoPro!F141) ->  | E151: =IF(ISBLANK(InfoPro!I141),"",YEAR(InfoPro!I141)-$G$3) ->  | F151: =IF(B151="","",VLOOKUP(D151,Tablas!$B$2:$E$13,2,FALSE)) ->  | G151: =IF(B151="","",VLOOKUP(D151,Tablas!$B$2:$G$13,6,FALSE)) -> 
A152: =IF(ISBLANK(InfoPro!A142),"",InfoPro!A142) ->  | B152: =IF(ISBLANK(InfoPro!B142),"",InfoPro!B142) ->  | C152: =IF(ISBLANK(InfoPro!E142),"",InfoPro!E142) ->  | D152: =IF(ISBLANK(InfoPro!F142),"",InfoPro!F142) ->  | E152: =IF(ISBLANK(InfoPro!I142),"",YEAR(InfoPro!I142)-$G$3) ->  | F152: =IF(B152="","",VLOOKUP(D152,Tablas!$B$2:$E$13,2,FALSE)) ->  | G152: =IF(B152="","",VLOOKUP(D152,Tablas!$B$2:$G$13,6,FALSE)) -> 
A153: =IF(ISBLANK(InfoPro!A143),"",InfoPro!A143) ->  | B153: =IF(ISBLANK(InfoPro!B143),"",InfoPro!B143) ->  | C153: =IF(ISBLANK(InfoPro!E143),"",InfoPro!E143) ->  | D153: =IF(ISBLANK(InfoPro!F143),"",InfoPro!F143) ->  | E153: =IF(ISBLANK(InfoPro!I143),"",YEAR(InfoPro!I143)-$G$3) ->  | F153: =IF(B153="","",VLOOKUP(D153,Tablas!$B$2:$E$13,2,FALSE)) ->  | G153: =IF(B153="","",VLOOKUP(D153,Tablas!$B$2:$G$13,6,FALSE)) -> 
A154: =IF(ISBLANK(InfoPro!A144),"",InfoPro!A144) ->  | B154: =IF(ISBLANK(InfoPro!B144),"",InfoPro!B144) ->  | C154: =IF(ISBLANK(InfoPro!E144),"",InfoPro!E144) ->  | D154: =IF(ISBLANK(InfoPro!F144),"",InfoPro!F144) ->  | E154: =IF(ISBLANK(InfoPro!I144),"",YEAR(InfoPro!I144)-$G$3) ->  | F154: =IF(B154="","",VLOOKUP(D154,Tablas!$B$2:$E$13,2,FALSE)) ->  | G154: =IF(B154="","",VLOOKUP(D154,Tablas!$B$2:$G$13,6,FALSE)) -> 
A155: =IF(ISBLANK(InfoPro!A145),"",InfoPro!A145) ->  | B155: =IF(ISBLANK(InfoPro!B145),"",InfoPro!B145) ->  | C155: =IF(ISBLANK(InfoPro!E145),"",InfoPro!E145) ->  | D155: =IF(ISBLANK(InfoPro!F145),"",InfoPro!F145) ->  | E155: =IF(ISBLANK(InfoPro!I145),"",YEAR(InfoPro!I145)-$G$3) ->  | F155: =IF(B155="","",VLOOKUP(D155,Tablas!$B$2:$E$13,2,FALSE)) ->  | G155: =IF(B155="","",VLOOKUP(D155,Tablas!$B$2:$G$13,6,FALSE)) -> 
A156: =IF(ISBLANK(InfoPro!A146),"",InfoPro!A146) ->  | B156: =IF(ISBLANK(InfoPro!B146),"",InfoPro!B146) ->  | C156: =IF(ISBLANK(InfoPro!E146),"",InfoPro!E146) ->  | D156: =IF(ISBLANK(InfoPro!F146),"",InfoPro!F146) ->  | E156: =IF(ISBLANK(InfoPro!I146),"",YEAR(InfoPro!I146)-$G$3) ->  | F156: =IF(B156="","",VLOOKUP(D156,Tablas!$B$2:$E$13,2,FALSE)) ->  | G156: =IF(B156="","",VLOOKUP(D156,Tablas!$B$2:$G$13,6,FALSE)) -> 
A157: =IF(ISBLANK(InfoPro!A147),"",InfoPro!A147) ->  | B157: =IF(ISBLANK(InfoPro!B147),"",InfoPro!B147) ->  | C157: =IF(ISBLANK(InfoPro!E147),"",InfoPro!E147) ->  | D157: =IF(ISBLANK(InfoPro!F147),"",InfoPro!F147) ->  | E157: =IF(ISBLANK(InfoPro!I147),"",YEAR(InfoPro!I147)-$G$3) ->  | F157: =IF(B157="","",VLOOKUP(D157,Tablas!$B$2:$E$13,2,FALSE)) ->  | G157: =IF(B157="","",VLOOKUP(D157,Tablas!$B$2:$G$13,6,FALSE)) -> 
A158: =IF(ISBLANK(InfoPro!A148),"",InfoPro!A148) ->  | B158: =IF(ISBLANK(InfoPro!B148),"",InfoPro!B148) ->  | C158: =IF(ISBLANK(InfoPro!E148),"",InfoPro!E148) ->  | D158: =IF(ISBLANK(InfoPro!F148),"",InfoPro!F148) ->  | E158: =IF(ISBLANK(InfoPro!I148),"",YEAR(InfoPro!I148)-$G$3) ->  | F158: =IF(B158="","",VLOOKUP(D158,Tablas!$B$2:$E$13,2,FALSE)) ->  | G158: =IF(B158="","",VLOOKUP(D158,Tablas!$B$2:$G$13,6,FALSE)) -> 
A159: =IF(ISBLANK(InfoPro!A149),"",InfoPro!A149) ->  | B159: =IF(ISBLANK(InfoPro!B149),"",InfoPro!B149) ->  | C159: =IF(ISBLANK(InfoPro!E149),"",InfoPro!E149) ->  | D159: =IF(ISBLANK(InfoPro!F149),"",InfoPro!F149) ->  | E159: =IF(ISBLANK(InfoPro!I149),"",YEAR(InfoPro!I149)-$G$3) ->  | F159: =IF(B159="","",VLOOKUP(D159,Tablas!$B$2:$E$13,2,FALSE)) ->  | G159: =IF(B159="","",VLOOKUP(D159,Tablas!$B$2:$G$13,6,FALSE)) -> 
A160: =IF(ISBLANK(InfoPro!A150),"",InfoPro!A150) ->  | B160: =IF(ISBLANK(InfoPro!B150),"",InfoPro!B150) ->  | C160: =IF(ISBLANK(InfoPro!E150),"",InfoPro!E150) ->  | D160: =IF(ISBLANK(InfoPro!F150),"",InfoPro!F150) ->  | E160: =IF(ISBLANK(InfoPro!I150),"",YEAR(InfoPro!I150)-$G$3) ->  | F160: =IF(B160="","",VLOOKUP(D160,Tablas!$B$2:$E$13,2,FALSE)) ->  | G160: =IF(B160="","",VLOOKUP(D160,Tablas!$B$2:$G$13,6,FALSE)) -> 
A161: =IF(ISBLANK(InfoPro!A151),"",InfoPro!A151) ->  | B161: =IF(ISBLANK(InfoPro!B151),"",InfoPro!B151) ->  | C161: =IF(ISBLANK(InfoPro!E151),"",InfoPro!E151) ->  | D161: =IF(ISBLANK(InfoPro!F151),"",InfoPro!F151) ->  | E161: =IF(ISBLANK(InfoPro!I151),"",YEAR(InfoPro!I151)-$G$3) ->  | F161: =IF(B161="","",VLOOKUP(D161,Tablas!$B$2:$E$13,2,FALSE)) ->  | G161: =IF(B161="","",VLOOKUP(D161,Tablas!$B$2:$G$13,6,FALSE)) -> 
A162: =IF(ISBLANK(InfoPro!A152),"",InfoPro!A152) ->  | B162: =IF(ISBLANK(InfoPro!B152),"",InfoPro!B152) ->  | C162: =IF(ISBLANK(InfoPro!E152),"",InfoPro!E152) ->  | D162: =IF(ISBLANK(InfoPro!F152),"",InfoPro!F152) ->  | E162: =IF(ISBLANK(InfoPro!I152),"",YEAR(InfoPro!I152)-$G$3) ->  | F162: =IF(B162="","",VLOOKUP(D162,Tablas!$B$2:$E$13,2,FALSE)) ->  | G162: =IF(B162="","",VLOOKUP(D162,Tablas!$B$2:$G$13,6,FALSE)) -> 
A163: =IF(ISBLANK(InfoPro!A153),"",InfoPro!A153) ->  | B163: =IF(ISBLANK(InfoPro!B153),"",InfoPro!B153) ->  | C163: =IF(ISBLANK(InfoPro!E153),"",InfoPro!E153) ->  | D163: =IF(ISBLANK(InfoPro!F153),"",InfoPro!F153) ->  | E163: =IF(ISBLANK(InfoPro!I153),"",YEAR(InfoPro!I153)-$G$3) ->  | F163: =IF(B163="","",VLOOKUP(D163,Tablas!$B$2:$E$13,2,FALSE)) ->  | G163: =IF(B163="","",VLOOKUP(D163,Tablas!$B$2:$G$13,6,FALSE)) -> 
A164: =IF(ISBLANK(InfoPro!A154),"",InfoPro!A154) ->  | B164: =IF(ISBLANK(InfoPro!B154),"",InfoPro!B154) ->  | C164: =IF(ISBLANK(InfoPro!E154),"",InfoPro!E154) ->  | D164: =IF(ISBLANK(InfoPro!F154),"",InfoPro!F154) ->  | E164: =IF(ISBLANK(InfoPro!I154),"",YEAR(InfoPro!I154)-$G$3) ->  | F164: =IF(B164="","",VLOOKUP(D164,Tablas!$B$2:$E$13,2,FALSE)) ->  | G164: =IF(B164="","",VLOOKUP(D164,Tablas!$B$2:$G$13,6,FALSE)) -> 
A165: =IF(ISBLANK(InfoPro!A155),"",InfoPro!A155) ->  | B165: =IF(ISBLANK(InfoPro!B155),"",InfoPro!B155) ->  | C165: =IF(ISBLANK(InfoPro!E155),"",InfoPro!E155) ->  | D165: =IF(ISBLANK(InfoPro!F155),"",InfoPro!F155) ->  | E165: =IF(ISBLANK(InfoPro!I155),"",YEAR(InfoPro!I155)-$G$3) ->  | F165: =IF(B165="","",VLOOKUP(D165,Tablas!$B$2:$E$13,2,FALSE)) ->  | G165: =IF(B165="","",VLOOKUP(D165,Tablas!$B$2:$G$13,6,FALSE)) -> 
A166: =IF(ISBLANK(InfoPro!A156),"",InfoPro!A156) ->  | B166: =IF(ISBLANK(InfoPro!B156),"",InfoPro!B156) ->  | C166: =IF(ISBLANK(InfoPro!E156),"",InfoPro!E156) ->  | D166: =IF(ISBLANK(InfoPro!F156),"",InfoPro!F156) ->  | E166: =IF(ISBLANK(InfoPro!I156),"",YEAR(InfoPro!I156)-$G$3) ->  | F166: =IF(B166="","",VLOOKUP(D166,Tablas!$B$2:$E$13,2,FALSE)) ->  | G166: =IF(B166="","",VLOOKUP(D166,Tablas!$B$2:$G$13,6,FALSE)) ->  | J166: =IF($I166="","",(1/(1+$C$4)^(J$7+$E166))*$I166*$C$5) -> 
A167: =IF(ISBLANK(InfoPro!A157),"",InfoPro!A157) ->  | B167: =IF(ISBLANK(InfoPro!B157),"",InfoPro!B157) ->  | C167: =IF(ISBLANK(InfoPro!E157),"",InfoPro!E157) ->  | D167: =IF(ISBLANK(InfoPro!F157),"",InfoPro!F157) ->  | E167: =IF(ISBLANK(InfoPro!I157),"",YEAR(InfoPro!I157)-$G$3) ->  | F167: =IF(B167="","",VLOOKUP(D167,Tablas!$B$2:$E$13,2,FALSE)) ->  | G167: =IF(B167="","",VLOOKUP(D167,Tablas!$B$2:$G$13,6,FALSE)) -> 
A168: =IF(ISBLANK(InfoPro!A158),"",InfoPro!A158) ->  | B168: =IF(ISBLANK(InfoPro!B158),"",InfoPro!B158) ->  | C168: =IF(ISBLANK(InfoPro!E158),"",InfoPro!E158) ->  | D168: =IF(ISBLANK(InfoPro!F158),"",InfoPro!F158) ->  | E168: =IF(ISBLANK(InfoPro!I158),"",YEAR(InfoPro!I158)-$G$3) ->  | F168: =IF(B168="","",VLOOKUP(D168,Tablas!$B$2:$E$13,2,FALSE)) ->  | G168: =IF(B168="","",VLOOKUP(D168,Tablas!$B$2:$G$13,6,FALSE)) -> 
A169: =IF(ISBLANK(InfoPro!A159),"",InfoPro!A159) ->  | B169: =IF(ISBLANK(InfoPro!B159),"",InfoPro!B159) ->  | C169: =IF(ISBLANK(InfoPro!E159),"",InfoPro!E159) ->  | D169: =IF(ISBLANK(InfoPro!F159),"",InfoPro!F159) ->  | E169: =IF(ISBLANK(InfoPro!I159),"",YEAR(InfoPro!I159)-$G$3) ->  | F169: =IF(B169="","",VLOOKUP(D169,Tablas!$B$2:$E$13,2,FALSE)) ->  | G169: =IF(B169="","",VLOOKUP(D169,Tablas!$B$2:$G$13,6,FALSE)) -> 
A170: =IF(ISBLANK(InfoPro!A160),"",InfoPro!A160) ->  | B170: =IF(ISBLANK(InfoPro!B160),"",InfoPro!B160) ->  | C170: =IF(ISBLANK(InfoPro!E160),"",InfoPro!E160) ->  | D170: =IF(ISBLANK(InfoPro!F160),"",InfoPro!F160) ->  | E170: =IF(ISBLANK(InfoPro!I160),"",YEAR(InfoPro!I160)-$G$3) ->  | F170: =IF(B170="","",VLOOKUP(D170,Tablas!$B$2:$E$13,2,FALSE)) ->  | G170: =IF(B170="","",VLOOKUP(D170,Tablas!$B$2:$G$13,6,FALSE)) -> 
A171: =IF(ISBLANK(InfoPro!A161),"",InfoPro!A161) ->  | B171: =IF(ISBLANK(InfoPro!B161),"",InfoPro!B161) ->  | C171: =IF(ISBLANK(InfoPro!E161),"",InfoPro!E161) ->  | D171: =IF(ISBLANK(InfoPro!F161),"",InfoPro!F161) ->  | E171: =IF(ISBLANK(InfoPro!I161),"",YEAR(InfoPro!I161)-$G$3) ->  | F171: =IF(B171="","",VLOOKUP(D171,Tablas!$B$2:$E$13,2,FALSE)) ->  | G171: =IF(B171="","",VLOOKUP(D171,Tablas!$B$2:$G$13,6,FALSE)) -> 
A172: =IF(ISBLANK(InfoPro!A162),"",InfoPro!A162) ->  | B172: =IF(ISBLANK(InfoPro!B162),"",InfoPro!B162) ->  | C172: =IF(ISBLANK(InfoPro!E162),"",InfoPro!E162) ->  | D172: =IF(ISBLANK(InfoPro!F162),"",InfoPro!F162) ->  | E172: =IF(ISBLANK(InfoPro!I162),"",YEAR(InfoPro!I162)-$G$3) ->  | F172: =IF(B172="","",VLOOKUP(D172,Tablas!$B$2:$E$13,2,FALSE)) ->  | G172: =IF(B172="","",VLOOKUP(D172,Tablas!$B$2:$G$13,6,FALSE)) -> 
A173: =IF(ISBLANK(InfoPro!A163),"",InfoPro!A163) ->  | B173: =IF(ISBLANK(InfoPro!B163),"",InfoPro!B163) ->  | C173: =IF(ISBLANK(InfoPro!E163),"",InfoPro!E163) ->  | D173: =IF(ISBLANK(InfoPro!F163),"",InfoPro!F163) ->  | E173: =IF(ISBLANK(InfoPro!I163),"",YEAR(InfoPro!I163)-$G$3) ->  | F173: =IF(B173="","",VLOOKUP(D173,Tablas!$B$2:$E$13,2,FALSE)) ->  | G173: =IF(B173="","",VLOOKUP(D173,Tablas!$B$2:$G$13,6,FALSE)) -> 
A174: =IF(ISBLANK(InfoPro!A164),"",InfoPro!A164) ->  | B174: =IF(ISBLANK(InfoPro!B164),"",InfoPro!B164) ->  | C174: =IF(ISBLANK(InfoPro!E164),"",InfoPro!E164) ->  | D174: =IF(ISBLANK(InfoPro!F164),"",InfoPro!F164) ->  | E174: =IF(ISBLANK(InfoPro!I164),"",YEAR(InfoPro!I164)-$G$3) ->  | F174: =IF(B174="","",VLOOKUP(D174,Tablas!$B$2:$E$13,2,FALSE)) ->  | G174: =IF(B174="","",VLOOKUP(D174,Tablas!$B$2:$G$13,6,FALSE)) -> 
A175: =IF(ISBLANK(InfoPro!A165),"",InfoPro!A165) ->  | B175: =IF(ISBLANK(InfoPro!B165),"",InfoPro!B165) ->  | C175: =IF(ISBLANK(InfoPro!E165),"",InfoPro!E165) ->  | D175: =IF(ISBLANK(InfoPro!F165),"",InfoPro!F165) ->  | E175: =IF(ISBLANK(InfoPro!I165),"",YEAR(InfoPro!I165)-$G$3) ->  | F175: =IF(B175="","",VLOOKUP(D175,Tablas!$B$2:$E$13,2,FALSE)) ->  | G175: =IF(B175="","",VLOOKUP(D175,Tablas!$B$2:$G$13,6,FALSE)) ->  | H175: =IF(C175="","",+C175*F175*24*365) ->  | I175: =IF(H175="","",+H175*($C$3-G175)) ->  | Y175: =IF(X175="","",SUM(J175:X175)*$C$6) ->  | Z175: =IF(C175=0,0,IF(Y175="","",Y175/(C175*1000))) -> 
A176: =IF(ISBLANK(InfoPro!A166),"",InfoPro!A166) ->  | B176: =IF(ISBLANK(InfoPro!B166),"",InfoPro!B166) ->  | C176: =IF(ISBLANK(InfoPro!E166),"",InfoPro!E166) ->  | D176: =IF(ISBLANK(InfoPro!F166),"",InfoPro!F166) ->  | E176: =IF(ISBLANK(InfoPro!I166),"",YEAR(InfoPro!I166)-$G$3) ->  | F176: =IF(B176="","",VLOOKUP(D176,Tablas!$B$2:$E$13,2,FALSE)) ->  | G176: =IF(B176="","",VLOOKUP(D176,Tablas!$B$2:$G$13,6,FALSE)) -> 
A177: =IF(ISBLANK(InfoPro!A167),"",InfoPro!A167) ->  | B177: =IF(ISBLANK(InfoPro!B167),"",InfoPro!B167) ->  | C177: =IF(ISBLANK(InfoPro!E167),"",InfoPro!E167) ->  | D177: =IF(ISBLANK(InfoPro!F167),"",InfoPro!F167) ->  | E177: =IF(ISBLANK(InfoPro!I167),"",YEAR(InfoPro!I167)-$G$3) ->  | F177: =IF(B177="","",VLOOKUP(D177,Tablas!$B$2:$E$13,2,FALSE)) ->  | G177: =IF(B177="","",VLOOKUP(D177,Tablas!$B$2:$G$13,6,FALSE)) -> 
A178: =IF(ISBLANK(InfoPro!A168),"",InfoPro!A168) ->  | B178: =IF(ISBLANK(InfoPro!B168),"",InfoPro!B168) ->  | C178: =IF(ISBLANK(InfoPro!E168),"",InfoPro!E168) ->  | D178: =IF(ISBLANK(InfoPro!F168),"",InfoPro!F168) ->  | E178: =IF(ISBLANK(InfoPro!I168),"",YEAR(InfoPro!I168)-$G$3) ->  | F178: =IF(B178="","",VLOOKUP(D178,Tablas!$B$2:$E$13,2,FALSE)) ->  | G178: =IF(B178="","",VLOOKUP(D178,Tablas!$B$2:$G$13,6,FALSE)) -> 
A179: =IF(ISBLANK(InfoPro!A169),"",InfoPro!A169) ->  | B179: =IF(ISBLANK(InfoPro!B169),"",InfoPro!B169) ->  | C179: =IF(ISBLANK(InfoPro!E169),"",InfoPro!E169) ->  | D179: =IF(ISBLANK(InfoPro!F169),"",InfoPro!F169) ->  | E179: =IF(ISBLANK(InfoPro!I169),"",YEAR(InfoPro!I169)-$G$3) ->  | F179: =IF(B179="","",VLOOKUP(D179,Tablas!$B$2:$E$13,2,FALSE)) ->  | G179: =IF(B179="","",VLOOKUP(D179,Tablas!$B$2:$G$13,6,FALSE)) -> 
A180: =IF(ISBLANK(InfoPro!A170),"",InfoPro!A170) ->  | B180: =IF(ISBLANK(InfoPro!B170),"",InfoPro!B170) ->  | C180: =IF(ISBLANK(InfoPro!E170),"",InfoPro!E170) ->  | D180: =IF(ISBLANK(InfoPro!F170),"",InfoPro!F170) ->  | E180: =IF(ISBLANK(InfoPro!I170),"",YEAR(InfoPro!I170)-$G$3) ->  | F180: =IF(B180="","",VLOOKUP(D180,Tablas!$B$2:$E$13,2,FALSE)) ->  | G180: =IF(B180="","",VLOOKUP(D180,Tablas!$B$2:$G$13,6,FALSE)) -> 
A181: =IF(ISBLANK(InfoPro!A171),"",InfoPro!A171) ->  | B181: =IF(ISBLANK(InfoPro!B171),"",InfoPro!B171) ->  | C181: =IF(ISBLANK(InfoPro!E171),"",InfoPro!E171) ->  | D181: =IF(ISBLANK(InfoPro!F171),"",InfoPro!F171) ->  | E181: =IF(ISBLANK(InfoPro!I171),"",YEAR(InfoPro!I171)-$G$3) ->  | F181: =IF(B181="","",VLOOKUP(D181,Tablas!$B$2:$E$13,2,FALSE)) ->  | G181: =IF(B181="","",VLOOKUP(D181,Tablas!$B$2:$G$13,6,FALSE)) -> 
A182: =IF(ISBLANK(InfoPro!A172),"",InfoPro!A172) ->  | B182: =IF(ISBLANK(InfoPro!B172),"",InfoPro!B172) ->  | C182: =IF(ISBLANK(InfoPro!E172),"",InfoPro!E172) ->  | D182: =IF(ISBLANK(InfoPro!F172),"",InfoPro!F172) ->  | E182: =IF(ISBLANK(InfoPro!I172),"",YEAR(InfoPro!I172)-$G$3) ->  | F182: =IF(B182="","",VLOOKUP(D182,Tablas!$B$2:$E$13,2,FALSE)) ->  | G182: =IF(B182="","",VLOOKUP(D182,Tablas!$B$2:$G$13,6,FALSE)) -> 
A183: =IF(ISBLANK(InfoPro!A173),"",InfoPro!A173) ->  | B183: =IF(ISBLANK(InfoPro!B173),"",InfoPro!B173) ->  | C183: =IF(ISBLANK(InfoPro!E173),"",InfoPro!E173) ->  | D183: =IF(ISBLANK(InfoPro!F173),"",InfoPro!F173) ->  | E183: =IF(ISBLANK(InfoPro!I173),"",YEAR(InfoPro!I173)-$G$3) ->  | F183: =IF(B183="","",VLOOKUP(D183,Tablas!$B$2:$E$13,2,FALSE)) ->  | G183: =IF(B183="","",VLOOKUP(D183,Tablas!$B$2:$G$13,6,FALSE)) ->  | J183: =IF($I183="","",(1/(1+$C$4)^(J$7+$E183))*$I183*$C$5) -> 
A184: =IF(ISBLANK(InfoPro!A174),"",InfoPro!A174) ->  | B184: =IF(ISBLANK(InfoPro!B174),"",InfoPro!B174) ->  | C184: =IF(ISBLANK(InfoPro!E174),"",InfoPro!E174) ->  | D184: =IF(ISBLANK(InfoPro!F174),"",InfoPro!F174) ->  | E184: =IF(ISBLANK(InfoPro!I174),"",YEAR(InfoPro!I174)-$G$3) ->  | F184: =IF(B184="","",VLOOKUP(D184,Tablas!$B$2:$E$13,2,FALSE)) ->  | G184: =IF(B184="","",VLOOKUP(D184,Tablas!$B$2:$G$13,6,FALSE)) -> 
A185: =IF(ISBLANK(InfoPro!A175),"",InfoPro!A175) ->  | B185: =IF(ISBLANK(InfoPro!B175),"",InfoPro!B175) ->  | C185: =IF(ISBLANK(InfoPro!E175),"",InfoPro!E175) ->  | D185: =IF(ISBLANK(InfoPro!F175),"",InfoPro!F175) ->  | E185: =IF(ISBLANK(InfoPro!I175),"",YEAR(InfoPro!I175)-$G$3) ->  | F185: =IF(B185="","",VLOOKUP(D185,Tablas!$B$2:$E$13,2,FALSE)) ->  | G185: =IF(B185="","",VLOOKUP(D185,Tablas!$B$2:$G$13,6,FALSE)) -> 
A186: =IF(ISBLANK(InfoPro!A176),"",InfoPro!A176) ->  | B186: =IF(ISBLANK(InfoPro!B176),"",InfoPro!B176) ->  | C186: =IF(ISBLANK(InfoPro!E176),"",InfoPro!E176) ->  | D186: =IF(ISBLANK(InfoPro!F176),"",InfoPro!F176) ->  | E186: =IF(ISBLANK(InfoPro!I176),"",YEAR(InfoPro!I176)-$G$3) ->  | F186: =IF(B186="","",VLOOKUP(D186,Tablas!$B$2:$E$13,2,FALSE)) ->  | G186: =IF(B186="","",VLOOKUP(D186,Tablas!$B$2:$G$13,6,FALSE)) -> 
A187: =IF(ISBLANK(InfoPro!A177),"",InfoPro!A177) ->  | B187: =IF(ISBLANK(InfoPro!B177),"",InfoPro!B177) ->  | C187: =IF(ISBLANK(InfoPro!E177),"",InfoPro!E177) ->  | D187: =IF(ISBLANK(InfoPro!F177),"",InfoPro!F177) ->  | E187: =IF(ISBLANK(InfoPro!I177),"",YEAR(InfoPro!I177)-$G$3) ->  | F187: =IF(B187="","",VLOOKUP(D187,Tablas!$B$2:$E$13,2,FALSE)) ->  | G187: =IF(B187="","",VLOOKUP(D187,Tablas!$B$2:$G$13,6,FALSE)) -> 
A188: =IF(ISBLANK(InfoPro!A178),"",InfoPro!A178) ->  | B188: =IF(ISBLANK(InfoPro!B178),"",InfoPro!B178) ->  | C188: =IF(ISBLANK(InfoPro!E178),"",InfoPro!E178) ->  | D188: =IF(ISBLANK(InfoPro!F178),"",InfoPro!F178) ->  | E188: =IF(ISBLANK(InfoPro!I178),"",YEAR(InfoPro!I178)-$G$3) ->  | F188: =IF(B188="","",VLOOKUP(D188,Tablas!$B$2:$E$13,2,FALSE)) ->  | G188: =IF(B188="","",VLOOKUP(D188,Tablas!$B$2:$G$13,6,FALSE)) -> 
A189: =IF(ISBLANK(InfoPro!A179),"",InfoPro!A179) ->  | B189: =IF(ISBLANK(InfoPro!B179),"",InfoPro!B179) ->  | C189: =IF(ISBLANK(InfoPro!E179),"",InfoPro!E179) ->  | D189: =IF(ISBLANK(InfoPro!F179),"",InfoPro!F179) ->  | E189: =IF(ISBLANK(InfoPro!I179),"",YEAR(InfoPro!I179)-$G$3) ->  | F189: =IF(B189="","",VLOOKUP(D189,Tablas!$B$2:$E$13,2,FALSE)) ->  | G189: =IF(B189="","",VLOOKUP(D189,Tablas!$B$2:$G$13,6,FALSE)) -> 
A190: =IF(ISBLANK(InfoPro!A180),"",InfoPro!A180) ->  | B190: =IF(ISBLANK(InfoPro!B180),"",InfoPro!B180) ->  | C190: =IF(ISBLANK(InfoPro!E180),"",InfoPro!E180) ->  | D190: =IF(ISBLANK(InfoPro!F180),"",InfoPro!F180) ->  | E190: =IF(ISBLANK(InfoPro!I180),"",YEAR(InfoPro!I180)-$G$3) ->  | F190: =IF(B190="","",VLOOKUP(D190,Tablas!$B$2:$E$13,2,FALSE)) ->  | G190: =IF(B190="","",VLOOKUP(D190,Tablas!$B$2:$G$13,6,FALSE)) -> 
A191: =IF(ISBLANK(InfoPro!A181),"",InfoPro!A181) ->  | B191: =IF(ISBLANK(InfoPro!B181),"",InfoPro!B181) ->  | C191: =IF(ISBLANK(InfoPro!E181),"",InfoPro!E181) ->  | D191: =IF(ISBLANK(InfoPro!F181),"",InfoPro!F181) ->  | E191: =IF(ISBLANK(InfoPro!I181),"",YEAR(InfoPro!I181)-$G$3) ->  | F191: =IF(B191="","",VLOOKUP(D191,Tablas!$B$2:$E$13,2,FALSE)) ->  | G191: =IF(B191="","",VLOOKUP(D191,Tablas!$B$2:$G$13,6,FALSE)) ->  | H191: =IF(C191="","",+C191*F191*24*365) ->  | I191: =IF(H191="","",+H191*($C$3-G191)) ->  | Y191: =IF(X191="","",SUM(J191:X191)*$C$6) ->  | Z191: =IF(C191=0,0,IF(Y191="","",Y191/(C191*1000))) -> 
A192: =IF(ISBLANK(InfoPro!A182),"",InfoPro!A182) ->  | B192: =IF(ISBLANK(InfoPro!B182),"",InfoPro!B182) ->  | C192: =IF(ISBLANK(InfoPro!E182),"",InfoPro!E182) ->  | D192: =IF(ISBLANK(InfoPro!F182),"",InfoPro!F182) ->  | E192: =IF(ISBLANK(InfoPro!I182),"",YEAR(InfoPro!I182)-$G$3) ->  | F192: =IF(B192="","",VLOOKUP(D192,Tablas!$B$2:$E$13,2,FALSE)) ->  | G192: =IF(B192="","",VLOOKUP(D192,Tablas!$B$2:$G$13,6,FALSE)) -> 
A193: =IF(ISBLANK(InfoPro!A183),"",InfoPro!A183) ->  | B193: =IF(ISBLANK(InfoPro!B183),"",InfoPro!B183) ->  | C193: =IF(ISBLANK(InfoPro!E183),"",InfoPro!E183) ->  | D193: =IF(ISBLANK(InfoPro!F183),"",InfoPro!F183) ->  | E193: =IF(ISBLANK(InfoPro!I183),"",YEAR(InfoPro!I183)-$G$3) ->  | F193: =IF(B193="","",VLOOKUP(D193,Tablas!$B$2:$E$13,2,FALSE)) ->  | G193: =IF(B193="","",VLOOKUP(D193,Tablas!$B$2:$G$13,6,FALSE)) -> 
A194: =IF(ISBLANK(InfoPro!A184),"",InfoPro!A184) ->  | B194: =IF(ISBLANK(InfoPro!B184),"",InfoPro!B184) ->  | C194: =IF(ISBLANK(InfoPro!E184),"",InfoPro!E184) ->  | D194: =IF(ISBLANK(InfoPro!F184),"",InfoPro!F184) ->  | E194: =IF(ISBLANK(InfoPro!I184),"",YEAR(InfoPro!I184)-$G$3) ->  | F194: =IF(B194="","",VLOOKUP(D194,Tablas!$B$2:$E$13,2,FALSE)) ->  | G194: =IF(B194="","",VLOOKUP(D194,Tablas!$B$2:$G$13,6,FALSE)) -> 
A195: =IF(ISBLANK(InfoPro!A185),"",InfoPro!A185) ->  | B195: =IF(ISBLANK(InfoPro!B185),"",InfoPro!B185) ->  | C195: =IF(ISBLANK(InfoPro!E185),"",InfoPro!E185) ->  | D195: =IF(ISBLANK(InfoPro!F185),"",InfoPro!F185) ->  | E195: =IF(ISBLANK(InfoPro!I185),"",YEAR(InfoPro!I185)-$G$3) ->  | F195: =IF(B195="","",VLOOKUP(D195,Tablas!$B$2:$E$13,2,FALSE)) ->  | G195: =IF(B195="","",VLOOKUP(D195,Tablas!$B$2:$G$13,6,FALSE)) -> 
A196: =IF(ISBLANK(InfoPro!A186),"",InfoPro!A186) ->  | B196: =IF(ISBLANK(InfoPro!B186),"",InfoPro!B186) ->  | C196: =IF(ISBLANK(InfoPro!E186),"",InfoPro!E186) ->  | D196: =IF(ISBLANK(InfoPro!F186),"",InfoPro!F186) ->  | E196: =IF(ISBLANK(InfoPro!I186),"",YEAR(InfoPro!I186)-$G$3) ->  | F196: =IF(B196="","",VLOOKUP(D196,Tablas!$B$2:$E$13,2,FALSE)) ->  | G196: =IF(B196="","",VLOOKUP(D196,Tablas!$B$2:$G$13,6,FALSE)) -> 
A197: =IF(ISBLANK(InfoPro!A187),"",InfoPro!A187) ->  | B197: =IF(ISBLANK(InfoPro!B187),"",InfoPro!B187) ->  | C197: =IF(ISBLANK(InfoPro!E187),"",InfoPro!E187) ->  | D197: =IF(ISBLANK(InfoPro!F187),"",InfoPro!F187) ->  | E197: =IF(ISBLANK(InfoPro!I187),"",YEAR(InfoPro!I187)-$G$3) ->  | F197: =IF(B197="","",VLOOKUP(D197,Tablas!$B$2:$E$13,2,FALSE)) ->  | G197: =IF(B197="","",VLOOKUP(D197,Tablas!$B$2:$G$13,6,FALSE)) -> 
A198: =IF(ISBLANK(InfoPro!A188),"",InfoPro!A188) ->  | B198: =IF(ISBLANK(InfoPro!B188),"",InfoPro!B188) ->  | C198: =IF(ISBLANK(InfoPro!E188),"",InfoPro!E188) ->  | D198: =IF(ISBLANK(InfoPro!F188),"",InfoPro!F188) ->  | E198: =IF(ISBLANK(InfoPro!I188),"",YEAR(InfoPro!I188)-$G$3) ->  | F198: =IF(B198="","",VLOOKUP(D198,Tablas!$B$2:$E$13,2,FALSE)) ->  | G198: =IF(B198="","",VLOOKUP(D198,Tablas!$B$2:$G$13,6,FALSE)) -> 
A199: =IF(ISBLANK(InfoPro!A189),"",InfoPro!A189) ->  | B199: =IF(ISBLANK(InfoPro!B189),"",InfoPro!B189) ->  | C199: =IF(ISBLANK(InfoPro!E189),"",InfoPro!E189) ->  | D199: =IF(ISBLANK(InfoPro!F189),"",InfoPro!F189) ->  | E199: =IF(ISBLANK(InfoPro!I189),"",YEAR(InfoPro!I189)-$G$3) ->  | F199: =IF(B199="","",VLOOKUP(D199,Tablas!$B$2:$E$13,2,FALSE)) ->  | G199: =IF(B199="","",VLOOKUP(D199,Tablas!$B$2:$G$13,6,FALSE)) ->  | J199: =IF($I199="","",(1/(1+$C$4)^(J$7+$E199))*$I199*$C$5) -> 
A200: =IF(ISBLANK(InfoPro!A190),"",InfoPro!A190) ->  | B200: =IF(ISBLANK(InfoPro!B190),"",InfoPro!B190) ->  | C200: =IF(ISBLANK(InfoPro!E190),"",InfoPro!E190) ->  | D200: =IF(ISBLANK(InfoPro!F190),"",InfoPro!F190) ->  | E200: =IF(ISBLANK(InfoPro!I190),"",YEAR(InfoPro!I190)-$G$3) ->  | F200: =IF(B200="","",VLOOKUP(D200,Tablas!$B$2:$E$13,2,FALSE)) ->  | G200: =IF(B200="","",VLOOKUP(D200,Tablas!$B$2:$G$13,6,FALSE)) -> 
A201: =IF(ISBLANK(InfoPro!A191),"",InfoPro!A191) ->  | B201: =IF(ISBLANK(InfoPro!B191),"",InfoPro!B191) ->  | C201: =IF(ISBLANK(InfoPro!E191),"",InfoPro!E191) ->  | D201: =IF(ISBLANK(InfoPro!F191),"",InfoPro!F191) ->  | E201: =IF(ISBLANK(InfoPro!I191),"",YEAR(InfoPro!I191)-$G$3) ->  | F201: =IF(B201="","",VLOOKUP(D201,Tablas!$B$2:$E$13,2,FALSE)) ->  | G201: =IF(B201="","",VLOOKUP(D201,Tablas!$B$2:$G$13,6,FALSE)) -> 
A202: =IF(ISBLANK(InfoPro!A192),"",InfoPro!A192) ->  | B202: =IF(ISBLANK(InfoPro!B192),"",InfoPro!B192) ->  | C202: =IF(ISBLANK(InfoPro!E192),"",InfoPro!E192) ->  | D202: =IF(ISBLANK(InfoPro!F192),"",InfoPro!F192) ->  | E202: =IF(ISBLANK(InfoPro!I192),"",YEAR(InfoPro!I192)-$G$3) ->  | F202: =IF(B202="","",VLOOKUP(D202,Tablas!$B$2:$E$13,2,FALSE)) ->  | G202: =IF(B202="","",VLOOKUP(D202,Tablas!$B$2:$G$13,6,FALSE)) -> 

Sheet EC-RP
B2: Precio promedio de bolsa | C2: 192057 | D2: COP/MWh
B3: Tasa de descuento | C3: 0.118 | F3: Año de Referencia | H3: 2023
F4: Mínimo | H4: =MIN(Z8:Z400) -> -4303623.742
J6: 0 | K6: 1 | L6: 2 | M6: 3 | N6: 4 | O6: 5 | P6: 6 | Q6: 7 | R6: 8 | S6: 9 | T6: 10 | U6: 11 | V6: 12 | W6: 13 | X6: 14
A7: Codigo | B7: Nombre | C7: capacidad | D7: Tecnologia | E7: Año de entrada | F7: FP | G7: Precio de oferta | H7: Desviacion | I7: Produccion media/a MWh/a | J7: Flujo Descontado 0 | K7: Flujo Descontado 1 | L7: Flujo Descontado 2 | M7: Flujo Descontado 3 | N7: Flujo Descontado 4 | O7: Flujo Descontado 5 | P7: Flujo Descontado 6 | Q7: Flujo Descontado 7 | R7: Flujo Descontado 8 | S7: Flujo Descontado 9 | T7: Flujo Descontado 10 | U7: Flujo Descontado 11 | V7: Flujo Descontado 12 | W7: Flujo Descontado 13 | X7: Flujo Descontado 14 | Y7: VPN | Z7: Beneficio/kW
A8: =IF(ISBLANK(InfoPro!A2),"",InfoPro!A2) -> SC_544_A1 | B8: =IF(ISBLANK(InfoPro!B2),"",InfoPro!B2) -> SORACÁ 19.9 MW | C8: =IF(ISBLANK(InfoPro!E2),"",InfoPro!E2) -> 19.9 | D8: =IF(ISBLANK(InfoPro!F2),"",InfoPro!F2) -> Solar FV | E8: =IF(ISBLANK(InfoPro!I2),"",YEAR(InfoPro!I2)-$H$3) -> 2 | F8: =IF(B8="","",VLOOKUP(D8,Tablas!$B$2:$E$13,2,FALSE)) -> 0.26 | G8: =IF(B8="","",VLOOKUP(D8,Tablas!$B$2:$H$13,7,FALSE)) -> 83577.2 | H8: =IF(B8="","",($C$2-(G8))/$C$2) -> 0.564831274 | I8: =IF(C8="","",+C8*F8*24*365) -> 45324.24 | J8: =IF($I8="","",(1/(1+$C$3)^(J$6+$E8))*$I8*$C$2*$H8) -> 3933650758 | K8: =IF($I8="","",(1/(1+$C$3)^(K$6+$E8))*$I8*$C$2*$H8) -> 3518471161 | L8: 3147111951 | M8: 2814948078 | N8: 2517842646 | O8: 2252095390 | P8: 2014396592 | Q8: 1801785860 | R8: 1611615260 | S8: 1441516332 | T8: 1289370601 | U8: 1153283186 | V8: 1031559200 | W8: 922682647.6 | X8: =IF($I8="","",(1/(1+$C$3)^(X$6+$E8))*$I8*$C$2*$H8) -> 825297538.1 | Y8: =IF(X8="","",SUM(J8:X8)) -> 3.02756272e+10 | Z8: =IF(C8=0,0,IF(Y8="","",Y8/(C8*1000))) -> 1521388.302
A9: =IF(ISBLANK(InfoPro!A3),"",InfoPro!A3) -> SC_544_A2 | B9: =IF(ISBLANK(InfoPro!B3),"",InfoPro!B3) -> SORACÁ 19.9 MW | C9: =IF(ISBLANK(InfoPro!E3),"",InfoPro!E3) -> 19.9 | D9: =IF(ISBLANK(InfoPro!F3),"",InfoPro!F3) -> Solar FV | E9: =IF(ISBLANK(InfoPro!I3),"",YEAR(InfoPro!I3)-$H$3) -> 2 | F9: =IF(B9="","",VLOOKUP(D9,Tablas!$B$2:$E$13,2,FALSE)) -> 0.26 | G9: =IF(B9="","",VLOOKUP(D9,Tablas!$B$2:$H$13,7,FALSE)) -> 83577.2 | H9: =IF(B9="","",($C$2-(G9))/$C$2) -> 0.564831274 | I9: =IF(C9="","",+C9*F9*24*365) -> 45324.24 | J9: 3933650758 | K9: 3518471161 | L9: 3147111951 | M9: 2814948078 | N9: 2517842646 | O9: 2252095390 | P9: 2014396592 | Q9: 1801785860 | R9: 1611615260 | S9: 1441516332 | T9: 1289370601 | U9: 1153283186 | V9: 1031559200 | W9: 922682647.6 | X9: 825297538.1 | Y9: =IF(X9="","",SUM(J9:X9)) -> 3.02756272e+10 | Z9: =IF(C9=0,0,IF(Y9="","",Y9/(C9*1000))) -> 1521388.302
A10: =IF(ISBLANK(InfoPro!A4),"",InfoPro!A4) -> SC_486_A1 | B10: =IF(ISBLANK(InfoPro!B4),"",InfoPro!B4) -> Tintal 9,9 MW | C10: =IF(ISBLANK(InfoPro!E4),"",InfoPro!E4) -> 9.9 | D10: =IF(ISBLANK(InfoPro!F4),"",InfoPro!F4) -> Solar FV | E10: =IF(ISBLANK(InfoPro!I4),"",YEAR(InfoPro!I4)-$H$3) -> 2 | F10: =IF(B10="","",VLOOKUP(D10,Tablas!$B$2:$E$13,2,FALSE)) -> 0.26 | G10: =IF(B10="","",VLOOKUP(D10,Tablas!$B$2:$H$13,7,FALSE)) -> 83577.2 | H10: 0.564831274 | I10: 22548.24 | J10: 1956941835 | K10: 1750395201 | L10: 1565648659 | M10: 1400401305 | N10: 1252595085 | O10: 1120389164 | P10: 1002136998 | Q10: 896365830 | R10: 801758345.3 | S10: 717136265.9 | T10: 641445676.1 | U10: 573743896.3 | V10: 513187742.7 | W10: 459023025.7 | X10: 410575157.1 | Y10: 1.506174419e+10 | Z10: =IF(C10=0,0,IF(Y10="","",Y10/(C10*1000))) -> 1521388.302
A11: =IF(ISBLANK(InfoPro!A5),"",InfoPro!A5) -> SC_486_A2 | B11: =IF(ISBLANK(InfoPro!B5),"",InfoPro!B5) -> Tintal 9,9 MW | C11: =IF(ISBLANK(InfoPro!E5),"",InfoPro!E5) -> 9.9 | D11: =IF(ISBLANK(InfoPro!F5),"",InfoPro!F5) -> Solar FV | E11: =IF(ISBLANK(InfoPro!I5),"",YEAR(InfoPro!I5)-$H$3) -> 2 | F11: =IF(B11="","",VLOOKUP(D11,Tablas!$B$2:$E$13,2,FALSE)) -> 0.26 | G11: =IF(B11="","",VLOOKUP(D11,Tablas!$B$2:$H$13,7,FALSE)) -> 83577.2 | H11: 0.564831274 | I11: 22548.24 | J11: 1956941835 | K11: 1750395201 | L11: 1565648659 | M11: 1400401305 | N11: 1252595085 | O11: 1120389164 | P11: 1002136998 | Q11: 896365830 | R11: 801758345.3 | S11: 717136265.9 | T11: 641445676.1 | U11: 573743896.3 | V11: 513187742.7 | W11: 459023025.7 | X11: 410575157.1 | Y11: 1.506174419e+10 | Z11: 1521388.302
A12: =IF(ISBLANK(InfoPro!A6),"",InfoPro!A6) -> SC_1055_A1 | B12: =IF(ISBLANK(InfoPro!B6),"",InfoPro!B6) -> Parque Solar Fotovoltaico Higueras | C12: =IF(ISBLANK(InfoPro!E6),"",InfoPro!E6) -> 40 | D12: =IF(ISBLANK(InfoPro!F6),"",InfoPro!F6) -> Solar FV | E12: =IF(ISBLANK(InfoPro!I6),"",YEAR(InfoPro!I6)-$H$3) -> 4 | F12: =IF(B12="","",VLOOKUP(D12,Tablas!$B$2:$E$13,2,FALSE)) -> 0.26 | G12: =IF(B12="","",VLOOKUP(D12,Tablas!$B$2:$H$13,7,FALSE)) -> 83577.2 | H12: 0.564831274 | I12: 91104 | J12: 6325853168 | K12: 5658187091 | L12: 5060990242 | M12: 4526824904 | N12: 4049038376 | O12: 3621680121 | P12: 3239427658 | Q12: 2897520266 | R12: 2591699701 | S12: 2318157157 | T12: 2073485829 | U12: 1854638488 | V12: 1658889524 | W12: 1483801005 | X12: 1327192312 | Y12: 4.868738584e+10 | Z12: 1217184.646
A13: =IF(ISBLANK(InfoPro!A7),"",InfoPro!A7) -> SC_1055_A2 | B13: =IF(ISBLANK(InfoPro!B7),"",InfoPro!B7) -> Parque Solar Fotovoltaico Higueras | C13: =IF(ISBLANK(InfoPro!E7),"",InfoPro!E7) -> 40 | D13: =IF(ISBLANK(InfoPro!F7),"",InfoPro!F7) -> Solar FV | E13: =IF(ISBLANK(InfoPro!I7),"",YEAR(InfoPro!I7)-$H$3) -> 4 | F13: =IF(B13="","",VLOOKUP(D13,Tablas!$B$2:$E$13,2,FALSE)) -> 0.26 | G13: =IF(B13="","",VLOOKUP(D13,Tablas!$B$2:$H$13,7,FALSE)) -> 83577.2 | H13: 0.564831274 | I13: 91104 | J13: 6325853168 | K13: 5658187091 | L13: 5060990242 | M13: 4526824904 | N13: 4049038376 | O13: 3621680121 | P13: 3239427658 | Q13: 2897520266 | R13: 2591699701 | S13: 2318157157 | T13: 2073485829 | U13: 1854638488 | V13: 1658889524 | W13: 1483801005 | X13: 1327192312 | Y13: 4.868738584e+10 | Z13: 1217184.646
A14: =IF(ISBLANK(InfoPro!A8),"",InfoPro!A8) -> SC_1320_A1 | B14: =IF(ISBLANK(InfoPro!B8),"",InfoPro!B8) -> La Ramada Solar I | C14: =IF(ISBLANK(InfoPro!E8),"",InfoPro!E8) -> 9.9 | D14: =IF(ISBLANK(InfoPro!F8),"",InfoPro!F8) -> Solar FV | E14: =IF(ISBLANK(InfoPro!I8),"",YEAR(InfoPro!I8)-$H$3) -> 2 | F14: =IF(B14="","",VLOOKUP(D14,Tablas!$B$2:$E$13,2,FALSE)) -> 0.26 | G14: =IF(B14="","",VLOOKUP(D14,Tablas!$B$2:$H$13,7,FALSE)) -> 83577.2 | H14: 0.564831274 | I14: 22548.24 | J14: 1956941835 | K14: 1750395201 | L14: 1565648659 | M14: 1400401305 | N14: 1252595085 | O14: 1120389164 | P14: 1002136998 | Q14: 896365830 | R14: 801758345.3 | S14: 717136265.9 | T14: 641445676.1 | U14: 573743896.3 | V14: 513187742.7 | W14: 459023025.7 | X14: 410575157.1 | Y14: 1.506174419e+10 | Z14: 1521388.302
A15: =IF(ISBLANK(InfoPro!A9),"",InfoPro!A9) -> SC_1320_A2 | B15: =IF(ISBLANK(InfoPro!B9),"",InfoPro!B9) -> La Ramada Solar I | C15: =IF(ISBLANK(InfoPro!E9),"",InfoPro!E9) -> 9.9 | D15: =IF(ISBLANK(InfoPro!F9),"",InfoPro!F9) -> Solar FV | E15: =IF(ISBLANK(InfoPro!I9),"",YEAR(InfoPro!I9)-$H$3) -> 2 | F15: =IF(B15="","",VLOOKUP(D15,Tablas!$B$2:$E$13,2,FALSE)) -> 0.26 | G15: =IF(B15="","",VLOOKUP(D15,Tablas!$B$2:$H$13,7,FALSE)) -> 83577.2 | H15: 0.564831274 | I15: 22548.24 | J15: 1956941835 | K15: 1750395201 | L15: 1565648659 | M15: 1400401305 | N15: 1252595085 | O15: 1120389164 | P15: 1002136998 | Q15: 896365830 | R15: 801758345.3 | S15: 717136265.9 | T15: 641445676.1 | U15: 573743896.3 | V15: 513187742.7 | W15: 459023025.7 | X15: 410575157.1 | Y15: 1.506174419e+10 | Z15: 1521388.302
A16: =IF(ISBLANK(InfoPro!A10),"",InfoPro!A10) -> SC_1328_A1 | B16: =IF(ISBLANK(InfoPro!B10),"",InfoPro!B10) -> La Ramada Solar II | C16: =IF(ISBLANK(InfoPro!E10),"",InfoPro!E10) -> 9.9 | D16: =IF(ISBLANK(InfoPro!F10),"",InfoPro!F10) -> Solar FV | E16: =IF(ISBLANK(InfoPro!I10),"",YEAR(InfoPro!I10)-$H$3) -> 2 | F16: =IF(B16="","",VLOOKUP(D16,Tablas!$B$2:$E$13,2,FALSE)) -> 0.26 | G16: =IF(B16="","",VLOOKUP(D16,Tablas!$B$2:$H$13,7,FALSE)) -> 83577.2 | H16: 0.564831274 | I16: 22548.24 | J16: 1956941835 | K16: 1750395201 | L16: 1565648659 | M16: 1400401305 | N16: 1252595085 | O16: 1120389164 | P16: 1002136998 | Q16: 896365830 | R16: 801758345.3 | S16: 717136265.9 | T16: 641445676.1 | U16: 573743896.3 | V16: 513187742.7 | W16: 459023025.7 | X16: 410575157.1 | Y16: 1.506174419e+10 | Z16: 1521388.302
A17: =IF(ISBLANK(InfoPro!A11),"",InfoPro!A11) -> SC_1328_A2 | B17: =IF(ISBLANK(InfoPro!B11),"",InfoPro!B11) -> La Ramada Solar II | C17: =IF(ISBLANK(InfoPro!E11),"",InfoPro!E11) -> 9.9 | D17: =IF(ISBLANK(InfoPro!F11),"",InfoPro!F11) -> Solar FV | E17: =IF(ISBLANK(InfoPro!I11),"",YEAR(InfoPro!I11)-$H$3) -> 2 | F17: =IF(B17="","",VLOOKUP(D17,Tablas!$B$2:$E$13,2,FALSE)) -> 0.26 | G17: =IF(B17="","",VLOOKUP(D17,Tablas!$B$2:$H$13,7,FALSE)) -> 83577.2 | H17: 0.564831274 | I17: 22548.24 | J17: 1956941835 | K17: 1750395201 | L17: 1565648659 | M17: 1400401305 | N17: 1252595085 | O17: 1120389164 | P17: 1002136998 | Q17: 896365830 | R17: 801758345.3 | S17: 717136265.9 | T17: 641445676.1 | U17: 573743896.3 | V17: 513187742.7 | W17: 459023025.7 | X17: 410575157.1 | Y17: 1.506174419e+10 | Z17: 1521388.302
A18: =IF(ISBLANK(InfoPro!A12),"",InfoPro!A12) -> SC_659_A1 | B18: =IF(ISBLANK(InfoPro!B12),"",InfoPro!B12) -> TR Solar 9 | C18: =IF(ISBLANK(InfoPro!E12),"",InfoPro!E12) -> 50 | D18: =IF(ISBLANK(InfoPro!F12),"",InfoPro!F12) -> Solar FV | E18: =IF(ISBLANK(InfoPro!I12),"",YEAR(InfoPro!I12)-$H$3) -> 3 | F18: =IF(B18="","",VLOOKUP(D18,Tablas!$B$2:$E$13,2,FALSE)) -> 0.26 | G18: =IF(B18="","",VLOOKUP(D18,Tablas!$B$2:$H$13,7,FALSE)) -> 83577.2 | H18: 0.564831274 | I18: 113880 | J18: =IF($I18="","",(1/(1+$C$3)^(J$6+$E18))*$I18*$C$2*$H18) -> 8840379802 | K18: 7907316460 | L18: 7072733864 | M18: 6326237803 | N18: 5658531130 | O18: 5061297969 | P18: 4527100152 | Q18: 4049284572 | R18: 3621900333 | S18: 3239624627 | T18: 2897696446 | U18: 2591857286 | V18: 2318298109 | W18: 2073611905 | X18: 1854751256 | Y18: 6.804062171e+10 | Z18: 1360812.434
A19: =IF(ISBLANK(InfoPro!A13),"",InfoPro!A13) -> SC_659_A2 | B19: =IF(ISBLANK(InfoPro!B13),"",InfoPro!B13) -> TR Solar 9 | C19: =IF(ISBLANK(InfoPro!E13),"",InfoPro!E13) -> 50 | D19: =IF(ISBLANK(InfoPro!F13),"",InfoPro!F13) -> Solar FV | E19: =IF(ISBLANK(InfoPro!I13),"",YEAR(InfoPro!I13)-$H$3) -> 3 | F19: =IF(B19="","",VLOOKUP(D19,Tablas!$B$2:$E$13,2,FALSE)) -> 0.26 | G19: =IF(B19="","",VLOOKUP(D19,Tablas!$B$2:$H$13,7,FALSE)) -> 83577.2 | H19: 0.564831274 | I19: 113880 | J19: 8840379802 | K19: 7907316460 | L19: 7072733864 | M19: 6326237803 | N19: 5658531130 | O19: 5061297969 | P19: 4527100152 | Q19: 4049284572 | R19: 3621900333 | S19: 3239624627 | T19: 2897696446 | U19: 2591857286 | V19: 2318298109 | W19: 2073611905 | X19: 1854751256 | Y19: 6.804062171e+10 | Z19: 1360812.434
A20: =IF(ISBLANK(InfoPro!A14),"",InfoPro!A14) -> SC_1222_A1 | B20: =IF(ISBLANK(InfoPro!B14),"",InfoPro!B14) -> Parque Eolico Villanueva | C20: =IF(ISBLANK(InfoPro!E14),"",InfoPro!E14) -> 70 | D20: =IF(ISBLANK(InfoPro!F14),"",InfoPro!F14) -> Eólico Onshore | E20: =IF(ISBLANK(InfoPro!I14),"",YEAR(InfoPro!I14)-$H$3) -> 2 | F20: =IF(B20="","",VLOOKUP(D20,Tablas!$B$2:$E$13,2,FALSE)) -> 0.57 | G20: =IF(B20="","",VLOOKUP(D20,Tablas!$B$2:$H$13,7,FALSE)) -> 83577.2 | H20: 0.564831274 | I20: 349524 | J20: 3.033487925e+10 | K20: 2.71331657e+10 | L20: 2.426937898e+10 | M20: 2.17078524e+10 | N20: 1.941668372e+10 | O20: 1.736733785e+10 | P20: 1.553429146e+10 | Q20: 1.389471508e+10 | R20: 1.24281888e+10 | S20: 1.111644794e+10 | T20: 9943155585 | U20: 8893699092 | V20: 7955008133 | W20: 7115391890 | X20: 6364393461 | Y20: 2.334745894e+11 | Z20: 3335351.276
A21: =IF(ISBLANK(InfoPro!A15),"",InfoPro!A15) -> SC_800_A1 | B21: =IF(ISBLANK(InfoPro!B15),"",InfoPro!B15) -> Parque Solar Tuta | C21: =IF(ISBLANK(InfoPro!E15),"",InfoPro!E15) -> 2.72 | D21: =IF(ISBLANK(InfoPro!F15),"",InfoPro!F15) -> Solar FV | E21: =IF(ISBLANK(InfoPro!I15),"",YEAR(InfoPro!I15)-$H$3) -> 0 | F21: =IF(B21="","",VLOOKUP(D21,Tablas!$B$2:$E$13,2,FALSE)) -> 0.26 | G21: =IF(B21="","",VLOOKUP(D21,Tablas!$B$2:$H$13,7,FALSE)) -> 83577.2 | H21: 0.564831274 | I21: 6195.072 | J21: 672040171.5 | K21: 601109276.9 | L21: 537664827.3 | M21: 480916661.2 | N21: 430158015.4 | O21: 384756722.2 | P21: 344147336.5 | Q21: 307824093.5 | R21: 275334609.5 | S21: 246274248.2 | T21: 220281080.7 | U21: 197031378.1 | V21: 176235579.7 | W21: 157634686.7 | X21: 140997036.4 | Y21: 5172405724 | Z21: 1901619.751
A22: =IF(ISBLANK(InfoPro!A16),"",InfoPro!A16) -> SC_626_A1 | B22: =IF(ISBLANK(InfoPro!B16),"",InfoPro!B16) -> TR Solar 12 | C22: =IF(ISBLANK(InfoPro!E16),"",InfoPro!E16) -> 19.9 | D22: =IF(ISBLANK(InfoPro!F16),"",InfoPro!F16) -> Solar FV | E22: =IF(ISBLANK(InfoPro!I16),"",YEAR(InfoPro!I16)-$H$3) -> 2 | F22: =IF(B22="","",VLOOKUP(D22,Tablas!$B$2:$E$13,2,FALSE)) -> 0.26 | G22: =IF(B22="","",VLOOKUP(D22,Tablas!$B$2:$H$13,7,FALSE)) -> 83577.2 | H22: 0.564831274 | I22: 45324.24 | J22: 3933650758 | K22: 3518471161 | L22: 3147111951 | M22: 2814948078 | N22: 2517842646 | O22: 2252095390 | P22: 2014396592 | Q22: 1801785860 | R22: 1611615260 | S22: 1441516332 | T22: 1289370601 | U22: 1153283186 | V22: 1031559200 | W22: 922682647.6 | X22: 825297538.1 | Y22: 3.02756272e+10 | Z22: 1521388.302
A23: =IF(ISBLANK(InfoPro!A17),"",InfoPro!A17) -> SC_626_A2 | B23: =IF(ISBLANK(InfoPro!B17),"",InfoPro!B17) -> TR Solar 12 | C23: =IF(ISBLANK(InfoPro!E17),"",InfoPro!E17) -> 19.9 | D23: =IF(ISBLANK(InfoPro!F17),"",InfoPro!F17) -> Solar FV | E23: =IF(ISBLANK(InfoPro!I17),"",YEAR(InfoPro!I17)-$H$3) -> 2 | F23: =IF(B23="","",VLOOKUP(D23,Tablas!$B$2:$E$13,2,FALSE)) -> 0.26 | G23: =IF(B23="","",VLOOKUP(D23,Tablas!$B$2:$H$13,7,FALSE)) -> 83577.2 | H23: 0.564831274 | I23: 45324.24 | J23: 3933650758 | K23: 3518471161 | L23: 3147111951 | M23: 2814948078 | N23: 2517842646 | O23: 2252095390 | P23: 2014396592 | Q23: 1801785860 | R23: 1611615260 | S23: 1441516332 | T23: 1289370601 | U23: 1153283186 | V23: 1031559200 | W23: 922682647.6 | X23: 825297538.1 | Y23: 3.02756272e+10 | Z23: 1521388.302
A24: =IF(ISBLANK(InfoPro!A18),"",InfoPro!A18) -> SC_1064_A1 | B24: =IF(ISBLANK(InfoPro!B18),"",InfoPro!B18) -> Sua 60 MW | C24: =IF(ISBLANK(InfoPro!E18),"",InfoPro!E18) -> 60 | D24: =IF(ISBLANK(InfoPro!F18),"",InfoPro!F18) -> Solar FV | E24: =IF(ISBLANK(InfoPro!I18),"",YEAR(InfoPro!I18)-$H$3) -> 4 | F24: =IF(B24="","",VLOOKUP(D24,Tablas!$B$2:$E$13,2,FALSE)) -> 0.26 | G24: =IF(B24="","",VLOOKUP(D24,Tablas!$B$2:$H$13,7,FALSE)) -> 83577.2 | H24: 0.564831274 | I24: 136656 | J24: 9488779752 | K24: 8487280637 | L24: 7591485364 | M24: 6790237356 | N24: 6073557563 | O24: 5432520182 | P24: 4859141486 | Q24: 4346280399 | R24: 3887549552 | S24: 3477235735 | T24: 3110228744 | U24: 2781957731 | V24: 2488334286 | W24: 2225701508 | X24: 1990788468 | Y24: 7.303107876e+10 | Z24: 1217184.646
A25: =IF(ISBLANK(InfoPro!A19),"",InfoPro!A19) -> SC_1064_A2 | B25: =IF(ISBLANK(InfoPro!B19),"",InfoPro!B19) -> Sua 60 MW | C25: =IF(ISBLANK(InfoPro!E19),"",InfoPro!E19) -> 60 | D25: =IF(ISBLANK(InfoPro!F19),"",InfoPro!F19) -> Solar FV | E25: =IF(ISBLANK(InfoPro!I19),"",YEAR(InfoPro!I19)-$H$3) -> 4 | F25: =IF(B25="","",VLOOKUP(D25,Tablas!$B$2:$E$13,2,FALSE)) -> 0.26 | G25: =IF(B25="","",VLOOKUP(D25,Tablas!$B$2:$H$13,7,FALSE)) -> 83577.2 | H25: =IF(B25="","",($C$2-(G25))/$C$2) -> 0.564831274 | I25: =IF(C25="","",+C25*F25*24*365) -> 136656 | J25: 9488779752 | K25: 8487280637 | L25: 7591485364 | M25: 6790237356 | N25: 6073557563 | O25: 5432520182 | P25: 4859141486 | Q25: 4346280399 | R25: 3887549552 | S25: 3477235735 | T25: 3110228744 | U25: 2781957731 | V25: 2488334286 | W25: 2225701508 | X25: 1990788468 | Y25: =IF(X25="","",SUM(J25:X25)) -> 7.303107876e+10 | Z25: =IF(C25=0,0,IF(Y25="","",Y25/(C25*1000))) -> 1217184.646
A26: =IF(ISBLANK(InfoPro!A20),"",InfoPro!A20) -> SC_775_A2 | B26: =IF(ISBLANK(InfoPro!B20),"",InfoPro!B20) -> PCH Santa Rosa | C26: =IF(ISBLANK(InfoPro!E20),"",InfoPro!E20) -> 19.9 | D26: =IF(ISBLANK(InfoPro!F20),"",InfoPro!F20) -> PCH | E26: =IF(ISBLANK(InfoPro!I20),"",YEAR(InfoPro!I20)-$H$3) -> 4 | F26: =IF(B26="","",VLOOKUP(D26,Tablas!$B$2:$E$13,2,FALSE)) -> 0.54 | G26: =IF(B26="","",VLOOKUP(D26,Tablas!$B$2:$H$13,7,FALSE)) -> 158280.5 | H26: 0.1758670603 | I26: 94134.96 | J26: 2035159133 | K26: 1820357006 | L26: 1628226302 | M26: 1456374152 | N26: 1302660244 | O26: 1165170164 | P26: 1042191560 | Q26: 932192808.7 | R26: 833803943.4 | S26: 745799591.6 | T26: 667083713.4 | U26: 596675951.2 | V26: 533699419.7 | W26: 477369785 | X26: 426985496.4 | Y26: 1.566374927e+10 | Z26: 787123.0789
A27: =IF(ISBLANK(InfoPro!A19),"",InfoPro!A19) -> SC_1064_A2 | B27: =IF(ISBLANK(InfoPro!B19),"",InfoPro!B19) -> Sua 60 MW | C27: =IF(ISBLANK(InfoPro!E19),"",InfoPro!E19) -> 60 | D27: =IF(ISBLANK(InfoPro!F19),"",InfoPro!F19) -> Solar FV | E27: =IF(ISBLANK(InfoPro!I19),"",YEAR(InfoPro!I19)-$H$3) -> 4 | F27: =IF(B27="","",VLOOKUP(D27,Tablas!$B$2:$E$13,2,FALSE)) -> 0.26 | G27: =IF(B27="","",VLOOKUP(D27,Tablas!$B$2:$H$13,7,FALSE)) -> 83577.2 | H27: 0.564831274 | I27: 136656 | J27: 9488779752 | K27: 8487280637 | L27: 7591485364 | M27: 6790237356 | N27: 6073557563 | O27: 5432520182 | P27: 4859141486 | Q27: 4346280399 | R27: 3887549552 | S27: 3477235735 | T27: 3110228744 | U27: 2781957731 | V27: 2488334286 | W27: 2225701508 | X27: 1990788468 | Y27: 7.303107876e+10 | Z27: 1217184.646
A28: =IF(ISBLANK(InfoPro!A20),"",InfoPro!A20) -> SC_775_A2 | B28: =IF(ISBLANK(InfoPro!B20),"",InfoPro!B20) -> PCH Santa Rosa | C28: =IF(ISBLANK(InfoPro!E20),"",InfoPro!E20) -> 19.9 | D28: =IF(ISBLANK(InfoPro!F20),"",InfoPro!F20) -> PCH | E28: =IF(ISBLANK(InfoPro!I20),"",YEAR(InfoPro!I20)-$H$3) -> 4 | F28: =IF(B28="","",VLOOKUP(D28,Tablas!$B$2:$E$13,2,FALSE)) -> 0.54 | G28: =IF(B28="","",VLOOKUP(D28,Tablas!$B$2:$H$13,7,FALSE)) -> 158280.5 | H28: 0.1758670603 | I28: 94134.96 | J28: =IF($I28="","",(1/(1+$C$3)^(J$6+$E28))*$I28*$C$2*$H28) -> 2035159133 | K28: 1820357006 | L28: 1628226302 | M28: 1456374152 | N28: 1302660244 | O28: 1165170164 | P28: 1042191560 | Q28: 932192808.7 | R28: 833803943.4 | S28: 745799591.6 | T28: 667083713.4 | U28: 596675951.2 | V28: 533699419.7 | W28: 477369785 | X28: 426985496.4 | Y28: 1.566374927e+10 | Z28: 787123.0789
A29: =IF(ISBLANK(InfoPro!A21),"",InfoPro!A21) -> SC_776_A2 | B29: =IF(ISBLANK(InfoPro!B21),"",InfoPro!B21) -> PCH Güepsa | C29: =IF(ISBLANK(InfoPro!E21),"",InfoPro!E21) -> 19.9 | D29: =IF(ISBLANK(InfoPro!F21),"",InfoPro!F21) -> PCH | E29: =IF(ISBLANK(InfoPro!I21),"",YEAR(InfoPro!I21)-$H$3) -> 4 | F29: =IF(B29="","",VLOOKUP(D29,Tablas!$B$2:$E$13,2,FALSE)) -> 0.54 | G29: =IF(B29="","",VLOOKUP(D29,Tablas!$B$2:$H$13,7,FALSE)) -> 158280.5 | H29: 0.1758670603 | I29: 94134.96 | J29: 2035159133 | K29: 1820357006 | L29: 1628226302 | M29: 1456374152 | N29: 1302660244 | O29: 1165170164 | P29: 1042191560 | Q29: 932192808.7 | R29: 833803943.4 | S29: 745799591.6 | T29: 667083713.4 | U29: 596675951.2 | V29: 533699419.7 | W29: 477369785 | X29: 426985496.4 | Y29: 1.566374927e+10 | Z29: 787123.0789
A30: =IF(ISBLANK(InfoPro!A22),"",InfoPro!A22) -> SC_777_A2 | B30: =IF(ISBLANK(InfoPro!B22),"",InfoPro!B22) -> PCH El Rincón | C30: =IF(ISBLANK(InfoPro!E22),"",InfoPro!E22) -> 19.9 | D30: =IF(ISBLANK(InfoPro!F22),"",InfoPro!F22) -> PCH | E30: =IF(ISBLANK(InfoPro!I22),"",YEAR(InfoPro!I22)-$H$3) -> 4 | F30: =IF(B30="","",VLOOKUP(D30,Tablas!$B$2:$E$13,2,FALSE)) -> 0.54 | G30: =IF(B30="","",VLOOKUP(D30,Tablas!$B$2:$H$13,7,FALSE)) -> 158280.5 | H30: 0.1758670603 | I30: 94134.96 | J30: 2035159133 | K30: 1820357006 | L30: 1628226302 | M30: 1456374152 | N30: 1302660244 | O30: 1165170164 | P30: 1042191560 | Q30: 932192808.7 | R30: 833803943.4 | S30: 745799591.6 | T30: 667083713.4 | U30: 596675951.2 | V30: 533699419.7 | W30: 477369785 | X30: 426985496.4 | Y30: 1.566374927e+10 | Z30: 787123.0789
A31: =IF(ISBLANK(InfoPro!A23),"",InfoPro!A23) -> SC_780_A1 | B31: =IF(ISBLANK(InfoPro!B23),"",InfoPro!B23) -> PCH Canutillo | C31: =IF(ISBLANK(InfoPro!E23),"",InfoPro!E23) -> 8.72 | D31: =IF(ISBLANK(InfoPro!F23),"",InfoPro!F23) -> PCH | E31: =IF(ISBLANK(InfoPro!I23),"",YEAR(InfoPro!I23)-$H$3) -> 4 | F31: =IF(B31="","",VLOOKUP(D31,Tablas!$B$2:$E$13,2,FALSE)) -> 0.54 | G31: =IF(B31="","",VLOOKUP(D31,Tablas!$B$2:$H$13,7,FALSE)) -> 158280.5 | H31: 0.1758670603 | I31: 41249.088 | J31: 891788323.5 | K31: 797663974.5 | L31: 713474038 | M31: 638169980.3 | N31: 570813935.9 | O31: 510567026.7 | P31: 456678914.8 | Q31: 408478456.9 | R31: 365365346.1 | S31: 326802635.1 | T31: 292310049.3 | U31: 261458004.7 | V31: 233862258.3 | W31: 209179121.9 | X31: 187101182.4 | Y31: 6863713248 | Z31: 787123.0789
A32: =IF(ISBLANK(InfoPro!A24),"",InfoPro!A24) -> SC_780_A2 | B32: =IF(ISBLANK(InfoPro!B24),"",InfoPro!B24) -> PCH Canutillo | C32: =IF(ISBLANK(InfoPro!E24),"",InfoPro!E24) -> 8.72 | D32: =IF(ISBLANK(InfoPro!F24),"",InfoPro!F24) -> PCH | E32: =IF(ISBLANK(InfoPro!I24),"",YEAR(InfoPro!I24)-$H$3) -> 4 | F32: =IF(B32="","",VLOOKUP(D32,Tablas!$B$2:$E$13,2,FALSE)) -> 0.54 | G32: =IF(B32="","",VLOOKUP(D32,Tablas!$B$2:$H$13,7,FALSE)) -> 158280.5 | H32: 0.1758670603 | I32: 41249.088 | J32: 891788323.5 | K32: 797663974.5 | L32: 713474038 | M32: 638169980.3 | N32: 570813935.9 | O32: 510567026.7 | P32: 456678914.8 | Q32: 408478456.9 | R32: 365365346.1 | S32: 326802635.1 | T32: 292310049.3 | U32: 261458004.7 | V32: 233862258.3 | W32: 209179121.9 | X32: 187101182.4 | Y32: 6863713248 | Z32: 787123.0789
A33: =IF(ISBLANK(InfoPro!A25),"",InfoPro!A25) -> SC_779_A1 | B33: =IF(ISBLANK(InfoPro!B25),"",InfoPro!B25) -> PCH El Puerto | C33: =IF(ISBLANK(InfoPro!E25),"",InfoPro!E25) -> 19.9 | D33: =IF(ISBLANK(InfoPro!F25),"",InfoPro!F25) -> PCH | E33: =IF(ISBLANK(InfoPro!I25),"",YEAR(InfoPro!I25)-$H$3) -> 4 | F33: =IF(B33="","",VLOOKUP(D33,Tablas!$B$2:$E$13,2,FALSE)) -> 0.54 | G33: =IF(B33="","",VLOOKUP(D33,Tablas!$B$2:$H$13,7,FALSE)) -> 158280.5 | H33: 0.1758670603 | I33: 94134.96 | J33: 2035159133 | K33: 1820357006 | L33: 1628226302 | M33: 1456374152 | N33: 1302660244 | O33: 1165170164 | P33: 1042191560 | Q33: 932192808.7 | R33: 833803943.4 | S33: 745799591.6 | T33: 667083713.4 | U33: 596675951.2 | V33: 533699419.7 | W33: 477369785 | X33: 426985496.4 | Y33: 1.566374927e+10 | Z33: 787123.0789
A34: =IF(ISBLANK(InfoPro!A26),"",InfoPro!A26) -> SC_779_A2 | B34: =IF(ISBLANK(InfoPro!B26),"",InfoPro!B26) -> PCH El Puerto | C34: =IF(ISBLANK(InfoPro!E26),"",InfoPro!E26) -> 19.9 | D34: =IF(ISBLANK(InfoPro!F26),"",InfoPro!F26) -> PCH | E34: =IF(ISBLANK(InfoPro!I26),"",YEAR(InfoPro!I26)-$H$3) -> 4 | F34: =IF(B34="","",VLOOKUP(D34,Tablas!$B$2:$E$13,2,FALSE)) -> 0.54 | G34: =IF(B34="","",VLOOKUP(D34,Tablas!$B$2:$H$13,7,FALSE)) -> 158280.5 | H34: 0.1758670603 | I34: 94134.96 | J34: 2035159133 | K34: 1820357006 | L34: 1628226302 | M34: 1456374152 | N34: 1302660244 | O34: 1165170164 | P34: 1042191560 | Q34: 932192808.7 | R34: 833803943.4 | S34: 745799591.6 | T34: 667083713.4 | U34: 596675951.2 | V34: 533699419.7 | W34: 477369785 | X34: 426985496.4 | Y34: 1.566374927e+10 | Z34: 787123.0789
A35: =IF(ISBLANK(InfoPro!A27),"",InfoPro!A27) -> SC_1477_A1 | B35: =IF(ISBLANK(InfoPro!B27),"",InfoPro!B27) -> Prque Solar Belencito APDR_0MW (AUTOGENERADOR) | C35: =IF(ISBLANK(InfoPro!E27),"",InfoPro!E27) -> 0 | D35: =IF(ISBLANK(InfoPro!F27),"",InfoPro!F27) -> Solar FV | E35: =IF(ISBLANK(InfoPro!I27),"",YEAR(InfoPro!I27)-$H$3) -> 1 | F35: =IF(B35="","",VLOOKUP(D35,Tablas!$B$2:$E$13,2,FALSE)) -> 0.26 | G35: =IF(B35="","",VLOOKUP(D35,Tablas!$B$2:$H$13,7,FALSE)) -> 83577.2 | H35: 0.564831274 | I35: 0 | J35: 0 | K35: 0 | L35: 0 | M35: 0 | N35: 0 | O35: 0 | P35: 0 | Q35: 0 | R35: 0 | S35: 0 | T35: 0 | U35: 0 | V35: 0 | W35: 0 | X35: 0 | Y35: 0 | Z35: 0
A36: =IF(ISBLANK(InfoPro!A28),"",InfoPro!A28) -> SC_1477_A2 | B36: =IF(ISBLANK(InfoPro!B28),"",InfoPro!B28) -> Prque Solar Belencito APDR_0MW (AUTOGENERADOR) | C36: =IF(ISBLANK(InfoPro!E28),"",InfoPro!E28) -> 0 | D36: =IF(ISBLANK(InfoPro!F28),"",InfoPro!F28) -> Solar FV | E36: =IF(ISBLANK(InfoPro!I28),"",YEAR(InfoPro!I28)-$H$3) -> 1 | F36: =IF(B36="","",VLOOKUP(D36,Tablas!$B$2:$E$13,2,FALSE)) -> 0.26 | G36: =IF(B36="","",VLOOKUP(D36,Tablas!$B$2:$H$13,7,FALSE)) -> 83577.2 | H36: 0.564831274 | I36: 0 | J36: 0 | K36: 0 | L36: 0 | M36: 0 | N36: 0 | O36: 0 | P36: 0 | Q36: 0 | R36: 0 | S36: 0 | T36: 0 | U36: 0 | V36: 0 | W36: 0 | X36: 0 | Y36: 0 | Z36: 0
A37: =IF(ISBLANK(InfoPro!A29),"",InfoPro!A29) -> SC_1481_A1 | B37: =IF(ISBLANK(InfoPro!B29),"",InfoPro!B29) -> Oslo II_150MW | C37: =IF(ISBLANK(InfoPro!E29),"",InfoPro!E29) -> 150 | D37: =IF(ISBLANK(InfoPro!F29),"",InfoPro!F29) -> Solar FV | E37: =IF(ISBLANK(InfoPro!I29),"",YEAR(InfoPro!I29)-$H$3) -> 4 | F37: =IF(B37="","",VLOOKUP(D37,Tablas!$B$2:$E$13,2,FALSE)) -> 0.26 | G37: =IF(B37="","",VLOOKUP(D37,Tablas!$B$2:$H$13,7,FALSE)) -> 83577.2 | H37: 0.564831274 | I37: 341640 | J37: 2.372194938e+10 | K37: 2.121820159e+10 | L37: 1.897871341e+10 | M37: 1.697559339e+10 | N37: 1.518389391e+10 | O37: 1.358130045e+10 | P37: 1.214785372e+10 | Q37: 1.0865701e+10 | R37: 9718873880 | S37: 8693089338 | T37: 7775571859 | U37: 6954894328 | V37: 6220835714 | W37: 5564253769 | X37: 4976971171 | Y37: 1.825776969e+11 | Z37: 1217184.646
A38: =IF(ISBLANK(InfoPro!A30),"",InfoPro!A30) -> SC_1481_A2 | B38: =IF(ISBLANK(InfoPro!B30),"",InfoPro!B30) -> Oslo II_150MW | C38: =IF(ISBLANK(InfoPro!E30),"",InfoPro!E30) -> 150 | D38: =IF(ISBLANK(InfoPro!F30),"",InfoPro!F30) -> Solar FV | E38: =IF(ISBLANK(InfoPro!I30),"",YEAR(InfoPro!I30)-$H$3) -> 4 | F38: =IF(B38="","",VLOOKUP(D38,Tablas!$B$2:$E$13,2,FALSE)) -> 0.26 | G38: =IF(B38="","",VLOOKUP(D38,Tablas!$B$2:$H$13,7,FALSE)) -> 83577.2 | H38: 0.564831274 | I38: 341640 | J38: =IF($I38="","",(1/(1+$C$3)^(J$6+$E38))*$I38*$C$2*$H38) -> 2.372194938e+10 | K38: 2.121820159e+10 | L38: 1.897871341e+10 | M38: 1.697559339e+10 | N38: 1.518389391e+10 | O38: 1.358130045e+10 | P38: 1.214785372e+10 | Q38: 1.0865701e+10 | R38: 9718873880 | S38: 8693089338 | T38: 7775571859 | U38: 6954894328 | V38: 6220835714 | W38: 5564253769 | X38: 4976971171 | Y38: 1.825776969e+11 | Z38: 1217184.646
A39: =IF(ISBLANK(InfoPro!A31),"",InfoPro!A31) -> SC_1633_A1 | B39: =IF(ISBLANK(InfoPro!B31),"",InfoPro!B31) -> Nobsa 9.9 MW | C39: =IF(ISBLANK(InfoPro!E31),"",InfoPro!E31) -> 9.9 | D39: =IF(ISBLANK(InfoPro!F31),"",InfoPro!F31) -> Solar FV | E39: =IF(ISBLANK(InfoPro!I31),"",YEAR(InfoPro!I31)-$H$3) -> 1 | F39: =IF(B39="","",VLOOKUP(D39,Tablas!$B$2:$E$13,2,FALSE)) -> 0.26 | G39: =IF(B39="","",VLOOKUP(D39,Tablas!$B$2:$H$13,7,FALSE)) -> 83577.2 | H39: 0.564831274 | I39: 22548.24 | J39: 2187860971 | K39: 1956941835 | L39: 1750395201 | M39: 1565648659 | N39: 1400401305 | O39: 1252595085 | P39: 1120389164 | Q39: 1002136998 | R39: 896365830 | S39: 801758345.3 | T39: 717136265.9 | U39: 641445676.1 | V39: 573743896.3 | W39: 513187742.7 | X39: 459023025.7 | Y39: 1.683903e+10 | Z39: 1700912.121
A40: =IF(ISBLANK(InfoPro!A32),"",InfoPro!A32) -> SC_1633_A2 | B40: =IF(ISBLANK(InfoPro!B32),"",InfoPro!B32) -> Nobsa 9.9 MW | C40: =IF(ISBLANK(InfoPro!E32),"",InfoPro!E32) -> 9.9 | D40: =IF(ISBLANK(InfoPro!F32),"",InfoPro!F32) -> Solar FV | E40: =IF(ISBLANK(InfoPro!I32),"",YEAR(InfoPro!I32)-$H$3) -> 1 | F40: =IF(B40="","",VLOOKUP(D40,Tablas!$B$2:$E$13,2,FALSE)) -> 0.26 | G40: =IF(B40="","",VLOOKUP(D40,Tablas!$B$2:$H$13,7,FALSE)) -> 83577.2 | H40: 0.564831274 | I40: =IF(C40="","",+C40*F40*24*365) -> 22548.24 | J40: 2187860971 | K40: 1956941835 | L40: 1750395201 | M40: 1565648659 | N40: 1400401305 | O40: 1252595085 | P40: 1120389164 | Q40: 1002136998 | R40: 896365830 | S40: 801758345.3 | T40: 717136265.9 | U40: 641445676.1 | V40: 573743896.3 | W40: 513187742.7 | X40: 459023025.7 | Y40: 1.683903e+10 | Z40: 1700912.121
A41: =IF(ISBLANK(InfoPro!A33),"",InfoPro!A33) -> SC_1890_A1 | B41: =IF(ISBLANK(InfoPro!B33),"",InfoPro!B33) -> Duitama I 40 MW | C41: =IF(ISBLANK(InfoPro!E33),"",InfoPro!E33) -> 40 | D41: =IF(ISBLANK(InfoPro!F33),"",InfoPro!F33) -> Solar FV | E41: =IF(ISBLANK(InfoPro!I33),"",YEAR(InfoPro!I33)-$H$3) -> 1 | F41: =IF(B41="","",VLOOKUP(D41,Tablas!$B$2:$E$13,2,FALSE)) -> 0.26 | G41: =IF(B41="","",VLOOKUP(D41,Tablas!$B$2:$H$13,7,FALSE)) -> 83577.2 | H41: 0.564831274 | I41: 91104 | J41: 8839842307 | K41: 7906835695 | L41: 7072303842 | M41: 6325853168 | N41: 5658187091 | O41: 5060990242 | P41: 4526824904 | Q41: 4049038376 | R41: 3621680121 | S41: 3239427658 | T41: 2897520266 | U41: 2591699701 | V41: 2318157157 | W41: 2073485829 | X41: 1854638488 | Y41: 6.803648484e+10 | Z41: 1700912.121
A42: =IF(ISBLANK(InfoPro!A34),"",InfoPro!A34) -> SC_1890_A2 | B42: =IF(ISBLANK(InfoPro!B34),"",InfoPro!B34) -> Duitama I 40 MW | C42: =IF(ISBLANK(InfoPro!E34),"",InfoPro!E34) -> 40 | D42: =IF(ISBLANK(InfoPro!F34),"",InfoPro!F34) -> Solar FV | E42: =IF(ISBLANK(InfoPro!I34),"",YEAR(InfoPro!I34)-$H$3) -> 1 | F42: =IF(B42="","",VLOOKUP(D42,Tablas!$B$2:$E$13,2,FALSE)) -> 0.26 | G42: =IF(B42="","",VLOOKUP(D42,Tablas!$B$2:$H$13,7,FALSE)) -> 83577.2 | H42: 0.564831274 | I42: 91104 | J42: 8839842307 | K42: 7906835695 | L42: 7072303842 | M42: 6325853168 | N42: 5658187091 | O42: 5060990242 | P42: 4526824904 | Q42: 4049038376 | R42: 3621680121 | S42: 3239427658 | T42: 2897520266 | U42: 2591699701 | V42: 2318157157 | W42: 2073485829 | X42: 1854638488 | Y42: 6.803648484e+10 | Z42: 1700912.121
A43: =IF(ISBLANK(InfoPro!A35),"",InfoPro!A35) -> SC_1689_A1 | B43: =IF(ISBLANK(InfoPro!B35),"",InfoPro!B35) -> Parque Solar Fotovoltaico La Milagrosa 45 MW | C43: =IF(ISBLANK(InfoPro!E35),"",InfoPro!E35) -> 45 | D43: =IF(ISBLANK(InfoPro!F35),"",InfoPro!F35) -> Solar FV | E43: =IF(ISBLANK(InfoPro!I35),"",YEAR(InfoPro!I35)-$H$3) -> 3 | F43: =IF(B43="","",VLOOKUP(D43,Tablas!$B$2:$E$13,2,FALSE)) -> 0.26 | G43: =IF(B43="","",VLOOKUP(D43,Tablas!$B$2:$H$13,7,FALSE)) -> 83577.2 | H43: 0.564831274 | I43: 102492 | J43: 7956341822 | K43: 7116584814 | L43: 6365460477 | M43: 5693614023 | N43: 5092678017 | O43: 4555168172 | P43: 4074390136 | Q43: 3644356115 | R43: 3259710299 | S43: 2915662164 | T43: 2607926802 | U43: 2332671558 | V43: 2086468299 | W43: 1866250714 | X43: 1669276131 | Y43: 6.123655954e+10 | Z43: 1360812.434
A44: =IF(ISBLANK(InfoPro!A36),"",InfoPro!A36) -> SC_1689_A2 | B44: =IF(ISBLANK(InfoPro!B36),"",InfoPro!B36) -> Parque Solar Fotovoltaico La Milagrosa 45 MW | C44: =IF(ISBLANK(InfoPro!E36),"",InfoPro!E36) -> 45 | D44: =IF(ISBLANK(InfoPro!F36),"",InfoPro!F36) -> Solar FV | E44: =IF(ISBLANK(InfoPro!I36),"",YEAR(InfoPro!I36)-$H$3) -> 3 | F44: =IF(B44="","",VLOOKUP(D44,Tablas!$B$2:$E$13,2,FALSE)) -> 0.26 | G44: =IF(B44="","",VLOOKUP(D44,Tablas!$B$2:$H$13,7,FALSE)) -> 83577.2 | H44: 0.564831274 | I44: 102492 | J44: 7956341822 | K44: 7116584814 | L44: 6365460477 | M44: 5693614023 | N44: 5092678017 | O44: 4555168172 | P44: 4074390136 | Q44: 3644356115 | R44: 3259710299 | S44: 2915662164 | T44: 2607926802 | U44: 2332671558 | V44: 2086468299 | W44: 1866250714 | X44: 1669276131 | Y44: 6.123655954e+10 | Z44: 1360812.434
A45: =IF(ISBLANK(InfoPro!A37),"",InfoPro!A37) -> SC_1489_A1 | B45: =IF(ISBLANK(InfoPro!B37),"",InfoPro!B37) -> Acacias II de 40 MW | C45: =IF(ISBLANK(InfoPro!E37),"",InfoPro!E37) -> 40 | D45: =IF(ISBLANK(InfoPro!F37),"",InfoPro!F37) -> Solar FV | E45: =IF(ISBLANK(InfoPro!I37),"",YEAR(InfoPro!I37)-$H$3) -> 3 | F45: =IF(B45="","",VLOOKUP(D45,Tablas!$B$2:$E$13,2,FALSE)) -> 0.26 | G45: =IF(B45="","",VLOOKUP(D45,Tablas!$B$2:$H$13,7,FALSE)) -> 83577.2 | H45: 0.564831274 | I45: 91104 | J45: 7072303842 | K45: 6325853168 | L45: 5658187091 | M45: 5060990242 | N45: 4526824904 | O45: 4049038376 | P45: 3621680121 | Q45: 3239427658 | R45: 2897520266 | S45: 2591699701 | T45: 2318157157 | U45: 2073485829 | V45: 1854638488 | W45: 1658889524 | X45: 1483801005 | Y45: 5.443249737e+10 | Z45: 1360812.434
A46: =IF(ISBLANK(InfoPro!A38),"",InfoPro!A38) -> SC_1489_A2 | B46: =IF(ISBLANK(InfoPro!B38),"",InfoPro!B38) -> Acacias II de 40 MW | C46: =IF(ISBLANK(InfoPro!E38),"",InfoPro!E38) -> 40 | D46: =IF(ISBLANK(InfoPro!F38),"",InfoPro!F38) -> Solar FV | E46: =IF(ISBLANK(InfoPro!I38),"",YEAR(InfoPro!I38)-$H$3) -> 3 | F46: =IF(B46="","",VLOOKUP(D46,Tablas!$B$2:$E$13,2,FALSE)) -> 0.26 | G46: =IF(B46="","",VLOOKUP(D46,Tablas!$B$2:$H$13,7,FALSE)) -> 83577.2 | H46: 0.564831274 | I46: 91104 | J46: 7072303842 | K46: 6325853168 | L46: 5658187091 | M46: 5060990242 | N46: 4526824904 | O46: 4049038376 | P46: 3621680121 | Q46: 3239427658 | R46: 2897520266 | S46: 2591699701 | T46: 2318157157 | U46: 2073485829 | V46: 1854638488 | W46: 1658889524 | X46: 1483801005 | Y46: 5.443249737e+10 | Z46: 1360812.434
A47: =IF(ISBLANK(InfoPro!A39),"",InfoPro!A39) -> SC_1759_A1 | B47: =IF(ISBLANK(InfoPro!B39),"",InfoPro!B39) -> Aumento Excedentes Autog. Argos Sogamoso | C47: =IF(ISBLANK(InfoPro!E39),"",InfoPro!E39) -> 15 | D47: =IF(ISBLANK(InfoPro!F39),"",InfoPro!F39) -> Termica - Ciclo combinado | E47: =IF(ISBLANK(InfoPro!I39),"",YEAR(InfoPro!I39)-$H$3) -> 0 | F47: =IF(B47="","",VLOOKUP(D47,Tablas!$B$2:$E$13,2,FALSE)) -> 0.85 | G47: =IF(B47="","",VLOOKUP(D47,Tablas!$B$2:$H$13,7,FALSE)) -> 267152.5 | H47: -0.3910063158 | I47: 111690 | J47: -8387416395 | K47: -7502161355 | L47: -6710341105 | M47: -6002094011 | N47: -5368599295 | O47: -4801967169 | P47: -4295140580 | Q47: -3841807317 | R47: -3436321393 | S47: -3073632730 | T47: -2749224267 | U47: -2459055695 | V47: -2199513144 | W47: -1967364172 | X47: -1759717506 | Y47: -6.455435613e+10 | Z47: -4303623.742
A48: =IF(ISBLANK(InfoPro!A40),"",InfoPro!A40) -> SC_1774_A2 | B48: =IF(ISBLANK(InfoPro!B40),"",InfoPro!B40) -> Firavisol 8 MW | C48: =IF(ISBLANK(InfoPro!E40),"",InfoPro!E40) -> 8 | D48: =IF(ISBLANK(InfoPro!F40),"",InfoPro!F40) -> Solar FV | E48: =IF(ISBLANK(InfoPro!I40),"",YEAR(InfoPro!I40)-$H$3) -> 2 | F48: =IF(B48="","",VLOOKUP(D48,Tablas!$B$2:$E$13,2,FALSE)) -> 0.26 | G48: =IF(B48="","",VLOOKUP(D48,Tablas!$B$2:$H$13,7,FALSE)) -> 83577.2 | H48: 0.564831274 | I48: 18220.8 | J48: =IF($I48="","",(1/(1+$C$3)^(J$6+$E48))*$I48*$C$2*$H48) -> 1581367139 | K48: 1414460768 | L48: 1265170634 | M48: 1131637418 | N48: 1012198048 | O48: 905364980.8 | P48: 809807675.1 | Q48: 724336024.2 | R48: 647885531.5 | S48: 579504053.2 | T48: 518339940.3 | U48: 463631431.4 | V48: 414697165.8 | W48: 370927697.5 | X48: 331777904.8 | Y48: 1.217110641e+10 | Z48: 1521388.302
A49: =IF(ISBLANK(InfoPro!A41),"",InfoPro!A41) -> SC_1851_A1 | B49: =IF(ISBLANK(InfoPro!B41),"",InfoPro!B41) -> Zaino Solar 9,9MW | C49: =IF(ISBLANK(InfoPro!E41),"",InfoPro!E41) -> 9.9 | D49: =IF(ISBLANK(InfoPro!F41),"",InfoPro!F41) -> Solar FV | E49: =IF(ISBLANK(InfoPro!I41),"",YEAR(InfoPro!I41)-$H$3) -> 1 | F49: =IF(B49="","",VLOOKUP(D49,Tablas!$B$2:$E$13,2,FALSE)) -> 0.26 | G49: =IF(B49="","",VLOOKUP(D49,Tablas!$B$2:$H$13,7,FALSE)) -> 83577.2 | H49: 0.564831274 | I49: 22548.24 | J49: 2187860971 | K49: 1956941835 | L49: 1750395201 | M49: 1565648659 | N49: 1400401305 | O49: 1252595085 | P49: 1120389164 | Q49: 1002136998 | R49: 896365830 | S49: 801758345.3 | T49: 717136265.9 | U49: 641445676.1 | V49: 573743896.3 | W49: 513187742.7 | X49: 459023025.7 | Y49: 1.683903e+10 | Z49: 1700912.121
A50: =IF(ISBLANK(InfoPro!A42),"",InfoPro!A42) -> SC_1851_A2 | B50: =IF(ISBLANK(InfoPro!B42),"",InfoPro!B42) -> Zaino Solar 9,9MW | C50: =IF(ISBLANK(InfoPro!E42),"",InfoPro!E42) -> 9.9 | D50: =IF(ISBLANK(InfoPro!F42),"",InfoPro!F42) -> Solar FV | E50: =IF(ISBLANK(InfoPro!I42),"",YEAR(InfoPro!I42)-$H$3) -> 1 | F50: =IF(B50="","",VLOOKUP(D50,Tablas!$B$2:$E$13,2,FALSE)) -> 0.26 | G50: =IF(B50="","",VLOOKUP(D50,Tablas!$B$2:$H$13,7,FALSE)) -> 83577.2 | H50: 0.564831274 | I50: 22548.24 | J50: 2187860971 | K50: 1956941835 | L50: 1750395201 | M50: 1565648659 | N50: 1400401305 | O50: 1252595085 | P50: 1120389164 | Q50: 1002136998 | R50: 896365830 | S50: 801758345.3 | T50: 717136265.9 | U50: 641445676.1 | V50: 573743896.3 | W50: 513187742.7 | X50: 459023025.7 | Y50: 1.683903e+10 | Z50: 1700912.121
A51: =IF(ISBLANK(InfoPro!A43),"",InfoPro!A43) -> SC_1755_A1 | B51: =IF(ISBLANK(InfoPro!B43),"",InfoPro!B43) -> Parque Solar Picon | C51: =IF(ISBLANK(InfoPro!E43),"",InfoPro!E43) -> 75 | D51: =IF(ISBLANK(InfoPro!F43),"",InfoPro!F43) -> Solar FV | E51: =IF(ISBLANK(InfoPro!I43),"",YEAR(InfoPro!I43)-$H$3) -> 3 | F51: =IF(B51="","",VLOOKUP(D51,Tablas!$B$2:$E$13,2,FALSE)) -> 0.26 | G51: =IF(B51="","",VLOOKUP(D51,Tablas!$B$2:$H$13,7,FALSE)) -> 83577.2 | H51: 0.564831274 | I51: 170820 | J51: 1.32605697e+10 | K51: 1.186097469e+10 | L51: 1.06091008e+10 | M51: 9489356705 | N51: 8487796695 | O51: 7591946954 | P51: 6790650227 | Q51: 6073926858 | R51: 5432850499 | S51: 4859436940 | T51: 4346544669 | U51: 3887785930 | V51: 3477447164 | W51: 3110417857 | X51: 2782126885 | Y51: 1.020609326e+11 | Z51: 1360812.434
A52: =IF(ISBLANK(InfoPro!A44),"",InfoPro!A44) -> SC_1755_A2 | B52: =IF(ISBLANK(InfoPro!B44),"",InfoPro!B44) -> Parque Solar Picon | C52: =IF(ISBLANK(InfoPro!E44),"",InfoPro!E44) -> 75 | D52: =IF(ISBLANK(InfoPro!F44),"",InfoPro!F44) -> Solar FV | E52: =IF(ISBLANK(InfoPro!I44),"",YEAR(InfoPro!I44)-$H$3) -> 3 | F52: =IF(B52="","",VLOOKUP(D52,Tablas!$B$2:$E$13,2,FALSE)) -> 0.26 | G52: =IF(B52="","",VLOOKUP(D52,Tablas!$B$2:$H$13,7,FALSE)) -> 83577.2 | H52: 0.564831274 | I52: 170820 | J52: 1.32605697e+10 | K52: 1.186097469e+10 | L52: 1.06091008e+10 | M52: 9489356705 | N52: 8487796695 | O52: 7591946954 | P52: 6790650227 | Q52: 6073926858 | R52: 5432850499 | S52: 4859436940 | T52: 4346544669 | U52: 3887785930 | V52: 3477447164 | W52: 3110417857 | X52: 2782126885 | Y52: 1.020609326e+11 | Z52: 1360812.434
A53: =IF(ISBLANK(InfoPro!A45),"",InfoPro!A45) -> SC_1803_A1 | B53: =IF(ISBLANK(InfoPro!B45),"",InfoPro!B45) -> Boavita I | C53: =IF(ISBLANK(InfoPro!E45),"",InfoPro!E45) -> 14.25 | D53: =IF(ISBLANK(InfoPro!F45),"",InfoPro!F45) -> Solar FV | E53: =IF(ISBLANK(InfoPro!I45),"",YEAR(InfoPro!I45)-$H$3) -> 3 | F53: =IF(B53="","",VLOOKUP(D53,Tablas!$B$2:$E$13,2,FALSE)) -> 0.26 | G53: =IF(B53="","",VLOOKUP(D53,Tablas!$B$2:$H$13,7,FALSE)) -> 83577.2 | H53: 0.564831274 | I53: 32455.8 | J53: 2519508244 | K53: 2253585191 | L53: 2015729151 | M53: 1802977774 | N53: 1612681372 | O53: 1442469921 | P53: 1290223543 | Q53: 1154046103 | R53: 1032241595 | S53: 923293018.6 | T53: 825843487.2 | U53: 738679326.6 | V53: 660714961.2 | W53: 590979392.8 | X53: 528604108.1 | Y53: 1.939157719e+10 | Z53: 1360812.434
A54: =IF(ISBLANK(InfoPro!A46),"",InfoPro!A46) -> SC_1803_A2 | B54: =IF(ISBLANK(InfoPro!B46),"",InfoPro!B46) -> Boavita I | C54: =IF(ISBLANK(InfoPro!E46),"",InfoPro!E46) -> 14.25 | D54: =IF(ISBLANK(InfoPro!F46),"",InfoPro!F46) -> Solar FV | E54: =IF(ISBLANK(InfoPro!I46),"",YEAR(InfoPro!I46)-$H$3) -> 3 | F54: =IF(B54="","",VLOOKUP(D54,Tablas!$B$2:$E$13,2,FALSE)) -> 0.26 | G54: =IF(B54="","",VLOOKUP(D54,Tablas!$B$2:$H$13,7,FALSE)) -> 83577.2 | H54: 0.564831274 | I54: 32455.8 | J54: 2519508244 | K54: 2253585191 | L54: 2015729151 | M54: 1802977774 | N54: 1612681372 | O54: 1442469921 | P54: 1290223543 | Q54: 1154046103 | R54: 1032241595 | S54: 923293018.6 | T54: 825843487.2 | U54: 738679326.6 | V54: 660714961.2 | W54: 590979392.8 | X54: 528604108.1 | Y54: 1.939157719e+10 | Z54: 1360812.434
A55: =IF(ISBLANK(InfoPro!A47),"",InfoPro!A47) -> SC_1986_A1 | B55: =IF(ISBLANK(InfoPro!B47),"",InfoPro!B47) -> Puerta del Sol 19,9MW | C55: =IF(ISBLANK(InfoPro!E47),"",InfoPro!E47) -> 19.9 | D55: =IF(ISBLANK(InfoPro!F47),"",InfoPro!F47) -> Solar FV | E55: =IF(ISBLANK(InfoPro!I47),"",YEAR(InfoPro!I47)-$H$3) -> 2 | F55: =IF(B55="","",VLOOKUP(D55,Tablas!$B$2:$E$13,2,FALSE)) -> 0.26 | G55: =IF(B55="","",VLOOKUP(D55,Tablas!$B$2:$H$13,7,FALSE)) -> 83577.2 | H55: 0.564831274 | I55: 45324.24 | J55: 3933650758 | K55: 3518471161 | L55: 3147111951 | M55: 2814948078 | N55: 2517842646 | O55: 2252095390 | P55: 2014396592 | Q55: 1801785860 | R55: 1611615260 | S55: 1441516332 | T55: 1289370601 | U55: 1153283186 | V55: 1031559200 | W55: 922682647.6 | X55: 825297538.1 | Y55: 3.02756272e+10 | Z55: 1521388.302
A56: =IF(ISBLANK(InfoPro!A48),"",InfoPro!A48) -> SC_1986_A2 | B56: =IF(ISBLANK(InfoPro!B48),"",InfoPro!B48) -> Puerta del Sol 19,9MW | C56: =IF(ISBLANK(InfoPro!E48),"",InfoPro!E48) -> 19.9 | D56: =IF(ISBLANK(InfoPro!F48),"",InfoPro!F48) -> Solar FV | E56: =IF(ISBLANK(InfoPro!I48),"",YEAR(InfoPro!I48)-$H$3) -> 2 | F56: =IF(B56="","",VLOOKUP(D56,Tablas!$B$2:$E$13,2,FALSE)) -> 0.26 | G56: =IF(B56="","",VLOOKUP(D56,Tablas!$B$2:$H$13,7,FALSE)) -> 83577.2 | H56: 0.564831274 | I56: 45324.24 | J56: 3933650758 | K56: 3518471161 | L56: 3147111951 | M56: 2814948078 | N56: 2517842646 | O56: 2252095390 | P56: 2014396592 | Q56: 1801785860 | R56: 1611615260 | S56: 1441516332 | T56: 1289370601 | U56: 1153283186 | V56: 1031559200 | W56: 922682647.6 | X56: 825297538.1 | Y56: 3.02756272e+10 | Z56: 1521388.302
A57: =IF(ISBLANK(InfoPro!A49),"",InfoPro!A49) -> SC_1888_A1 | B57: =IF(ISBLANK(InfoPro!B49),"",InfoPro!B49) -> Chiquinquira Solar I 9,9 MW | C57: =IF(ISBLANK(InfoPro!E49),"",InfoPro!E49) -> 9.9 | D57: =IF(ISBLANK(InfoPro!F49),"",InfoPro!F49) -> Solar FV | E57: =IF(ISBLANK(InfoPro!I49),"",YEAR(InfoPro!I49)-$H$3) -> 2 | F57: =IF(B57="","",VLOOKUP(D57,Tablas!$B$2:$E$13,2,FALSE)) -> 0.26 | G57: =IF(B57="","",VLOOKUP(D57,Tablas!$B$2:$H$13,7,FALSE)) -> 83577.2 | H57: 0.564831274 | I57: 22548.24 | J57: 1956941835 | K57: 1750395201 | L57: 1565648659 | M57: 1400401305 | N57: 1252595085 | O57: 1120389164 | P57: 1002136998 | Q57: 896365830 | R57: 801758345.3 | S57: 717136265.9 | T57: 641445676.1 | U57: 573743896.3 | V57: 513187742.7 | W57: 459023025.7 | X57: 410575157.1 | Y57: 1.506174419e+10 | Z57: 1521388.302
A58: =IF(ISBLANK(InfoPro!A50),"",InfoPro!A50) -> SC_1888_A2 | B58: =IF(ISBLANK(InfoPro!B50),"",InfoPro!B50) -> Chiquinquira Solar I 9,9 MW | C58: =IF(ISBLANK(InfoPro!E50),"",InfoPro!E50) -> 9.9 | D58: =IF(ISBLANK(InfoPro!F50),"",InfoPro!F50) -> Solar FV | E58: =IF(ISBLANK(InfoPro!I50),"",YEAR(InfoPro!I50)-$H$3) -> 2 | F58: =IF(B58="","",VLOOKUP(D58,Tablas!$B$2:$E$13,2,FALSE)) -> 0.26 | G58: =IF(B58="","",VLOOKUP(D58,Tablas!$B$2:$H$13,7,FALSE)) -> 83577.2 | H58: 0.564831274 | I58: 22548.24 | J58: =IF($I58="","",(1/(1+$C$3)^(J$6+$E58))*$I58*$C$2*$H58) -> 1956941835 | K58: 1750395201 | L58: 1565648659 | M58: 1400401305 | N58: 1252595085 | O58: 1120389164 | P58: 1002136998 | Q58: 896365830 | R58: 801758345.3 | S58: 717136265.9 | T58: 641445676.1 | U58: 573743896.3 | V58: 513187742.7 | W58: 459023025.7 | X58: 410575157.1 | Y58: 1.506174419e+10 | Z58: 1521388.302
A59: =IF(ISBLANK(InfoPro!A51),"",InfoPro!A51) -> SC_1941_A1 | B59: =IF(ISBLANK(InfoPro!B51),"",InfoPro!B51) -> Esperanza Solar 9,9MW | C59: =IF(ISBLANK(InfoPro!E51),"",InfoPro!E51) -> 9.9 | D59: =IF(ISBLANK(InfoPro!F51),"",InfoPro!F51) -> Solar FV | E59: =IF(ISBLANK(InfoPro!I51),"",YEAR(InfoPro!I51)-$H$3) -> 2 | F59: =IF(B59="","",VLOOKUP(D59,Tablas!$B$2:$E$13,2,FALSE)) -> 0.26 | G59: =IF(B59="","",VLOOKUP(D59,Tablas!$B$2:$H$13,7,FALSE)) -> 83577.2 | H59: 0.564831274 | I59: 22548.24 | J59: 1956941835 | K59: 1750395201 | L59: 1565648659 | M59: 1400401305 | N59: 1252595085 | O59: 1120389164 | P59: 1002136998 | Q59: 896365830 | R59: 801758345.3 | S59: 717136265.9 | T59: 641445676.1 | U59: 573743896.3 | V59: 513187742.7 | W59: 459023025.7 | X59: 410575157.1 | Y59: 1.506174419e+10 | Z59: 1521388.302
A60: =IF(ISBLANK(InfoPro!A52),"",InfoPro!A52) -> SC_1941_A2 | B60: =IF(ISBLANK(InfoPro!B52),"",InfoPro!B52) -> Esperanza Solar 9,9MW | C60: =IF(ISBLANK(InfoPro!E52),"",InfoPro!E52) -> 9.9 | D60: =IF(ISBLANK(InfoPro!F52),"",InfoPro!F52) -> Solar FV | E60: =IF(ISBLANK(InfoPro!I52),"",YEAR(InfoPro!I52)-$H$3) -> 2 | F60: =IF(B60="","",VLOOKUP(D60,Tablas!$B$2:$E$13,2,FALSE)) -> 0.26 | G60: =IF(B60="","",VLOOKUP(D60,Tablas!$B$2:$H$13,7,FALSE)) -> 83577.2 | H60: 0.564831274 | I60: 22548.24 | J60: 1956941835 | K60: 1750395201 | L60: 1565648659 | M60: 1400401305 | N60: 1252595085 | O60: 1120389164 | P60: 1002136998 | Q60: 896365830 | R60: 801758345.3 | S60: 717136265.9 | T60: 641445676.1 | U60: 573743896.3 | V60: 513187742.7 | W60: 459023025.7 | X60: 410575157.1 | Y60: 1.506174419e+10 | Z60: 1521388.302
A61: =IF(ISBLANK(InfoPro!A53),"",InfoPro!A53) -> SC_1901_A1 | B61: =IF(ISBLANK(InfoPro!B53),"",InfoPro!B53) -> Alcalá-50 MW | C61: =IF(ISBLANK(InfoPro!E53),"",InfoPro!E53) -> 50 | D61: =IF(ISBLANK(InfoPro!F53),"",InfoPro!F53) -> Solar FV | E61: =IF(ISBLANK(InfoPro!I53),"",YEAR(InfoPro!I53)-$H$3) -> 3 | F61: =IF(B61="","",VLOOKUP(D61,Tablas!$B$2:$E$13,2,FALSE)) -> 0.26 | G61: =IF(B61="","",VLOOKUP(D61,Tablas!$B$2:$H$13,7,FALSE)) -> 83577.2 | H61: 0.564831274 | I61: 113880 | J61: 8840379802 | K61: 7907316460 | L61: 7072733864 | M61: 6326237803 | N61: 5658531130 | O61: 5061297969 | P61: 4527100152 | Q61: 4049284572 | R61: 3621900333 | S61: 3239624627 | T61: 2897696446 | U61: 2591857286 | V61: 2318298109 | W61: 2073611905 | X61: 1854751256 | Y61: 6.804062171e+10 | Z61: 1360812.434
A62: =IF(ISBLANK(InfoPro!A54),"",InfoPro!A54) -> SC_1901_A2 | B62: =IF(ISBLANK(InfoPro!B54),"",InfoPro!B54) -> Alcalá-50 MW | C62: =IF(ISBLANK(InfoPro!E54),"",InfoPro!E54) -> 50 | D62: =IF(ISBLANK(InfoPro!F54),"",InfoPro!F54) -> Solar FV | E62: =IF(ISBLANK(InfoPro!I54),"",YEAR(InfoPro!I54)-$H$3) -> 3 | F62: =IF(B62="","",VLOOKUP(D62,Tablas!$B$2:$E$13,2,FALSE)) -> 0.26 | G62: =IF(B62="","",VLOOKUP(D62,Tablas!$B$2:$H$13,7,FALSE)) -> 83577.2 | H62: 0.564831274 | I62: 113880 | J62: 8840379802 | K62: 7907316460 | L62: 7072733864 | M62: 6326237803 | N62: 5658531130 | O62: 5061297969 | P62: 4527100152 | Q62: 4049284572 | R62: 3621900333 | S62: 3239624627 | T62: 2897696446 | U62: 2591857286 | V62: 2318298109 | W62: 2073611905 | X62: 1854751256 | Y62: 6.804062171e+10 | Z62: 1360812.434
A63: =IF(ISBLANK(InfoPro!A55),"",InfoPro!A55) -> SC_1953_A1 | B63: =IF(ISBLANK(InfoPro!B55),"",InfoPro!B55) -> SOCHAGOTA DE VERANO_69.9MW | C63: =IF(ISBLANK(InfoPro!E55),"",InfoPro!E55) -> 69.9 | D63: =IF(ISBLANK(InfoPro!F55),"",InfoPro!F55) -> Solar FV | E63: =IF(ISBLANK(InfoPro!I55),"",YEAR(InfoPro!I55)-$H$3) -> 2 | F63: =IF(B63="","",VLOOKUP(D63,Tablas!$B$2:$E$13,2,FALSE)) -> 0.26 | G63: =IF(B63="","",VLOOKUP(D63,Tablas!$B$2:$H$13,7,FALSE)) -> 83577.2 | H63: 0.564831274 | I63: 159204.24 | J63: 1.381719538e+10 | K63: 1.235885096e+10 | L63: 1.105442841e+10 | M63: 9887681942 | N63: 8844080449 | O63: 7910626519 | P63: 7075694561 | Q63: 6328886012 | R63: 5660899832 | S63: 5063416665 | T63: 4528995228 | U63: 4050979632 | V63: 3623416486 | W63: 3240980757 | X63: 2898909443 | Y63: 1.063450423e+11 | Z63: 1521388.302
A64: =IF(ISBLANK(InfoPro!A56),"",InfoPro!A56) -> SC_2190_A1 | B64: =IF(ISBLANK(InfoPro!B56),"",InfoPro!B56) -> SIKUANI | C64: =IF(ISBLANK(InfoPro!E56),"",InfoPro!E56) -> 17 | D64: =IF(ISBLANK(InfoPro!F56),"",InfoPro!F56) -> Solar FV | E64: =IF(ISBLANK(InfoPro!I56),"",YEAR(InfoPro!I56)-$H$3) -> 3 | F64: =IF(B64="","",VLOOKUP(D64,Tablas!$B$2:$E$13,2,FALSE)) -> 0.26 | G64: =IF(B64="","",VLOOKUP(D64,Tablas!$B$2:$H$13,7,FALSE)) -> 83577.2 | H64: 0.564831274 | I64: 38719.2 | J64: 3005729133 | K64: 2688487596 | L64: 2404729514 | M64: 2150920853 | N64: 1923900584 | O64: 1720841310 | P64: 1539214052 | Q64: 1376756754 | R64: 1231446113 | S64: 1101472373 | T64: 985216791.7 | U64: 881231477.4 | V64: 788221357.2 | W64: 705028047.6 | X64: 630615427.2 | Y64: 2.313381138e+10 | Z64: 1360812.434
A65: =IF(ISBLANK(InfoPro!A57),"",InfoPro!A57) -> SC_2190_A2 | B65: =IF(ISBLANK(InfoPro!B57),"",InfoPro!B57) -> SIKUANI | C65: =IF(ISBLANK(InfoPro!E57),"",InfoPro!E57) -> 17 | D65: =IF(ISBLANK(InfoPro!F57),"",InfoPro!F57) -> Solar FV | E65: =IF(ISBLANK(InfoPro!I57),"",YEAR(InfoPro!I57)-$H$3) -> 3 | F65: =IF(B65="","",VLOOKUP(D65,Tablas!$B$2:$E$13,2,FALSE)) -> 0.26 | G65: =IF(B65="","",VLOOKUP(D65,Tablas!$B$2:$H$13,7,FALSE)) -> 83577.2 | H65: 0.564831274 | I65: 38719.2 | J65: 3005729133 | K65: 2688487596 | L65: 2404729514 | M65: 2150920853 | N65: 1923900584 | O65: 1720841310 | P65: 1539214052 | Q65: 1376756754 | R65: 1231446113 | S65: 1101472373 | T65: 985216791.7 | U65: 881231477.4 | V65: 788221357.2 | W65: 705028047.6 | X65: 630615427.2 | Y65: 2.313381138e+10 | Z65: 1360812.434
A66: =IF(ISBLANK(InfoPro!A58),"",InfoPro!A58) -> SC_1834_A1 | B66: =IF(ISBLANK(InfoPro!B58),"",InfoPro!B58) -> Barbados | C66: =IF(ISBLANK(InfoPro!E58),"",InfoPro!E58) -> 15 | D66: =IF(ISBLANK(InfoPro!F58),"",InfoPro!F58) -> Solar FV | E66: =IF(ISBLANK(InfoPro!I58),"",YEAR(InfoPro!I58)-$H$3) -> 2 | F66: =IF(B66="","",VLOOKUP(D66,Tablas!$B$2:$E$13,2,FALSE)) -> 0.26 | G66: =IF(B66="","",VLOOKUP(D66,Tablas!$B$2:$H$13,7,FALSE)) -> 83577.2 | H66: 0.564831274 | I66: 34164 | J66: 2965063386 | K66: 2652113941 | L66: 2372194938 | M66: 2121820159 | N66: 1897871341 | O66: 1697559339 | P66: 1518389391 | Q66: 1358130045 | R66: 1214785372 | S66: 1086570100 | T66: 971887388 | U66: 869308933.8 | V66: 777557185.9 | W66: 695489432.8 | X66: 622083571.4 | Y66: 2.282082452e+10 | Z66: 1521388.302
A67: =IF(ISBLANK(InfoPro!A59),"",InfoPro!A59) -> SC_1834_A2 | B67: =IF(ISBLANK(InfoPro!B59),"",InfoPro!B59) -> Barbados | C67: =IF(ISBLANK(InfoPro!E59),"",InfoPro!E59) -> 15 | D67: =IF(ISBLANK(InfoPro!F59),"",InfoPro!F59) -> Solar FV | E67: =IF(ISBLANK(InfoPro!I59),"",YEAR(InfoPro!I59)-$H$3) -> 2 | F67: =IF(B67="","",VLOOKUP(D67,Tablas!$B$2:$E$13,2,FALSE)) -> 0.26 | G67: =IF(B67="","",VLOOKUP(D67,Tablas!$B$2:$H$13,7,FALSE)) -> 83577.2 | H67: 0.564831274 | I67: 34164 | J67: 2965063386 | K67: 2652113941 | L67: 2372194938 | M67: 2121820159 | N67: 1897871341 | O67: 1697559339 | P67: 1518389391 | Q67: 1358130045 | R67: 1214785372 | S67: 1086570100 | T67: 971887388 | U67: 869308933.8 | V67: 777557185.9 | W67: 695489432.8 | X67: 622083571.4 | Y67: 2.282082452e+10 | Z67: 1521388.302
A68: =IF(ISBLANK(InfoPro!A60),"",InfoPro!A60) -> SC_1878_A1 | B68: =IF(ISBLANK(InfoPro!B60),"",InfoPro!B60) -> Autogenerador Solar Holcim | C68: =IF(ISBLANK(InfoPro!E60),"",InfoPro!E60) -> 6.7 | D68: =IF(ISBLANK(InfoPro!F60),"",InfoPro!F60) -> Solar FV | E68: =IF(ISBLANK(InfoPro!I60),"",YEAR(InfoPro!I60)-$H$3) -> 1 | F68: =IF(B68="","",VLOOKUP(D68,Tablas!$B$2:$E$13,2,FALSE)) -> 0.26 | G68: =IF(B68="","",VLOOKUP(D68,Tablas!$B$2:$H$13,7,FALSE)) -> 83577.2 | H68: 0.564831274 | I68: 15259.92 | J68: =IF($I68="","",(1/(1+$C$3)^(J$6+$E68))*$I68*$C$2*$H68) -> 1480673586 | K68: 1324394979 | L68: 1184610893 | M68: 1059580406 | N68: 947746337.8 | O68: 847715865.6 | P68: 758243171.4 | Q68: 678213927.9 | R68: 606631420.3 | S68: 542604132.7 | T68: 485334644.6 | U68: 434109700 | V68: 388291323.8 | W68: 347308876.4 | X68: 310651946.7 | Y68: 1.139611121e+10 | Z68: 1700912.121
A69: =IF(ISBLANK(InfoPro!A61),"",InfoPro!A61) -> SC_1874_A1 | B69: =IF(ISBLANK(InfoPro!B61),"",InfoPro!B61) -> Colibri I | C69: =IF(ISBLANK(InfoPro!E61),"",InfoPro!E61) -> 96.9 | D69: =IF(ISBLANK(InfoPro!F61),"",InfoPro!F61) -> Eólico Onshore | E69: =IF(ISBLANK(InfoPro!I61),"",YEAR(InfoPro!I61)-$H$3) -> 3 | F69: =IF(B69="","",VLOOKUP(D69,Tablas!$B$2:$E$13,2,FALSE)) -> 0.57 | G69: =IF(B69="","",VLOOKUP(D69,Tablas!$B$2:$H$13,7,FALSE)) -> 83577.2 | H69: 0.564831274 | I69: 483841.08 | J69: 3.756005366e+10 | K69: 3.359575462e+10 | L69: 3.004986996e+10 | M69: 2.687823789e+10 | N69: 2.404135768e+10 | O69: 2.150389775e+10 | P69: 1.923425559e+10 | Q69: 1.720416421e+10 | R69: 1.538834008e+10 | S69: 1.376416823e+10 | T69: 1.23114206e+10 | U69: 1.101200412e+10 | V69: 9849735345 | W69: 8810138949 | X69: 7880267396 | Y69: 2.890836661e+11 | Z69: 2983319.567
A70: =IF(ISBLANK(InfoPro!A62),"",InfoPro!A62) -> SC_1874_A2 | B70: =IF(ISBLANK(InfoPro!B62),"",InfoPro!B62) -> Colibri I | C70: =IF(ISBLANK(InfoPro!E62),"",InfoPro!E62) -> 96.9 | D70: =IF(ISBLANK(InfoPro!F62),"",InfoPro!F62) -> Eólico Onshore | E70: =IF(ISBLANK(InfoPro!I62),"",YEAR(InfoPro!I62)-$H$3) -> 3 | F70: =IF(B70="","",VLOOKUP(D70,Tablas!$B$2:$E$13,2,FALSE)) -> 0.57 | G70: =IF(B70="","",VLOOKUP(D70,Tablas!$B$2:$H$13,7,FALSE)) -> 83577.2 | H70: 0.564831274 | I70: 483841.08 | J70: 3.756005366e+10 | K70: 3.359575462e+10 | L70: 3.004986996e+10 | M70: 2.687823789e+10 | N70: 2.404135768e+10 | O70: 2.150389775e+10 | P70: 1.923425559e+10 | Q70: 1.720416421e+10 | R70: 1.538834008e+10 | S70: 1.376416823e+10 | T70: 1.23114206e+10 | U70: 1.101200412e+10 | V70: 9849735345 | W70: 8810138949 | X70: 7880267396 | Y70: 2.890836661e+11 | Z70: 2983319.567
A71: =IF(ISBLANK(InfoPro!A63),"",InfoPro!A63) -> SC_1988_A1 | B71: =IF(ISBLANK(InfoPro!B63),"",InfoPro!B63) -> LAS ACACIAS I - 40 MW | C71: =IF(ISBLANK(InfoPro!E63),"",InfoPro!E63) -> 40 | D71: =IF(ISBLANK(InfoPro!F63),"",InfoPro!F63) -> Solar FV | E71: =IF(ISBLANK(InfoPro!I63),"",YEAR(InfoPro!I63)-$H$3) -> 3 | F71: =IF(B71="","",VLOOKUP(D71,Tablas!$B$2:$E$13,2,FALSE)) -> 0.26 | G71: =IF(B71="","",VLOOKUP(D71,Tablas!$B$2:$H$13,7,FALSE)) -> 83577.2 | H71: 0.564831274 | I71: 91104 | J71: 7072303842 | K71: 6325853168 | L71: 5658187091 | M71: 5060990242 | N71: 4526824904 | O71: 4049038376 | P71: 3621680121 | Q71: 3239427658 | R71: 2897520266 | S71: 2591699701 | T71: 2318157157 | U71: 2073485829 | V71: 1854638488 | W71: 1658889524 | X71: 1483801005 | Y71: 5.443249737e+10 | Z71: 1360812.434
A72: =IF(ISBLANK(InfoPro!A64),"",InfoPro!A64) -> SC_1988_A2 | B72: =IF(ISBLANK(InfoPro!B64),"",InfoPro!B64) -> LAS ACACIAS I - 40 MW | C72: =IF(ISBLANK(InfoPro!E64),"",InfoPro!E64) -> 40 | D72: =IF(ISBLANK(InfoPro!F64),"",InfoPro!F64) -> Solar FV | E72: =IF(ISBLANK(InfoPro!I64),"",YEAR(InfoPro!I64)-$H$3) -> 3 | F72: =IF(B72="","",VLOOKUP(D72,Tablas!$B$2:$E$13,2,FALSE)) -> 0.26 | G72: =IF(B72="","",VLOOKUP(D72,Tablas!$B$2:$H$13,7,FALSE)) -> 83577.2 | H72: 0.564831274 | I72: =IF(C72="","",+C72*F72*24*365) -> 91104 | J72: 7072303842 | K72: 6325853168 | L72: 5658187091 | M72: 5060990242 | N72: 4526824904 | O72: 4049038376 | P72: 3621680121 | Q72: 3239427658 | R72: 2897520266 | S72: 2591699701 | T72: 2318157157 | U72: 2073485829 | V72: 1854638488 | W72: 1658889524 | X72: 1483801005 | Y72: 5.443249737e+10 | Z72: 1360812.434
A73: =IF(ISBLANK(InfoPro!A65),"",InfoPro!A65) -> SC_2123_A1 | B73: =IF(ISBLANK(InfoPro!B65),"",InfoPro!B65) -> Parque Solar Pollux | C73: =IF(ISBLANK(InfoPro!E65),"",InfoPro!E65) -> 209.6 | D73: =IF(ISBLANK(InfoPro!F65),"",InfoPro!F65) -> Solar FV | E73: =IF(ISBLANK(InfoPro!I65),"",YEAR(InfoPro!I65)-$H$3) -> 2 | F73: =IF(B73="","",VLOOKUP(D73,Tablas!$B$2:$E$13,2,FALSE)) -> 0.26 | G73: =IF(B73="","",VLOOKUP(D73,Tablas!$B$2:$H$13,7,FALSE)) -> 83577.2 | H73: =IF(B73="","",($C$2-(G73))/$C$2) -> 0.564831274 | I73: 477384.96 | J73: 4.143181904e+10 | K73: 3.705887213e+10 | L73: 3.31474706e+10 | M73: 2.964890036e+10 | N73: 2.651958887e+10 | O73: 2.37205625e+10 | P73: 2.121696109e+10 | Q73: 1.897760384e+10 | R73: 1.697460093e+10 | S73: 1.518300619e+10 | T73: 1.358050644e+10 | U73: 1.21471435e+10 | V73: 1.086506574e+10 | W73: 9718305675 | X73: 8692581104 | Y73: =IF(X73="","",SUM(J73:X73)) -> 3.18882988e+11 | Z73: =IF(C73=0,0,IF(Y73="","",Y73/(C73*1000))) -> 1521388.302
A74: =IF(ISBLANK(InfoPro!A66),"",InfoPro!A66) -> SC_2123_A2 | B74: =IF(ISBLANK(InfoPro!B66),"",InfoPro!B66) -> Parque Solar Pollux | C74: =IF(ISBLANK(InfoPro!E66),"",InfoPro!E66) -> 209.6 | D74: =IF(ISBLANK(InfoPro!F66),"",InfoPro!F66) -> Solar FV | E74: =IF(ISBLANK(InfoPro!I66),"",YEAR(InfoPro!I66)-$H$3) -> 2 | F74: =IF(B74="","",VLOOKUP(D74,Tablas!$B$2:$E$13,2,FALSE)) -> 0.26 | G74: =IF(B74="","",VLOOKUP(D74,Tablas!$B$2:$H$13,7,FALSE)) -> 83577.2 | H74: 0.564831274 | I74: 477384.96 | J74: 4.143181904e+10 | K74: 3.705887213e+10 | L74: 3.31474706e+10 | M74: 2.964890036e+10 | N74: 2.651958887e+10 | O74: 2.37205625e+10 | P74: 2.121696109e+10 | Q74: 1.897760384e+10 | R74: 1.697460093e+10 | S74: 1.518300619e+10 | T74: 1.358050644e+10 | U74: 1.21471435e+10 | V74: 1.086506574e+10 | W74: 9718305675 | X74: 8692581104 | Y74: 3.18882988e+11 | Z74: 1521388.302
A75: =IF(ISBLANK(InfoPro!A67),"",InfoPro!A67) -> SC_1869_A1 | B75: =IF(ISBLANK(InfoPro!B67),"",InfoPro!B67) -> PE NAIRA_96.9MW | C75: =IF(ISBLANK(InfoPro!E67),"",InfoPro!E67) -> 96.9 | D75: =IF(ISBLANK(InfoPro!F67),"",InfoPro!F67) -> Eólico Onshore | E75: =IF(ISBLANK(InfoPro!I67),"",YEAR(InfoPro!I67)-$H$3) -> 3 | F75: =IF(B75="","",VLOOKUP(D75,Tablas!$B$2:$E$13,2,FALSE)) -> 0.57 | G75: =IF(B75="","",VLOOKUP(D75,Tablas!$B$2:$H$13,7,FALSE)) -> 83577.2 | H75: 0.564831274 | I75: 483841.08 | J75: 3.756005366e+10 | K75: 3.359575462e+10 | L75: 3.004986996e+10 | M75: 2.687823789e+10 | N75: 2.404135768e+10 | O75: 2.150389775e+10 | P75: 1.923425559e+10 | Q75: 1.720416421e+10 | R75: 1.538834008e+10 | S75: 1.376416823e+10 | T75: 1.23114206e+10 | U75: 1.101200412e+10 | V75: 9849735345 | W75: 8810138949 | X75: 7880267396 | Y75: 2.890836661e+11 | Z75: 2983319.567
A76: =IF(ISBLANK(InfoPro!A68),"",InfoPro!A68) -> SC_2064_A2 | B76: =IF(ISBLANK(InfoPro!B68),"",InfoPro!B68) -> Firavitoba 9,9 del Verano Solar | C76: =IF(ISBLANK(InfoPro!E68),"",InfoPro!E68) -> 9.9 | D76: =IF(ISBLANK(InfoPro!F68),"",InfoPro!F68) -> Solar FV | E76: =IF(ISBLANK(InfoPro!I68),"",YEAR(InfoPro!I68)-$H$3) -> 2 | F76: =IF(B76="","",VLOOKUP(D76,Tablas!$B$2:$E$13,2,FALSE)) -> 0.26 | G76: =IF(B76="","",VLOOKUP(D76,Tablas!$B$2:$H$13,7,FALSE)) -> 83577.2 | H76: 0.564831274 | I76: 22548.24 | J76: 1956941835 | K76: 1750395201 | L76: 1565648659 | M76: 1400401305 | N76: 1252595085 | O76: 1120389164 | P76: 1002136998 | Q76: 896365830 | R76: 801758345.3 | S76: 717136265.9 | T76: 641445676.1 | U76: 573743896.3 | V76: 513187742.7 | W76: 459023025.7 | X76: 410575157.1 | Y76: 1.506174419e+10 | Z76: 1521388.302
A77: =IF(ISBLANK(InfoPro!A69),"",InfoPro!A69) -> SC_2007_A1 | B77: =IF(ISBLANK(InfoPro!B69),"",InfoPro!B69) -> Parque Solar Yopal | C77: =IF(ISBLANK(InfoPro!E69),"",InfoPro!E69) -> 19.9 | D77: =IF(ISBLANK(InfoPro!F69),"",InfoPro!F69) -> Solar FV | E77: =IF(ISBLANK(InfoPro!I69),"",YEAR(InfoPro!I69)-$H$3) -> 3 | F77: =IF(B77="","",VLOOKUP(D77,Tablas!$B$2:$E$13,2,FALSE)) -> 0.26 | G77: =IF(B77="","",VLOOKUP(D77,Tablas!$B$2:$H$13,7,FALSE)) -> 83577.2 | H77: 0.564831274 | I77: 45324.24 | J77: 3518471161 | K77: 3147111951 | L77: 2814948078 | M77: 2517842646 | N77: 2252095390 | O77: 2014396592 | P77: 1801785860 | Q77: 1611615260 | R77: 1441516332 | S77: 1289370601 | T77: 1153283186 | U77: 1031559200 | V77: 922682647.6 | W77: 825297538.1 | X77: 738191000.1 | Y77: 2.708016744e+10 | Z77: 1360812.434
A78: =IF(ISBLANK(InfoPro!A70),"",InfoPro!A70) -> SC_2007_A2 | B78: =IF(ISBLANK(InfoPro!B70),"",InfoPro!B70) -> Parque Solar Yopal | C78: =IF(ISBLANK(InfoPro!E70),"",InfoPro!E70) -> 19.9 | D78: =IF(ISBLANK(InfoPro!F70),"",InfoPro!F70) -> Solar FV | E78: =IF(ISBLANK(InfoPro!I70),"",YEAR(InfoPro!I70)-$H$3) -> 3 | F78: =IF(B78="","",VLOOKUP(D78,Tablas!$B$2:$E$13,2,FALSE)) -> 0.26 | G78: =IF(B78="","",VLOOKUP(D78,Tablas!$B$2:$H$13,7,FALSE)) -> 83577.2 | H78: 0.564831274 | I78: 45324.24 | J78: =IF($I78="","",(1/(1+$C$3)^(J$6+$E78))*$I78*$C$2*$H78) -> 3518471161 | K78: 3147111951 | L78: 2814948078 | M78: 2517842646 | N78: 2252095390 | O78: 2014396592 | P78: 1801785860 | Q78: 1611615260 | R78: 1441516332 | S78: 1289370601 | T78: 1153283186 | U78: 1031559200 | V78: 922682647.6 | W78: 825297538.1 | X78: 738191000.1 | Y78: 2.708016744e+10 | Z78: 1360812.434
A79: =IF(ISBLANK(InfoPro!A71),"",InfoPro!A71) -> SC_1914_A1 | B79: =IF(ISBLANK(InfoPro!B71),"",InfoPro!B71) -> Suniva 70 MW | C79: =IF(ISBLANK(InfoPro!E71),"",InfoPro!E71) -> 70 | D79: =IF(ISBLANK(InfoPro!F71),"",InfoPro!F71) -> Solar FV | E79: =IF(ISBLANK(InfoPro!I71),"",YEAR(InfoPro!I71)-$H$3) -> 4 | F79: =IF(B79="","",VLOOKUP(D79,Tablas!$B$2:$E$13,2,FALSE)) -> 0.26 | G79: =IF(B79="","",VLOOKUP(D79,Tablas!$B$2:$H$13,7,FALSE)) -> 83577.2 | H79: 0.564831274 | I79: 159432 | J79: 1.107024304e+10 | K79: 9901827409 | L79: 8856732924 | M79: 7921943582 | N79: 7085817157 | O79: 6337940212 | P79: 5668998401 | Q79: 5070660466 | R79: 4535474478 | S79: 4056775025 | T79: 3628600201 | U79: 3245617353 | V79: 2903056667 | W79: 2596651759 | X79: 2322586547 | Y79: 8.520292522e+10 | Z79: 1217184.646
A80: =IF(ISBLANK(InfoPro!A72),"",InfoPro!A72) -> SC_1914_A2 | B80: =IF(ISBLANK(InfoPro!B72),"",InfoPro!B72) -> Suniva 70 MW | C80: =IF(ISBLANK(InfoPro!E72),"",InfoPro!E72) -> 70 | D80: =IF(ISBLANK(InfoPro!F72),"",InfoPro!F72) -> Solar FV | E80: =IF(ISBLANK(InfoPro!I72),"",YEAR(InfoPro!I72)-$H$3) -> 4 | F80: =IF(B80="","",VLOOKUP(D80,Tablas!$B$2:$E$13,2,FALSE)) -> 0.26 | G80: =IF(B80="","",VLOOKUP(D80,Tablas!$B$2:$H$13,7,FALSE)) -> 83577.2 | H80: 0.564831274 | I80: 159432 | J80: 1.107024304e+10 | K80: 9901827409 | L80: 8856732924 | M80: 7921943582 | N80: 7085817157 | O80: 6337940212 | P80: 5668998401 | Q80: 5070660466 | R80: 4535474478 | S80: 4056775025 | T80: 3628600201 | U80: 3245617353 | V80: 2903056667 | W80: 2596651759 | X80: 2322586547 | Y80: 8.520292522e+10 | Z80: 1217184.646
A81: =IF(ISBLANK(InfoPro!A73),"",InfoPro!A73) -> SC_1921_A1 | B81: =IF(ISBLANK(InfoPro!B73),"",InfoPro!B73) -> El Gabán I | C81: =IF(ISBLANK(InfoPro!E73),"",InfoPro!E73) -> 100 | D81: =IF(ISBLANK(InfoPro!F73),"",InfoPro!F73) -> Solar FV | E81: =IF(ISBLANK(InfoPro!I73),"",YEAR(InfoPro!I73)-$H$3) -> 3 | F81: =IF(B81="","",VLOOKUP(D81,Tablas!$B$2:$E$13,2,FALSE)) -> 0.26 | G81: =IF(B81="","",VLOOKUP(D81,Tablas!$B$2:$H$13,7,FALSE)) -> 83577.2 | H81: 0.564831274 | I81: 227760 | J81: 1.76807596e+10 | K81: 1.581463292e+10 | L81: 1.414546773e+10 | M81: 1.265247561e+10 | N81: 1.131706226e+10 | O81: 1.012259594e+10 | P81: 9054200303 | Q81: 8098569144 | R81: 7243800666 | S81: 6479249254 | T81: 5795392892 | U81: 5183714573 | V81: 4636596219 | W81: 4147223809 | X81: 3709502513 | Y81: 1.360812434e+11 | Z81: 1360812.434
A82: =IF(ISBLANK(InfoPro!A74),"",InfoPro!A74) -> SC_1921_A2 | B82: =IF(ISBLANK(InfoPro!B74),"",InfoPro!B74) -> El Gabán I | C82: =IF(ISBLANK(InfoPro!E74),"",InfoPro!E74) -> 100 | D82: =IF(ISBLANK(InfoPro!F74),"",InfoPro!F74) -> Solar FV | E82: =IF(ISBLANK(InfoPro!I74),"",YEAR(InfoPro!I74)-$H$3) -> 3 | F82: =IF(B82="","",VLOOKUP(D82,Tablas!$B$2:$E$13,2,FALSE)) -> 0.26 | G82: =IF(B82="","",VLOOKUP(D82,Tablas!$B$2:$H$13,7,FALSE)) -> 83577.2 | H82: 0.564831274 | I82: 227760 | J82: 1.76807596e+10 | K82: 1.581463292e+10 | L82: 1.414546773e+10 | M82: 1.265247561e+10 | N82: 1.131706226e+10 | O82: 1.012259594e+10 | P82: 9054200303 | Q82: 8098569144 | R82: 7243800666 | S82: 6479249254 | T82: 5795392892 | U82: 5183714573 | V82: 4636596219 | W82: 4147223809 | X82: 3709502513 | Y82: 1.360812434e+11 | Z82: 1360812.434
A83: =IF(ISBLANK(InfoPro!A75),"",InfoPro!A75) -> SC_2172_A1 | B83: =IF(ISBLANK(InfoPro!B75),"",InfoPro!B75) -> Termocasanare 1 9,9 MW | C83: =IF(ISBLANK(InfoPro!E75),"",InfoPro!E75) -> 9.9 | D83: =IF(ISBLANK(InfoPro!F75),"",InfoPro!F75) -> Termica - Ciclo abierto | E83: =IF(ISBLANK(InfoPro!I75),"",YEAR(InfoPro!I75)-$H$3) -> 1 | F83: =IF(B83="","",VLOOKUP(D83,Tablas!$B$2:$E$13,2,FALSE)) -> 0.85 | G83: =IF(B83="","",VLOOKUP(D83,Tablas!$B$2:$H$13,7,FALSE)) -> 267152.5 | H83: -0.3910063158 | I83: 73715.4 | J83: -4951426494 | K83: -4428825129 | L83: -3961382048 | M83: -3543275534 | N83: -3169298331 | O83: -2834792783 | P83: -2535592829 | Q83: -2267972119 | R83: -2028597602 | S83: -1814488016 | T83: -1622976759 | U83: -1451678675 | V83: -1298460353 | W83: -1161413554 | X83: -1038831444 | Y83: -3.810901167e+10 | Z83: -3849395.118
A84: =IF(ISBLANK(InfoPro!A76),"",InfoPro!A76) -> SC_2172_A2 | B84: =IF(ISBLANK(InfoPro!B76),"",InfoPro!B76) -> Termocasanare 1 9,9 MW | C84: =IF(ISBLANK(InfoPro!E76),"",InfoPro!E76) -> 9.9 | D84: =IF(ISBLANK(InfoPro!F76),"",InfoPro!F76) -> Termica - Ciclo abierto | E84: =IF(ISBLANK(InfoPro!I76),"",YEAR(InfoPro!I76)-$H$3) -> 1 | F84: =IF(B84="","",VLOOKUP(D84,Tablas!$B$2:$E$13,2,FALSE)) -> 0.85 | G84: =IF(B84="","",VLOOKUP(D84,Tablas!$B$2:$H$13,7,FALSE)) -> 267152.5 | H84: -0.3910063158 | I84: 73715.4 | J84: -4951426494 | K84: -4428825129 | L84: -3961382048 | M84: -3543275534 | N84: -3169298331 | O84: -2834792783 | P84: -2535592829 | Q84: -2267972119 | R84: -2028597602 | S84: -1814488016 | T84: -1622976759 | U84: -1451678675 | V84: -1298460353 | W84: -1161413554 | X84: -1038831444 | Y84: -3.810901167e+10 | Z84: -3849395.118
A85: =IF(ISBLANK(InfoPro!A77),"",InfoPro!A77) -> SC_2194_A1 | B85: =IF(ISBLANK(InfoPro!B77),"",InfoPro!B77) -> Planta de generación GN Belencito APDR | C85: =IF(ISBLANK(InfoPro!E77),"",InfoPro!E77) -> 0 | D85: =IF(ISBLANK(InfoPro!F77),"",InfoPro!F77) -> Termica - Ciclo abierto | E85: =IF(ISBLANK(InfoPro!I77),"",YEAR(InfoPro!I77)-$H$3) -> 1 | F85: =IF(B85="","",VLOOKUP(D85,Tablas!$B$2:$E$13,2,FALSE)) -> 0.85 | G85: =IF(B85="","",VLOOKUP(D85,Tablas!$B$2:$H$13,7,FALSE)) -> 267152.5 | H85: -0.3910063158 | I85: 0 | J85: 0 | K85: 0 | L85: 0 | M85: 0 | N85: 0 | O85: 0 | P85: 0 | Q85: 0 | R85: 0 | S85: 0 | T85: 0 | U85: 0 | V85: 0 | W85: 0 | X85: 0 | Y85: 0 | Z85: 0
A86: =IF(ISBLANK(InfoPro!A78),"",InfoPro!A78) -> SC_2194_A2 | B86: =IF(ISBLANK(InfoPro!B78),"",InfoPro!B78) -> Planta de generación GN Belencito APDR | C86: =IF(ISBLANK(InfoPro!E78),"",InfoPro!E78) -> 0 | D86: =IF(ISBLANK(InfoPro!F78),"",InfoPro!F78) -> Termica - Ciclo abierto | E86: =IF(ISBLANK(InfoPro!I78),"",YEAR(InfoPro!I78)-$H$3) -> 1 | F86: =IF(B86="","",VLOOKUP(D86,Tablas!$B$2:$E$13,2,FALSE)) -> 0.85 | G86: =IF(B86="","",VLOOKUP(D86,Tablas!$B$2:$H$13,7,FALSE)) -> 267152.5 | H86: -0.3910063158 | I86: 0 | J86: 0 | K86: 0 | L86: 0 | M86: 0 | N86: 0 | O86: 0 | P86: 0 | Q86: 0 | R86: 0 | S86: 0 | T86: 0 | U86: 0 | V86: 0 | W86: 0 | X86: 0 | Y86: 0 | Z86: 0
A87: =IF(ISBLANK(InfoPro!A79),"",InfoPro!A79) -> SC_2224_A1 | B87: =IF(ISBLANK(InfoPro!B79),"",InfoPro!B79) -> Generación Solar Fotovoltaica Yopalosa 65 MW | C87: =IF(ISBLANK(InfoPro!E79),"",InfoPro!E79) -> 65 | D87: =IF(ISBLANK(InfoPro!F79),"",InfoPro!F79) -> Solar FV | E87: =IF(ISBLANK(InfoPro!I79),"",YEAR(InfoPro!I79)-$H$3) -> 3 | F87: =IF(B87="","",VLOOKUP(D87,Tablas!$B$2:$E$13,2,FALSE)) -> 0.26 | G87: =IF(B87="","",VLOOKUP(D87,Tablas!$B$2:$H$13,7,FALSE)) -> 83577.2 | H87: 0.564831274 | I87: 148044 | J87: 1.149249374e+10 | K87: 1.02795114e+10 | L87: 9194554023 | M87: 8224109144 | N87: 7356090469 | O87: 6579687360 | P87: 5885230197 | Q87: 5264069944 | R87: 4708470433 | S87: 4211512015 | T87: 3767005380 | U87: 3369414472 | V87: 3013787542 | W87: 2695695476 | X87: 2411176633 | Y87: 8.845280823e+10 | Z87: 1360812.434
A88: =IF(ISBLANK(InfoPro!A80),"",InfoPro!A80) -> SC_2224_A2 | B88: =IF(ISBLANK(InfoPro!B80),"",InfoPro!B80) -> Generación Solar Fotovoltaica Yopalosa 65 MW | C88: =IF(ISBLANK(InfoPro!E80),"",InfoPro!E80) -> 65 | D88: =IF(ISBLANK(InfoPro!F80),"",InfoPro!F80) -> Solar FV | E88: =IF(ISBLANK(InfoPro!I80),"",YEAR(InfoPro!I80)-$H$3) -> 3 | F88: =IF(B88="","",VLOOKUP(D88,Tablas!$B$2:$E$13,2,FALSE)) -> 0.26 | G88: =IF(B88="","",VLOOKUP(D88,Tablas!$B$2:$H$13,7,FALSE)) -> 83577.2 | H88: 0.564831274 | I88: 148044 | J88: =IF($I88="","",(1/(1+$C$3)^(J$6+$E88))*$I88*$C$2*$H88) -> 1.149249374e+10 | K88: 1.02795114e+10 | L88: 9194554023 | M88: 8224109144 | N88: 7356090469 | O88: 6579687360 | P88: 5885230197 | Q88: 5264069944 | R88: 4708470433 | S88: 4211512015 | T88: 3767005380 | U88: 3369414472 | V88: 3013787542 | W88: 2695695476 | X88: 2411176633 | Y88: 8.845280823e+10 | Z88: 1360812.434
A89: =IF(ISBLANK(InfoPro!A81),"",InfoPro!A81) -> SC_2024_A1 | B89: =IF(ISBLANK(InfoPro!B81),"",InfoPro!B81) -> SUMMA IV | C89: =IF(ISBLANK(InfoPro!E81),"",InfoPro!E81) -> 9.9 | D89: =IF(ISBLANK(InfoPro!F81),"",InfoPro!F81) -> Solar FV | E89: =IF(ISBLANK(InfoPro!I81),"",YEAR(InfoPro!I81)-$H$3) -> 3 | F89: =IF(B89="","",VLOOKUP(D89,Tablas!$B$2:$E$13,2,FALSE)) -> 0.26 | G89: =IF(B89="","",VLOOKUP(D89,Tablas!$B$2:$H$13,7,FALSE)) -> 83577.2 | H89: 0.564831274 | I89: 22548.24 | J89: 1750395201 | K89: 1565648659 | L89: 1400401305 | M89: 1252595085 | N89: 1120389164 | O89: 1002136998 | P89: 896365830 | Q89: 801758345.3 | R89: 717136265.9 | S89: 641445676.1 | T89: 573743896.3 | U89: 513187742.7 | V89: 459023025.7 | W89: 410575157.1 | X89: 367240748.8 | Y89: 1.34720431e+10 | Z89: 1360812.434
A90: =IF(ISBLANK(InfoPro!A81),"",InfoPro!A81) -> SC_2024_A1 | B90: =IF(ISBLANK(InfoPro!B81),"",InfoPro!B81) -> SUMMA IV | C90: =IF(ISBLANK(InfoPro!E81),"",InfoPro!E81) -> 9.9 | D90: =IF(ISBLANK(InfoPro!F81),"",InfoPro!F81) -> Solar FV | E90: =IF(ISBLANK(InfoPro!I81),"",YEAR(InfoPro!I81)-$H$3) -> 3 | F90: =IF(B90="","",VLOOKUP(D90,Tablas!$B$2:$E$13,2,FALSE)) -> 0.26 | G90: =IF(B90="","",VLOOKUP(D90,Tablas!$B$2:$H$13,7,FALSE)) -> 83577.2 | H90: 0.564831274 | I90: 22548.24 | J90: 1750395201 | K90: 1565648659 | L90: 1400401305 | M90: 1252595085 | N90: 1120389164 | O90: 1002136998 | P90: 896365830 | Q90: 801758345.3 | R90: 717136265.9 | S90: 641445676.1 | T90: 573743896.3 | U90: 513187742.7 | V90: 459023025.7 | W90: 410575157.1 | X90: 367240748.8 | Y90: 1.34720431e+10 | Z90: 1360812.434
A91: =IF(ISBLANK(InfoPro!A82),"",InfoPro!A82) -> SC_2024_A2 | B91: =IF(ISBLANK(InfoPro!B82),"",InfoPro!B82) -> SUMMA IV | C91: =IF(ISBLANK(InfoPro!E82),"",InfoPro!E82) -> 9.9 | D91: =IF(ISBLANK(InfoPro!F82),"",InfoPro!F82) -> Solar FV | E91: =IF(ISBLANK(InfoPro!I82),"",YEAR(InfoPro!I82)-$H$3) -> 3 | F91: =IF(B91="","",VLOOKUP(D91,Tablas!$B$2:$E$13,2,FALSE)) -> 0.26 | G91: =IF(B91="","",VLOOKUP(D91,Tablas!$B$2:$H$13,7,FALSE)) -> 83577.2 | H91: 0.564831274 | I91: 22548.24 | J91: 1750395201 | K91: 1565648659 | L91: 1400401305 | M91: 1252595085 | N91: 1120389164 | O91: 1002136998 | P91: 896365830 | Q91: 801758345.3 | R91: 717136265.9 | S91: 641445676.1 | T91: 573743896.3 | U91: 513187742.7 | V91: 459023025.7 | W91: 410575157.1 | X91: 367240748.8 | Y91: 1.34720431e+10 | Z91: 1360812.434
A92: =IF(ISBLANK(InfoPro!A83),"",InfoPro!A83) ->  | B92: =IF(ISBLANK(InfoPro!B83),"",InfoPro!B83) ->  | C92: =IF(ISBLANK(InfoPro!E83),"",InfoPro!E83) ->  | D92: =IF(ISBLANK(InfoPro!F83),"",InfoPro!F83) ->  | E92: =IF(ISBLANK(InfoPro!I83),"",YEAR(InfoPro!I83)-$H$3) ->  | F92: =IF(B92="","",VLOOKUP(D92,Tablas!$B$2:$E$13,2,FALSE)) ->  | G92: =IF(B92="","",VLOOKUP(D92,Tablas!$B$2:$H$13,7,FALSE)) -> 
A93: =IF(ISBLANK(InfoPro!A84),"",InfoPro!A84) ->  | B93: =IF(ISBLANK(InfoPro!B84),"",InfoPro!B84) ->  | C93: =IF(ISBLANK(InfoPro!E84),"",InfoPro!E84) ->  | D93: =IF(ISBLANK(InfoPro!F84),"",InfoPro!F84) ->  | E93: =IF(ISBLANK(InfoPro!I84),"",YEAR(InfoPro!I84)-$H$3) ->  | F93: =IF(B93="","",VLOOKUP(D93,Tablas!$B$2:$E$13,2,FALSE)) ->  | G93: =IF(B93="","",VLOOKUP(D93,Tablas!$B$2:$H$13,7,FALSE)) -> 
A94: =IF(ISBLANK(InfoPro!A85),"",InfoPro!A85) ->  | B94: =IF(ISBLANK(InfoPro!B85),"",InfoPro!B85) ->  | C94: =IF(ISBLANK(InfoPro!E85),"",InfoPro!E85) ->  | D94: =IF(ISBLANK(InfoPro!F85),"",InfoPro!F85) ->  | E94: =IF(ISBLANK(InfoPro!I85),"",YEAR(InfoPro!I85)-$H$3) ->  | F94: =IF(B94="","",VLOOKUP(D94,Tablas!$B$2:$E$13,2,FALSE)) ->  | G94: =IF(B94="","",VLOOKUP(D94,Tablas!$B$2:$H$13,7,FALSE)) -> 
A95: =IF(ISBLANK(InfoPro!A86),"",InfoPro!A86) ->  | B95: =IF(ISBLANK(InfoPro!B86),"",InfoPro!B86) ->  | C95: =IF(ISBLANK(InfoPro!E86),"",InfoPro!E86) ->  | D95: =IF(ISBLANK(InfoPro!F86),"",InfoPro!F86) ->  | E95: =IF(ISBLANK(InfoPro!I86),"",YEAR(InfoPro!I86)-$H$3) ->  | F95: =IF(B95="","",VLOOKUP(D95,Tablas!$B$2:$E$13,2,FALSE)) ->  | G95: =IF(B95="","",VLOOKUP(D95,Tablas!$B$2:$H$13,7,FALSE)) -> 
A96: =IF(ISBLANK(InfoPro!A87),"",InfoPro!A87) ->  | B96: =IF(ISBLANK(InfoPro!B87),"",InfoPro!B87) ->  | C96: =IF(ISBLANK(InfoPro!E87),"",InfoPro!E87) ->  | D96: =IF(ISBLANK(InfoPro!F87),"",InfoPro!F87) ->  | E96: =IF(ISBLANK(InfoPro!I87),"",YEAR(InfoPro!I87)-$H$3) ->  | F96: =IF(B96="","",VLOOKUP(D96,Tablas!$B$2:$E$13,2,FALSE)) ->  | G96: =IF(B96="","",VLOOKUP(D96,Tablas!$B$2:$H$13,7,FALSE)) -> 
A97: =IF(ISBLANK(InfoPro!A88),"",InfoPro!A88) ->  | B97: =IF(ISBLANK(InfoPro!B88),"",InfoPro!B88) ->  | C97: =IF(ISBLANK(InfoPro!E88),"",InfoPro!E88) ->  | D97: =IF(ISBLANK(InfoPro!F88),"",InfoPro!F88) ->  | E97: =IF(ISBLANK(InfoPro!I88),"",YEAR(InfoPro!I88)-$H$3) ->  | F97: =IF(B97="","",VLOOKUP(D97,Tablas!$B$2:$E$13,2,FALSE)) ->  | G97: =IF(B97="","",VLOOKUP(D97,Tablas!$B$2:$H$13,7,FALSE)) -> 
A98: =IF(ISBLANK(InfoPro!A89),"",InfoPro!A89) ->  | B98: =IF(ISBLANK(InfoPro!B89),"",InfoPro!B89) ->  | C98: =IF(ISBLANK(InfoPro!E89),"",InfoPro!E89) ->  | D98: =IF(ISBLANK(InfoPro!F89),"",InfoPro!F89) ->  | E98: =IF(ISBLANK(InfoPro!I89),"",YEAR(InfoPro!I89)-$H$3) ->  | F98: =IF(B98="","",VLOOKUP(D98,Tablas!$B$2:$E$13,2,FALSE)) ->  | G98: =IF(B98="","",VLOOKUP(D98,Tablas!$B$2:$H$13,7,FALSE)) ->  | J98: =IF($I98="","",(1/(1+$C$3)^(J$6+$E98))*$I98*$C$2*$H98) -> 
A99: =IF(ISBLANK(InfoPro!A90),"",InfoPro!A90) ->  | B99: =IF(ISBLANK(InfoPro!B90),"",InfoPro!B90) ->  | C99: =IF(ISBLANK(InfoPro!E90),"",InfoPro!E90) ->  | D99: =IF(ISBLANK(InfoPro!F90),"",InfoPro!F90) ->  | E99: =IF(ISBLANK(InfoPro!I90),"",YEAR(InfoPro!I90)-$H$3) ->  | F99: =IF(B99="","",VLOOKUP(D99,Tablas!$B$2:$E$13,2,FALSE)) ->  | G99: =IF(B99="","",VLOOKUP(D99,Tablas!$B$2:$H$13,7,FALSE)) -> 
A100: =IF(ISBLANK(InfoPro!A91),"",InfoPro!A91) ->  | B100: =IF(ISBLANK(InfoPro!B91),"",InfoPro!B91) ->  | C100: =IF(ISBLANK(InfoPro!E91),"",InfoPro!E91) ->  | D100: =IF(ISBLANK(InfoPro!F91),"",InfoPro!F91) ->  | E100: =IF(ISBLANK(InfoPro!I91),"",YEAR(InfoPro!I91)-$H$3) ->  | F100: =IF(B100="","",VLOOKUP(D100,Tablas!$B$2:$E$13,2,FALSE)) ->  | G100: =IF(B100="","",VLOOKUP(D100,Tablas!$B$2:$H$13,7,FALSE)) -> 
A101: =IF(ISBLANK(InfoPro!A92),"",InfoPro!A92) ->  | B101: =IF(ISBLANK(InfoPro!B92),"",InfoPro!B92) ->  | C101: =IF(ISBLANK(InfoPro!E92),"",InfoPro!E92) ->  | D101: =IF(ISBLANK(InfoPro!F92),"",InfoPro!F92) ->  | E101: =IF(ISBLANK(InfoPro!I92),"",YEAR(InfoPro!I92)-$H$3) ->  | F101: =IF(B101="","",VLOOKUP(D101,Tablas!$B$2:$E$13,2,FALSE)) ->  | G101: =IF(B101="","",VLOOKUP(D101,Tablas!$B$2:$H$13,7,FALSE)) -> 
A102: =IF(ISBLANK(InfoPro!A93),"",InfoPro!A93) ->  | B102: =IF(ISBLANK(InfoPro!B93),"",InfoPro!B93) ->  | C102: =IF(ISBLANK(InfoPro!E93),"",InfoPro!E93) ->  | D102: =IF(ISBLANK(InfoPro!F93),"",InfoPro!F93) ->  | E102: =IF(ISBLANK(InfoPro!I93),"",YEAR(InfoPro!I93)-$H$3) ->  | F102: =IF(B102="","",VLOOKUP(D102,Tablas!$B$2:$E$13,2,FALSE)) ->  | G102: =IF(B102="","",VLOOKUP(D102,Tablas!$B$2:$H$13,7,FALSE)) -> 
A103: =IF(ISBLANK(InfoPro!A94),"",InfoPro!A94) ->  | B103: =IF(ISBLANK(InfoPro!B94),"",InfoPro!B94) ->  | C103: =IF(ISBLANK(InfoPro!E94),"",InfoPro!E94) ->  | D103: =IF(ISBLANK(InfoPro!F94),"",InfoPro!F94) ->  | E103: =IF(ISBLANK(InfoPro!I94),"",YEAR(InfoPro!I94)-$H$3) ->  | F103: =IF(B103="","",VLOOKUP(D103,Tablas!$B$2:$E$13,2,FALSE)) ->  | G103: =IF(B103="","",VLOOKUP(D103,Tablas!$B$2:$H$13,7,FALSE)) -> 
A104: =IF(ISBLANK(InfoPro!A95),"",InfoPro!A95) ->  | B104: =IF(ISBLANK(InfoPro!B95),"",InfoPro!B95) ->  | C104: =IF(ISBLANK(InfoPro!E95),"",InfoPro!E95) ->  | D104: =IF(ISBLANK(InfoPro!F95),"",InfoPro!F95) ->  | E104: =IF(ISBLANK(InfoPro!I95),"",YEAR(InfoPro!I95)-$H$3) ->  | F104: =IF(B104="","",VLOOKUP(D104,Tablas!$B$2:$E$13,2,FALSE)) ->  | G104: =IF(B104="","",VLOOKUP(D104,Tablas!$B$2:$H$13,7,FALSE)) -> 
A105: =IF(ISBLANK(InfoPro!A96),"",InfoPro!A96) ->  | B105: =IF(ISBLANK(InfoPro!B96),"",InfoPro!B96) ->  | C105: =IF(ISBLANK(InfoPro!E96),"",InfoPro!E96) ->  | D105: =IF(ISBLANK(InfoPro!F96),"",InfoPro!F96) ->  | E105: =IF(ISBLANK(InfoPro!I96),"",YEAR(InfoPro!I96)-$H$3) ->  | F105: =IF(B105="","",VLOOKUP(D105,Tablas!$B$2:$E$13,2,FALSE)) ->  | G105: =IF(B105="","",VLOOKUP(D105,Tablas!$B$2:$H$13,7,FALSE)) -> 
A106: =IF(ISBLANK(InfoPro!A97),"",InfoPro!A97) ->  | B106: =IF(ISBLANK(InfoPro!B97),"",InfoPro!B97) ->  | C106: =IF(ISBLANK(InfoPro!E97),"",InfoPro!E97) ->  | D106: =IF(ISBLANK(InfoPro!F97),"",InfoPro!F97) ->  | E106: =IF(ISBLANK(InfoPro!I97),"",YEAR(InfoPro!I97)-$H$3) ->  | F106: =IF(B106="","",VLOOKUP(D106,Tablas!$B$2:$E$13,2,FALSE)) ->  | G106: =IF(B106="","",VLOOKUP(D106,Tablas!$B$2:$H$13,7,FALSE)) -> 
A107: =IF(ISBLANK(InfoPro!A98),"",InfoPro!A98) ->  | B107: =IF(ISBLANK(InfoPro!B98),"",InfoPro!B98) ->  | C107: =IF(ISBLANK(InfoPro!E98),"",InfoPro!E98) ->  | D107: =IF(ISBLANK(InfoPro!F98),"",InfoPro!F98) ->  | E107: =IF(ISBLANK(InfoPro!I98),"",YEAR(InfoPro!I98)-$H$3) ->  | F107: =IF(B107="","",VLOOKUP(D107,Tablas!$B$2:$E$13,2,FALSE)) ->  | G107: =IF(B107="","",VLOOKUP(D107,Tablas!$B$2:$H$13,7,FALSE)) -> 
A108: =IF(ISBLANK(InfoPro!A99),"",InfoPro!A99) ->  | B108: =IF(ISBLANK(InfoPro!B99),"",InfoPro!B99) ->  | C108: =IF(ISBLANK(InfoPro!E99),"",InfoPro!E99) ->  | D108: =IF(ISBLANK(InfoPro!F99),"",InfoPro!F99) ->  | E108: =IF(ISBLANK(InfoPro!I99),"",YEAR(InfoPro!I99)-$H$3) ->  | F108: =IF(B108="","",VLOOKUP(D108,Tablas!$B$2:$E$13,2,FALSE)) ->  | G108: =IF(B108="","",VLOOKUP(D108,Tablas!$B$2:$H$13,7,FALSE)) ->  | H108: =IF(B108="","",($C$2-(G108))/$C$2) ->  | I108: =IF(C108="","",+C108*F108*24*365) ->  | Y108: =IF(X108="","",SUM(J108:X108)) ->  | Z108: =IF(C108=0,0,IF(Y108="","",Y108/(C108*1000))) -> 
A109: =IF(ISBLANK(InfoPro!A100),"",InfoPro!A100) ->  | B109: =IF(ISBLANK(InfoPro!B100),"",InfoPro!B100) ->  | C109: =IF(ISBLANK(InfoPro!E100),"",InfoPro!E100) ->  | D109: =IF(ISBLANK(InfoPro!F100),"",InfoPro!F100) ->  | E109: =IF(ISBLANK(InfoPro!I100),"",YEAR(InfoPro!I100)-$H$3) ->  | F109: =IF(B109="","",VLOOKUP(D109,Tablas!$B$2:$E$13,2,FALSE)) ->  | G109: =IF(B109="","",VLOOKUP(D109,Tablas!$B$2:$H$13,7,FALSE)) -> 
A110: =IF(ISBLANK(InfoPro!A101),"",InfoPro!A101) ->  | B110: =IF(ISBLANK(InfoPro!B101),"",InfoPro!B101) ->  | C110: =IF(ISBLANK(InfoPro!E101),"",InfoPro!E101) ->  | D110: =IF(ISBLANK(InfoPro!F101),"",InfoPro!F101) ->  | E110: =IF(ISBLANK(InfoPro!I101),"",YEAR(InfoPro!I101)-$H$3) ->  | F110: =IF(B110="","",VLOOKUP(D110,Tablas!$B$2:$E$13,2,FALSE)) ->  | G110: =IF(B110="","",VLOOKUP(D110,Tablas!$B$2:$H$13,7,FALSE)) -> 
A111: =IF(ISBLANK(InfoPro!A102),"",InfoPro!A102) ->  | B111: =IF(ISBLANK(InfoPro!B102),"",InfoPro!B102) ->  | C111: =IF(ISBLANK(InfoPro!E102),"",InfoPro!E102) ->  | D111: =IF(ISBLANK(InfoPro!F102),"",InfoPro!F102) ->  | E111: =IF(ISBLANK(InfoPro!I102),"",YEAR(InfoPro!I102)-$H$3) ->  | F111: =IF(B111="","",VLOOKUP(D111,Tablas!$B$2:$E$13,2,FALSE)) ->  | G111: =IF(B111="","",VLOOKUP(D111,Tablas!$B$2:$H$13,7,FALSE)) -> 
A112: =IF(ISBLANK(InfoPro!A103),"",InfoPro!A103) ->  | B112: =IF(ISBLANK(InfoPro!B103),"",InfoPro!B103) ->  | C112: =IF(ISBLANK(InfoPro!E103),"",InfoPro!E103) ->  | D112: =IF(ISBLANK(InfoPro!F103),"",InfoPro!F103) ->  | E112: =IF(ISBLANK(InfoPro!I103),"",YEAR(InfoPro!I103)-$H$3) ->  | F112: =IF(B112="","",VLOOKUP(D112,Tablas!$B$2:$E$13,2,FALSE)) ->  | G112: =IF(B112="","",VLOOKUP(D112,Tablas!$B$2:$H$13,7,FALSE)) -> 
A113: =IF(ISBLANK(InfoPro!A104),"",InfoPro!A104) ->  | B113: =IF(ISBLANK(InfoPro!B104),"",InfoPro!B104) ->  | C113: =IF(ISBLANK(InfoPro!E104),"",InfoPro!E104) ->  | D113: =IF(ISBLANK(InfoPro!F104),"",InfoPro!F104) ->  | E113: =IF(ISBLANK(InfoPro!I104),"",YEAR(InfoPro!I104)-$H$3) ->  | F113: =IF(B113="","",VLOOKUP(D113,Tablas!$B$2:$E$13,2,FALSE)) ->  | G113: =IF(B113="","",VLOOKUP(D113,Tablas!$B$2:$H$13,7,FALSE)) -> 
A114: =IF(ISBLANK(InfoPro!A105),"",InfoPro!A105) ->  | B114: =IF(ISBLANK(InfoPro!B105),"",InfoPro!B105) ->  | C114: =IF(ISBLANK(InfoPro!E105),"",InfoPro!E105) ->  | D114: =IF(ISBLANK(InfoPro!F105),"",InfoPro!F105) ->  | E114: =IF(ISBLANK(InfoPro!I105),"",YEAR(InfoPro!I105)-$H$3) ->  | F114: =IF(B114="","",VLOOKUP(D114,Tablas!$B$2:$E$13,2,FALSE)) ->  | G114: =IF(B114="","",VLOOKUP(D114,Tablas!$B$2:$H$13,7,FALSE)) ->  | J114: =IF($I114="","",(1/(1+$C$3)^(J$6+$E114))*$I114*$C$2*$H114) -> 
A115: =IF(ISBLANK(InfoPro!A106),"",InfoPro!A106) ->  | B115: =IF(ISBLANK(InfoPro!B106),"",InfoPro!B106) ->  | C115: =IF(ISBLANK(InfoPro!E106),"",InfoPro!E106) ->  | D115: =IF(ISBLANK(InfoPro!F106),"",InfoPro!F106) ->  | E115: =IF(ISBLANK(InfoPro!I106),"",YEAR(InfoPro!I106)-$H$3) ->  | F115: =IF(B115="","",VLOOKUP(D115,Tablas!$B$2:$E$13,2,FALSE)) ->  | G115: =IF(B115="","",VLOOKUP(D115,Tablas!$B$2:$H$13,7,FALSE)) -> 
A116: =IF(ISBLANK(InfoPro!A107),"",InfoPro!A107) ->  | B116: =IF(ISBLANK(InfoPro!B107),"",InfoPro!B107) ->  | C116: =IF(ISBLANK(InfoPro!E107),"",InfoPro!E107) ->  | D116: =IF(ISBLANK(InfoPro!F107),"",InfoPro!F107) ->  | E116: =IF(ISBLANK(InfoPro!I107),"",YEAR(InfoPro!I107)-$H$3) ->  | F116: =IF(B116="","",VLOOKUP(D116,Tablas!$B$2:$E$13,2,FALSE)) ->  | G116: =IF(B116="","",VLOOKUP(D116,Tablas!$B$2:$H$13,7,FALSE)) -> 
A117: =IF(ISBLANK(InfoPro!A108),"",InfoPro!A108) ->  | B117: =IF(ISBLANK(InfoPro!B108),"",InfoPro!B108) ->  | C117: =IF(ISBLANK(InfoPro!E108),"",InfoPro!E108) ->  | D117: =IF(ISBLANK(InfoPro!F108),"",InfoPro!F108) ->  | E117: =IF(ISBLANK(InfoPro!I108),"",YEAR(InfoPro!I108)-$H$3) ->  | F117: =IF(B117="","",VLOOKUP(D117,Tablas!$B$2:$E$13,2,FALSE)) ->  | G117: =IF(B117="","",VLOOKUP(D117,Tablas!$B$2:$H$13,7,FALSE)) -> 
A118: =IF(ISBLANK(InfoPro!A109),"",InfoPro!A109) ->  | B118: =IF(ISBLANK(InfoPro!B109),"",InfoPro!B109) ->  | C118: =IF(ISBLANK(InfoPro!E109),"",InfoPro!E109) ->  | D118: =IF(ISBLANK(InfoPro!F109),"",InfoPro!F109) ->  | E118: =IF(ISBLANK(InfoPro!I109),"",YEAR(InfoPro!I109)-$H$3) ->  | F118: =IF(B118="","",VLOOKUP(D118,Tablas!$B$2:$E$13,2,FALSE)) ->  | G118: =IF(B118="","",VLOOKUP(D118,Tablas!$B$2:$H$13,7,FALSE)) -> 
A119: =IF(ISBLANK(InfoPro!A110),"",InfoPro!A110) ->  | B119: =IF(ISBLANK(InfoPro!B110),"",InfoPro!B110) ->  | C119: =IF(ISBLANK(InfoPro!E110),"",InfoPro!E110) ->  | D119: =IF(ISBLANK(InfoPro!F110),"",InfoPro!F110) ->  | E119: =IF(ISBLANK(InfoPro!I110),"",YEAR(InfoPro!I110)-$H$3) ->  | F119: =IF(B119="","",VLOOKUP(D119,Tablas!$B$2:$E$13,2,FALSE)) ->  | G119: =IF(B119="","",VLOOKUP(D119,Tablas!$B$2:$H$13,7,FALSE)) -> 
A120: =IF(ISBLANK(InfoPro!A111),"",InfoPro!A111) ->  | B120: =IF(ISBLANK(InfoPro!B111),"",InfoPro!B111) ->  | C120: =IF(ISBLANK(InfoPro!E111),"",InfoPro!E111) ->  | D120: =IF(ISBLANK(InfoPro!F111),"",InfoPro!F111) ->  | E120: =IF(ISBLANK(InfoPro!I111),"",YEAR(InfoPro!I111)-$H$3) ->  | F120: =IF(B120="","",VLOOKUP(D120,Tablas!$B$2:$E$13,2,FALSE)) ->  | G120: =IF(B120="","",VLOOKUP(D120,Tablas!$B$2:$H$13,7,FALSE)) -> 
A121: =IF(ISBLANK(InfoPro!A112),"",InfoPro!A112) ->  | B121: =IF(ISBLANK(InfoPro!B112),"",InfoPro!B112) ->  | C121: =IF(ISBLANK(InfoPro!E112),"",InfoPro!E112) ->  | D121: =IF(ISBLANK(InfoPro!F112),"",InfoPro!F112) ->  | E121: =IF(ISBLANK(InfoPro!I112),"",YEAR(InfoPro!I112)-$H$3) ->  | F121: =IF(B121="","",VLOOKUP(D121,Tablas!$B$2:$E$13,2,FALSE)) ->  | G121: =IF(B121="","",VLOOKUP(D121,Tablas!$B$2:$H$13,7,FALSE)) -> 
A122: =IF(ISBLANK(InfoPro!A113),"",InfoPro!A113) ->  | B122: =IF(ISBLANK(InfoPro!B113),"",InfoPro!B113) ->  | C122: =IF(ISBLANK(InfoPro!E113),"",InfoPro!E113) ->  | D122: =IF(ISBLANK(InfoPro!F113),"",InfoPro!F113) ->  | E122: =IF(ISBLANK(InfoPro!I113),"",YEAR(InfoPro!I113)-$H$3) ->  | F122: =IF(B122="","",VLOOKUP(D122,Tablas!$B$2:$E$13,2,FALSE)) ->  | G122: =IF(B122="","",VLOOKUP(D122,Tablas!$B$2:$H$13,7,FALSE)) -> 
A123: =IF(ISBLANK(InfoPro!A114),"",InfoPro!A114) ->  | B123: =IF(ISBLANK(InfoPro!B114),"",InfoPro!B114) ->  | C123: =IF(ISBLANK(InfoPro!E114),"",InfoPro!E114) ->  | D123: =IF(ISBLANK(InfoPro!F114),"",InfoPro!F114) ->  | E123: =IF(ISBLANK(InfoPro!I114),"",YEAR(InfoPro!I114)-$H$3) ->  | F123: =IF(B123="","",VLOOKUP(D123,Tablas!$B$2:$E$13,2,FALSE)) ->  | G123: =IF(B123="","",VLOOKUP(D123,Tablas!$B$2:$H$13,7,FALSE)) -> 
A124: =IF(ISBLANK(InfoPro!A115),"",InfoPro!A115) ->  | B124: =IF(ISBLANK(InfoPro!B115),"",InfoPro!B115) ->  | C124: =IF(ISBLANK(InfoPro!E115),"",InfoPro!E115) ->  | D124: =IF(ISBLANK(InfoPro!F115),"",InfoPro!F115) ->  | E124: =IF(ISBLANK(InfoPro!I115),"",YEAR(InfoPro!I115)-$H$3) ->  | F124: =IF(B124="","",VLOOKUP(D124,Tablas!$B$2:$E$13,2,FALSE)) ->  | G124: =IF(B124="","",VLOOKUP(D124,Tablas!$B$2:$H$13,7,FALSE)) -> 
A125: =IF(ISBLANK(InfoPro!A116),"",InfoPro!A116) ->  | B125: =IF(ISBLANK(InfoPro!B116),"",InfoPro!B116) ->  | C125: =IF(ISBLANK(InfoPro!E116),"",InfoPro!E116) ->  | D125: =IF(ISBLANK(InfoPro!F116),"",InfoPro!F116) ->  | E125: =IF(ISBLANK(InfoPro!I116),"",YEAR(InfoPro!I116)-$H$3) ->  | F125: =IF(B125="","",VLOOKUP(D125,Tablas!$B$2:$E$13,2,FALSE)) ->  | G125: =IF(B125="","",VLOOKUP(D125,Tablas!$B$2:$H$13,7,FALSE)) -> 
A126: =IF(ISBLANK(InfoPro!A117),"",InfoPro!A117) ->  | B126: =IF(ISBLANK(InfoPro!B117),"",InfoPro!B117) ->  | C126: =IF(ISBLANK(InfoPro!E117),"",InfoPro!E117) ->  | D126: =IF(ISBLANK(InfoPro!F117),"",InfoPro!F117) ->  | E126: =IF(ISBLANK(InfoPro!I117),"",YEAR(InfoPro!I117)-$H$3) ->  | F126: =IF(B126="","",VLOOKUP(D126,Tablas!$B$2:$E$13,2,FALSE)) ->  | G126: =IF(B126="","",VLOOKUP(D126,Tablas!$B$2:$H$13,7,FALSE)) -> 
A127: =IF(ISBLANK(InfoPro!A118),"",InfoPro!A118) ->  | B127: =IF(ISBLANK(InfoPro!B118),"",InfoPro!B118) ->  | C127: =IF(ISBLANK(InfoPro!E118),"",InfoPro!E118) ->  | D127: =IF(ISBLANK(InfoPro!F118),"",InfoPro!F118) ->  | E127: =IF(ISBLANK(InfoPro!I118),"",YEAR(InfoPro!I118)-$H$3) ->  | F127: =IF(B127="","",VLOOKUP(D127,Tablas!$B$2:$E$13,2,FALSE)) ->  | G127: =IF(B127="","",VLOOKUP(D127,Tablas!$B$2:$H$13,7,FALSE)) -> 
A128: =IF(ISBLANK(InfoPro!A119),"",InfoPro!A119) ->  | B128: =IF(ISBLANK(InfoPro!B119),"",InfoPro!B119) ->  | C128: =IF(ISBLANK(InfoPro!E119),"",InfoPro!E119) ->  | D128: =IF(ISBLANK(InfoPro!F119),"",InfoPro!F119) ->  | E128: =IF(ISBLANK(InfoPro!I119),"",YEAR(InfoPro!I119)-$H$3) ->  | F128: =IF(B128="","",VLOOKUP(D128,Tablas!$B$2:$E$13,2,FALSE)) ->  | G128: =IF(B128="","",VLOOKUP(D128,Tablas!$B$2:$H$13,7,FALSE)) -> 
A129: =IF(ISBLANK(InfoPro!A120),"",InfoPro!A120) ->  | B129: =IF(ISBLANK(InfoPro!B120),"",InfoPro!B120) ->  | C129: =IF(ISBLANK(InfoPro!E120),"",InfoPro!E120) ->  | D129: =IF(ISBLANK(InfoPro!F120),"",InfoPro!F120) ->  | E129: =IF(ISBLANK(InfoPro!I120),"",YEAR(InfoPro!I120)-$H$3) ->  | F129: =IF(B129="","",VLOOKUP(D129,Tablas!$B$2:$E$13,2,FALSE)) ->  | G129: =IF(B129="","",VLOOKUP(D129,Tablas!$B$2:$H$13,7,FALSE)) -> 
A130: =IF(ISBLANK(InfoPro!A121),"",InfoPro!A121) ->  | B130: =IF(ISBLANK(InfoPro!B121),"",InfoPro!B121) ->  | C130: =IF(ISBLANK(InfoPro!E121),"",InfoPro!E121) ->  | D130: =IF(ISBLANK(InfoPro!F121),"",InfoPro!F121) ->  | E130: =IF(ISBLANK(InfoPro!I121),"",YEAR(InfoPro!I121)-$H$3) ->  | F130: =IF(B130="","",VLOOKUP(D130,Tablas!$B$2:$E$13,2,FALSE)) ->  | G130: =IF(B130="","",VLOOKUP(D130,Tablas!$B$2:$H$13,7,FALSE)) -> 
A131: =IF(ISBLANK(InfoPro!A122),"",InfoPro!A122) ->  | B131: =IF(ISBLANK(InfoPro!B122),"",InfoPro!B122) ->  | C131: =IF(ISBLANK(InfoPro!E122),"",InfoPro!E122) ->  | D131: =IF(ISBLANK(InfoPro!F122),"",InfoPro!F122) ->  | E131: =IF(ISBLANK(InfoPro!I122),"",YEAR(InfoPro!I122)-$H$3) ->  | F131: =IF(B131="","",VLOOKUP(D131,Tablas!$B$2:$E$13,2,FALSE)) ->  | G131: =IF(B131="","",VLOOKUP(D131,Tablas!$B$2:$H$13,7,FALSE)) ->  | J131: =IF($I131="","",(1/(1+$C$3)^(J$6+$E131))*$I131*$C$2*$H131) -> 
A132: =IF(ISBLANK(InfoPro!A123),"",InfoPro!A123) ->  | B132: =IF(ISBLANK(InfoPro!B123),"",InfoPro!B123) ->  | C132: =IF(ISBLANK(InfoPro!E123),"",InfoPro!E123) ->  | D132: =IF(ISBLANK(InfoPro!F123),"",InfoPro!F123) ->  | E132: =IF(ISBLANK(InfoPro!I123),"",YEAR(InfoPro!I123)-$H$3) ->  | F132: =IF(B132="","",VLOOKUP(D132,Tablas!$B$2:$E$13,2,FALSE)) ->  | G132: =IF(B132="","",VLOOKUP(D132,Tablas!$B$2:$H$13,7,FALSE)) -> 
A133: =IF(ISBLANK(InfoPro!A124),"",InfoPro!A124) ->  | B133: =IF(ISBLANK(InfoPro!B124),"",InfoPro!B124) ->  | C133: =IF(ISBLANK(InfoPro!E124),"",InfoPro!E124) ->  | D133: =IF(ISBLANK(InfoPro!F124),"",InfoPro!F124) ->  | E133: =IF(ISBLANK(InfoPro!I124),"",YEAR(InfoPro!I124)-$H$3) ->  | F133: =IF(B133="","",VLOOKUP(D133,Tablas!$B$2:$E$13,2,FALSE)) ->  | G133: =IF(B133="","",VLOOKUP(D133,Tablas!$B$2:$H$13,7,FALSE)) -> 
A134: =IF(ISBLANK(InfoPro!A125),"",InfoPro!A125) ->  | B134: =IF(ISBLANK(InfoPro!B125),"",InfoPro!B125) ->  | C134: =IF(ISBLANK(InfoPro!E125),"",InfoPro!E125) ->  | D134: =IF(ISBLANK(InfoPro!F125),"",InfoPro!F125) ->  | E134: =IF(ISBLANK(InfoPro!I125),"",YEAR(InfoPro!I125)-$H$3) ->  | F134: =IF(B134="","",VLOOKUP(D134,Tablas!$B$2:$E$13,2,FALSE)) ->  | G134: =IF(B134="","",VLOOKUP(D134,Tablas!$B$2:$H$13,7,FALSE)) -> 
A135: =IF(ISBLANK(InfoPro!A126),"",InfoPro!A126) ->  | B135: =IF(ISBLANK(InfoPro!B126),"",InfoPro!B126) ->  | C135: =IF(ISBLANK(InfoPro!E126),"",InfoPro!E126) ->  | D135: =IF(ISBLANK(InfoPro!F126),"",InfoPro!F126) ->  | E135: =IF(ISBLANK(InfoPro!I126),"",YEAR(InfoPro!I126)-$H$3) ->  | F135: =IF(B135="","",VLOOKUP(D135,Tablas!$B$2:$E$13,2,FALSE)) ->  | G135: =IF(B135="","",VLOOKUP(D135,Tablas!$B$2:$H$13,7,FALSE)) -> 
A136: =IF(ISBLANK(InfoPro!A127),"",InfoPro!A127) ->  | B136: =IF(ISBLANK(InfoPro!B127),"",InfoPro!B127) ->  | C136: =IF(ISBLANK(InfoPro!E127),"",InfoPro!E127) ->  | D136: =IF(ISBLANK(InfoPro!F127),"",InfoPro!F127) ->  | E136: =IF(ISBLANK(InfoPro!I127),"",YEAR(InfoPro!I127)-$H$3) ->  | F136: =IF(B136="","",VLOOKUP(D136,Tablas!$B$2:$E$13,2,FALSE)) ->  | G136: =IF(B136="","",VLOOKUP(D136,Tablas!$B$2:$H$13,7,FALSE)) -> 
A137: =IF(ISBLANK(InfoPro!A128),"",InfoPro!A128) ->  | B137: =IF(ISBLANK(InfoPro!B128),"",InfoPro!B128) ->  | C137: =IF(ISBLANK(InfoPro!E128),"",InfoPro!E128) ->  | D137: =IF(ISBLANK(InfoPro!F128),"",InfoPro!F128) ->  | E137: =IF(ISBLANK(InfoPro!I128),"",YEAR(InfoPro!I128)-$H$3) ->  | F137: =IF(B137="","",VLOOKUP(D137,Tablas!$B$2:$E$13,2,FALSE)) ->  | G137: =IF(B137="","",VLOOKUP(D137,Tablas!$B$2:$H$13,7,FALSE)) -> 
A138: =IF(ISBLANK(InfoPro!A129),"",InfoPro!A129) ->  | B138: =IF(ISBLANK(InfoPro!B129),"",InfoPro!B129) ->  | C138: =IF(ISBLANK(InfoPro!E129),"",InfoPro!E129) ->  | D138: =IF(ISBLANK(InfoPro!F129),"",InfoPro!F129) ->  | E138: =IF(ISBLANK(InfoPro!I129),"",YEAR(InfoPro!I129)-$H$3) ->  | F138: =IF(B138="","",VLOOKUP(D138,Tablas!$B$2:$E$13,2,FALSE)) ->  | G138: =IF(B138="","",VLOOKUP(D138,Tablas!$B$2:$H$13,7,FALSE)) -> 
A139: =IF(ISBLANK(InfoPro!A130),"",InfoPro!A130) ->  | B139: =IF(ISBLANK(InfoPro!B130),"",InfoPro!B130) ->  | C139: =IF(ISBLANK(InfoPro!E130),"",InfoPro!E130) ->  | D139: =IF(ISBLANK(InfoPro!F130),"",InfoPro!F130) ->  | E139: =IF(ISBLANK(InfoPro!I130),"",YEAR(InfoPro!I130)-$H$3) ->  | F139: =IF(B139="","",VLOOKUP(D139,Tablas!$B$2:$E$13,2,FALSE)) ->  | G139: =IF(B139="","",VLOOKUP(D139,Tablas!$B$2:$H$13,7,FALSE)) -> 
A140: =IF(ISBLANK(InfoPro!A131),"",InfoPro!A131) ->  | B140: =IF(ISBLANK(InfoPro!B131),"",InfoPro!B131) ->  | C140: =IF(ISBLANK(InfoPro!E131),"",InfoPro!E131) ->  | D140: =IF(ISBLANK(InfoPro!F131),"",InfoPro!F131) ->  | E140: =IF(ISBLANK(InfoPro!I131),"",YEAR(InfoPro!I131)-$H$3) ->  | F140: =IF(B140="","",VLOOKUP(D140,Tablas!$B$2:$E$13,2,FALSE)) ->  | G140: =IF(B140="","",VLOOKUP(D140,Tablas!$B$2:$H$13,7,FALSE)) -> 
A141: =IF(ISBLANK(InfoPro!A132),"",InfoPro!A132) ->  | B141: =IF(ISBLANK(InfoPro!B132),"",InfoPro!B132) ->  | C141: =IF(ISBLANK(InfoPro!E132),"",InfoPro!E132) ->  | D141: =IF(ISBLANK(InfoPro!F132),"",InfoPro!F132) ->  | E141: =IF(ISBLANK(InfoPro!I132),"",YEAR(InfoPro!I132)-$H$3) ->  | F141: =IF(B141="","",VLOOKUP(D141,Tablas!$B$2:$E$13,2,FALSE)) ->  | G141: =IF(B141="","",VLOOKUP(D141,Tablas!$B$2:$H$13,7,FALSE)) -> 
A142: =IF(ISBLANK(InfoPro!A133),"",InfoPro!A133) ->  | B142: =IF(ISBLANK(InfoPro!B133),"",InfoPro!B133) ->  | C142: =IF(ISBLANK(InfoPro!E133),"",InfoPro!E133) ->  | D142: =IF(ISBLANK(InfoPro!F133),"",InfoPro!F133) ->  | E142: =IF(ISBLANK(InfoPro!I133),"",YEAR(InfoPro!I133)-$H$3) ->  | F142: =IF(B142="","",VLOOKUP(D142,Tablas!$B$2:$E$13,2,FALSE)) ->  | G142: =IF(B142="","",VLOOKUP(D142,Tablas!$B$2:$H$13,7,FALSE)) -> 
A143: =IF(ISBLANK(InfoPro!A134),"",InfoPro!A134) ->  | B143: =IF(ISBLANK(InfoPro!B134),"",InfoPro!B134) ->  | C143: =IF(ISBLANK(InfoPro!E134),"",InfoPro!E134) ->  | D143: =IF(ISBLANK(InfoPro!F134),"",InfoPro!F134) ->  | E143: =IF(ISBLANK(InfoPro!I134),"",YEAR(InfoPro!I134)-$H$3) ->  | F143: =IF(B143="","",VLOOKUP(D143,Tablas!$B$2:$E$13,2,FALSE)) ->  | G143: =IF(B143="","",VLOOKUP(D143,Tablas!$B$2:$H$13,7,FALSE)) -> 
A144: =IF(ISBLANK(InfoPro!A135),"",InfoPro!A135) ->  | B144: =IF(ISBLANK(InfoPro!B135),"",InfoPro!B135) ->  | C144: =IF(ISBLANK(InfoPro!E135),"",InfoPro!E135) ->  | D144: =IF(ISBLANK(InfoPro!F135),"",InfoPro!F135) ->  | E144: =IF(ISBLANK(InfoPro!I135),"",YEAR(InfoPro!I135)-$H$3) ->  | F144: =IF(B144="","",VLOOKUP(D144,Tablas!$B$2:$E$13,2,FALSE)) ->  | G144: =IF(B144="","",VLOOKUP(D144,Tablas!$B$2:$H$13,7,FALSE)) -> 
A145: =IF(ISBLANK(InfoPro!A136),"",InfoPro!A136) ->  | B145: =IF(ISBLANK(InfoPro!B136),"",InfoPro!B136) ->  | C145: =IF(ISBLANK(InfoPro!E136),"",InfoPro!E136) ->  | D145: =IF(ISBLANK(InfoPro!F136),"",InfoPro!F136) ->  | E145: =IF(ISBLANK(InfoPro!I136),"",YEAR(InfoPro!I136)-$H$3) ->  | F145: =IF(B145="","",VLOOKUP(D145,Tablas!$B$2:$E$13,2,FALSE)) ->  | G145: =IF(B145="","",VLOOKUP(D145,Tablas!$B$2:$H$13,7,FALSE)) -> 
A146: =IF(ISBLANK(InfoPro!A137),"",InfoPro!A137) ->  | B146: =IF(ISBLANK(InfoPro!B137),"",InfoPro!B137) ->  | C146: =IF(ISBLANK(InfoPro!E137),"",InfoPro!E137) ->  | D146: =IF(ISBLANK(InfoPro!F137),"",InfoPro!F137) ->  | E146: =IF(ISBLANK(InfoPro!I137),"",YEAR(InfoPro!I137)-$H$3) ->  | F146: =IF(B146="","",VLOOKUP(D146,Tablas!$B$2:$E$13,2,FALSE)) ->  | G146: =IF(B146="","",VLOOKUP(D146,Tablas!$B$2:$H$13,7,FALSE)) -> 
A147: =IF(ISBLANK(InfoPro!A138),"",InfoPro!A138) ->  | B147: =IF(ISBLANK(InfoPro!B138),"",InfoPro!B138) ->  | C147: =IF(ISBLANK(InfoPro!E138),"",InfoPro!E138) ->  | D147: =IF(ISBLANK(InfoPro!F138),"",InfoPro!F138) ->  | E147: =IF(ISBLANK(InfoPro!I138),"",YEAR(InfoPro!I138)-$H$3) ->  | F147: =IF(B147="","",VLOOKUP(D147,Tablas!$B$2:$E$13,2,FALSE)) ->  | G147: =IF(B147="","",VLOOKUP(D147,Tablas!$B$2:$H$13,7,FALSE)) -> 
A148: =IF(ISBLANK(InfoPro!A139),"",InfoPro!A139) ->  | B148: =IF(ISBLANK(InfoPro!B139),"",InfoPro!B139) ->  | C148: =IF(ISBLANK(InfoPro!E139),"",InfoPro!E139) ->  | D148: =IF(ISBLANK(InfoPro!F139),"",InfoPro!F139) ->  | E148: =IF(ISBLANK(InfoPro!I139),"",YEAR(InfoPro!I139)-$H$3) ->  | F148: =IF(B148="","",VLOOKUP(D148,Tablas!$B$2:$E$13,2,FALSE)) ->  | G148: =IF(B148="","",VLOOKUP(D148,Tablas!$B$2:$H$13,7,FALSE)) ->  | J148: =IF($I148="","",(1/(1+$C$3)^(J$6+$E148))*$I148*$C$2*$H148) -> 
A149: =IF(ISBLANK(InfoPro!A140),"",InfoPro!A140) ->  | B149: =IF(ISBLANK(InfoPro!B140),"",InfoPro!B140) ->  | C149: =IF(ISBLANK(InfoPro!E140),"",InfoPro!E140) ->  | D149: =IF(ISBLANK(InfoPro!F140),"",InfoPro!F140) ->  | E149: =IF(ISBLANK(InfoPro!I140),"",YEAR(InfoPro!I140)-$H$3) ->  | F149: =IF(B149="","",VLOOKUP(D149,Tablas!$B$2:$E$13,2,FALSE)) ->  | G149: =IF(B149="","",VLOOKUP(D149,Tablas!$B$2:$H$13,7,FALSE)) -> 
A150: =IF(ISBLANK(InfoPro!A141),"",InfoPro!A141) ->  | B150: =IF(ISBLANK(InfoPro!B141),"",InfoPro!B141) ->  | C150: =IF(ISBLANK(InfoPro!E141),"",InfoPro!E141) ->  | D150: =IF(ISBLANK(InfoPro!F141),"",InfoPro!F141) ->  | E150: =IF(ISBLANK(InfoPro!I141),"",YEAR(InfoPro!I141)-$H$3) ->  | F150: =IF(B150="","",VLOOKUP(D150,Tablas!$B$2:$E$13,2,FALSE)) ->  | G150: =IF(B150="","",VLOOKUP(D150,Tablas!$B$2:$H$13,7,FALSE)) -> 
A151: =IF(ISBLANK(InfoPro!A142),"",InfoPro!A142) ->  | B151: =IF(ISBLANK(InfoPro!B142),"",InfoPro!B142) ->  | C151: =IF(ISBLANK(InfoPro!E142),"",InfoPro!E142) ->  | D151: =IF(ISBLANK(InfoPro!F142),"",InfoPro!F142) ->  | E151: =IF(ISBLANK(InfoPro!I142),"",YEAR(InfoPro!I142)-$H$3) ->  | F151: =IF(B151="","",VLOOKUP(D151,Tablas!$B$2:$E$13,2,FALSE)) ->  | G151: =IF(B151="","",VLOOKUP(D151,Tablas!$B$2:$H$13,7,FALSE)) -> 
A152: =IF(ISBLANK(InfoPro!A143),"",InfoPro!A143) ->  | B152: =IF(ISBLANK(InfoPro!B143),"",InfoPro!B143) ->  | C152: =IF(ISBLANK(InfoPro!E143),"",InfoPro!E143) ->  | D152: =IF(ISBLANK(InfoPro!F143),"",InfoPro!F143) ->  | E152: =IF(ISBLANK(InfoPro!I143),"",YEAR(InfoPro!I143)-$H$3) ->  | F152: =IF(B152="","",VLOOKUP(D152,Tablas!$B$2:$E$13,2,FALSE)) ->  | G152: =IF(B152="","",VLOOKUP(D152,Tablas!$B$2:$H$13,7,FALSE)) -> 
A153: =IF(ISBLANK(InfoPro!A144),"",InfoPro!A144) ->  | B153: =IF(ISBLANK(InfoPro!B144),"",InfoPro!B144) ->  | C153: =IF(ISBLANK(InfoPro!E144),"",InfoPro!E144) ->  | D153: =IF(ISBLANK(InfoPro!F144),"",InfoPro!F144) ->  | E153: =IF(ISBLANK(InfoPro!I144),"",YEAR(InfoPro!I144)-$H$3) ->  | F153: =IF(B153="","",VLOOKUP(D153,Tablas!$B$2:$E$13,2,FALSE)) ->  | G153: =IF(B153="","",VLOOKUP(D153,Tablas!$B$2:$H$13,7,FALSE)) -> 
A154: =IF(ISBLANK(InfoPro!A145),"",InfoPro!A145) ->  | B154: =IF(ISBLANK(InfoPro!B145),"",InfoPro!B145) ->  | C154: =IF(ISBLANK(InfoPro!E145),"",InfoPro!E145) ->  | D154: =IF(ISBLANK(InfoPro!F145),"",InfoPro!F145) ->  | E154: =IF(ISBLANK(InfoPro!I145),"",YEAR(InfoPro!I145)-$H$3) ->  | F154: =IF(B154="","",VLOOKUP(D154,Tablas!$B$2:$E$13,2,FALSE)) ->  | G154: =IF(B154="","",VLOOKUP(D154,Tablas!$B$2:$H$13,7,FALSE)) -> 
A155: =IF(ISBLANK(InfoPro!A146),"",InfoPro!A146) ->  | B155: =IF(ISBLANK(InfoPro!B146),"",InfoPro!B146) ->  | C155: =IF(ISBLANK(InfoPro!E146),"",InfoPro!E146) ->  | D155: =IF(ISBLANK(InfoPro!F146),"",InfoPro!F146) ->  | E155: =IF(ISBLANK(InfoPro!I146),"",YEAR(InfoPro!I146)-$H$3) ->  | F155: =IF(B155="","",VLOOKUP(D155,Tablas!$B$2:$E$13,2,FALSE)) ->  | G155: =IF(B155="","",VLOOKUP(D155,Tablas!$B$2:$H$13,7,FALSE)) -> 
A156: =IF(ISBLANK(InfoPro!A147),"",InfoPro!A147) ->  | B156: =IF(ISBLANK(InfoPro!B147),"",InfoPro!B147) ->  | C156: =IF(ISBLANK(InfoPro!E147),"",InfoPro!E147) ->  | D156: =IF(ISBLANK(InfoPro!F147),"",InfoPro!F147) ->  | E156: =IF(ISBLANK(InfoPro!I147),"",YEAR(InfoPro!I147)-$H$3) ->  | F156: =IF(B156="","",VLOOKUP(D156,Tablas!$B$2:$E$13,2,FALSE)) ->  | G156: =IF(B156="","",VLOOKUP(D156,Tablas!$B$2:$H$13,7,FALSE)) -> 
A157: =IF(ISBLANK(InfoPro!A148),"",InfoPro!A148) ->  | B157: =IF(ISBLANK(InfoPro!B148),"",InfoPro!B148) ->  | C157: =IF(ISBLANK(InfoPro!E148),"",InfoPro!E148) ->  | D157: =IF(ISBLANK(InfoPro!F148),"",InfoPro!F148) ->  | E157: =IF(ISBLANK(InfoPro!I148),"",YEAR(InfoPro!I148)-$H$3) ->  | F157: =IF(B157="","",VLOOKUP(D157,Tablas!$B$2:$E$13,2,FALSE)) ->  | G157: =IF(B157="","",VLOOKUP(D157,Tablas!$B$2:$H$13,7,FALSE)) -> 
A158: =IF(ISBLANK(InfoPro!A149),"",InfoPro!A149) ->  | B158: =IF(ISBLANK(InfoPro!B149),"",InfoPro!B149) ->  | C158: =IF(ISBLANK(InfoPro!E149),"",InfoPro!E149) ->  | D158: =IF(ISBLANK(InfoPro!F149),"",InfoPro!F149) ->  | E158: =IF(ISBLANK(InfoPro!I149),"",YEAR(InfoPro!I149)-$H$3) ->  | F158: =IF(B158="","",VLOOKUP(D158,Tablas!$B$2:$E$13,2,FALSE)) ->  | G158: =IF(B158="","",VLOOKUP(D158,Tablas!$B$2:$H$13,7,FALSE)) -> 
A159: =IF(ISBLANK(InfoPro!A150),"",InfoPro!A150) ->  | B159: =IF(ISBLANK(InfoPro!B150),"",InfoPro!B150) ->  | C159: =IF(ISBLANK(InfoPro!E150),"",InfoPro!E150) ->  | D159: =IF(ISBLANK(InfoPro!F150),"",InfoPro!F150) ->  | E159: =IF(ISBLANK(InfoPro!I150),"",YEAR(InfoPro!I150)-$H$3) ->  | F159: =IF(B159="","",VLOOKUP(D159,Tablas!$B$2:$E$13,2,FALSE)) ->  | G159: =IF(B159="","",VLOOKUP(D159,Tablas!$B$2:$H$13,7,FALSE)) -> 
A160: =IF(ISBLANK(InfoPro!A151),"",InfoPro!A151) ->  | B160: =IF(ISBLANK(InfoPro!B151),"",InfoPro!B151) ->  | C160: =IF(ISBLANK(InfoPro!E151),"",InfoPro!E151) ->  | D160: =IF(ISBLANK(InfoPro!F151),"",InfoPro!F151) ->  | E160: =IF(ISBLANK(InfoPro!I151),"",YEAR(InfoPro!I151)-$H$3) ->  | F160: =IF(B160="","",VLOOKUP(D160,Tablas!$B$2:$E$13,2,FALSE)) ->  | G160: =IF(B160="","",VLOOKUP(D160,Tablas!$B$2:$H$13,7,FALSE)) -> 
A161: =IF(ISBLANK(InfoPro!A152),"",InfoPro!A152) ->  | B161: =IF(ISBLANK(InfoPro!B152),"",InfoPro!B152) ->  | C161: =IF(ISBLANK(InfoPro!E152),"",InfoPro!E152) ->  | D161: =IF(ISBLANK(InfoPro!F152),"",InfoPro!F152) ->  | E161: =IF(ISBLANK(InfoPro!I152),"",YEAR(InfoPro!I152)-$H$3) ->  | F161: =IF(B161="","",VLOOKUP(D161,Tablas!$B$2:$E$13,2,FALSE)) ->  | G161: =IF(B161="","",VLOOKUP(D161,Tablas!$B$2:$H$13,7,FALSE)) -> 
A162: =IF(ISBLANK(InfoPro!A153),"",InfoPro!A153) ->  | B162: =IF(ISBLANK(InfoPro!B153),"",InfoPro!B153) ->  | C162: =IF(ISBLANK(InfoPro!E153),"",InfoPro!E153) ->  | D162: =IF(ISBLANK(InfoPro!F153),"",InfoPro!F153) ->  | E162: =IF(ISBLANK(InfoPro!I153),"",YEAR(InfoPro!I153)-$H$3) ->  | F162: =IF(B162="","",VLOOKUP(D162,Tablas!$B$2:$E$13,2,FALSE)) ->  | G162: =IF(B162="","",VLOOKUP(D162,Tablas!$B$2:$H$13,7,FALSE)) -> 
A163: =IF(ISBLANK(InfoPro!A154),"",InfoPro!A154) ->  | B163: =IF(ISBLANK(InfoPro!B154),"",InfoPro!B154) ->  | C163: =IF(ISBLANK(InfoPro!E154),"",InfoPro!E154) ->  | D163: =IF(ISBLANK(InfoPro!F154),"",InfoPro!F154) ->  | E163: =IF(ISBLANK(InfoPro!I154),"",YEAR(InfoPro!I154)-$H$3) ->  | F163: =IF(B163="","",VLOOKUP(D163,Tablas!$B$2:$E$13,2,FALSE)) ->  | G163: =IF(B163="","",VLOOKUP(D163,Tablas!$B$2:$H$13,7,FALSE)) -> 
A164: =IF(ISBLANK(InfoPro!A155),"",InfoPro!A155) ->  | B164: =IF(ISBLANK(InfoPro!B155),"",InfoPro!B155) ->  | C164: =IF(ISBLANK(InfoPro!E155),"",InfoPro!E155) ->  | D164: =IF(ISBLANK(InfoPro!F155),"",InfoPro!F155) ->  | E164: =IF(ISBLANK(InfoPro!I155),"",YEAR(InfoPro!I155)-$H$3) ->  | F164: =IF(B164="","",VLOOKUP(D164,Tablas!$B$2:$E$13,2,FALSE)) ->  | G164: =IF(B164="","",VLOOKUP(D164,Tablas!$B$2:$H$13,7,FALSE)) -> 
